Workbook

Sheet Change Log
A2: Method M Version No. | C2: [Extended Disaggregation Model PB LZ v1.0]
A3: Release Date: | C3: [01 April 2013]
A8: This version of Method M incorporates the following change proposals:
A10: Ref | B10: Approval Date | C10: Implementation Date | D10: Title
A11: DCP 071A | B11: 2011-06-20 | C11: 2011-10-01 | D11: Allocation of Costs to HV Connected IDNOs with LV End Users
A12: DCP 095 | B12: 2011-12-09 | C12: 2012-04-01 | D12: Not included in this model
A13: DCP 096 | B13: 2011-12-09 | C13: 2012-04-01 | D13: Treatment of Transmission Exit Charges in CDCM Price Control Disaggregation Model (Method M)

Sheet Inputs
A1: ="Extended Method M for "&B5&" in "&B6&" Status: "&B7&"" -> Extended Method M for WPD West Midlands in 2014/15 Status: Indicative
A4: 1000. Company, charging year, data version
A5: DNO | B5: WPD West Midlands
A6: Charging Year | B6: 2014/15
A7: Version | B7: Indicative
A10: 1001. LV/HV Split
A11: Sources: HV main usage value provided each year by the Nominated Calculation Agent
A12: DNO LV Main usage | B12: 0.182
A13: DNO HV Main usage | B13: 0.4
A14: DNO 33kV split | B14: 1
A15: DNO 132kV split | B15: 1
A18: 1002. Method M input data
A19: Each DNO selects one of the options below to calculate the LDNO discounts:
A20: 'LR1 opt 3' is an extended version of LR1, which contains all information from LR1, but breaks down certain lines into more detail.
A21: Version LR1
A22: Version LR1, Option 3
B25: This spreadsheet is currently using version: | C25: LR1
A27: 1003. Depreciation Factor
A28: Depreciation Factor | B28: 0.05545
A31: 1004. CDCM Discounts
A32: Sources: CDCM Table 1037. (Embedded network (LDNO) discounts)
B33: No discount | C33: LDNO LV: LV user | D33: LDNO HV: LV user | E33: LDNO HV: LV sub user | F33: LDNO HV: HV user
A34: LDNO discount using data in this model | C34: 0.3124735685 | D34: 0.5274673186 | E34: 0.2901134262 | F34: 0.1911157715
A36: Additional Input Links
A37: Calc-Net capex'!K5 | B37: Suggest these values are set to 0 for those using LR1
A38: Calc-Net capex'!O6 to O10 | B38: Suggest these values are set to 0 for those using LR1
A40: Notes
A41: - Where DNOs do not hold asset data required by the Method M model within the RRP data tables, the DNO can substitute equivalent data within the Method M input tables.

Sheet Outputs
A1: ="Extended Method M for "&Inputs!B5&" in "&Inputs!B6&" Status: "&Inputs!B7&"" -> Extended Method M for WPD West Midlands in 2014/15 Status: Indicative | G1: Index
A3: The data table below is used to populate EDCM table 1181 (LDNO discounts)
A6: Boundary category | B6: LV demand end user | C6: LV Sub demand or LV generation end user | D6: HV demand or LV Sub generation end user | E6: HV generation end user
A7: Boundary 0000 | B7: =IF((SUM('Allocation Summary'!B$13:H$13)-SUMPRODUCT('Allocation Summary'!B22:E22,'Allocation Summary'!E$13:H$13))/(1-SUMPRODUCT('Allocation Summary'!F22:I22,'Allocation Summary'!E$13:H$13))>1,1,(SUM('Allocation Summary'!B$13:H$13)-SUMPRODUCT('Allocation Summary'!B22:E22,'Allocation Summary'!E$13:H$13))/(1-SUMPRODUCT('Allocation Summary'!F22:I22,'Allocation Summary'!E$13:H$13))) -> 0.9547711919 | C7: =IF((SUM('Allocation Summary'!C$13:H$13)-SUMPRODUCT('Allocation Summary'!B22:E22,'Allocation Summary'!E$13:H$13))/(1-'Allocation Summary'!B$13-SUMPRODUCT('Allocation Summary'!F22:I22,'Allocation Summary'!E$13:H$13))>1,1,(SUM('Allocation Summary'!C$13:H$13)-SUMPRODUCT('Allocation Summary'!B22:E22,'Allocation Summary'!E$13:H$13))/(1-'Allocation Summary'!B$13-SUMPRODUCT('Allocation Summary'!F22:I22,'Allocation Summary'!E$13:H$13))) -> 0.9324387053 | D7: =IF((SUM('Allocation Summary'!D$13:H$13)-SUMPRODUCT('Allocation Summary'!B22:E22,'Allocation Summary'!E$13:H$13))/(1-SUM('Allocation Summary'!B$13:C$13)-SUMPRODUCT('Allocation Summary'!F22:I22,'Allocation Summary'!E$13:H$13))>1,1,(SUM('Allocation Summary'!D$13:H$13)-SUMPRODUCT('Allocation Summary'!B22:E22,'Allocation Summary'!E$13:H$13))/(1-SUM('Allocation Summary'!B$13:C$13)-SUMPRODUCT('Allocation Summary'!F22:I22,'Allocation Summary'!E$13:H$13))) -> 0.9231981284 | E7: =IF((SUM('Allocation Summary'!E$13:H$13)-SUMPRODUCT('Allocation Summary'!B22:E22,'Allocation Summary'!E$13:H$13))/(1-SUM('Allocation Summary'!B$13:D$13)-SUMPRODUCT('Allocation Summary'!F22:I22,'Allocation Summary'!E$13:H$13))>1,1,(SUM('Allocation Summary'!E$13:H$13)-SUMPRODUCT('Allocation Summary'!B22:E22,'Allocation Summary'!E$13:H$13))/(1-SUM('Allocation Summary'!B$13:D$13)-SUMPRODUCT('Allocation Summary'!F22:I22,'Allocation Summary'!E$13:H$13))) -> 0.8925856116
A8: Boundary 132kV | B8: =IF((SUM('Allocation Summary'!B$13:H$13)-SUMPRODUCT('Allocation Summary'!B23:E23,'Allocation Summary'!E$13:H$13))/(1-SUMPRODUCT('Allocation Summary'!F23:I23,'Allocation Summary'!E$13:H$13))>1,1,(SUM('Allocation Summary'!B$13:H$13)-SUMPRODUCT('Allocation Summary'!B23:E23,'Allocation Summary'!E$13:H$13))/(1-SUMPRODUCT('Allocation Summary'!F23:I23,'Allocation Summary'!E$13:H$13))) -> 0.7841894031 | C8: =IF((SUM('Allocation Summary'!C$13:H$13)-SUMPRODUCT('Allocation Summary'!B23:E23,'Allocation Summary'!E$13:H$13))/(1-'Allocation Summary'!B$13-SUMPRODUCT('Allocation Summary'!F23:I23,'Allocation Summary'!E$13:H$13))>1,1,(SUM('Allocation Summary'!C$13:H$13)-SUMPRODUCT('Allocation Summary'!B23:E23,'Allocation Summary'!E$13:H$13))/(1-'Allocation Summary'!B$13-SUMPRODUCT('Allocation Summary'!F23:I23,'Allocation Summary'!E$13:H$13))) -> 0.6776292824 | D8: =IF((SUM('Allocation Summary'!D$13:H$13)-SUMPRODUCT('Allocation Summary'!B23:E23,'Allocation Summary'!E$13:H$13))/(1-SUM('Allocation Summary'!B$13:C$13)-SUMPRODUCT('Allocation Summary'!F23:I23,'Allocation Summary'!E$13:H$13))>1,1,(SUM('Allocation Summary'!D$13:H$13)-SUMPRODUCT('Allocation Summary'!B23:E23,'Allocation Summary'!E$13:H$13))/(1-SUM('Allocation Summary'!B$13:C$13)-SUMPRODUCT('Allocation Summary'!F23:I23,'Allocation Summary'!E$13:H$13))) -> 0.6335375959 | E8: =IF((SUM('Allocation Summary'!E$13:H$13)-SUMPRODUCT('Allocation Summary'!B23:E23,'Allocation Summary'!E$13:H$13))/(1-SUM('Allocation Summary'!B$13:D$13)-SUMPRODUCT('Allocation Summary'!F23:I23,'Allocation Summary'!E$13:H$13))>1,1,(SUM('Allocation Summary'!E$13:H$13)-SUMPRODUCT('Allocation Summary'!B23:E23,'Allocation Summary'!E$13:H$13))/(1-SUM('Allocation Summary'!B$13:D$13)-SUMPRODUCT('Allocation Summary'!F23:I23,'Allocation Summary'!E$13:H$13))) -> 0.4874690658
A9: Boundary 132kV/EHV | B9: =IF((SUM('Allocation Summary'!B$13:H$13)-SUMPRODUCT('Allocation Summary'!B24:E24,'Allocation Summary'!E$13:H$13))/(1-SUMPRODUCT('Allocation Summary'!F24:I24,'Allocation Summary'!E$13:H$13))>1,1,(SUM('Allocation Summary'!B$13:H$13)-SUMPRODUCT('Allocation Summary'!B24:E24,'Allocation Summary'!E$13:H$13))/(1-SUMPRODUCT('Allocation Summary'!F24:I24,'Allocation Summary'!E$13:H$13))) -> 0.6738444477 | C9: =IF((SUM('Allocation Summary'!C$13:H$13)-SUMPRODUCT('Allocation Summary'!B24:E24,'Allocation Summary'!E$13:H$13))/(1-'Allocation Summary'!B$13-SUMPRODUCT('Allocation Summary'!F24:I24,'Allocation Summary'!E$13:H$13))>1,1,(SUM('Allocation Summary'!C$13:H$13)-SUMPRODUCT('Allocation Summary'!B24:E24,'Allocation Summary'!E$13:H$13))/(1-'Allocation Summary'!B$13-SUMPRODUCT('Allocation Summary'!F24:I24,'Allocation Summary'!E$13:H$13))) -> 0.5127996448 | D9: =IF((SUM('Allocation Summary'!D$13:H$13)-SUMPRODUCT('Allocation Summary'!B24:E24,'Allocation Summary'!E$13:H$13))/(1-SUM('Allocation Summary'!B$13:C$13)-SUMPRODUCT('Allocation Summary'!F24:I24,'Allocation Summary'!E$13:H$13))>1,1,(SUM('Allocation Summary'!D$13:H$13)-SUMPRODUCT('Allocation Summary'!B24:E24,'Allocation Summary'!E$13:H$13))/(1-SUM('Allocation Summary'!B$13:C$13)-SUMPRODUCT('Allocation Summary'!F24:I24,'Allocation Summary'!E$13:H$13))) -> 0.4461636753 | E9: =IF((SUM('Allocation Summary'!E$13:H$13)-SUMPRODUCT('Allocation Summary'!B24:E24,'Allocation Summary'!E$13:H$13))/(1-SUM('Allocation Summary'!B$13:D$13)-SUMPRODUCT('Allocation Summary'!F24:I24,'Allocation Summary'!E$13:H$13))>1,1,(SUM('Allocation Summary'!E$13:H$13)-SUMPRODUCT('Allocation Summary'!B24:E24,'Allocation Summary'!E$13:H$13))/(1-SUM('Allocation Summary'!B$13:D$13)-SUMPRODUCT('Allocation Summary'!F24:I24,'Allocation Summary'!E$13:H$13))) -> 0.2254096308
A10: Boundary EHV | B10: =IF((SUM('Allocation Summary'!B$13:H$13)-SUMPRODUCT('Allocation Summary'!B25:E25,'Allocation Summary'!E$13:H$13))/(1-SUMPRODUCT('Allocation Summary'!F25:I25,'Allocation Summary'!E$13:H$13))>1,1,(SUM('Allocation Summary'!B$13:H$13)-SUMPRODUCT('Allocation Summary'!B25:E25,'Allocation Summary'!E$13:H$13))/(1-SUMPRODUCT('Allocation Summary'!F25:I25,'Allocation Summary'!E$13:H$13))) -> 0.6595502457 | C10: =IF((SUM('Allocation Summary'!C$13:H$13)-SUMPRODUCT('Allocation Summary'!B25:E25,'Allocation Summary'!E$13:H$13))/(1-'Allocation Summary'!B$13-SUMPRODUCT('Allocation Summary'!F25:I25,'Allocation Summary'!E$13:H$13))>1,1,(SUM('Allocation Summary'!C$13:H$13)-SUMPRODUCT('Allocation Summary'!B25:E25,'Allocation Summary'!E$13:H$13))/(1-'Allocation Summary'!B$13-SUMPRODUCT('Allocation Summary'!F25:I25,'Allocation Summary'!E$13:H$13))) -> 0.4914474397 | D10: =IF((SUM('Allocation Summary'!D$13:H$13)-SUMPRODUCT('Allocation Summary'!B25:E25,'Allocation Summary'!E$13:H$13))/(1-SUM('Allocation Summary'!B$13:C$13)-SUMPRODUCT('Allocation Summary'!F25:I25,'Allocation Summary'!E$13:H$13))>1,1,(SUM('Allocation Summary'!D$13:H$13)-SUMPRODUCT('Allocation Summary'!B25:E25,'Allocation Summary'!E$13:H$13))/(1-SUM('Allocation Summary'!B$13:C$13)-SUMPRODUCT('Allocation Summary'!F25:I25,'Allocation Summary'!E$13:H$13))) -> 0.42189106 | E10: =IF((SUM('Allocation Summary'!E$13:H$13)-SUMPRODUCT('Allocation Summary'!B25:E25,'Allocation Summary'!E$13:H$13))/(1-SUM('Allocation Summary'!B$13:D$13)-SUMPRODUCT('Allocation Summary'!F25:I25,'Allocation Summary'!E$13:H$13))>1,1,(SUM('Allocation Summary'!E$13:H$13)-SUMPRODUCT('Allocation Summary'!B25:E25,'Allocation Summary'!E$13:H$13))/(1-SUM('Allocation Summary'!B$13:D$13)-SUMPRODUCT('Allocation Summary'!F25:I25,'Allocation Summary'!E$13:H$13))) -> 0.1914621751
A11: Boundary HVplus | B11: =IF((SUM('Allocation Summary'!B$13:H$13)-SUMPRODUCT('Allocation Summary'!B26:E26,'Allocation Summary'!E$13:H$13))/(1-SUMPRODUCT('Allocation Summary'!F26:I26,'Allocation Summary'!E$13:H$13))>1,1,(SUM('Allocation Summary'!B$13:H$13)-SUMPRODUCT('Allocation Summary'!B26:E26,'Allocation Summary'!E$13:H$13))/(1-SUMPRODUCT('Allocation Summary'!F26:I26,'Allocation Summary'!E$13:H$13))) -> 0.5789315678 | C11: =IF((SUM('Allocation Summary'!C$13:H$13)-SUMPRODUCT('Allocation Summary'!B26:E26,'Allocation Summary'!E$13:H$13))/(1-'Allocation Summary'!B$13-SUMPRODUCT('Allocation Summary'!F26:I26,'Allocation Summary'!E$13:H$13))>1,1,(SUM('Allocation Summary'!C$13:H$13)-SUMPRODUCT('Allocation Summary'!B26:E26,'Allocation Summary'!E$13:H$13))/(1-'Allocation Summary'!B$13-SUMPRODUCT('Allocation Summary'!F26:I26,'Allocation Summary'!E$13:H$13))) -> 0.3710219304 | D11: =IF((SUM('Allocation Summary'!D$13:H$13)-SUMPRODUCT('Allocation Summary'!B26:E26,'Allocation Summary'!E$13:H$13))/(1-SUM('Allocation Summary'!B$13:C$13)-SUMPRODUCT('Allocation Summary'!F26:I26,'Allocation Summary'!E$13:H$13))>1,1,(SUM('Allocation Summary'!D$13:H$13)-SUMPRODUCT('Allocation Summary'!B26:E26,'Allocation Summary'!E$13:H$13))/(1-SUM('Allocation Summary'!B$13:C$13)-SUMPRODUCT('Allocation Summary'!F26:I26,'Allocation Summary'!E$13:H$13))) -> 0.2849945639 | E11: =IF((SUM('Allocation Summary'!E$13:H$13)-SUMPRODUCT('Allocation Summary'!B26:E26,'Allocation Summary'!E$13:H$13))/(1-SUM('Allocation Summary'!B$13:D$13)-SUMPRODUCT('Allocation Summary'!F26:I26,'Allocation Summary'!E$13:H$13))>1,1,(SUM('Allocation Summary'!E$13:H$13)-SUMPRODUCT('Allocation Summary'!B26:E26,'Allocation Summary'!E$13:H$13))/(1-SUM('Allocation Summary'!B$13:D$13)-SUMPRODUCT('Allocation Summary'!F26:I26,'Allocation Summary'!E$13:H$13))) -> 0
A16: Input data reconciliation check
A17: Compares results to current CDCM Method M*
B18: LDNO LV: LV user | C18: LDNO HV: LV user | D18: LDNO HV: LV sub user | E18: LDNO HV: HV user
A19: LDNO discount using data in this model | B19: ='Allocation Summary'!B9*(1-'Allocation Summary'!B10*Inputs!B12) -> 0.2959072459 | C19: ='Allocation Summary'!B9+'Allocation Summary'!C9+'Allocation Summary'!D9*(1-'Allocation Summary'!D10*Inputs!B13) -> 0.5210408939 | D19: =('Allocation Summary'!C9+'Allocation Summary'!D9*(1-'Allocation Summary'!D10*Inputs!B13))/(1-'Allocation Summary'!B9) -> 0.2845467601 | E19: ='Allocation Summary'!D9*(1-'Allocation Summary'!D10*Inputs!B13)/(1-'Allocation Summary'!B9-'Allocation Summary'!C9) -> 0.1866919048
A20: LDNO discount using Method M | B20: =+Inputs!C34 -> 0.3124735685 | C20: =+Inputs!D34 -> 0.5274673186 | D20: =+Inputs!E34 -> 0.2901134262 | E20: =+Inputs!F34 -> 0.1911157715
A21: *Note variances at LV:LV are expected as this version of extended Method M does not implement DCP095
A26: Comparrison to 2013 discounts | B26: =B7-'[9]Allocation Summary'!B25 -> 0 | C26: =C7-'[9]Allocation Summary'!C25 -> 0 | D26: =D7-'[9]Allocation Summary'!D25 -> 0 | E26: =E7-'[9]Allocation Summary'!E25 -> 0
B27: =B8-'[9]Allocation Summary'!B26 -> 0 | C27: =C8-'[9]Allocation Summary'!C26 -> 0 | D27: =D8-'[9]Allocation Summary'!D26 -> 0 | E27: =E8-'[9]Allocation Summary'!E26 -> 0
B28: =B9-'[9]Allocation Summary'!B27 -> 0 | C28: =C9-'[9]Allocation Summary'!C27 -> 0 | D28: =D9-'[9]Allocation Summary'!D27 -> 0 | E28: =E9-'[9]Allocation Summary'!E27 -> 0
B29: =B10-'[9]Allocation Summary'!B28 -> 0 | C29: =C10-'[9]Allocation Summary'!C28 -> 0 | D29: =D10-'[9]Allocation Summary'!D28 -> 0 | E29: =E10-'[9]Allocation Summary'!E28 -> 0
B30: =B11-'[9]Allocation Summary'!B29 -> 0 | C30: =C11-'[9]Allocation Summary'!C29 -> 0 | D30: =D11-'[9]Allocation Summary'!D29 -> 0 | E30: =E11-'[9]Allocation Summary'!E29 -> 0

Sheet Allocation Summary
G1: Index
A3: Category | B3: % by network tier
B4: LV | C4: LV/HV | D4: HV | E4: EHV | F4: Unallocated
A5: Opex and transmission exit charges | B5: ='DNO - Final Allocation'!I47 -> 0.4614642844 | C5: ='DNO - Final Allocation'!H47 -> 0.08969831054 | D5: ='DNO - Final Allocation'!G47 -> 0.1985930744 | E5: ='DNO - Final Allocation'!E47 -> 0.2502443307
A6: Depreciation | B6: ='DNO - Final Allocation'!I46 -> 0.1758419357 | C6: ='DNO - Final Allocation'!H46 -> 0.05317823045 | D6: ='DNO - Final Allocation'!G46 -> 0.2060804881 | E6: ='DNO - Final Allocation'!E46 -> 0.5648993457
A7: Return | B7: ='DNO - Final Allocation'!I45 -> 0.1758419357 | C7: ='DNO - Final Allocation'!H45 -> 0.05317823045 | D7: ='DNO - Final Allocation'!G45 -> 0.2060804881 | E7: ='DNO - Final Allocation'!E45 -> 0.5648993457
A8: Weighted Average | B8: ='DNO - Final Allocation'!N50 -> 0.2650437726 | C8: ='DNO - Final Allocation'!M50 -> 0.06458370429 | D8: ='DNO - Final Allocation'!L50 -> 0.203742117 | E8: ='DNO - Final Allocation'!K50 -> 0.4666304062
A9: Weighted Average (after incentive and pension deficit costs removed and weighted by units flowing) | B9: ='DNO - Final Allocation'!O79 -> 0.330551489 | C9: ='DNO - Final Allocation'!N79 -> 0.08054609022 | D9: ='DNO - Final Allocation'!M79 -> 0.1678339886 | E9: ='DNO - Final Allocation'!L79 -> 0.375839624 | F9: ='DNO - Final Allocation'!P79 -> 0.04522880813
A10: Direct cost % | B10: ='Calc - DNO Opex Allocation'!AA48 -> 0.5758648522 | C10: ='Calc - DNO Opex Allocation'!Z48 -> 0.8607945569 | D10: ='Calc - DNO Opex Allocation'!Y48 -> 0.8623204754 | E10: ='Calc - DNO Opex Allocation'!X48 -> 0.7047780059 | F10: N/A
B12: LV | C12: HV/LV | D12: HV | E12: EHV/HV | F12: EHV | G12: 132kV/EHV | H12: 132kV
A13: Weighted by units flowing | B13: =B9 -> 0.330551489 | C13: 0.08054609022 | D13: 0.1678339886 | E13: =E9*'Calc-MEAV'!$N28 -> 0.07463102965 | F13: =E9*'Calc-MEAV'!$N29 -> 0.02028185019 | G13: =E9*'Calc-MEAV'!$N30 -> 0.03889054654 | H13: =E9*'Calc-MEAV'!$N31 -> 0.2420361977
A14: Direct cost % | B14: 0.5758648522 | C14: 0.8607945569 | D14: 0.8623204754 | E14: =E10 -> 0.7047780059 | F14: =E10 -> 0.7047780059 | G14: =E10 -> 0.7047780059 | H14: =E10 -> 0.7047780059
A16: Options | B16: DCP071
B17: TRUE
A18: Discount matrix
B20: Network levels provided or bypassed by the DNO | F20: Network levels bypassed by the DNO
A21: Boundary category | B21: EHV/HV | C21: EHV | D21: 132kV/EHV | E21: 132kV | F21: EHV/HV | G21: EHV | H21: 132kV/EHV | I21: 132kV
A22: Boundary 0000 | B22: 0 | C22: 0 | D22: 0 | E22: 0 | F22: 0 | G22: 0 | H22: 0 | I22: 0
A23: Boundary 132kV | B23: 0 | C23: 0 | D23: 0 | E23: =IF($B$17,Inputs!$B$15*$H$14,1) -> 0.7047780059 | F23: 0 | G23: 0 | H23: 0 | I23: 0
A24: Boundary 132kV/EHV | B24: 0 | C24: 0 | D24: 1 | E24: 1 | F24: 0 | G24: 0 | H24: 0 | I24: 0
A25: Boundary EHV | B25: 0 | C25: =IF($B$17,Inputs!$B$14*$F$14,1) -> 0.7047780059 | D25: 1 | E25: 1 | F25: 0 | G25: 0 | H25: 0 | I25: 0
A26: Boundary HVplus | B26: 1 | C26: 1 | D26: 1 | E26: 1 | F26: 0 | G26: 0 | H26: 0 | I26: 0

Sheet DNO - Final Allocation
A1: Step 1. Format price control allowed revenue data
A2: Index
B4: I) DPCR3 type presentation | L4: ii) DPCR4 type presentation
D6: 2005/06 | E6: 2006/07 | G6: 2007/08 | H6: 2008/09 | I6: 2009/10 | O6: 2005/06 | P6: 2006/07 | Q6: 2007/08 | R6: 2008/09 | S6: 2009/10
L7: Opening asset value | O7: ='Allowed revenue -DPCR4'!D3 -> 964.7 | P7: ='Allowed revenue -DPCR4'!E3 -> 1013.2 | Q7: ='Allowed revenue -DPCR4'!F3 -> 1057.4 | R7: ='Allowed revenue -DPCR4'!G3 -> 1095.1 | S7: ='Allowed revenue -DPCR4'!H3 -> 1126.5
B8: Allowed revenue | D8: =O33 -> 238.7522037 | E8: =P33 -> 240.4234691 | G8: =Q33 -> 242.3334867 | H8: =R33 -> 244.0047521 | I8: =S33 -> 245.6760176 | L8: Total capex | O8: ='Allowed revenue -DPCR4'!D4 -> 120.8 | P8: ='Allowed revenue -DPCR4'!E4 -> 120.4 | Q8: ='Allowed revenue -DPCR4'!F4 -> 120 | R8: ='Allowed revenue -DPCR4'!G4 -> 119.5 | S8: ='Allowed revenue -DPCR4'!H4 -> 119.3
L9: Depreciation | O9: ='Allowed revenue -DPCR4'!D5 -> -72.3 | P9: ='Allowed revenue -DPCR4'!E5 -> -76.2 | Q9: ='Allowed revenue -DPCR4'!F5 -> -82.2 | R9: ='Allowed revenue -DPCR4'!G5 -> -88.2 | S9: ='Allowed revenue -DPCR4'!H5 -> -94.2
B10: Opex (incl pensions after 57.7% capitalized) | D10: =O14+(1-0.577)*O16 -> 79.3526 | E10: =P14+(1-0.577)*P16 -> 76.8526 | G10: =Q14+(1-0.577)*Q16 -> 74.8526 | H10: =R14+(1-0.577)*R16 -> 73.4526 | I10: =S14+(1-0.577)*S16 -> 72.8526 | L10: Closing asset value | O10: ='Allowed revenue -DPCR4'!D6 -> 1013.2 | P10: ='Allowed revenue -DPCR4'!E6 -> 1057.4 | Q10: ='Allowed revenue -DPCR4'!F6 -> 1095.1 | R10: ='Allowed revenue -DPCR4'!G6 -> 1126.5 | S10: ='Allowed revenue -DPCR4'!H6 -> 1151.6
B11: Quality Reward | D11: =O20 ->  | E11: =P20 ->  | F11: =Q20 ->  | G11: =Q20 ->  | H11: =R20 ->  | I11: =S20 ->  | L11: Present value of opening/closing RAV | O11: ='Allowed revenue -DPCR4'!D7 -> 964.7 | Q11: ='Allowed revenue -DPCR4'!F7 -> 0 | S11: ='Allowed revenue -DPCR4'!H7 -> 879.3
B12: DPCR3 costs | D12: =O21 -> 0.9 | L12: 5 year movement in closing RAV | P12: ='Allowed revenue -DPCR4'!E8 -> 0 | S12: ='Allowed revenue -DPCR4'!H8 -> 85.4
B13: Total Opex | D13: =SUM(D10:D12) -> 80.2526 | E13: =SUM(E10:E12) -> 76.8526 | G13: =SUM(G10:G12) -> 74.8526 | H13: =SUM(H10:H12) -> 73.4526 | I13: =SUM(I10:I12) -> 72.8526
L14: Operating costs (excl pensions) | O14: ='Allowed revenue -DPCR4'!D10 -> 72.5 | P14: ='Allowed revenue -DPCR4'!E10 -> 70 | Q14: ='Allowed revenue -DPCR4'!F10 -> 68 | R14: ='Allowed revenue -DPCR4'!G10 -> 66.6 | S14: ='Allowed revenue -DPCR4'!H10 -> 66
B15: Capital elements | L15: Capex (excl pensions) | O15: ='Allowed revenue -DPCR4'!D11 -> 111.5 | P15: ='Allowed revenue -DPCR4'!E11 -> 111.1 | Q15: ='Allowed revenue -DPCR4'!F11 -> 110.7 | R15: ='Allowed revenue -DPCR4'!G11 -> 110.2 | S15: ='Allowed revenue -DPCR4'!H11 -> 110
B16: Depreciation | D16: =-O9 -> 72.3 | E16: =-P9 -> 76.2 | G16: =-Q9 -> 82.2 | H16: =-R9 -> 88.2 | I16: =-S9 -> 94.2 | L16: Pensions | O16: ='Allowed revenue -DPCR4'!D12 -> 16.2 | P16: ='Allowed revenue -DPCR4'!E12 -> 16.2 | Q16: ='Allowed revenue -DPCR4'!F12 -> 16.2 | R16: ='Allowed revenue -DPCR4'!G12 -> 16.2 | S16: ='Allowed revenue -DPCR4'!H12 -> 16.2
B17: Tax allowance | D17: =O17 -> 25.9 | E17: 26.7 | G17: =Q17 -> 26.9 | H17: 27 | I17: 26.7 | L17: Tax allowance | O17: ='Allowed revenue -DPCR4'!D13 -> 25.9 | P17: ='Allowed revenue -DPCR4'!E13 -> 26.7 | Q17: ='Allowed revenue -DPCR4'!F13 -> 26.9 | R17: ='Allowed revenue -DPCR4'!G13 -> 27 | S17: ='Allowed revenue -DPCR4'!H13 -> 26.7
B18: Capital incentive | D18: 1.2 | E18: 0.9 | G18: 1 | H18: 0.5 | I18: 0.6 | L18: Capex incentive | O18: ='Allowed revenue -DPCR4'!D14 -> 1.2 | P18: ='Allowed revenue -DPCR4'!E14 -> 0.9 | Q18: ='Allowed revenue -DPCR4'!F14 -> 1 | R18: ='Allowed revenue -DPCR4'!G14 -> 0.5 | S18: ='Allowed revenue -DPCR4'!H14 -> 0.6
B19: Sliding scale | D19: 1.4 | E19: 1.5 | G19: 1.5 | H19: 1.6 | I19: 1.6 | L19: Sliding scale addn income | O19: ='Allowed revenue -DPCR4'!D15 -> 1.4 | P19: ='Allowed revenue -DPCR4'!E15 -> 1.5 | Q19: ='Allowed revenue -DPCR4'!F15 -> 1.5 | R19: ='Allowed revenue -DPCR4'!G15 -> 1.6 | S19: ='Allowed revenue -DPCR4'!H15 -> 1.6
B20: Return | D20: =D8-D13-D16-D17-D18-D19 -> 57.69960366 | E20: =E8-E13-E16-E17-E18-E19 -> 58.27086908 | G20: =G8-G13-G16-G17-G18-G19 -> 55.88088671 | H20: =H8-H13-H16-H17-H18-H19 -> 53.25215214 | I20: =I8-I13-I16-I17-I18-I19 -> 49.72341756 | L20: Quality reward/Opex incentive & Other Adjustments | O20: =IF(ISNUMBER('Allowed revenue -DPCR4'!D16+'Allowed revenue -DPCR4'!D17),'Allowed revenue -DPCR4'!D16+'Allowed revenue -DPCR4'!D17,"") ->  | P20: =IF(ISNUMBER('Allowed revenue -DPCR4'!E16+'Allowed revenue -DPCR4'!E17),'Allowed revenue -DPCR4'!E16+'Allowed revenue -DPCR4'!E17,"") ->  | Q20: =IF(ISNUMBER('Allowed revenue -DPCR4'!F16+'Allowed revenue -DPCR4'!F17),'Allowed revenue -DPCR4'!F16+'Allowed revenue -DPCR4'!F17,"") ->  | R20: =IF(ISNUMBER('Allowed revenue -DPCR4'!G16+'Allowed revenue -DPCR4'!G17),'Allowed revenue -DPCR4'!G16+'Allowed revenue -DPCR4'!G17,"") ->  | S20: =IF(ISNUMBER('Allowed revenue -DPCR4'!H16+'Allowed revenue -DPCR4'!H17),'Allowed revenue -DPCR4'!H16+'Allowed revenue -DPCR4'!H17,"") -> 
B21: Total capital | D21: =SUM(D16:D20) -> 158.4996037 | E21: =SUM(E16:E20) -> 163.5708691 | G21: =SUM(G16:G20) -> 167.4808867 | H21: =SUM(H16:H20) -> 170.5521521 | I21: =SUM(I16:I20) -> 172.8234176 | L21: DPCR3 costs | O21: ='Allowed revenue -DPCR4'!D18 -> 0.9 | P21: ='Allowed revenue -DPCR4'!E18 -> - | Q21: ='Allowed revenue -DPCR4'!F18 -> - | R21: ='Allowed revenue -DPCR4'!G18 -> - | S21: ='Allowed revenue -DPCR4'!H18 -> -
B22: Total capital ex depreciation | D22: =D21-D16 -> 86.19960366 | E22: =E21-E16 -> 87.37086908 | G22: =G21-G16 -> 85.28088671 | H22: =H21-H16 -> 82.35215214 | I22: =I21-I16 -> 78.62341756 | L22: Total allowed items | O22: ='Allowed revenue -DPCR4'!D19 -> 229.6 | P22: ='Allowed revenue -DPCR4'!E19 -> 226.4 | Q22: ='Allowed revenue -DPCR4'!F19 -> 224.3 | R22: ='Allowed revenue -DPCR4'!G19 -> 222.1 | S22: ='Allowed revenue -DPCR4'!H19 -> 221.1
L23: PV of allowed items | O23: ='Allowed revenue -DPCR4'!D20 -> 223.5 | P23: ='Allowed revenue -DPCR4'!E20 -> 208.8 | Q23: ='Allowed revenue -DPCR4'!F20 -> 196 | R23: ='Allowed revenue -DPCR4'!G20 -> 183.9 | S23: ='Allowed revenue -DPCR4'!H20 -> 173.5
B24: Allocation of allowed revenue to:- | L24: 5 year movement in closing RAV | S24: ='Allowed revenue -DPCR4'!H21 -> 85.4
L25: TOTAL PV OVER 5 YEARS | S25: ='Allowed revenue -DPCR4'!H22 -> 1071.1
B26: Opex | D26: =D13 -> 80.2526 | E26: =E13 -> 76.8526 | G26: =G13 -> 74.8526 | H26: =H13 -> 73.4526 | I26: =I13 -> 72.8526
B27: Depreciation | D27: =D16 -> 72.3 | E27: =E16 -> 76.2 | G27: =G16 -> 82.2 | H27: =H16 -> 88.2 | I27: =I16 -> 94.2 | O27: =1/(1+Inputs!B28) -> 0.9474631674 | P27: =O27/(1+Inputs!B28) -> 0.8976864535 | Q27: =P27/(1+Inputs!B28) -> 0.8505248506 | R27: =Q27/(1+Inputs!B28) -> 0.8058409688 | S27: =R27/(1+Inputs!B28) -> 0.7635046367
B28: Return | D28: =D20 -> 57.69960366 | E28: =E20 -> 58.27086908 | G28: =G20 -> 55.88088671 | H28: =H20 -> 53.25215214 | I28: =I20 -> 49.72341756 | O28: 1 | P28: =O27 -> 0.9474631674 | Q28: =P27 -> 0.8976864535 | R28: =Q27 -> 0.8505248506 | S28: =R27 -> 0.8058409688
O29: =1/(1+Inputs!B28)^0.5 -> 0.9733771969 | P29: =1/(1+Inputs!B28)^1.5 -> 0.922239042 | Q29: =1/(1+Inputs!B28)^2.5 -> 0.8737875238 | R29: =1/(1+Inputs!B28)^3.5 -> 0.8278814949 | S29: =1/(1+Inputs!B28)^4.5 -> 0.7843872234
L31: Revenue index | O31: ='Allowed revenue -DPCR4'!D24 -> 1 | P31: ='Allowed revenue -DPCR4'!E24 -> 1.007 | Q31: ='Allowed revenue -DPCR4'!F24 -> 1.015 | R31: ='Allowed revenue -DPCR4'!G24 -> 1.022 | S31: ='Allowed revenue -DPCR4'!H24 -> 1.029
L32: Discounted revenue index | O32: =O31*O29 -> 0.9733771969 | P32: =P31*P29 -> 0.9286947153 | Q32: =Q31*Q29 -> 0.8868943366 | R32: =R31*R29 -> 0.8460948878 | S32: =S31*S29 -> 0.8071344528
L33: Price control revenue | O33: =($S$25-$N$39)/SUM($O$32:$U$32)*O31 -> 238.7522037 | P33: =($S$25-$N$39)/SUM($O$32:$U$32)*P31 -> 240.4234691 | Q33: =($S$25-$N$39)/SUM($O$32:$U$32)*Q31 -> 242.3334867 | R33: =($S$25-$N$39)/SUM($O$32:$U$32)*R31 -> 244.0047521 | S33: =($S$25-$N$39)/SUM($O$32:$U$32)*S31 -> 245.6760176
L34: Excluded services revenue | O34: ='Allowed revenue -DPCR4'!D27 -> 2.4 | P34: ='Allowed revenue -DPCR4'!E27 -> 2.4 | Q34: ='Allowed revenue -DPCR4'!F27 -> 2.4 | R34: ='Allowed revenue -DPCR4'!G27 -> 2.4 | S34: ='Allowed revenue -DPCR4'!H27 -> 2.4
L35: Total revenue | O35: =O34+O33 -> 241.1522037 | P35: =P34+P33 -> 242.8234691 | Q35: =Q34+Q33 -> 244.7334867 | R35: =R34+R33 -> 246.4047521 | S35: =S34+S33 -> 248.0760176
L36: PV of total revenue | O36: =O35*O29 -> 234.732056 | P36: =P35*P29 -> 223.9412835 | Q36: =Q35*Q29 -> 213.8450673 | R36: =R35*R29 -> 203.9939345 | S36: =S35*S29 -> 194.5876586
L37: TOTAL PV OVER 5 YEARS | S37: =SUM(O36:S36) -> 1071.1
L39: PV of excluded service revenue | N39: =SUM(O39:S39) -> 10.51601395 | O39: =O34*O29 -> 2.336105272 | P39: =P34*P29 -> 2.213373701 | Q39: =Q34*Q29 -> 2.097090057 | R39: =R34*R29 -> 1.986915588 | S39: =S34*S29 -> 1.882529336
A41: Step 2. Allocate price control revenues to network tiers
B43: Hence DPCR4 revenue made up of | C43: Total DPCR4 | D43: Basis of allocation | E43: % used | K43: £m
E44: EHV | G44: HV | H44: HV/LV | I44: LV | K44: EHV | L44: HV | M44: HV/LV | N44: LV
B45: Return | C45: =SUM(D22:I22) -> 419.8269292 | D45: Net Capex | E45: =VLOOKUP($D45,'Calc-Drivers'!$B$17:$F$27,E$51,FALSE) -> 0.5648993457 | G45: =VLOOKUP($D45,'Calc-Drivers'!$B$17:$F$27,G$51,FALSE) -> 0.2060804881 | H45: =VLOOKUP($D45,'Calc-Drivers'!$B$17:$F$27,H$51,FALSE) -> 0.05317823045 | I45: =VLOOKUP($D45,'Calc-Drivers'!$B$17:$F$27,I$51,FALSE) -> 0.1758419357 | K45: =$C45*E45 -> 237.1599576 | L45: =$C45*G45 -> 86.51813847 | M45: 22.32565319 | N45: 73.82317989
B46: Depreciation | C46: =SUM(D16:I16) -> 413.1 | D46: Net Capex | E46: =VLOOKUP($D46,'Calc-Drivers'!$B$17:$F$27,E$51,FALSE) -> 0.5648993457 | G46: =VLOOKUP($D46,'Calc-Drivers'!$B$17:$F$27,G$51,FALSE) -> 0.2060804881 | H46: =VLOOKUP($D46,'Calc-Drivers'!$B$17:$F$27,H$51,FALSE) -> 0.05317823045 | I46: =VLOOKUP($D46,'Calc-Drivers'!$B$17:$F$27,I$51,FALSE) -> 0.1758419357 | K46: =$C46*E46 -> 233.3599197 | L46: 85.13184963 | M46: 21.967927 | N46: 72.64030365
B47: Operating costs | C47: =SUM(D13:I13) -> 378.263 | D47: Overall Opex split | E47: ='Calc - DNO Opex Allocation'!AN41 -> 0.2502443307 | G47: ='Calc - DNO Opex Allocation'!AO41 -> 0.1985930744 | H47: ='Calc - DNO Opex Allocation'!AP41 -> 0.08969831054 | I47: ='Calc - DNO Opex Allocation'!AQ41 -> 0.4614642844 | K47: =$C47*E47 -> 94.65817127 | L47: 75.1204121 | M47: 33.92955204 | N47: =$C47*I47 -> 174.5548646
B49: Total | C49: =SUM(C45:C47) -> 1211.189929 | K49: =SUM(K45:K48) -> 565.1780486 | L49: =SUM(L45:L48) -> 246.7704002 | M49: =SUM(M45:M48) -> 78.22313222 | N49: =SUM(N45:N48) -> 321.0183481
K50: =K49/SUM($K$49:$N$49) -> 0.4666304062 | L50: =L49/SUM($K$49:$N$49) -> 0.203742117 | M50: =M49/SUM($K$49:$N$49) -> 0.06458370429 | N50: =N49/SUM($K$49:$N$49) -> 0.2650437726
E51: 5 | G51: 4 | H51: 3 | I51: 2
D53: NET CAPEX SPLIT FROM "CALC -NET CAPEX" SHEET
D54: OVERALL OPEX SPLIT FROM "CALC DNO OPEX ALLOCATION" SHEET
A56: Step 3. Remove incentive revenue and pension deficit payment from allocations
B58: 2007/08 allowed revenue source from page "summary allowed revenue"
B59: Base revenue | F59: ='Summary of revenue'!J11 -> 274.191564 | G59: =F59/$F$64 -> 0.9608427704 | P59: £m
B60: Allowed pass through items | F60: ='Summary of revenue'!J12 -> -3.637995 | G60: =F60/$F$64 -> -0.01274853662
B61: Incentive revenue | F61: ='Summary of revenue'!J13 -> 7.172595 | G61: =F61/$F$64 -> 0.02513474868 | M61: Total allowed income | P61: =F64 -> 285.365694 | Q61: From 2007/08 revenue summary
B62: Under/over revoery | F62: ='Summary of revenue'!J21 -> -0.97047 | G62: =F62/$F$64 -> -0.00340079421
B63: Excluded | F63: ='Summary of revenue'!J46+'Summary of revenue'!J47 -> 8.61 | G63: =F63/$F$64 -> 0.03017181175 | M63: Less incentive revenue ? | O63: Y | P63: =IF(O63="Y",-F61,0) -> -7.172595 | Q63: From 2007/08 revenue summary
B64: Total | F64: =SUM(F59:F63) -> 285.365694 | G64: =SUM(G59:G63) -> 1 | M64: Less Pension deficit payment? | O64: N | P64: =IF(O64="Y",-F66,0) -> 0
M65: Less transmission exit charges? | O65: Y | P65: =IF(O65="Y",-'RRP 1.3'!AH12,0) -> -8
B66: Input pension deficit payment | F66: 0
M67: Total revenue to share | P67: =P61+P63+P64+P65 -> 270.193099
D69: Step 3.a. Split out pension deficit and incentive payments | L69: Step 2.b. Divide cost by units flowing - effectively adjust the cost because of electricity lost as it flows thorugh the network meaning that there is more cost in the lower tiers
B70: SPLIT OF TARIFFS | D70: £m | L70: p/kWh
D71: Total | F71: EHV | G71: HV | H71: HV/LV | I71: LV | J71: Not to be split | L71: EHV | M71: HV | N71: HV/LV | O71: LV | P71: Not to be split | R71: Total
B73: Income | D73: =SUM(F73:J73) -> 285.365694 | F73: =$P$67*K50 -> 126.0803155 | G73: =$P$67*L50 -> 55.04971398 | H73: =$P$67*M50 -> 17.45007121 | I73: =$P$67*N50 -> 71.61299828 | J73: =P61-P67 -> 15.172595 | L73: =F73*100000000/'Calc-Units'!E21 -> 0.4766128437 | M73: =G73*100000000/'Calc-Units'!D21 -> 0.2128350218 | N73: =H73*100000000/'Calc-Units'!C21 -> 0.1021427722 | O73: =I73*100000000/'Calc-Units'!C21 -> 0.4191816804 | P73: =J73*100000000/'Calc-Units'!E21 -> 0.05735592919
B75: All LV Tariffs | L75: =L73 -> 0.4766128437 | M75: =M73 -> 0.2128350218 | N75: =N73 -> 0.1021427722 | O75: =O73 -> 0.4191816804 | P75: =P73 -> 0.05735592919 | R75: =SUM(L75:P75) -> 1.268128247
B76: HV Tariffs
B77: EHV Tariffs
B79: All LV Tariffs | L79: =L75/$R75 -> 0.375839624 | M79: =M75/$R75 -> 0.1678339886 | N79: =N75/$R75 -> 0.08054609022 | O79: =O75/$R75 -> 0.330551489 | P79: =P75/$R75 -> 0.04522880813 | R79: =SUM(L79:P79) -> 1
B80: HV Tariffs
B81: EHV Tariffs

Sheet Calc - DNO Opex Allocation
A1: Index
D2: Step 1 - extract total activity costs from cost report | K2: Step 2. Identify costs included in price control revenues to be allocated by MEAV | R2: Step 3. Allocate costs not directly attributable to network teirs to network tiers using MEAV | X2: Step 4. Sum directly attributed and allocated costs | AD2: Step 5. Divide cost by units flowing - effectively adjust the cost because of electricity lost as it flows through the network meaning that there is more cost in the lower tiers | AI2: Step 6. Adjust costs so that they are aligned with the definition of opex in the allowed price control revenues
E3: Costs extracted from RRP Tables | K3: Cost drivers - lookup from "Calc-Drivers" | R3: Allocation of "Unallocated" costs by cost driver to network tiers | X3: Sum of allocated and "unallocated" costs | AD3: Sum of allocated and "unallocated" costs expressed per unit throughput (p/kWh) | AI3: Proportion of costs allocated to Opex and Capex | AN3: Operating costs = sum of allocated and unallocated multiplied by 1 minus capitalised proportion | AT3: Opex only on p/kWh throughput
D4: Total activity cost - from RRP 1.3 | E4: Costs allocated to network tiers in RRP - from 2.2 amd 2.3 | I4: Unallocated costs = Total - costs allocated to network tiers | K4: Insert name of cost driver | L4: Proportion of cost allocated to each network tier | AI4: % Cost capitalised (from DCPR settlement - same for all DNOs) | AJ4: Capex | AK4: Opex | AN4: EHV | AO4: HV | AP4: HV/LV | AQ4: LV | AT4: EHV | AU4: HV | AV4: HV/LV | AW4: LV
E5: EHV | F5: HV | G5: HV/LV | H5: LV | L5: EHV | M5: HV | N5: HV/LV | O5: LV | R5: EHV | S5: HV | T5: HV/LV | U5: LV | X5: EHV | Y5: HV | Z5: HV/LV | AA5: LV | AD5: EHV | AE5: HV | AF5: HV/LV | AG5: LV
A6: Cash typical costs (excluding disallowed related party margins) | B6: Direct activities - From RRP 2.2 Detailed Cost Matrix | C6: Load related new connections & reinforcement (net of contributions) | D6: ='RRP 1.3'!D$12 -> 11.26075089 | E6: ='RRP 2.4'!L13+'RRP 2.4'!L14+'RRP 2.4'!L18+'RRP 2.4'!L19 -> 10.20303593 | F6: ='RRP 2.4'!L12+'RRP 2.4'!L17-'Calc - DNO Opex Allocation'!G6 -> 11.92 | G6: 0 | H6: ='RRP 2.4'!L11+'RRP 2.4'!L16+'RRP 2.4'!L24 -> -16.48 | I6: =D6-E6-F6-G6-H6 -> 5.617714958 | K6: MEAV | L6: =IF(ISERROR(VLOOKUP($K6,'Calc-Drivers'!$B$17:$F$27,L$42,FALSE))," ",VLOOKUP($K6,'Calc-Drivers'!$B$17:$F$27,L$42,FALSE)) -> 0.3768840243 | M6: =IF(ISERROR(VLOOKUP($K6,'Calc-Drivers'!$B$17:$F$27,M$42,FALSE))," ",VLOOKUP($K6,'Calc-Drivers'!$B$17:$F$27,M$42,FALSE)) -> 0.1314874618 | N6: =IF(ISERROR(VLOOKUP($K6,'Calc-Drivers'!$B$17:$F$27,N$42,FALSE))," ",VLOOKUP($K6,'Calc-Drivers'!$B$17:$F$27,N$42,FALSE)) -> 0.03534221934 | O6: =IF(ISERROR(VLOOKUP($K6,'Calc-Drivers'!$B$17:$F$27,O$42,FALSE))," ",VLOOKUP($K6,'Calc-Drivers'!$B$17:$F$27,O$42,FALSE)) -> 0.4562862946 | R6: =IF(ISERROR($I6*L6)," ",$I6*L6) -> 2.117227021 | S6: 0.7386590807 | T6: 0.1985425142 | U6: 2.563286343 | X6: =IF($K6="Do not allocate"," ",R6+E6) -> 12.32026295 | Y6: =IF($K6="Do not allocate"," ",S6+F6) -> 12.65865908 | Z6: =IF($K6="Do not allocate"," ",T6+G6) -> 0.1985425142 | AA6: =IF($K6="Do not allocate"," ",U6+H6) -> -13.91671366 | AD6: =IF(ISERROR(X6*100000000/'Calc-Units'!$E$21)," ",X6*100000000/'Calc-Units'!$E$21) -> 0.04657345229 | AE6: =IF(ISERROR(Y6*100000000/'Calc-Units'!$D$21)," ",Y6*100000000/'Calc-Units'!$D$21) -> 0.0489413257 | AF6: =IF(ISERROR(Z6*100000000/'Calc-Units'!$C$21)," ",Z6*100000000/'Calc-Units'!$C$21) -> 0.001162154731 | AG6: =IF(ISERROR(AA6*100000000/'Calc-Units'!$C$21)," ",AA6*100000000/'Calc-Units'!$C$21) -> -0.08146051076 | AI6: 1 | AJ6: =AI6*D6 -> 11.26075089 | AK6: =D6*(1-AI6) -> 0 | AN6: =IF(ISERROR(X6*(1-$AI6))," ",X6*(1-$AI6)) -> 0 | AO6: =IF(ISERROR(Y6*(1-$AI6))," ",Y6*(1-$AI6)) -> 0 | AP6: =IF(ISERROR(Z6*(1-$AI6))," ",Z6*(1-$AI6)) -> 0 | AQ6: =IF(ISERROR(AA6*(1-$AI6))," ",AA6*(1-$AI6)) -> 0 | AT6: =IF(ISERROR(AN6*100000000/'Calc-Units'!$E$21)," ",AN6*100000000/'Calc-Units'!$E$21) -> 0 | AU6: =IF(ISERROR(AO6*100000000/'Calc-Units'!$D$21)," ",AO6*100000000/'Calc-Units'!$D$21) -> 0 | AV6: =IF(ISERROR(AP6*100000000/'Calc-Units'!$C$21)," ",AP6*100000000/'Calc-Units'!$C$21) -> 0 | AW6: =IF(ISERROR(AQ6*100000000/'Calc-Units'!$C$21)," ",AQ6*100000000/'Calc-Units'!$C$21) -> 0
C7: Non-load new & replacement assets (net of contributions) | D7: ='RRP 1.3'!E$12 -> 86.73865287 | E7: =SUM('RRP 2.4'!G44:G55)+'RRP 2.4'!G71+'RRP 2.4'!H71 -> 33.94455897 | F7: =SUM('RRP 2.4'!G38:G40)+'RRP 2.4'!F71 -> 25.84796456 | G7: ='RRP 2.4'!G41+'RRP 2.4'!G42+'RRP 2.4'!G43 -> 6.92837822 | H7: =SUM('RRP 2.4'!G31:G37)+'RRP 2.4'!E71 -> 15.96437816 | I7: 4.05337296 | K7: MEAV | L7: =IF(ISERROR(VLOOKUP($K7,'Calc-Drivers'!$B$17:$F$27,L$42,FALSE))," ",VLOOKUP($K7,'Calc-Drivers'!$B$17:$F$27,L$42,FALSE)) -> 0.3768840243 | M7: =IF(ISERROR(VLOOKUP($K7,'Calc-Drivers'!$B$17:$F$27,M$42,FALSE))," ",VLOOKUP($K7,'Calc-Drivers'!$B$17:$F$27,M$42,FALSE)) -> 0.1314874618 | N7: =IF(ISERROR(VLOOKUP($K7,'Calc-Drivers'!$B$17:$F$27,N$42,FALSE))," ",VLOOKUP($K7,'Calc-Drivers'!$B$17:$F$27,N$42,FALSE)) -> 0.03534221934 | O7: =IF(ISERROR(VLOOKUP($K7,'Calc-Drivers'!$B$17:$F$27,O$42,FALSE))," ",VLOOKUP($K7,'Calc-Drivers'!$B$17:$F$27,O$42,FALSE)) -> 0.4562862946 | R7: 1.527651513 | S7: 0.532967722 | T7: 0.1432551962 | U7: 1.849498528 | X7: 35.47221049 | Y7: 26.38093228 | Z7: 7.071633417 | AA7: 17.81387669 | AD7: =IF(ISERROR(X7*100000000/'Calc-Units'!$E$21)," ",X7*100000000/'Calc-Units'!$E$21) -> 0.1340931853 | AE7: =IF(ISERROR(Y7*100000000/'Calc-Units'!$D$21)," ",Y7*100000000/'Calc-Units'!$D$21) -> 0.1019948314 | AF7: =IF(ISERROR(Z7*100000000/'Calc-Units'!$C$21)," ",Z7*100000000/'Calc-Units'!$C$21) -> 0.04139331197 | AG7: =IF(ISERROR(AA7*100000000/'Calc-Units'!$C$21)," ",AA7*100000000/'Calc-Units'!$C$21) -> 0.1042722822 | AI7: 1 | AJ7: 86.73865287 | AK7: 0 | AN7: =IF(ISERROR(X7*(1-$AI7))," ",X7*(1-$AI7)) -> 0 | AO7: 0 | AP7: 0 | AQ7: 0 | AT7: =IF(ISERROR(AN7*100000000/'Calc-Units'!$E$21)," ",AN7*100000000/'Calc-Units'!$E$21) -> 0 | AU7: =IF(ISERROR(AO7*100000000/'Calc-Units'!$D$21)," ",AO7*100000000/'Calc-Units'!$D$21) -> 0 | AV7: =IF(ISERROR(AP7*100000000/'Calc-Units'!$C$21)," ",AP7*100000000/'Calc-Units'!$C$21) -> 0 | AW7: =IF(ISERROR(AQ7*100000000/'Calc-Units'!$C$21)," ",AQ7*100000000/'Calc-Units'!$C$21) -> 0
C8: Non-operational capex | D8: ='RRP 1.3'!F$12 -> 2.290199988 | E8: 0 | F8: 0 | G8: 0 | H8: 0 | I8: 2.290199988 | K8: MEAV | L8: =IF(ISERROR(VLOOKUP($K8,'Calc-Drivers'!$B$17:$F$27,L$42,FALSE))," ",VLOOKUP($K8,'Calc-Drivers'!$B$17:$F$27,L$42,FALSE)) -> 0.3768840243 | M8: =IF(ISERROR(VLOOKUP($K8,'Calc-Drivers'!$B$17:$F$27,M$42,FALSE))," ",VLOOKUP($K8,'Calc-Drivers'!$B$17:$F$27,M$42,FALSE)) -> 0.1314874618 | N8: =IF(ISERROR(VLOOKUP($K8,'Calc-Drivers'!$B$17:$F$27,N$42,FALSE))," ",VLOOKUP($K8,'Calc-Drivers'!$B$17:$F$27,N$42,FALSE)) -> 0.03534221934 | O8: =IF(ISERROR(VLOOKUP($K8,'Calc-Drivers'!$B$17:$F$27,O$42,FALSE))," ",VLOOKUP($K8,'Calc-Drivers'!$B$17:$F$27,O$42,FALSE)) -> 0.4562862946 | R8: 0.863139788 | S8: 0.3011325834 | T8: 0.08094075032 | U8: 1.044986867 | X8: 0.863139788 | Y8: 0.3011325834 | Z8: 0.08094075032 | AA8: 1.044986867 | AD8: =IF(ISERROR(X8*100000000/'Calc-Units'!$E$21)," ",X8*100000000/'Calc-Units'!$E$21) -> 0.00326286865 | AE8: =IF(ISERROR(Y8*100000000/'Calc-Units'!$D$21)," ",Y8*100000000/'Calc-Units'!$D$21) -> 0.001164248737 | AF8: =IF(ISERROR(Z8*100000000/'Calc-Units'!$C$21)," ",Z8*100000000/'Calc-Units'!$C$21) -> 0.000473781025 | AG8: =IF(ISERROR(AA8*100000000/'Calc-Units'!$C$21)," ",AA8*100000000/'Calc-Units'!$C$21) -> 0.00611675759 | AI8: 0.235 | AJ8: 0.5381969973 | AK8: 1.752002991 | AN8: 0.6603019378 | AO8: 0.2303664263 | AP8: 0.06191967399 | AQ8: 0.799414953 | AT8: =IF(ISERROR(AN8*100000000/'Calc-Units'!$E$21)," ",AN8*100000000/'Calc-Units'!$E$21) -> 0.002496094517 | AU8: =IF(ISERROR(AO8*100000000/'Calc-Units'!$D$21)," ",AO8*100000000/'Calc-Units'!$D$21) -> 0.0008906502836 | AV8: =IF(ISERROR(AP8*100000000/'Calc-Units'!$C$21)," ",AP8*100000000/'Calc-Units'!$C$21) -> 0.0003624424841 | AW8: =IF(ISERROR(AQ8*100000000/'Calc-Units'!$C$21)," ",AQ8*100000000/'Calc-Units'!$C$21) -> 0.004679319556
C9: Faults | D9: ='RRP 1.3'!G$12 -> 23.60746148 | E9: =SUM('RRP 2.3'!I20:I27) -> 2.714932724 | F9: =SUM('RRP 2.3'!I17:I18) -> 5.279170859 | G9: =SUM('RRP 2.3'!I19) -> 0.5823446695 | H9: =SUM('RRP 2.3'!I11:I16) -> 15.27242689 | I9: -0.2414136693 | K9: MEAV | L9: =IF(ISERROR(VLOOKUP($K9,'Calc-Drivers'!$B$17:$F$27,L$42,FALSE))," ",VLOOKUP($K9,'Calc-Drivers'!$B$17:$F$27,L$42,FALSE)) -> 0.3768840243 | M9: =IF(ISERROR(VLOOKUP($K9,'Calc-Drivers'!$B$17:$F$27,M$42,FALSE))," ",VLOOKUP($K9,'Calc-Drivers'!$B$17:$F$27,M$42,FALSE)) -> 0.1314874618 | N9: =IF(ISERROR(VLOOKUP($K9,'Calc-Drivers'!$B$17:$F$27,N$42,FALSE))," ",VLOOKUP($K9,'Calc-Drivers'!$B$17:$F$27,N$42,FALSE)) -> 0.03534221934 | O9: =IF(ISERROR(VLOOKUP($K9,'Calc-Drivers'!$B$17:$F$27,O$42,FALSE))," ",VLOOKUP($K9,'Calc-Drivers'!$B$17:$F$27,O$42,FALSE)) -> 0.4562862946 | R9: -0.09098495519 | S9: -0.03174287061 | T9: -0.008532094851 | U9: -0.1101537486 | X9: 2.623947769 | Y9: 5.247427988 | Z9: 0.5738125746 | AA9: 15.16227315 | AD9: =IF(ISERROR(X9*100000000/'Calc-Units'!$E$21)," ",X9*100000000/'Calc-Units'!$E$21) -> 0.00991913133 | AE9: =IF(ISERROR(Y9*100000000/'Calc-Units'!$D$21)," ",Y9*100000000/'Calc-Units'!$D$21) -> 0.02028777935 | AF9: =IF(ISERROR(Z9*100000000/'Calc-Units'!$C$21)," ",Z9*100000000/'Calc-Units'!$C$21) -> 0.003358771802 | AG9: =IF(ISERROR(AA9*100000000/'Calc-Units'!$C$21)," ",AA9*100000000/'Calc-Units'!$C$21) -> 0.08875130617 | AI9: 0.235 | AJ9: 5.547753447 | AK9: 18.05970803 | AN9: 2.007320043 | AO9: 4.014282411 | AP9: 0.4389666196 | AQ9: 11.59913896 | AT9: =IF(ISERROR(AN9*100000000/'Calc-Units'!$E$21)," ",AN9*100000000/'Calc-Units'!$E$21) -> 0.007588135467 | AU9: =IF(ISERROR(AO9*100000000/'Calc-Units'!$D$21)," ",AO9*100000000/'Calc-Units'!$D$21) -> 0.0155201512 | AV9: =IF(ISERROR(AP9*100000000/'Calc-Units'!$C$21)," ",AP9*100000000/'Calc-Units'!$C$21) -> 0.002569460428 | AW9: =IF(ISERROR(AQ9*100000000/'Calc-Units'!$C$21)," ",AQ9*100000000/'Calc-Units'!$C$21) -> 0.06789474922
C10: Inspections, & Maintenance | D10: ='RRP 1.3'!H$12 -> 11.68338451 | E10: =SUM('RRP 2.3'!G20:G27) -> 2.704219864 | F10: =SUM('RRP 2.3'!G17:G18) -> 0.4362635736 | G10: =SUM('RRP 2.3'!G19) -> 5.284050496 | H10: =SUM('RRP 2.3'!G11:G16) -> 1.544112576 | I10: 1.714738 | K10: MEAV | L10: =IF(ISERROR(VLOOKUP($K10,'Calc-Drivers'!$B$17:$F$27,L$42,FALSE))," ",VLOOKUP($K10,'Calc-Drivers'!$B$17:$F$27,L$42,FALSE)) -> 0.3768840243 | M10: =IF(ISERROR(VLOOKUP($K10,'Calc-Drivers'!$B$17:$F$27,M$42,FALSE))," ",VLOOKUP($K10,'Calc-Drivers'!$B$17:$F$27,M$42,FALSE)) -> 0.1314874618 | N10: =IF(ISERROR(VLOOKUP($K10,'Calc-Drivers'!$B$17:$F$27,N$42,FALSE))," ",VLOOKUP($K10,'Calc-Drivers'!$B$17:$F$27,N$42,FALSE)) -> 0.03534221934 | O10: =IF(ISERROR(VLOOKUP($K10,'Calc-Drivers'!$B$17:$F$27,O$42,FALSE))," ",VLOOKUP($K10,'Calc-Drivers'!$B$17:$F$27,O$42,FALSE)) -> 0.4562862946 | R10: 0.646257358 | S10: 0.2254665472 | T10: 0.0606026465 | U10: 0.7824114483 | X10: 3.350477222 | Y10: 0.6617301208 | Z10: 5.344653143 | AA10: 2.326524024 | AD10: =IF(ISERROR(X10*100000000/'Calc-Units'!$E$21)," ",X10*100000000/'Calc-Units'!$E$21) -> 0.01266558122 | AE10: =IF(ISERROR(Y10*100000000/'Calc-Units'!$D$21)," ",Y10*100000000/'Calc-Units'!$D$21) -> 0.002558402842 | AF10: =IF(ISERROR(Z10*100000000/'Calc-Units'!$C$21)," ",Z10*100000000/'Calc-Units'!$C$21) -> 0.03128455363 | AG10: =IF(ISERROR(AA10*100000000/'Calc-Units'!$C$21)," ",AA10*100000000/'Calc-Units'!$C$21) -> 0.01361814577 | AI10: 0.235 | AJ10: 2.74559536 | AK10: 8.93778915 | AN10: 2.563115075 | AO10: 0.5062235424 | AP10: 4.088659654 | AQ10: 1.779790878 | AT10: =IF(ISERROR(AN10*100000000/'Calc-Units'!$E$21)," ",AN10*100000000/'Calc-Units'!$E$21) -> 0.009689169634 | AU10: =IF(ISERROR(AO10*100000000/'Calc-Units'!$D$21)," ",AO10*100000000/'Calc-Units'!$D$21) -> 0.001957178174 | AV10: =IF(ISERROR(AP10*100000000/'Calc-Units'!$C$21)," ",AP10*100000000/'Calc-Units'!$C$21) -> 0.02393268353 | AW10: =IF(ISERROR(AQ10*100000000/'Calc-Units'!$C$21)," ",AQ10*100000000/'Calc-Units'!$C$21) -> 0.01041788152
C11: Tree Cutting | D11: ='RRP 1.3'!I$12 -> 4.908277594 | E11: ='RRP 2.3'!G46+'RRP 2.3'!G47 -> 0.5412613538 | F11: ='RRP 2.3'!G45 -> 5.282047542 | G11: 0 | H11: ='RRP 2.3'!G44 -> 3.100832184 | I11: -4.015863486 | K11: MEAV | L11: =IF(ISERROR(VLOOKUP($K11,'Calc-Drivers'!$B$17:$F$27,L$42,FALSE))," ",VLOOKUP($K11,'Calc-Drivers'!$B$17:$F$27,L$42,FALSE)) -> 0.3768840243 | M11: =IF(ISERROR(VLOOKUP($K11,'Calc-Drivers'!$B$17:$F$27,M$42,FALSE))," ",VLOOKUP($K11,'Calc-Drivers'!$B$17:$F$27,M$42,FALSE)) -> 0.1314874618 | N11: =IF(ISERROR(VLOOKUP($K11,'Calc-Drivers'!$B$17:$F$27,N$42,FALSE))," ",VLOOKUP($K11,'Calc-Drivers'!$B$17:$F$27,N$42,FALSE)) -> 0.03534221934 | O11: =IF(ISERROR(VLOOKUP($K11,'Calc-Drivers'!$B$17:$F$27,O$42,FALSE))," ",VLOOKUP($K11,'Calc-Drivers'!$B$17:$F$27,O$42,FALSE)) -> 0.4562862946 | R11: -1.513514792 | S11: -0.5280356965 | T11: -0.1419295282 | U11: -1.83238347 | X11: -0.9722534377 | Y11: 4.754011845 | Z11: -0.1419295282 | AA11: 1.268448715 | AD11: =IF(ISERROR(X11*100000000/'Calc-Units'!$E$21)," ",X11*100000000/'Calc-Units'!$E$21) -> -0.00367534356 | AE11: =IF(ISERROR(Y11*100000000/'Calc-Units'!$D$21)," ",Y11*100000000/'Calc-Units'!$D$21) -> 0.01838011757 | AF11: =IF(ISERROR(Z11*100000000/'Calc-Units'!$C$21)," ",Z11*100000000/'Calc-Units'!$C$21) -> -0.0008307745736 | AG11: =IF(ISERROR(AA11*100000000/'Calc-Units'!$C$21)," ",AA11*100000000/'Calc-Units'!$C$21) -> 0.007424775899 | AI11: 0.235 | AJ11: 1.153445235 | AK11: 3.754832359 | AN11: -0.7437738798 | AO11: 3.636819062 | AP11: -0.108576089 | AQ11: 0.9703632666 | AT11: =IF(ISERROR(AN11*100000000/'Calc-Units'!$E$21)," ",AN11*100000000/'Calc-Units'!$E$21) -> -0.002811637824 | AU11: =IF(ISERROR(AO11*100000000/'Calc-Units'!$D$21)," ",AO11*100000000/'Calc-Units'!$D$21) -> 0.01406078994 | AV11: =IF(ISERROR(AP11*100000000/'Calc-Units'!$C$21)," ",AP11*100000000/'Calc-Units'!$C$21) -> -0.0006355425488 | AW11: =IF(ISERROR(AQ11*100000000/'Calc-Units'!$C$21)," ",AQ11*100000000/'Calc-Units'!$C$21) -> 0.005679953563
B12: Indirect activities - From RRP 2.2 Detailed Cost Matrix | C12: Network Policy | D12: ='RRP 1.3'!J$12 -> 0.7748693845 | E12: 0 | F12: 0 | G12: 0 | H12: 0 | I12: 0.7748693845 | K12: MEAV | L12: =IF(ISERROR(VLOOKUP($K12,'Calc-Drivers'!$B$17:$F$27,L$42,FALSE))," ",VLOOKUP($K12,'Calc-Drivers'!$B$17:$F$27,L$42,FALSE)) -> 0.3768840243 | M12: =IF(ISERROR(VLOOKUP($K12,'Calc-Drivers'!$B$17:$F$27,M$42,FALSE))," ",VLOOKUP($K12,'Calc-Drivers'!$B$17:$F$27,M$42,FALSE)) -> 0.1314874618 | N12: =IF(ISERROR(VLOOKUP($K12,'Calc-Drivers'!$B$17:$F$27,N$42,FALSE))," ",VLOOKUP($K12,'Calc-Drivers'!$B$17:$F$27,N$42,FALSE)) -> 0.03534221934 | O12: =IF(ISERROR(VLOOKUP($K12,'Calc-Drivers'!$B$17:$F$27,O$42,FALSE))," ",VLOOKUP($K12,'Calc-Drivers'!$B$17:$F$27,O$42,FALSE)) -> 0.4562862946 | R12: 0.2920358919 | S12: 0.1018856086 | T12: 0.02738560374 | U12: 0.3535622803 | X12: 0.2920358919 | Y12: 0.1018856086 | Z12: 0.02738560374 | AA12: 0.3535622803 | AD12: =IF(ISERROR(X12*100000000/'Calc-Units'!$E$21)," ",X12*100000000/'Calc-Units'!$E$21) -> 0.001103963425 | AE12: =IF(ISERROR(Y12*100000000/'Calc-Units'!$D$21)," ",Y12*100000000/'Calc-Units'!$D$21) -> 0.0003939135039 | AF12: =IF(ISERROR(Z12*100000000/'Calc-Units'!$C$21)," ",Z12*100000000/'Calc-Units'!$C$21) -> 0.0001602997175 | AG12: =IF(ISERROR(AA12*100000000/'Calc-Units'!$C$21)," ",AA12*100000000/'Calc-Units'!$C$21) -> 0.002069552097 | AI12: 0.5257 | AJ12: 0.4073488354 | AK12: 0.3675205491 | AN12: 0.1385126235 | AO12: 0.04832434414 | AP12: 0.01298899186 | AQ12: 0.1676945895 | AT12: =IF(ISERROR(AN12*100000000/'Calc-Units'!$E$21)," ",AN12*100000000/'Calc-Units'!$E$21) -> 0.0005236098523 | AU12: =IF(ISERROR(AO12*100000000/'Calc-Units'!$D$21)," ",AO12*100000000/'Calc-Units'!$D$21) -> 0.0001868331749 | AV12: =IF(ISERROR(AP12*100000000/'Calc-Units'!$C$21)," ",AP12*100000000/'Calc-Units'!$C$21) -> 7.603015603e-05 | AW12: =IF(ISERROR(AQ12*100000000/'Calc-Units'!$C$21)," ",AQ12*100000000/'Calc-Units'!$C$21) -> 0.0009815885596
C13: Network Design & Engineering | D13: ='RRP 1.3'!K$12 -> 5.623596795 | E13: 0 | F13: 0 | G13: 0 | H13: 0 | I13: 5.623596795 | K13: MEAV | L13: =IF(ISERROR(VLOOKUP($K13,'Calc-Drivers'!$B$17:$F$27,L$42,FALSE))," ",VLOOKUP($K13,'Calc-Drivers'!$B$17:$F$27,L$42,FALSE)) -> 0.3768840243 | M13: =IF(ISERROR(VLOOKUP($K13,'Calc-Drivers'!$B$17:$F$27,M$42,FALSE))," ",VLOOKUP($K13,'Calc-Drivers'!$B$17:$F$27,M$42,FALSE)) -> 0.1314874618 | N13: =IF(ISERROR(VLOOKUP($K13,'Calc-Drivers'!$B$17:$F$27,N$42,FALSE))," ",VLOOKUP($K13,'Calc-Drivers'!$B$17:$F$27,N$42,FALSE)) -> 0.03534221934 | O13: =IF(ISERROR(VLOOKUP($K13,'Calc-Drivers'!$B$17:$F$27,O$42,FALSE))," ",VLOOKUP($K13,'Calc-Drivers'!$B$17:$F$27,O$42,FALSE)) -> 0.4562862946 | R13: 2.119443791 | S13: 0.7394324686 | T13: 0.1987503914 | U13: 2.565970144 | X13: 2.119443791 | Y13: 0.7394324686 | Z13: 0.1987503914 | AA13: 2.565970144 | AD13: =IF(ISERROR(X13*100000000/'Calc-Units'!$E$21)," ",X13*100000000/'Calc-Units'!$E$21) -> 0.008011989248 | AE13: =IF(ISERROR(Y13*100000000/'Calc-Units'!$D$21)," ",Y13*100000000/'Calc-Units'!$D$21) -> 0.002858818225 | AF13: =IF(ISERROR(Z13*100000000/'Calc-Units'!$C$21)," ",Z13*100000000/'Calc-Units'!$C$21) -> 0.001163371525 | AG13: =IF(ISERROR(AA13*100000000/'Calc-Units'!$C$21)," ",AA13*100000000/'Calc-Units'!$C$21) -> 0.0150197269 | AI13: 0.5257 | AJ13: 2.956324835 | AK13: 2.66727196 | AN13: 1.00525219 | AO13: 0.3507128198 | AP13: 0.09426731064 | AQ13: 1.217039639 | AT13: =IF(ISERROR(AN13*100000000/'Calc-Units'!$E$21)," ",AN13*100000000/'Calc-Units'!$E$21) -> 0.0038000865 | AU13: =IF(ISERROR(AO13*100000000/'Calc-Units'!$D$21)," ",AO13*100000000/'Calc-Units'!$D$21) -> 0.001355937484 | AV13: =IF(ISERROR(AP13*100000000/'Calc-Units'!$C$21)," ",AP13*100000000/'Calc-Units'!$C$21) -> 0.0005517871145 | AW13: =IF(ISERROR(AQ13*100000000/'Calc-Units'!$C$21)," ",AQ13*100000000/'Calc-Units'!$C$21) -> 0.00712385647
C14: Project Management | D14: ='RRP 1.3'!L$12 -> 4.196281058 | E14: 0 | F14: 0 | G14: 0 | H14: 0 | I14: 4.196281058 | K14: MEAV | L14: =IF(ISERROR(VLOOKUP($K14,'Calc-Drivers'!$B$17:$F$27,L$42,FALSE))," ",VLOOKUP($K14,'Calc-Drivers'!$B$17:$F$27,L$42,FALSE)) -> 0.3768840243 | M14: =IF(ISERROR(VLOOKUP($K14,'Calc-Drivers'!$B$17:$F$27,M$42,FALSE))," ",VLOOKUP($K14,'Calc-Drivers'!$B$17:$F$27,M$42,FALSE)) -> 0.1314874618 | N14: =IF(ISERROR(VLOOKUP($K14,'Calc-Drivers'!$B$17:$F$27,N$42,FALSE))," ",VLOOKUP($K14,'Calc-Drivers'!$B$17:$F$27,N$42,FALSE)) -> 0.03534221934 | O14: =IF(ISERROR(VLOOKUP($K14,'Calc-Drivers'!$B$17:$F$27,O$42,FALSE))," ",VLOOKUP($K14,'Calc-Drivers'!$B$17:$F$27,O$42,FALSE)) -> 0.4562862946 | R14: 1.581511292 | S14: 0.5517583451 | T14: 0.1483058856 | U14: 1.914705535 | X14: 1.581511292 | Y14: 0.5517583451 | Z14: 0.1483058856 | AA14: 1.914705535 | AD14: =IF(ISERROR(X14*100000000/'Calc-Units'!$E$21)," ",X14*100000000/'Calc-Units'!$E$21) -> 0.0059784796 | AE14: =IF(ISERROR(Y14*100000000/'Calc-Units'!$D$21)," ",Y14*100000000/'Calc-Units'!$D$21) -> 0.002133226332 | AF14: =IF(ISERROR(Z14*100000000/'Calc-Units'!$C$21)," ",Z14*100000000/'Calc-Units'!$C$21) -> 0.000868098136 | AG14: =IF(ISERROR(AA14*100000000/'Calc-Units'!$C$21)," ",AA14*100000000/'Calc-Units'!$C$21) -> 0.01120759503 | AI14: 0.5257 | AJ14: 2.205984952 | AK14: 1.990296106 | AN14: 0.7501108058 | AO14: 0.2616989831 | AP14: 0.07034148152 | AQ14: 0.9081448353 | AT14: =IF(ISERROR(AN14*100000000/'Calc-Units'!$E$21)," ",AN14*100000000/'Calc-Units'!$E$21) -> 0.002835592874 | AU14: =IF(ISERROR(AO14*100000000/'Calc-Units'!$D$21)," ",AO14*100000000/'Calc-Units'!$D$21) -> 0.001011789249 | AV14: =IF(ISERROR(AP14*100000000/'Calc-Units'!$C$21)," ",AP14*100000000/'Calc-Units'!$C$21) -> 0.0004117389459 | AW14: =IF(ISERROR(AQ14*100000000/'Calc-Units'!$C$21)," ",AQ14*100000000/'Calc-Units'!$C$21) -> 0.005315762323
C15: Engineering Mgt & Clerical Support | D15: ='RRP 1.3'!M$12 -> 23.39222531 | E15: 0 | F15: 0 | G15: 0 | H15: 0 | I15: 23.39222531 | K15: MEAV | L15: =IF(ISERROR(VLOOKUP($K15,'Calc-Drivers'!$B$17:$F$27,L$42,FALSE))," ",VLOOKUP($K15,'Calc-Drivers'!$B$17:$F$27,L$42,FALSE)) -> 0.3768840243 | M15: =IF(ISERROR(VLOOKUP($K15,'Calc-Drivers'!$B$17:$F$27,M$42,FALSE))," ",VLOOKUP($K15,'Calc-Drivers'!$B$17:$F$27,M$42,FALSE)) -> 0.1314874618 | N15: =IF(ISERROR(VLOOKUP($K15,'Calc-Drivers'!$B$17:$F$27,N$42,FALSE))," ",VLOOKUP($K15,'Calc-Drivers'!$B$17:$F$27,N$42,FALSE)) -> 0.03534221934 | O15: =IF(ISERROR(VLOOKUP($K15,'Calc-Drivers'!$B$17:$F$27,O$42,FALSE))," ",VLOOKUP($K15,'Calc-Drivers'!$B$17:$F$27,O$42,FALSE)) -> 0.4562862946 | R15: 8.81615601 | S15: 3.07578433 | T15: 0.8267331576 | U15: 10.67355181 | X15: 8.81615601 | Y15: 3.07578433 | Z15: 0.8267331576 | AA15: 10.67355181 | AD15: =IF(ISERROR(X15*100000000/'Calc-Units'!$E$21)," ",X15*100000000/'Calc-Units'!$E$21) -> 0.03332711509 | AE15: =IF(ISERROR(Y15*100000000/'Calc-Units'!$D$21)," ",Y15*100000000/'Calc-Units'!$D$21) -> 0.01189169893 | AF15: =IF(ISERROR(Z15*100000000/'Calc-Units'!$C$21)," ",Z15*100000000/'Calc-Units'!$C$21) -> 0.004839224757 | AG15: =IF(ISERROR(AA15*100000000/'Calc-Units'!$C$21)," ",AA15*100000000/'Calc-Units'!$C$21) -> 0.06247688953 | AI15: 0.5257 | AJ15: 12.29729284 | AK15: 11.09493246 | AN15: 4.181502796 | AO15: 1.458844508 | AP15: 0.3921195366 | AQ15: 5.062465623 | AT15: =IF(ISERROR(AN15*100000000/'Calc-Units'!$E$21)," ",AN15*100000000/'Calc-Units'!$E$21) -> 0.01580705069 | AU15: =IF(ISERROR(AO15*100000000/'Calc-Units'!$D$21)," ",AO15*100000000/'Calc-Units'!$D$21) -> 0.005640232805 | AV15: =IF(ISERROR(AP15*100000000/'Calc-Units'!$C$21)," ",AP15*100000000/'Calc-Units'!$C$21) -> 0.002295244302 | AW15: =IF(ISERROR(AQ15*100000000/'Calc-Units'!$C$21)," ",AQ15*100000000/'Calc-Units'!$C$21) -> 0.02963278871
C16: Control Centre | D16: ='RRP 1.3'!N$12 -> 3.993267122 | E16: 0 | F16: 0 | G16: 0 | H16: 0 | I16: 3.993267122 | K16: MEAV | L16: =IF(ISERROR(VLOOKUP($K16,'Calc-Drivers'!$B$17:$F$27,L$42,FALSE))," ",VLOOKUP($K16,'Calc-Drivers'!$B$17:$F$27,L$42,FALSE)) -> 0.3768840243 | M16: =IF(ISERROR(VLOOKUP($K16,'Calc-Drivers'!$B$17:$F$27,M$42,FALSE))," ",VLOOKUP($K16,'Calc-Drivers'!$B$17:$F$27,M$42,FALSE)) -> 0.1314874618 | N16: =IF(ISERROR(VLOOKUP($K16,'Calc-Drivers'!$B$17:$F$27,N$42,FALSE))," ",VLOOKUP($K16,'Calc-Drivers'!$B$17:$F$27,N$42,FALSE)) -> 0.03534221934 | O16: =IF(ISERROR(VLOOKUP($K16,'Calc-Drivers'!$B$17:$F$27,O$42,FALSE))," ",VLOOKUP($K16,'Calc-Drivers'!$B$17:$F$27,O$42,FALSE)) -> 0.4562862946 | R16: 1.504998583 | S16: 0.5250645579 | T16: 0.1411309225 | U16: 1.822073058 | X16: 1.504998583 | Y16: 0.5250645579 | Z16: 0.1411309225 | AA16: 1.822073058 | AD16: =IF(ISERROR(X16*100000000/'Calc-Units'!$E$21)," ",X16*100000000/'Calc-Units'!$E$21) -> 0.005689243807 | AE16: =IF(ISERROR(Y16*100000000/'Calc-Units'!$D$21)," ",Y16*100000000/'Calc-Units'!$D$21) -> 0.002030021931 | AF16: =IF(ISERROR(Z16*100000000/'Calc-Units'!$C$21)," ",Z16*100000000/'Calc-Units'!$C$21) -> 0.0008260999911 | AG16: =IF(ISERROR(AA16*100000000/'Calc-Units'!$C$21)," ",AA16*100000000/'Calc-Units'!$C$21) -> 0.0106653773 | AI16: 0.5257 | AJ16: 2.099260526 | AK16: 1.894006596 | AN16: 0.7138208278 | AO16: 0.2490381198 | AP16: 0.06693839654 | AQ16: 0.8642092516 | AT16: =IF(ISERROR(AN16*100000000/'Calc-Units'!$E$21)," ",AN16*100000000/'Calc-Units'!$E$21) -> 0.002698408338 | AU16: =IF(ISERROR(AO16*100000000/'Calc-Units'!$D$21)," ",AO16*100000000/'Calc-Units'!$D$21) -> 0.0009628394017 | AV16: =IF(ISERROR(AP16*100000000/'Calc-Units'!$C$21)," ",AP16*100000000/'Calc-Units'!$C$21) -> 0.0003918192258 | AW16: =IF(ISERROR(AQ16*100000000/'Calc-Units'!$C$21)," ",AQ16*100000000/'Calc-Units'!$C$21) -> 0.005058588455
C17: System Mapping - Cartographical | D17: ='RRP 1.3'!O$12 -> 1.84309522 | E17: 0 | F17: 0 | G17: 0 | H17: 0 | I17: 1.84309522 | K17: MEAV | L17: =IF(ISERROR(VLOOKUP($K17,'Calc-Drivers'!$B$17:$F$27,L$42,FALSE))," ",VLOOKUP($K17,'Calc-Drivers'!$B$17:$F$27,L$42,FALSE)) -> 0.3768840243 | M17: =IF(ISERROR(VLOOKUP($K17,'Calc-Drivers'!$B$17:$F$27,M$42,FALSE))," ",VLOOKUP($K17,'Calc-Drivers'!$B$17:$F$27,M$42,FALSE)) -> 0.1314874618 | N17: =IF(ISERROR(VLOOKUP($K17,'Calc-Drivers'!$B$17:$F$27,N$42,FALSE))," ",VLOOKUP($K17,'Calc-Drivers'!$B$17:$F$27,N$42,FALSE)) -> 0.03534221934 | O17: =IF(ISERROR(VLOOKUP($K17,'Calc-Drivers'!$B$17:$F$27,O$42,FALSE))," ",VLOOKUP($K17,'Calc-Drivers'!$B$17:$F$27,O$42,FALSE)) -> 0.4562862946 | R17: 0.6946331438 | S17: 0.2423439123 | T17: 0.06513907554 | U17: 0.8409790888 | X17: 0.6946331438 | Y17: 0.2423439123 | Z17: 0.06513907554 | AA17: 0.8409790888 | AD17: =IF(ISERROR(X17*100000000/'Calc-Units'!$E$21)," ",X17*100000000/'Calc-Units'!$E$21) -> 0.002625874441 | AE17: =IF(ISERROR(Y17*100000000/'Calc-Units'!$D$21)," ",Y17*100000000/'Calc-Units'!$D$21) -> 0.0009369580356 | AF17: =IF(ISERROR(Z17*100000000/'Calc-Units'!$C$21)," ",Z17*100000000/'Calc-Units'!$C$21) -> 0.0003812870261 | AG17: =IF(ISERROR(AA17*100000000/'Calc-Units'!$C$21)," ",AA17*100000000/'Calc-Units'!$C$21) -> 0.00492261232 | AI17: 0.5257 | AJ17: 0.9689151574 | AK17: 0.8741800631 | AN17: 0.3294645001 | AO17: 0.1149437176 | AP17: 0.03089546353 | AQ17: 0.3988763818 | AT17: =IF(ISERROR(AN17*100000000/'Calc-Units'!$E$21)," ",AN17*100000000/'Calc-Units'!$E$21) -> 0.001245452247 | AU17: =IF(ISERROR(AO17*100000000/'Calc-Units'!$D$21)," ",AO17*100000000/'Calc-Units'!$D$21) -> 0.0004443991963 | AV17: =IF(ISERROR(AP17*100000000/'Calc-Units'!$C$21)," ",AP17*100000000/'Calc-Units'!$C$21) -> 0.0001808444365 | AW17: =IF(ISERROR(AQ17*100000000/'Calc-Units'!$C$21)," ",AQ17*100000000/'Calc-Units'!$C$21) -> 0.002334795023
C18: Customer Call Centre | D18: ='RRP 1.3'!P$12 -> 1.439482672 | E18: 0 | F18: 0 | G18: 0 | H18: 0 | I18: 1.439482672 | K18: MEAV | L18: =IF(ISERROR(VLOOKUP($K18,'Calc-Drivers'!$B$17:$F$27,L$42,FALSE))," ",VLOOKUP($K18,'Calc-Drivers'!$B$17:$F$27,L$42,FALSE)) -> 0.3768840243 | M18: =IF(ISERROR(VLOOKUP($K18,'Calc-Drivers'!$B$17:$F$27,M$42,FALSE))," ",VLOOKUP($K18,'Calc-Drivers'!$B$17:$F$27,M$42,FALSE)) -> 0.1314874618 | N18: =IF(ISERROR(VLOOKUP($K18,'Calc-Drivers'!$B$17:$F$27,N$42,FALSE))," ",VLOOKUP($K18,'Calc-Drivers'!$B$17:$F$27,N$42,FALSE)) -> 0.03534221934 | O18: =IF(ISERROR(VLOOKUP($K18,'Calc-Drivers'!$B$17:$F$27,O$42,FALSE))," ",VLOOKUP($K18,'Calc-Drivers'!$B$17:$F$27,O$42,FALSE)) -> 0.4562862946 | R18: 0.5425180224 | S18: 0.1892739228 | T18: 0.05087451234 | U18: 0.6568162147 | X18: 0.5425180224 | Y18: 0.1892739228 | Z18: 0.05087451234 | AA18: 0.6568162147 | AD18: =IF(ISERROR(X18*100000000/'Calc-Units'!$E$21)," ",X18*100000000/'Calc-Units'!$E$21) -> 0.00205084399 | AE18: =IF(ISERROR(Y18*100000000/'Calc-Units'!$D$21)," ",Y18*100000000/'Calc-Units'!$D$21) -> 0.0007317770899 | AF18: =IF(ISERROR(Z18*100000000/'Calc-Units'!$C$21)," ",Z18*100000000/'Calc-Units'!$C$21) -> 0.0002977904023 | AG18: =IF(ISERROR(AA18*100000000/'Calc-Units'!$C$21)," ",AA18*100000000/'Calc-Units'!$C$21) -> 0.003844627808 | AI18: 0.5257 | AJ18: 0.7567360408 | AK18: 0.6827466314 | AN18: 0.257316298 | AO18: 0.08977262159 | AP18: 0.0241297812 | AQ18: 0.3115279306 | AT18: =IF(ISERROR(AN18*100000000/'Calc-Units'!$E$21)," ",AN18*100000000/'Calc-Units'!$E$21) -> 0.0009727153047 | AU18: =IF(ISERROR(AO18*100000000/'Calc-Units'!$D$21)," ",AO18*100000000/'Calc-Units'!$D$21) -> 0.0003470818737 | AV18: =IF(ISERROR(AP18*100000000/'Calc-Units'!$C$21)," ",AP18*100000000/'Calc-Units'!$C$21) -> 0.0001412419878 | AW18: =IF(ISERROR(AQ18*100000000/'Calc-Units'!$C$21)," ",AQ18*100000000/'Calc-Units'!$C$21) -> 0.001823506969
C19: Stores | D19: ='RRP 1.3'!Q$12 -> 1.363081073 | E19: 0 | F19: 0 | G19: 0 | H19: 0 | I19: 1.363081073 | K19: MEAV | L19: =IF(ISERROR(VLOOKUP($K19,'Calc-Drivers'!$B$17:$F$27,L$42,FALSE))," ",VLOOKUP($K19,'Calc-Drivers'!$B$17:$F$27,L$42,FALSE)) -> 0.3768840243 | M19: =IF(ISERROR(VLOOKUP($K19,'Calc-Drivers'!$B$17:$F$27,M$42,FALSE))," ",VLOOKUP($K19,'Calc-Drivers'!$B$17:$F$27,M$42,FALSE)) -> 0.1314874618 | N19: =IF(ISERROR(VLOOKUP($K19,'Calc-Drivers'!$B$17:$F$27,N$42,FALSE))," ",VLOOKUP($K19,'Calc-Drivers'!$B$17:$F$27,N$42,FALSE)) -> 0.03534221934 | O19: =IF(ISERROR(VLOOKUP($K19,'Calc-Drivers'!$B$17:$F$27,O$42,FALSE))," ",VLOOKUP($K19,'Calc-Drivers'!$B$17:$F$27,O$42,FALSE)) -> 0.4562862946 | R19: 0.5137234801 | S19: 0.1792280704 | T19: 0.04817431025 | U19: 0.621955212 | X19: 0.5137234801 | Y19: 0.1792280704 | Z19: 0.04817431025 | AA19: 0.621955212 | AD19: =IF(ISERROR(X19*100000000/'Calc-Units'!$E$21)," ",X19*100000000/'Calc-Units'!$E$21) -> 0.00194199394 | AE19: =IF(ISERROR(Y19*100000000/'Calc-Units'!$D$21)," ",Y19*100000000/'Calc-Units'!$D$21) -> 0.0006929374837 | AF19: =IF(ISERROR(Z19*100000000/'Calc-Units'!$C$21)," ",Z19*100000000/'Calc-Units'!$C$21) -> 0.0002819849581 | AG19: =IF(ISERROR(AA19*100000000/'Calc-Units'!$C$21)," ",AA19*100000000/'Calc-Units'!$C$21) -> 0.003640571365 | AI19: 0.5257 | AJ19: 0.7165717199 | AK19: 0.6465093528 | AN19: 0.2436590466 | AO19: 0.0850078738 | AP19: 0.02284907535 | AQ19: 0.294993357 | AT19: =IF(ISERROR(AN19*100000000/'Calc-Units'!$E$21)," ",AN19*100000000/'Calc-Units'!$E$21) -> 0.0009210877258 | AU19: =IF(ISERROR(AO19*100000000/'Calc-Units'!$D$21)," ",AO19*100000000/'Calc-Units'!$D$21) -> 0.0003286602485 | AV19: =IF(ISERROR(AP19*100000000/'Calc-Units'!$C$21)," ",AP19*100000000/'Calc-Units'!$C$21) -> 0.0001337454656 | AW19: =IF(ISERROR(AQ19*100000000/'Calc-Units'!$C$21)," ",AQ19*100000000/'Calc-Units'!$C$21) -> 0.001726722998
C20: Vehicles & Transport | D20: ='RRP 1.3'!R$12 -> 5.439945995 | E20: 0 | F20: 0 | G20: 0 | H20: 0 | I20: 5.439945995 | K20: MEAV | L20: =IF(ISERROR(VLOOKUP($K20,'Calc-Drivers'!$B$17:$F$27,L$42,FALSE))," ",VLOOKUP($K20,'Calc-Drivers'!$B$17:$F$27,L$42,FALSE)) -> 0.3768840243 | M20: =IF(ISERROR(VLOOKUP($K20,'Calc-Drivers'!$B$17:$F$27,M$42,FALSE))," ",VLOOKUP($K20,'Calc-Drivers'!$B$17:$F$27,M$42,FALSE)) -> 0.1314874618 | N20: =IF(ISERROR(VLOOKUP($K20,'Calc-Drivers'!$B$17:$F$27,N$42,FALSE))," ",VLOOKUP($K20,'Calc-Drivers'!$B$17:$F$27,N$42,FALSE)) -> 0.03534221934 | O20: =IF(ISERROR(VLOOKUP($K20,'Calc-Drivers'!$B$17:$F$27,O$42,FALSE))," ",VLOOKUP($K20,'Calc-Drivers'!$B$17:$F$27,O$42,FALSE)) -> 0.4562862946 | R20: 2.050228738 | S20: 0.7152846909 | T20: 0.1922597645 | U20: 2.482172801 | X20: 2.050228738 | Y20: 0.7152846909 | Z20: 0.1922597645 | AA20: 2.482172801 | AD20: =IF(ISERROR(X20*100000000/'Calc-Units'!$E$21)," ",X20*100000000/'Calc-Units'!$E$21) -> 0.00775034029 | AE20: =IF(ISERROR(Y20*100000000/'Calc-Units'!$D$21)," ",Y20*100000000/'Calc-Units'!$D$21) -> 0.002765457289 | AF20: =IF(ISERROR(Z20*100000000/'Calc-Units'!$C$21)," ",Z20*100000000/'Calc-Units'!$C$21) -> 0.001125379095 | AG20: =IF(ISERROR(AA20*100000000/'Calc-Units'!$C$21)," ",AA20*100000000/'Calc-Units'!$C$21) -> 0.01452922501 | AI20: 0.5257 | AJ20: 2.859779609 | AK20: 2.580166385 | AN20: 0.9724234906 | AO20: 0.3392595289 | AP20: 0.09118880631 | AQ20: 1.177294559 | AT20: =IF(ISERROR(AN20*100000000/'Calc-Units'!$E$21)," ",AN20*100000000/'Calc-Units'!$E$21) -> 0.0036759864 | AU20: =IF(ISERROR(AO20*100000000/'Calc-Units'!$D$21)," ",AO20*100000000/'Calc-Units'!$D$21) -> 0.001311656392 | AV20: =IF(ISERROR(AP20*100000000/'Calc-Units'!$C$21)," ",AP20*100000000/'Calc-Units'!$C$21) -> 0.0005337673046 | AW20: =IF(ISERROR(AQ20*100000000/'Calc-Units'!$C$21)," ",AQ20*100000000/'Calc-Units'!$C$21) -> 0.006891211423
C21: IT & Telecoms | D21: ='RRP 1.3'!S$12 -> 11.41370596 | E21: 0 | F21: 0 | G21: 0 | H21: 0 | I21: 11.41370596 | K21: Do not allocate | L21: =IF(ISERROR(VLOOKUP($K21,'Calc-Drivers'!$B$17:$F$27,L$42,FALSE))," ",VLOOKUP($K21,'Calc-Drivers'!$B$17:$F$27,L$42,FALSE)) ->  | M21: =IF(ISERROR(VLOOKUP($K21,'Calc-Drivers'!$B$17:$F$27,M$42,FALSE))," ",VLOOKUP($K21,'Calc-Drivers'!$B$17:$F$27,M$42,FALSE)) ->  | N21: =IF(ISERROR(VLOOKUP($K21,'Calc-Drivers'!$B$17:$F$27,N$42,FALSE))," ",VLOOKUP($K21,'Calc-Drivers'!$B$17:$F$27,N$42,FALSE)) ->  | O21: =IF(ISERROR(VLOOKUP($K21,'Calc-Drivers'!$B$17:$F$27,O$42,FALSE))," ",VLOOKUP($K21,'Calc-Drivers'!$B$17:$F$27,O$42,FALSE)) ->  | AD21: =IF(ISERROR(X21*100000000/'Calc-Units'!$E$21)," ",X21*100000000/'Calc-Units'!$E$21) ->  | AE21: =IF(ISERROR(Y21*100000000/'Calc-Units'!$D$21)," ",Y21*100000000/'Calc-Units'!$D$21) ->  | AF21: =IF(ISERROR(Z21*100000000/'Calc-Units'!$C$21)," ",Z21*100000000/'Calc-Units'!$C$21) ->  | AG21: =IF(ISERROR(AA21*100000000/'Calc-Units'!$C$21)," ",AA21*100000000/'Calc-Units'!$C$21) ->  | AI21: 0.5257 | AJ21: 6.000185221 | AK21: 5.413520735 | AT21: =IF(ISERROR(AN21*100000000/'Calc-Units'!$E$21)," ",AN21*100000000/'Calc-Units'!$E$21) ->  | AU21: =IF(ISERROR(AO21*100000000/'Calc-Units'!$D$21)," ",AO21*100000000/'Calc-Units'!$D$21) ->  | AV21: =IF(ISERROR(AP21*100000000/'Calc-Units'!$C$21)," ",AP21*100000000/'Calc-Units'!$C$21) ->  | AW21: =IF(ISERROR(AQ21*100000000/'Calc-Units'!$C$21)," ",AQ21*100000000/'Calc-Units'!$C$21) -> 
C22: Property Mgt | D22: ='RRP 1.3'!T$12 -> 5.5343553 | E22: 0 | F22: 0 | G22: 0 | H22: 0 | I22: 5.5343553 | K22: Do not allocate | L22: =IF(ISERROR(VLOOKUP($K22,'Calc-Drivers'!$B$17:$F$27,L$42,FALSE))," ",VLOOKUP($K22,'Calc-Drivers'!$B$17:$F$27,L$42,FALSE)) ->  | M22: =IF(ISERROR(VLOOKUP($K22,'Calc-Drivers'!$B$17:$F$27,M$42,FALSE))," ",VLOOKUP($K22,'Calc-Drivers'!$B$17:$F$27,M$42,FALSE)) ->  | N22: =IF(ISERROR(VLOOKUP($K22,'Calc-Drivers'!$B$17:$F$27,N$42,FALSE))," ",VLOOKUP($K22,'Calc-Drivers'!$B$17:$F$27,N$42,FALSE)) ->  | O22: =IF(ISERROR(VLOOKUP($K22,'Calc-Drivers'!$B$17:$F$27,O$42,FALSE))," ",VLOOKUP($K22,'Calc-Drivers'!$B$17:$F$27,O$42,FALSE)) ->  | AD22: =IF(ISERROR(X22*100000000/'Calc-Units'!$E$21)," ",X22*100000000/'Calc-Units'!$E$21) ->  | AE22: =IF(ISERROR(Y22*100000000/'Calc-Units'!$D$21)," ",Y22*100000000/'Calc-Units'!$D$21) ->  | AF22: =IF(ISERROR(Z22*100000000/'Calc-Units'!$C$21)," ",Z22*100000000/'Calc-Units'!$C$21) ->  | AG22: =IF(ISERROR(AA22*100000000/'Calc-Units'!$C$21)," ",AA22*100000000/'Calc-Units'!$C$21) ->  | AI22: 0.5257 | AJ22: 2.909410581 | AK22: 2.624944719 | AT22: =IF(ISERROR(AN22*100000000/'Calc-Units'!$E$21)," ",AN22*100000000/'Calc-Units'!$E$21) ->  | AU22: =IF(ISERROR(AO22*100000000/'Calc-Units'!$D$21)," ",AO22*100000000/'Calc-Units'!$D$21) ->  | AV22: =IF(ISERROR(AP22*100000000/'Calc-Units'!$C$21)," ",AP22*100000000/'Calc-Units'!$C$21) ->  | AW22: =IF(ISERROR(AQ22*100000000/'Calc-Units'!$C$21)," ",AQ22*100000000/'Calc-Units'!$C$21) -> 
C23: HR & Non-operational Training | D23: ='RRP 1.3'!U$12 -> 1.372637377 | E23: 0 | F23: 0 | G23: 0 | H23: 0 | I23: 1.372637377 | K23: MEAV | L23: =IF(ISERROR(VLOOKUP($K23,'Calc-Drivers'!$B$17:$F$27,L$42,FALSE))," ",VLOOKUP($K23,'Calc-Drivers'!$B$17:$F$27,L$42,FALSE)) -> 0.3768840243 | M23: =IF(ISERROR(VLOOKUP($K23,'Calc-Drivers'!$B$17:$F$27,M$42,FALSE))," ",VLOOKUP($K23,'Calc-Drivers'!$B$17:$F$27,M$42,FALSE)) -> 0.1314874618 | N23: =IF(ISERROR(VLOOKUP($K23,'Calc-Drivers'!$B$17:$F$27,N$42,FALSE))," ",VLOOKUP($K23,'Calc-Drivers'!$B$17:$F$27,N$42,FALSE)) -> 0.03534221934 | O23: =IF(ISERROR(VLOOKUP($K23,'Calc-Drivers'!$B$17:$F$27,O$42,FALSE))," ",VLOOKUP($K23,'Calc-Drivers'!$B$17:$F$27,O$42,FALSE)) -> 0.4562862946 | R23: 0.5173250984 | S23: 0.1804846046 | T23: 0.04851205124 | U23: 0.6263156225 | X23: 0.5173250984 | Y23: 0.1804846046 | Z23: 0.04851205124 | AA23: 0.6263156225 | AD23: =IF(ISERROR(X23*100000000/'Calc-Units'!$E$21)," ",X23*100000000/'Calc-Units'!$E$21) -> 0.001955608893 | AE23: =IF(ISERROR(Y23*100000000/'Calc-Units'!$D$21)," ",Y23*100000000/'Calc-Units'!$D$21) -> 0.0006977955376 | AF23: =IF(ISERROR(Z23*100000000/'Calc-Units'!$C$21)," ",Z23*100000000/'Calc-Units'!$C$21) -> 0.0002839619014 | AG23: =IF(ISERROR(AA23*100000000/'Calc-Units'!$C$21)," ",AA23*100000000/'Calc-Units'!$C$21) -> 0.003666094723 | AI23: 0.5257 | AJ23: 0.721595469 | AK23: 0.6510419078 | AN23: 0.2453672942 | AO23: 0.08560384796 | AP23: 0.0230092659 | AQ23: 0.2970614998 | AT23: =IF(ISERROR(AN23*100000000/'Calc-Units'!$E$21)," ",AN23*100000000/'Calc-Units'!$E$21) -> 0.000927545298 | AU23: =IF(ISERROR(AO23*100000000/'Calc-Units'!$D$21)," ",AO23*100000000/'Calc-Units'!$D$21) -> 0.0003309644235 | AV23: =IF(ISERROR(AP23*100000000/'Calc-Units'!$C$21)," ",AP23*100000000/'Calc-Units'!$C$21) -> 0.0001346831299 | AW23: =IF(ISERROR(AQ23*100000000/'Calc-Units'!$C$21)," ",AQ23*100000000/'Calc-Units'!$C$21) -> 0.001738828727
C24: Health & Safety & Operational Training | D24: ='RRP 1.3'!V$12 -> 1.961463426 | E24: 0 | F24: 0 | G24: 0 | H24: 0 | I24: 1.961463426 | K24: MEAV | L24: =IF(ISERROR(VLOOKUP($K24,'Calc-Drivers'!$B$17:$F$27,L$42,FALSE))," ",VLOOKUP($K24,'Calc-Drivers'!$B$17:$F$27,L$42,FALSE)) -> 0.3768840243 | M24: =IF(ISERROR(VLOOKUP($K24,'Calc-Drivers'!$B$17:$F$27,M$42,FALSE))," ",VLOOKUP($K24,'Calc-Drivers'!$B$17:$F$27,M$42,FALSE)) -> 0.1314874618 | N24: =IF(ISERROR(VLOOKUP($K24,'Calc-Drivers'!$B$17:$F$27,N$42,FALSE))," ",VLOOKUP($K24,'Calc-Drivers'!$B$17:$F$27,N$42,FALSE)) -> 0.03534221934 | O24: =IF(ISERROR(VLOOKUP($K24,'Calc-Drivers'!$B$17:$F$27,O$42,FALSE))," ",VLOOKUP($K24,'Calc-Drivers'!$B$17:$F$27,O$42,FALSE)) -> 0.4562862946 | R24: 0.7392442296 | S24: 0.2579078473 | T24: 0.06932247064 | U24: 0.8949888789 | X24: 0.7392442296 | Y24: 0.2579078473 | Z24: 0.06932247064 | AA24: 0.8949888789 | AD24: =IF(ISERROR(X24*100000000/'Calc-Units'!$E$21)," ",X24*100000000/'Calc-Units'!$E$21) -> 0.002794514695 | AE24: =IF(ISERROR(Y24*100000000/'Calc-Units'!$D$21)," ",Y24*100000000/'Calc-Units'!$D$21) -> 0.0009971318348 | AF24: =IF(ISERROR(Z24*100000000/'Calc-Units'!$C$21)," ",Z24*100000000/'Calc-Units'!$C$21) -> 0.000405774237 | AG24: =IF(ISERROR(AA24*100000000/'Calc-Units'!$C$21)," ",AA24*100000000/'Calc-Units'!$C$21) -> 0.005238754852 | AI24: 0.5257 | AJ24: 1.031141323 | AK24: 0.9303221032 | AN24: 0.3506235381 | AO24: 0.122325692 | AP24: 0.03287964783 | AQ24: 0.4244932253 | AT24: =IF(ISERROR(AN24*100000000/'Calc-Units'!$E$21)," ",AN24*100000000/'Calc-Units'!$E$21) -> 0.00132543832 | AU24: =IF(ISERROR(AO24*100000000/'Calc-Units'!$D$21)," ",AO24*100000000/'Calc-Units'!$D$21) -> 0.0004729396292 | AV24: =IF(ISERROR(AP24*100000000/'Calc-Units'!$C$21)," ",AP24*100000000/'Calc-Units'!$C$21) -> 0.0001924587206 | AW24: =IF(ISERROR(AQ24*100000000/'Calc-Units'!$C$21)," ",AQ24*100000000/'Calc-Units'!$C$21) -> 0.002484741426
C25: Finance & Regulation | D25: ='RRP 1.3'!W$12 -> 7.781675597 | E25: 0 | F25: 0 | G25: 0 | H25: 0 | I25: 7.781675597 | K25: MEAV | L25: =IF(ISERROR(VLOOKUP($K25,'Calc-Drivers'!$B$17:$F$27,L$42,FALSE))," ",VLOOKUP($K25,'Calc-Drivers'!$B$17:$F$27,L$42,FALSE)) -> 0.3768840243 | M25: =IF(ISERROR(VLOOKUP($K25,'Calc-Drivers'!$B$17:$F$27,M$42,FALSE))," ",VLOOKUP($K25,'Calc-Drivers'!$B$17:$F$27,M$42,FALSE)) -> 0.1314874618 | N25: =IF(ISERROR(VLOOKUP($K25,'Calc-Drivers'!$B$17:$F$27,N$42,FALSE))," ",VLOOKUP($K25,'Calc-Drivers'!$B$17:$F$27,N$42,FALSE)) -> 0.03534221934 | O25: =IF(ISERROR(VLOOKUP($K25,'Calc-Drivers'!$B$17:$F$27,O$42,FALSE))," ",VLOOKUP($K25,'Calc-Drivers'!$B$17:$F$27,O$42,FALSE)) -> 0.4562862946 | R25: 2.932789215 | S25: 1.023192772 | T25: 0.2750216858 | U25: 3.550671924 | X25: 2.932789215 | Y25: 1.023192772 | Z25: 0.2750216858 | AA25: 3.550671924 | AD25: =IF(ISERROR(X25*100000000/'Calc-Units'!$E$21)," ",X25*100000000/'Calc-Units'!$E$21) -> 0.01108662365 | AE25: =IF(ISERROR(Y25*100000000/'Calc-Units'!$D$21)," ",Y25*100000000/'Calc-Units'!$D$21) -> 0.003955901681 | AF25: =IF(ISERROR(Z25*100000000/'Calc-Units'!$C$21)," ",Z25*100000000/'Calc-Units'!$C$21) -> 0.001609820216 | AG25: =IF(ISERROR(AA25*100000000/'Calc-Units'!$C$21)," ",AA25*100000000/'Calc-Units'!$C$21) -> 0.02078360995 | AI25: 0.5257 | AJ25: 4.090826861 | AK25: 3.690848736 | AN25: 1.391021924 | AO25: 0.485300332 | AP25: 0.1304427856 | AQ25: 1.684083694 | AT25: =IF(ISERROR(AN25*100000000/'Calc-Units'!$E$21)," ",AN25*100000000/'Calc-Units'!$E$21) -> 0.005258385596 | AU25: =IF(ISERROR(AO25*100000000/'Calc-Units'!$D$21)," ",AO25*100000000/'Calc-Units'!$D$21) -> 0.001876284167 | AV25: =IF(ISERROR(AP25*100000000/'Calc-Units'!$C$21)," ",AP25*100000000/'Calc-Units'!$C$21) -> 0.0007635377286 | AW25: =IF(ISERROR(AQ25*100000000/'Calc-Units'!$C$21)," ",AQ25*100000000/'Calc-Units'!$C$21) -> 0.0098576662
C26: CEO etc | D26: ='RRP 1.3'!X$12 -> 1.536754324 | E26: 0 | F26: 0 | G26: 0 | H26: 0 | I26: 1.536754324 | K26: MEAV | L26: =IF(ISERROR(VLOOKUP($K26,'Calc-Drivers'!$B$17:$F$27,L$42,FALSE))," ",VLOOKUP($K26,'Calc-Drivers'!$B$17:$F$27,L$42,FALSE)) -> 0.3768840243 | M26: =IF(ISERROR(VLOOKUP($K26,'Calc-Drivers'!$B$17:$F$27,M$42,FALSE))," ",VLOOKUP($K26,'Calc-Drivers'!$B$17:$F$27,M$42,FALSE)) -> 0.1314874618 | N26: =IF(ISERROR(VLOOKUP($K26,'Calc-Drivers'!$B$17:$F$27,N$42,FALSE))," ",VLOOKUP($K26,'Calc-Drivers'!$B$17:$F$27,N$42,FALSE)) -> 0.03534221934 | O26: =IF(ISERROR(VLOOKUP($K26,'Calc-Drivers'!$B$17:$F$27,O$42,FALSE))," ",VLOOKUP($K26,'Calc-Drivers'!$B$17:$F$27,O$42,FALSE)) -> 0.4562862946 | R26: 0.579178154 | S26: 0.2020639254 | T26: 0.05431230839 | U26: 0.7011999363 | X26: 0.579178154 | Y26: 0.2020639254 | Z26: 0.05431230839 | AA26: 0.7011999363 | AD26: =IF(ISERROR(X26*100000000/'Calc-Units'!$E$21)," ",X26*100000000/'Calc-Units'!$E$21) -> 0.002189427793 | AE26: =IF(ISERROR(Y26*100000000/'Calc-Units'!$D$21)," ",Y26*100000000/'Calc-Units'!$D$21) -> 0.0007812262202 | AF26: =IF(ISERROR(Z26*100000000/'Calc-Units'!$C$21)," ",Z26*100000000/'Calc-Units'!$C$21) -> 0.0003179133013 | AG26: =IF(ISERROR(AA26*100000000/'Calc-Units'!$C$21)," ",AA26*100000000/'Calc-Units'!$C$21) -> 0.00410442482 | AI26: 0.5257 | AJ26: 0.8078717481 | AK26: 0.7288825759 | AN26: 0.2747041984 | AO26: 0.09583891982 | AP26: 0.02576032787 | AQ26: 0.3325791298 | AT26: =IF(ISERROR(AN26*100000000/'Calc-Units'!$E$21)," ",AN26*100000000/'Calc-Units'!$E$21) -> 0.001038445602 | AU26: =IF(ISERROR(AO26*100000000/'Calc-Units'!$D$21)," ",AO26*100000000/'Calc-Units'!$D$21) -> 0.0003705355963 | AV26: =IF(ISERROR(AP26*100000000/'Calc-Units'!$C$21)," ",AP26*100000000/'Calc-Units'!$C$21) -> 0.0001507862788 | AW26: =IF(ISERROR(AQ26*100000000/'Calc-Units'!$C$21)," ",AQ26*100000000/'Calc-Units'!$C$21) -> 0.001946728692
A27: Other Costs from full activitty cost allocation | C27: Atypical cash costs | D27: ='RRP 1.3'!Y$12 -> 2.24185108 | E27: 0 | F27: 0 | G27: 0 | H27: 0 | I27: 2.24185108 | K27: Do not allocate | L27: =IF(ISERROR(VLOOKUP($K27,'Calc-Drivers'!$B$17:$F$27,L$42,FALSE))," ",VLOOKUP($K27,'Calc-Drivers'!$B$17:$F$27,L$42,FALSE)) ->  | M27: =IF(ISERROR(VLOOKUP($K27,'Calc-Drivers'!$B$17:$F$27,M$42,FALSE))," ",VLOOKUP($K27,'Calc-Drivers'!$B$17:$F$27,M$42,FALSE)) ->  | N27: =IF(ISERROR(VLOOKUP($K27,'Calc-Drivers'!$B$17:$F$27,N$42,FALSE))," ",VLOOKUP($K27,'Calc-Drivers'!$B$17:$F$27,N$42,FALSE)) ->  | O27: =IF(ISERROR(VLOOKUP($K27,'Calc-Drivers'!$B$17:$F$27,O$42,FALSE))," ",VLOOKUP($K27,'Calc-Drivers'!$B$17:$F$27,O$42,FALSE)) ->  | AD27: =IF(ISERROR(X27*100000000/'Calc-Units'!$E$21)," ",X27*100000000/'Calc-Units'!$E$21) ->  | AE27: =IF(ISERROR(Y27*100000000/'Calc-Units'!$D$21)," ",Y27*100000000/'Calc-Units'!$D$21) ->  | AF27: =IF(ISERROR(Z27*100000000/'Calc-Units'!$C$21)," ",Z27*100000000/'Calc-Units'!$C$21) ->  | AG27: =IF(ISERROR(AA27*100000000/'Calc-Units'!$C$21)," ",AA27*100000000/'Calc-Units'!$C$21) ->  | AI27: 0 | AJ27: 0 | AK27: 2.24185108 | AT27: =IF(ISERROR(AN27*100000000/'Calc-Units'!$E$21)," ",AN27*100000000/'Calc-Units'!$E$21) ->  | AU27: =IF(ISERROR(AO27*100000000/'Calc-Units'!$D$21)," ",AO27*100000000/'Calc-Units'!$D$21) ->  | AV27: =IF(ISERROR(AP27*100000000/'Calc-Units'!$C$21)," ",AP27*100000000/'Calc-Units'!$C$21) ->  | AW27: =IF(ISERROR(AQ27*100000000/'Calc-Units'!$C$21)," ",AQ27*100000000/'Calc-Units'!$C$21) -> 
C28: Pension deficit payments | D28: ='RRP 1.3'!Z$12 -> 7.62 | E28: 0 | F28: 0 | G28: 0 | H28: 0 | I28: 7.62 | K28: Do not allocate | L28: =IF(ISERROR(VLOOKUP($K28,'Calc-Drivers'!$B$17:$F$27,L$42,FALSE))," ",VLOOKUP($K28,'Calc-Drivers'!$B$17:$F$27,L$42,FALSE)) ->  | M28: =IF(ISERROR(VLOOKUP($K28,'Calc-Drivers'!$B$17:$F$27,M$42,FALSE))," ",VLOOKUP($K28,'Calc-Drivers'!$B$17:$F$27,M$42,FALSE)) ->  | N28: =IF(ISERROR(VLOOKUP($K28,'Calc-Drivers'!$B$17:$F$27,N$42,FALSE))," ",VLOOKUP($K28,'Calc-Drivers'!$B$17:$F$27,N$42,FALSE)) ->  | O28: =IF(ISERROR(VLOOKUP($K28,'Calc-Drivers'!$B$17:$F$27,O$42,FALSE))," ",VLOOKUP($K28,'Calc-Drivers'!$B$17:$F$27,O$42,FALSE)) ->  | AD28: =IF(ISERROR(X28*100000000/'Calc-Units'!$E$21)," ",X28*100000000/'Calc-Units'!$E$21) ->  | AE28: =IF(ISERROR(Y28*100000000/'Calc-Units'!$D$21)," ",Y28*100000000/'Calc-Units'!$D$21) ->  | AF28: =IF(ISERROR(Z28*100000000/'Calc-Units'!$C$21)," ",Z28*100000000/'Calc-Units'!$C$21) ->  | AG28: =IF(ISERROR(AA28*100000000/'Calc-Units'!$C$21)," ",AA28*100000000/'Calc-Units'!$C$21) ->  | AI28: 0.577 | AJ28: 4.39674 | AK28: 3.22326 | AT28: =IF(ISERROR(AN28*100000000/'Calc-Units'!$E$21)," ",AN28*100000000/'Calc-Units'!$E$21) ->  | AU28: =IF(ISERROR(AO28*100000000/'Calc-Units'!$D$21)," ",AO28*100000000/'Calc-Units'!$D$21) ->  | AV28: =IF(ISERROR(AP28*100000000/'Calc-Units'!$C$21)," ",AP28*100000000/'Calc-Units'!$C$21) ->  | AW28: =IF(ISERROR(AQ28*100000000/'Calc-Units'!$C$21)," ",AQ28*100000000/'Calc-Units'!$C$21) -> 
C29: Metering | D29: ='RRP 1.3'!AA$12 -> 0.81564207 | E29: 0 | F29: 0 | G29: 0 | H29: 0 | I29: 0.81564207 | K29: Do not allocate | L29: =IF(ISERROR(VLOOKUP($K29,'Calc-Drivers'!$B$17:$F$27,L$42,FALSE))," ",VLOOKUP($K29,'Calc-Drivers'!$B$17:$F$27,L$42,FALSE)) ->  | M29: =IF(ISERROR(VLOOKUP($K29,'Calc-Drivers'!$B$17:$F$27,M$42,FALSE))," ",VLOOKUP($K29,'Calc-Drivers'!$B$17:$F$27,M$42,FALSE)) ->  | N29: =IF(ISERROR(VLOOKUP($K29,'Calc-Drivers'!$B$17:$F$27,N$42,FALSE))," ",VLOOKUP($K29,'Calc-Drivers'!$B$17:$F$27,N$42,FALSE)) ->  | O29: =IF(ISERROR(VLOOKUP($K29,'Calc-Drivers'!$B$17:$F$27,O$42,FALSE))," ",VLOOKUP($K29,'Calc-Drivers'!$B$17:$F$27,O$42,FALSE)) ->  | AD29: =IF(ISERROR(X29*100000000/'Calc-Units'!$E$21)," ",X29*100000000/'Calc-Units'!$E$21) ->  | AE29: =IF(ISERROR(Y29*100000000/'Calc-Units'!$D$21)," ",Y29*100000000/'Calc-Units'!$D$21) ->  | AF29: =IF(ISERROR(Z29*100000000/'Calc-Units'!$C$21)," ",Z29*100000000/'Calc-Units'!$C$21) ->  | AG29: =IF(ISERROR(AA29*100000000/'Calc-Units'!$C$21)," ",AA29*100000000/'Calc-Units'!$C$21) ->  | AI29: 0 | AJ29: 0 | AK29: 0.81564207 | AT29: =IF(ISERROR(AN29*100000000/'Calc-Units'!$E$21)," ",AN29*100000000/'Calc-Units'!$E$21) ->  | AU29: =IF(ISERROR(AO29*100000000/'Calc-Units'!$D$21)," ",AO29*100000000/'Calc-Units'!$D$21) ->  | AV29: =IF(ISERROR(AP29*100000000/'Calc-Units'!$C$21)," ",AP29*100000000/'Calc-Units'!$C$21) ->  | AW29: =IF(ISERROR(AQ29*100000000/'Calc-Units'!$C$21)," ",AQ29*100000000/'Calc-Units'!$C$21) -> 
C30: Excluded services & de minimis | D30: ='RRP 1.3'!AB$12 -> 12.18390734 | E30: 0 | F30: 0 | G30: 0 | H30: 0 | I30: 12.18390734 | K30: Do not allocate | L30: =IF(ISERROR(VLOOKUP($K30,'Calc-Drivers'!$B$17:$F$27,L$42,FALSE))," ",VLOOKUP($K30,'Calc-Drivers'!$B$17:$F$27,L$42,FALSE)) ->  | M30: =IF(ISERROR(VLOOKUP($K30,'Calc-Drivers'!$B$17:$F$27,M$42,FALSE))," ",VLOOKUP($K30,'Calc-Drivers'!$B$17:$F$27,M$42,FALSE)) ->  | N30: =IF(ISERROR(VLOOKUP($K30,'Calc-Drivers'!$B$17:$F$27,N$42,FALSE))," ",VLOOKUP($K30,'Calc-Drivers'!$B$17:$F$27,N$42,FALSE)) ->  | O30: =IF(ISERROR(VLOOKUP($K30,'Calc-Drivers'!$B$17:$F$27,O$42,FALSE))," ",VLOOKUP($K30,'Calc-Drivers'!$B$17:$F$27,O$42,FALSE)) ->  | AD30: =IF(ISERROR(X30*100000000/'Calc-Units'!$E$21)," ",X30*100000000/'Calc-Units'!$E$21) ->  | AE30: =IF(ISERROR(Y30*100000000/'Calc-Units'!$D$21)," ",Y30*100000000/'Calc-Units'!$D$21) ->  | AF30: =IF(ISERROR(Z30*100000000/'Calc-Units'!$C$21)," ",Z30*100000000/'Calc-Units'!$C$21) ->  | AG30: =IF(ISERROR(AA30*100000000/'Calc-Units'!$C$21)," ",AA30*100000000/'Calc-Units'!$C$21) ->  | AI30: 0 | AJ30: 0 | AK30: 12.18390734 | AT30: =IF(ISERROR(AN30*100000000/'Calc-Units'!$E$21)," ",AN30*100000000/'Calc-Units'!$E$21) ->  | AU30: =IF(ISERROR(AO30*100000000/'Calc-Units'!$D$21)," ",AO30*100000000/'Calc-Units'!$D$21) ->  | AV30: =IF(ISERROR(AP30*100000000/'Calc-Units'!$C$21)," ",AP30*100000000/'Calc-Units'!$C$21) ->  | AW30: =IF(ISERROR(AQ30*100000000/'Calc-Units'!$C$21)," ",AQ30*100000000/'Calc-Units'!$C$21) -> 
C31: Relevant distributed generation (less contributions) | D31: ='RRP 1.3'!AC$12 -> 1.399999974e-07 | E31: 0 | F31: 0 | G31: 0 | H31: 0 | I31: 1.399999974e-07 | K31: Do not allocate | L31: =IF(ISERROR(VLOOKUP($K31,'Calc-Drivers'!$B$17:$F$27,L$42,FALSE))," ",VLOOKUP($K31,'Calc-Drivers'!$B$17:$F$27,L$42,FALSE)) ->  | M31: =IF(ISERROR(VLOOKUP($K31,'Calc-Drivers'!$B$17:$F$27,M$42,FALSE))," ",VLOOKUP($K31,'Calc-Drivers'!$B$17:$F$27,M$42,FALSE)) ->  | N31: =IF(ISERROR(VLOOKUP($K31,'Calc-Drivers'!$B$17:$F$27,N$42,FALSE))," ",VLOOKUP($K31,'Calc-Drivers'!$B$17:$F$27,N$42,FALSE)) ->  | O31: =IF(ISERROR(VLOOKUP($K31,'Calc-Drivers'!$B$17:$F$27,O$42,FALSE))," ",VLOOKUP($K31,'Calc-Drivers'!$B$17:$F$27,O$42,FALSE)) ->  | AD31: =IF(ISERROR(X31*100000000/'Calc-Units'!$E$21)," ",X31*100000000/'Calc-Units'!$E$21) ->  | AE31: =IF(ISERROR(Y31*100000000/'Calc-Units'!$D$21)," ",Y31*100000000/'Calc-Units'!$D$21) ->  | AF31: =IF(ISERROR(Z31*100000000/'Calc-Units'!$C$21)," ",Z31*100000000/'Calc-Units'!$C$21) ->  | AG31: =IF(ISERROR(AA31*100000000/'Calc-Units'!$C$21)," ",AA31*100000000/'Calc-Units'!$C$21) ->  | AI31: 0 | AJ31: 0 | AK31: 1.399999974e-07 | AT31: =IF(ISERROR(AN31*100000000/'Calc-Units'!$E$21)," ",AN31*100000000/'Calc-Units'!$E$21) ->  | AU31: =IF(ISERROR(AO31*100000000/'Calc-Units'!$D$21)," ",AO31*100000000/'Calc-Units'!$D$21) ->  | AV31: =IF(ISERROR(AP31*100000000/'Calc-Units'!$C$21)," ",AP31*100000000/'Calc-Units'!$C$21) ->  | AW31: =IF(ISERROR(AQ31*100000000/'Calc-Units'!$C$21)," ",AQ31*100000000/'Calc-Units'!$C$21) -> 
C32: IFI | D32: ='RRP 1.3'!AD$12 -> 1.014745801 | E32: 0 | F32: 0 | G32: 0 | H32: 0 | I32: 1.014745801 | K32: Do not allocate | L32: =IF(ISERROR(VLOOKUP($K32,'Calc-Drivers'!$B$17:$F$27,L$42,FALSE))," ",VLOOKUP($K32,'Calc-Drivers'!$B$17:$F$27,L$42,FALSE)) ->  | M32: =IF(ISERROR(VLOOKUP($K32,'Calc-Drivers'!$B$17:$F$27,M$42,FALSE))," ",VLOOKUP($K32,'Calc-Drivers'!$B$17:$F$27,M$42,FALSE)) ->  | N32: =IF(ISERROR(VLOOKUP($K32,'Calc-Drivers'!$B$17:$F$27,N$42,FALSE))," ",VLOOKUP($K32,'Calc-Drivers'!$B$17:$F$27,N$42,FALSE)) ->  | O32: =IF(ISERROR(VLOOKUP($K32,'Calc-Drivers'!$B$17:$F$27,O$42,FALSE))," ",VLOOKUP($K32,'Calc-Drivers'!$B$17:$F$27,O$42,FALSE)) ->  | AD32: =IF(ISERROR(X32*100000000/'Calc-Units'!$E$21)," ",X32*100000000/'Calc-Units'!$E$21) ->  | AE32: =IF(ISERROR(Y32*100000000/'Calc-Units'!$D$21)," ",Y32*100000000/'Calc-Units'!$D$21) ->  | AF32: =IF(ISERROR(Z32*100000000/'Calc-Units'!$C$21)," ",Z32*100000000/'Calc-Units'!$C$21) ->  | AG32: =IF(ISERROR(AA32*100000000/'Calc-Units'!$C$21)," ",AA32*100000000/'Calc-Units'!$C$21) ->  | AI32: 0 | AJ32: 0 | AK32: 1.014745801 | AT32: =IF(ISERROR(AN32*100000000/'Calc-Units'!$E$21)," ",AN32*100000000/'Calc-Units'!$E$21) ->  | AU32: =IF(ISERROR(AO32*100000000/'Calc-Units'!$D$21)," ",AO32*100000000/'Calc-Units'!$D$21) ->  | AV32: =IF(ISERROR(AP32*100000000/'Calc-Units'!$C$21)," ",AP32*100000000/'Calc-Units'!$C$21) ->  | AW32: =IF(ISERROR(AQ32*100000000/'Calc-Units'!$C$21)," ",AQ32*100000000/'Calc-Units'!$C$21) -> 
C33: Disallowed Related Party Margins | D33: ='RRP 1.3'!AE$12 -> -5.196946326 | E33: 0 | F33: 0 | G33: 0 | H33: 0 | I33: -5.196946326 | K33: Do not allocate | L33: =IF(ISERROR(VLOOKUP($K33,'Calc-Drivers'!$B$17:$F$27,L$42,FALSE))," ",VLOOKUP($K33,'Calc-Drivers'!$B$17:$F$27,L$42,FALSE)) ->  | M33: =IF(ISERROR(VLOOKUP($K33,'Calc-Drivers'!$B$17:$F$27,M$42,FALSE))," ",VLOOKUP($K33,'Calc-Drivers'!$B$17:$F$27,M$42,FALSE)) ->  | N33: =IF(ISERROR(VLOOKUP($K33,'Calc-Drivers'!$B$17:$F$27,N$42,FALSE))," ",VLOOKUP($K33,'Calc-Drivers'!$B$17:$F$27,N$42,FALSE)) ->  | O33: =IF(ISERROR(VLOOKUP($K33,'Calc-Drivers'!$B$17:$F$27,O$42,FALSE))," ",VLOOKUP($K33,'Calc-Drivers'!$B$17:$F$27,O$42,FALSE)) ->  | AD33: =IF(ISERROR(X33*100000000/'Calc-Units'!$E$21)," ",X33*100000000/'Calc-Units'!$E$21) ->  | AE33: =IF(ISERROR(Y33*100000000/'Calc-Units'!$D$21)," ",Y33*100000000/'Calc-Units'!$D$21) ->  | AF33: =IF(ISERROR(Z33*100000000/'Calc-Units'!$C$21)," ",Z33*100000000/'Calc-Units'!$C$21) ->  | AG33: =IF(ISERROR(AA33*100000000/'Calc-Units'!$C$21)," ",AA33*100000000/'Calc-Units'!$C$21) ->  | AI33: 0 | AJ33: 0 | AK33: -5.196946326 | AT33: =IF(ISERROR(AN33*100000000/'Calc-Units'!$E$21)," ",AN33*100000000/'Calc-Units'!$E$21) ->  | AU33: =IF(ISERROR(AO33*100000000/'Calc-Units'!$D$21)," ",AO33*100000000/'Calc-Units'!$D$21) ->  | AV33: =IF(ISERROR(AP33*100000000/'Calc-Units'!$C$21)," ",AP33*100000000/'Calc-Units'!$C$21) ->  | AW33: =IF(ISERROR(AQ33*100000000/'Calc-Units'!$C$21)," ",AQ33*100000000/'Calc-Units'!$C$21) -> 
C34: Statutory Depreciation | D34: ='RRP 1.3'!AF$12 -> 39.13046545 | E34: 0 | F34: 0 | G34: 0 | H34: 0 | I34: 39.13046545 | K34: Do not allocate | L34: =IF(ISERROR(VLOOKUP($K34,'Calc-Drivers'!$B$17:$F$27,L$42,FALSE))," ",VLOOKUP($K34,'Calc-Drivers'!$B$17:$F$27,L$42,FALSE)) ->  | M34: =IF(ISERROR(VLOOKUP($K34,'Calc-Drivers'!$B$17:$F$27,M$42,FALSE))," ",VLOOKUP($K34,'Calc-Drivers'!$B$17:$F$27,M$42,FALSE)) ->  | N34: =IF(ISERROR(VLOOKUP($K34,'Calc-Drivers'!$B$17:$F$27,N$42,FALSE))," ",VLOOKUP($K34,'Calc-Drivers'!$B$17:$F$27,N$42,FALSE)) ->  | O34: =IF(ISERROR(VLOOKUP($K34,'Calc-Drivers'!$B$17:$F$27,O$42,FALSE))," ",VLOOKUP($K34,'Calc-Drivers'!$B$17:$F$27,O$42,FALSE)) ->  | AD34: =IF(ISERROR(X34*100000000/'Calc-Units'!$E$21)," ",X34*100000000/'Calc-Units'!$E$21) ->  | AE34: =IF(ISERROR(Y34*100000000/'Calc-Units'!$D$21)," ",Y34*100000000/'Calc-Units'!$D$21) ->  | AF34: =IF(ISERROR(Z34*100000000/'Calc-Units'!$C$21)," ",Z34*100000000/'Calc-Units'!$C$21) ->  | AG34: =IF(ISERROR(AA34*100000000/'Calc-Units'!$C$21)," ",AA34*100000000/'Calc-Units'!$C$21) ->  | AI34: 0 | AJ34: 0 | AK34: 39.13046545 | AT34: =IF(ISERROR(AN34*100000000/'Calc-Units'!$E$21)," ",AN34*100000000/'Calc-Units'!$E$21) ->  | AU34: =IF(ISERROR(AO34*100000000/'Calc-Units'!$D$21)," ",AO34*100000000/'Calc-Units'!$D$21) ->  | AV34: =IF(ISERROR(AP34*100000000/'Calc-Units'!$C$21)," ",AP34*100000000/'Calc-Units'!$C$21) ->  | AW34: =IF(ISERROR(AQ34*100000000/'Calc-Units'!$C$21)," ",AQ34*100000000/'Calc-Units'!$C$21) -> 
C35: Network Rates | D35: ='RRP 1.3'!AG$12 -> 20.1842268 | E35: 0 | F35: 0 | G35: 0 | H35: 0 | I35: 20.1842268 | K35: Do not allocate | L35: =IF(ISERROR(VLOOKUP($K35,'Calc-Drivers'!$B$17:$F$27,L$42,FALSE))," ",VLOOKUP($K35,'Calc-Drivers'!$B$17:$F$27,L$42,FALSE)) ->  | M35: =IF(ISERROR(VLOOKUP($K35,'Calc-Drivers'!$B$17:$F$27,M$42,FALSE))," ",VLOOKUP($K35,'Calc-Drivers'!$B$17:$F$27,M$42,FALSE)) ->  | N35: =IF(ISERROR(VLOOKUP($K35,'Calc-Drivers'!$B$17:$F$27,N$42,FALSE))," ",VLOOKUP($K35,'Calc-Drivers'!$B$17:$F$27,N$42,FALSE)) ->  | O35: =IF(ISERROR(VLOOKUP($K35,'Calc-Drivers'!$B$17:$F$27,O$42,FALSE))," ",VLOOKUP($K35,'Calc-Drivers'!$B$17:$F$27,O$42,FALSE)) ->  | AD35: =IF(ISERROR(X35*100000000/'Calc-Units'!$E$21)," ",X35*100000000/'Calc-Units'!$E$21) ->  | AE35: =IF(ISERROR(Y35*100000000/'Calc-Units'!$D$21)," ",Y35*100000000/'Calc-Units'!$D$21) ->  | AF35: =IF(ISERROR(Z35*100000000/'Calc-Units'!$C$21)," ",Z35*100000000/'Calc-Units'!$C$21) ->  | AG35: =IF(ISERROR(AA35*100000000/'Calc-Units'!$C$21)," ",AA35*100000000/'Calc-Units'!$C$21) ->  | AI35: 0 | AJ35: 0 | AK35: 20.1842268 | AT35: =IF(ISERROR(AN35*100000000/'Calc-Units'!$E$21)," ",AN35*100000000/'Calc-Units'!$E$21) ->  | AU35: =IF(ISERROR(AO35*100000000/'Calc-Units'!$D$21)," ",AO35*100000000/'Calc-Units'!$D$21) ->  | AV35: =IF(ISERROR(AP35*100000000/'Calc-Units'!$C$21)," ",AP35*100000000/'Calc-Units'!$C$21) ->  | AW35: =IF(ISERROR(AQ35*100000000/'Calc-Units'!$C$21)," ",AQ35*100000000/'Calc-Units'!$C$21) -> 
C36: Transmission Exit Charges | D36: ='RRP 1.3'!AH$12 -> 8 | E36: 0 | F36: 0 | G36: 0 | H36: 0 | I36: 8 | K36: Do not allocate | L36: =IF(ISERROR(VLOOKUP($K36,'Calc-Drivers'!$B$17:$F$27,L$42,FALSE))," ",VLOOKUP($K36,'Calc-Drivers'!$B$17:$F$27,L$42,FALSE)) ->  | M36: =IF(ISERROR(VLOOKUP($K36,'Calc-Drivers'!$B$17:$F$27,M$42,FALSE))," ",VLOOKUP($K36,'Calc-Drivers'!$B$17:$F$27,M$42,FALSE)) ->  | N36: =IF(ISERROR(VLOOKUP($K36,'Calc-Drivers'!$B$17:$F$27,N$42,FALSE))," ",VLOOKUP($K36,'Calc-Drivers'!$B$17:$F$27,N$42,FALSE)) ->  | O36: =IF(ISERROR(VLOOKUP($K36,'Calc-Drivers'!$B$17:$F$27,O$42,FALSE))," ",VLOOKUP($K36,'Calc-Drivers'!$B$17:$F$27,O$42,FALSE)) ->  | AD36: =IF(ISERROR(X36*100000000/'Calc-Units'!$E$21)," ",X36*100000000/'Calc-Units'!$E$21) ->  | AE36: =IF(ISERROR(Y36*100000000/'Calc-Units'!$D$21)," ",Y36*100000000/'Calc-Units'!$D$21) ->  | AF36: =IF(ISERROR(Z36*100000000/'Calc-Units'!$C$21)," ",Z36*100000000/'Calc-Units'!$C$21) ->  | AG36: =IF(ISERROR(AA36*100000000/'Calc-Units'!$C$21)," ",AA36*100000000/'Calc-Units'!$C$21) ->  | AI36: 0 | AJ36: 0 | AK36: 8 | AT36: =IF(ISERROR(AN36*100000000/'Calc-Units'!$E$21)," ",AN36*100000000/'Calc-Units'!$E$21) ->  | AU36: =IF(ISERROR(AO36*100000000/'Calc-Units'!$D$21)," ",AO36*100000000/'Calc-Units'!$D$21) ->  | AV36: =IF(ISERROR(AP36*100000000/'Calc-Units'!$C$21)," ",AP36*100000000/'Calc-Units'!$C$21) ->  | AW36: =IF(ISERROR(AQ36*100000000/'Calc-Units'!$C$21)," ",AQ36*100000000/'Calc-Units'!$C$21) -> 
C37: Pension deficit repair payments by related parties (note 2) | D37: ='RRP 1.3'!AI$12 -> -7.62 | E37: 0 | F37: 0 | G37: 0 | H37: 0 | I37: -7.62 | K37: Do not allocate | L37: =IF(ISERROR(VLOOKUP($K37,'Calc-Drivers'!$B$17:$F$27,L$42,FALSE))," ",VLOOKUP($K37,'Calc-Drivers'!$B$17:$F$27,L$42,FALSE)) ->  | M37: =IF(ISERROR(VLOOKUP($K37,'Calc-Drivers'!$B$17:$F$27,M$42,FALSE))," ",VLOOKUP($K37,'Calc-Drivers'!$B$17:$F$27,M$42,FALSE)) ->  | N37: =IF(ISERROR(VLOOKUP($K37,'Calc-Drivers'!$B$17:$F$27,N$42,FALSE))," ",VLOOKUP($K37,'Calc-Drivers'!$B$17:$F$27,N$42,FALSE)) ->  | O37: =IF(ISERROR(VLOOKUP($K37,'Calc-Drivers'!$B$17:$F$27,O$42,FALSE))," ",VLOOKUP($K37,'Calc-Drivers'!$B$17:$F$27,O$42,FALSE)) ->  | AD37: =IF(ISERROR(X37*100000000/'Calc-Units'!$E$21)," ",X37*100000000/'Calc-Units'!$E$21) ->  | AE37: =IF(ISERROR(Y37*100000000/'Calc-Units'!$D$21)," ",Y37*100000000/'Calc-Units'!$D$21) ->  | AF37: =IF(ISERROR(Z37*100000000/'Calc-Units'!$C$21)," ",Z37*100000000/'Calc-Units'!$C$21) ->  | AG37: =IF(ISERROR(AA37*100000000/'Calc-Units'!$C$21)," ",AA37*100000000/'Calc-Units'!$C$21) ->  | AI37: 0 | AJ37: 0 | AK37: -7.62 | AT37: =IF(ISERROR(AN37*100000000/'Calc-Units'!$E$21)," ",AN37*100000000/'Calc-Units'!$E$21) ->  | AU37: =IF(ISERROR(AO37*100000000/'Calc-Units'!$D$21)," ",AO37*100000000/'Calc-Units'!$D$21) ->  | AV37: =IF(ISERROR(AP37*100000000/'Calc-Units'!$C$21)," ",AP37*100000000/'Calc-Units'!$C$21) ->  | AW37: =IF(ISERROR(AQ37*100000000/'Calc-Units'!$C$21)," ",AQ37*100000000/'Calc-Units'!$C$21) -> 
C38: Non activity costs and reconciling amounts (note 3) | D38: ='RRP 1.3'!AJ$12 -> 2.470943707 | E38: 0 | F38: 0 | G38: 0 | H38: 0 | I38: 2.470943707 | K38: Do not allocate | L38: =IF(ISERROR(VLOOKUP($K38,'Calc-Drivers'!$B$17:$F$27,L$42,FALSE))," ",VLOOKUP($K38,'Calc-Drivers'!$B$17:$F$27,L$42,FALSE)) ->  | M38: =IF(ISERROR(VLOOKUP($K38,'Calc-Drivers'!$B$17:$F$27,M$42,FALSE))," ",VLOOKUP($K38,'Calc-Drivers'!$B$17:$F$27,M$42,FALSE)) ->  | N38: =IF(ISERROR(VLOOKUP($K38,'Calc-Drivers'!$B$17:$F$27,N$42,FALSE))," ",VLOOKUP($K38,'Calc-Drivers'!$B$17:$F$27,N$42,FALSE)) ->  | O38: =IF(ISERROR(VLOOKUP($K38,'Calc-Drivers'!$B$17:$F$27,O$42,FALSE))," ",VLOOKUP($K38,'Calc-Drivers'!$B$17:$F$27,O$42,FALSE)) ->  | AD38: =IF(ISERROR(X38*100000000/'Calc-Units'!$E$21)," ",X38*100000000/'Calc-Units'!$E$21) ->  | AE38: =IF(ISERROR(Y38*100000000/'Calc-Units'!$D$21)," ",Y38*100000000/'Calc-Units'!$D$21) ->  | AF38: =IF(ISERROR(Z38*100000000/'Calc-Units'!$C$21)," ",Z38*100000000/'Calc-Units'!$C$21) ->  | AG38: =IF(ISERROR(AA38*100000000/'Calc-Units'!$C$21)," ",AA38*100000000/'Calc-Units'!$C$21) ->  | AI38: 0 | AJ38: 0 | AK38: 2.470943707 | AT38: =IF(ISERROR(AN38*100000000/'Calc-Units'!$E$21)," ",AN38*100000000/'Calc-Units'!$E$21) ->  | AU38: =IF(ISERROR(AO38*100000000/'Calc-Units'!$D$21)," ",AO38*100000000/'Calc-Units'!$D$21) ->  | AV38: =IF(ISERROR(AP38*100000000/'Calc-Units'!$C$21)," ",AP38*100000000/'Calc-Units'!$C$21) ->  | AW38: =IF(ISERROR(AQ38*100000000/'Calc-Units'!$C$21)," ",AQ38*100000000/'Calc-Units'!$C$21) -> 
C39: Total Annual Operating & Capital Expenditure per Regulatory Accounts | D39: =SUM(D6:D38) -> 299 | E39: =SUM(E6:E38) -> 50.10800885 | F39: =SUM(F6:F38) -> 48.76544653 | G39: =SUM(G6:G38) -> 12.79477339 | H39: =SUM(H6:H38) -> 19.40174981 | I39: 167.9300214 | Q39: Total | R39: =SUM(R6:R38) -> 26.43356158 | S39: =SUM(S6:S38) -> 9.222152423 | T39: =SUM(T6:T38) -> 2.478801624 | U39: =SUM(U6:U38) -> 32.00260847 | W39: Total all network tiers | X39: =SUM(X40:AA40) -> 201.2071027 | AC39: Total all network tiers | AD39: =SUM(AD40:AG40) -> 0.9038330863 | AI39: Total | AJ39: =SUM(AJ6:AJ38) -> 153.2103805 | AK39: =SUM(AK6:AK38) -> 145.7896195 | AM39: Total all network tiers | AN39: =SUM(AN40:AQ40) -> 61.30305796 | AS39: Total all network tiers | AT39: =SUM(AT40:AW40) -> 0.3028359083
W40: Total by network tiers | X40: =SUM(X6:X38) -> 76.54157043 | Y40: =SUM(Y6:Y38) -> 57.98759896 | Z40: =SUM(Z6:Z38) -> 15.27357501 | AA40: =SUM(AA6:AA38) -> 51.40435828 | AC40: Total by network tiers | AD40: =SUM(AD6:AD38) -> 0.2893448941 | AE40: =SUM(AE6:AE38) -> 0.2241935697 | AF40: =SUM(AF6:AF38) -> 0.08940280385 | AG40: =SUM(AG6:AG38) -> 0.3008918186 | AM40: Total by network tiers | AN40: =SUM(AN6:AN38) -> 15.34074271 | AO40: =SUM(AO6:AO38) -> 12.17436275 | AP40: =SUM(AP6:AP38) -> 5.49878073 | AQ40: =SUM(AQ6:AQ38) -> 28.28917177 | AS40: Total by network tiers | AT40: =SUM(AT6:AT38) -> 0.05799156654 | AU40: =SUM(AU6:AU38) -> 0.04706892324 | AV40: =SUM(AV6:AV38) -> 0.03218672869 | AW40: =SUM(AW6:AW38) -> 0.1655886898
W41: % | X41: =X40/$X$39 -> 0.3804118712 | Y41: =Y40/$X$39 -> 0.2881985685 | Z41: =Z40/$X$39 -> 0.07590972091 | AA41: =AA40/$X$39 -> 0.2554798394 | AC41: % | AD41: =AD40/$AD$39 -> 0.3201308942 | AE41: =AE40/$AD$39 -> 0.2480475357 | AF41: =AF40/$AD$39 -> 0.09891517052 | AG41: =AG40/$AD$39 -> 0.3329063996 | AM41: % | AN41: =AN40/$AN$39 -> 0.2502443307 | AO41: =AO40/$AN$39 -> 0.1985930744 | AP41: =AP40/$AN$39 -> 0.08969831054 | AQ41: =AQ40/$AN$39 -> 0.4614642844 | AS41: % | AT41: =AT40/$AT$39 -> 0.1914950141 | AU41: =AU40/$AT$39 -> 0.1554271536 | AV41: =AV40/$AT$39 -> 0.1062843864 | AW41: =AW40/$AT$39 -> 0.5467934459
K42: Vlookup Values: | L42: 5 | M42: 4 | N42: 3 | O42: 2 | AM42: THESE % ARE USED TO ALLOCATE PRICE CONTROL OPEX
W44: Step 4.a. calculate proportion of cost classified as direct costs
W46: Total direct+other | X46: =SUMIF(X6:X11,">0",X6:X11)+SUMIF(X27:X38,">0",X27:X38) -> 54.63003822 | Y46: =SUMIF(Y6:Y11,">0",Y6:Y11)+SUMIF(Y27:Y38,">0",Y27:Y38) -> 50.0038939 | Z46: =SUMIF(Z6:Z11,">0",Z6:Z11)+SUMIF(Z27:Z38,">0",Z27:Z38) -> 13.2695824 | AA46: =SUMIF(AA6:AA11,">0",AA6:AA11)+SUMIF(AA27:AA38,">0",AA27:AA38) -> 37.61610944 | AB46: Max of zero or total from each catergory
W47: Total indirect | X47: =SUMIF(X12:X27,">0",X12:X27) -> 22.88378565 | Y47: =SUMIF(Y12:Y27,">0",Y12:Y27) -> 7.983705057 | Z47: =SUMIF(Z12:Z27,">0",Z12:Z27) -> 2.145922139 | AA47: =SUMIF(AA12:AA27,">0",AA12:AA27) -> 27.7049625 | AB47: Max of zero or total from each catergory
W48: % direct+other | X48: =X46/(X47+X46) -> 0.7047780059 | Y48: =Y46/(Y47+Y46) -> 0.8623204754 | Z48: =Z46/(Z47+Z46) -> 0.8607945569 | AA48: =AA46/(AA47+AA46) -> 0.5758648522
W49: % indirect | X49: =X47/(X46+X47) -> 0.2952219941 | Y49: =Y47/(Y46+Y47) -> 0.1376795246 | Z49: =Z47/(Z46+Z47) -> 0.1392054431 | AA49: =AA47/(AA46+AA47) -> 0.4241351478

Sheet Calc-Units
A1: 103. Units distributed (GWh) from RRP table 5.1 | D1: Index
B2: Units distributed (GWh) from RRP table 5.1
A3: Units distributed at LV | B3: ='RRP 5.1'!G36 -> 17084
A4: Units distributed at HV | B4: ='RRP 5.1'!G35 -> 9051
A5: Units distributed at EHV+ | B5: ='RRP 5.1'!G34 -> 616
A6: Losses | B6: ='RRP 5.1'!G40 -> 1381
A8: 104. Estimated line loss adjustment factors relative to LV
B9: LV services | C9: LV | D9: HV | E9: EHV | F9: 132kV
A10: Units distributed at LV | B10: 1 | C10: 1 | D10: 1 | E10: 1 | F10: 1
A11: Units distributed at HV | B11: 0 | C11: 0 | D11: =(1+$B$6/($B$3+$B$4/2+$B$5/4)/2)/(1+$B$6/($B$3+$B$4/2+$B$5/4)) -> 0.9701656981 | E11: =(1+$B$6/($B$3+$B$4/2+$B$5/4)/2)/(1+$B$6/($B$3+$B$4/2+$B$5/4)) -> 0.9701656981 | F11: =(1+$B$6/($B$3+$B$4/2+$B$5/4)/2)/(1+$B$6/($B$3+$B$4/2+$B$5/4)) -> 0.9701656981
A12: Units distributed at EHV+ | B12: 0 | C12: 0 | D12: 0 | E12: =(1+$B$6/($B$3+$B$4/2+$B$5/4)/4)/(1+$B$6/($B$3+$B$4/2+$B$5/4)) -> 0.9552485472 | F12: =(1+$B$6/($B$3+$B$4/2+$B$5/4)/4)/(1+$B$6/($B$3+$B$4/2+$B$5/4)) -> 0.9552485472
B19: LV services | C19: LV | D19: HV | E19: EHV | F19: 132kV
A20: Units (GWh) flowing through each level, loss-adjusted to LV | B20: =SUMPRODUCT(B$10:B$12,$B$3:$B$5) -> 17084 | C20: =SUMPRODUCT(C$10:C$12,$B$3:$B$5) -> 17084 | D20: =SUMPRODUCT(D$10:D$12,$B$3:$B$5) -> 25864.96973 | E20: =SUMPRODUCT(E$10:E$12,$B$3:$B$5) -> 26453.40284 | F20: =SUMPRODUCT(F$10:F$12,$B$3:$B$5) -> 26453.40284
A21: Units (kWh) flowing through each level, loss-adjusted to LV | B21: =B20*1000000 -> 17084000000 | C21: =C20*1000000 -> 17084000000 | D21: =D20*1000000 -> 2.586496973e+10 | E21: =E20*1000000 -> 2.645340284e+10 | F21: =F20*1000000 -> 2.645340284e+10

Sheet Calc-Drivers
A1: Drivers - LV, HV, EHV split | H1: Index
B3: Category | C3: LV | D3: HV | E3: EHV | G3: Source
B4: Net Capex | C4: ='Calc-Net capex'!$D$6 -> 0.1758419357 | D4: ='Calc-Net capex'!$D$7 -> 0.2592587185 | E4: ='Calc-Net capex'!$D$8+'Calc-Net capex'!$D$9 -> 0.5648993457 | G4: FBPQ capex - see "Calc Net capex"
B5: Customers | C5: 1 | D5: 0 | E5: 0 | G5: Assumption
B6: Network Length | C6: ='RRP 5.1'!$G$64/'RRP 5.1'!$G$65 -> 0.5077141566 | D6: ='RRP 5.1'!$G$63/'RRP 5.1'!$G$65 -> 0.4296527016 | E6: =('RRP 5.1'!$G$61+'RRP 5.1'!$G$62)/'RRP 5.1'!$G$65 -> 0.06263314182 | G6: RRP table 5.1
B7: Substations | C7: =0/'RRP 5.1'!$G$73 -> 0 | D7: =('RRP 5.1'!$G$71+'RRP 5.1'!$G$72)/'RRP 5.1'!$G$73 -> 0.9955699941 | E7: =('RRP 5.1'!$G$68+'RRP 5.1'!$G$69+'RRP 5.1'!$G$70)/'RRP 5.1'!$G$73 -> 0.004430005907 | G7: RRP table 5.1
B8: Transmission Exit Charges | C8: 0 | D8: 0 | E8: 1 | G8: Assumption
B9: MEAV | C9: ='Calc-MEAV'!D6 -> 0.4562862946 | D9: ='Calc-MEAV'!D7 -> 0.1668296811 | E9: ='Calc-MEAV'!D8+'Calc-MEAV'!D9 -> 0.3768840243 | G9: FBPQ capex - see "Calc MEAV"
B10: EHV only | C10: 0 | D10: 0 | E10: 1 | G10: Assumption
B11: LV only | C11: 1 | D11: 0 | E11: 0 | G11: Assumption
B12: HV only | C12: 0 | D12: 1 | E12: 0 | G12: Assumption
A14: Drivers - LV, LV/HV, HV, EHV split
B16: Category | C16: LV | D16: LV/HV | E16: HV | F16: EHV | G16: Source
B17: Net Capex | C17: ='Calc-Net capex'!H6 -> 0.1758419357 | D17: ='Calc-Net capex'!H7 -> 0.05317823045 | E17: ='Calc-Net capex'!H8 -> 0.2060804881 | F17: ='Calc-Net capex'!$D$8+'Calc-Net capex'!$D$9 -> 0.5648993457 | G17: FBPQ capex - see "Calc Net capex"
B18: No. of Customers | C18: 1 | D18: 0 | E18: 0 | F18: 0 | G18: Assumption
B19: Network Length | C19: ='RRP 5.1'!$G$64/'RRP 5.1'!$G$65 -> 0.5077141566 | D19: 0 | E19: ='RRP 5.1'!$G$63/'RRP 5.1'!$G$65 -> 0.4296527016 | F19: =('RRP 5.1'!$G$61+'RRP 5.1'!$G$62)/'RRP 5.1'!$G$65 -> 0.06263314182 | G19: RRP table 5.1
B20: No. of Substations | C20: =0/'RRP 5.1'!$G$73 -> 0 | D20: 0 | E20: =('RRP 5.1'!$G$71+'RRP 5.1'!$G$72)/'RRP 5.1'!$G$73 -> 0.9955699941 | F20: =('RRP 5.1'!$G$68+'RRP 5.1'!$G$69+'RRP 5.1'!$G$70)/'RRP 5.1'!$G$73 -> 0.004430005907 | G20: RRP table 5.1
B21: Transmission Exit Charges | C21: 0 | D21: 0 | E21: 0 | F21: 1 | G21: Assumption
B22: MEAV | C22: ='Calc-MEAV'!H6 -> 0.4562862946 | D22: ='Calc-MEAV'!H7 -> 0.03534221934 | E22: ='Calc-MEAV'!H8 -> 0.1314874618 | F22: ='Calc-MEAV'!H9+'Calc-MEAV'!H10 -> 0.3768840243 | G22: FBPQ capex - see "Calc MEAV"
B23: MEAV excl services | C23: ='Calc-MEAV'!L6 -> 0.2909550759 | D23: ='Calc-MEAV'!L7 -> 0.07336285789 | E23: ='Calc-MEAV'!L8 -> 0.1441960107 | F23: ='Calc-MEAV'!L9+'Calc-MEAV'!L10 -> 0.4914860555 | G23: FBPQ capex - see "Calc MEAV"
B24: MEAV excl services and 50% LV network | C24: ='Calc-MEAV'!Q3 -> 0 | D24: ='Calc-MEAV'!Q4 -> 0 | E24: ='Calc-MEAV'!Q5 -> % of Total | F24: ='Calc-MEAV'!Q6+'Calc-MEAV'!Q7 -> 0.2560967155 | G24: FBPQ capex - see "Calc MEAV"
B25: EHV only | C25: 0 | D25: 0 | E25: 0 | F25: 1 | G25: Assumption
B26: LV only | C26: 1 | D26: 0 | E26: 0 | F26: 0 | G26: Assumption
B27: HV only | C27: 0 | D27: 0 | E27: 1 | F27: 0 | G27: Assumption

Sheet Calc-MEAV
A1: MEAV by Voltage Level | F1: Index
B3: MEAV - LV, HV, EHV, 132kV split | F3: MEAV - LV, LV/HV, HV, EHV, 132kV split | J3: MEAV - LV (excl. services), LV/HV, HV, EHV, 132kV split | O3: MEAV - LV (excl. services + 50%LV), LV/HV, HV, EHV, 132kV split
B4: Sum of MEAV of asset classified in voltage tier (as calculated below) | F4: Sum of MEAV of asset classified in voltage tier | J4: Sum of MEAV of asset classified in voltage tier (as calculated below) | O4: Sum of MEAV of asset classified in voltage tier (as calculated below)
C5: £m | D5: % of Total | G5: £m | H5: % of Total | K5: £m | L5: % of Total | P5: £m | Q5: % of Total
B6: LV | C6: =SUM(I20:I39) -> 7640546.662 | D6: =C6/$C$10 -> 0.4562862946 | F6: LV | G6: =SUM(I20:I39) -> 7640546.662 | H6: =G6/$G$11 -> 0.4562862946 | J6: LV | K6: =SUM(I20:I39)-I21-I30 -> 3736022.425 | L6: =K6/$K$11 -> 0.2909550759 | O6: LV | P6: =(SUM(I20:I39)-I21-I30)*0.5 -> 1868011.213 | Q6: =P6/P$11 -> 0.1702442527
B7: HV | C7: =SUM(I42:I79)+SUM(I158:I163)+SUM(I153:I154) -> 2793574.951 | D7: =C7/$C$10 -> 0.1668296811 | F7: LV/HV | G7: =SUM(I62:I63)+SUM(I69:I70)+SUM(I75:I78) -> 591807.9924 | H7: =G7/$G$11 -> 0.03534221934 | J7: LV/HV | K7: =SUM(I59:I72)+SUM(I75:I78) -> 942019.2495 | L7: =K7/$K$11 -> 0.07336285789 | O7: LV/HV | P7: =SUM(I59:I72)+SUM(I75:I78) -> 942019.2495 | Q7: =P7/P$11 -> 0.0858524628
B8: EHV | C8: =SUM(I81:I120)+SUM(I149:I150) -> 1473541.336 | D8: =C8/$C$10 -> 0.08799850924 | F8: HV | G8: =SUM(I42:I56)+SUM(I59:I61)+SUM(I64:I68)+SUM(I71:I72)+SUM(I158:I163)+SUM(I153:I154) -> 2201766.958 | H8: =G8/$G$11 -> 0.1314874618 | J8: HV | K8: =SUM(I42:I56)+SUM(I158:I163)+SUM(I153:I154) -> 1851555.701 | L8: =K8/$K$11 -> 0.1441960107 | O8: HV | P8: =SUM(I42:I56)+SUM(I158:I163)+SUM(I153:I154) -> 1851555.701 | Q8: =P8/P$11 -> 0.1687445528
B9: 132 kV | C9: =SUM(I121:I146) -> 4837408.626 | D9: =C9/$C$10 -> 0.288885515 | E9: Check | F9: EHV | G9: =SUM(I81:I120)+SUM(I149:I150) -> 1473541.336 | H9: =G9/$G$11 -> 0.08799850924 | J9: EHV | K9: =SUM(I81:I120)+SUM(I149:I150) -> 1473541.336 | L9: =K9/$K$11 -> 0.1147568945 | O9: EHV | P9: =SUM(I81:I120)+SUM(I149:I150) -> 1473541.336 | Q9: =P9/P$11 -> 0.1342935962
B10: Total | C10: =SUM(C6:C9) -> 16745071.57 | D10: =SUM(D6:D9) -> 1 | E10: =IF(C10=$I$164,"OK", "error") -> OK | F10: 132 kV | G10: =SUM(I121:I146) -> 4837408.626 | H10: =G10/$G$11 -> 0.288885515 | I10: Check | J10: 132 kV | K10: =SUM(I121:I146) -> 4837408.626 | L10: =K10/$K$11 -> 0.3767291611 | M10: Check | O10: 132 kV | P10: =SUM(I121:I146) -> 4837408.626 | Q10: =P10/P$11 -> 0.4408651355 | R10: Check
F11: Total | G11: =SUM(G6:G10) -> 16745071.57 | H11: =SUM(H6:H10) -> 1 | I11: =IF(G11=$I$164,"OK", "error") -> OK | J11: Total | K11: =SUM(K6:K10) -> 12840547.34 | L11: =SUM(L6:L10) -> 1 | M11: =IF(K11=($I$164-I21-I30),"OK", "error") -> OK | O11: Total | P11: =SUM(P6:P10) -> 10972536.12 | Q11: =SUM(Q6:Q10) -> 1 | R11: =IF(P11=($I$164-I21-I30-(SUM(I20:I39)-I21-I30)*0.5),"OK", "error") -> OK
A14: MEAV Calculation = Replacement unit cost*FBPQ closing asset balance
C16: Asset categories | D16: Units | E16: DNO reported Unit Cost (£) | G16: Unit cost used in MEAV calculation (£) | H16: Closing DCPR asset Balance (units) | I16: MEAV (£)
E17: Sum of direct and indriect replacement unit cost from FBPQ C2 | F17: PB power numbers, if available | G17: Is DNO Unit cost if avaliable, otherwise PB power unit cost | H17: Closing asset balannce from FBPQ V4 | I17: Unit cost used in MEAV calculation*Closing DCPR asset Balance (units) | J17: Classification
A18: LV Network | L18: LV | M18: =SUMIF(J:J,L18,I:I) -> 7640546.662 | N18: =M18/M$25 -> 0.4562862946
B19: Overhead lines | J19: LV | L19: HV/LV | M19: =SUMIF(J:J,L19,I:I) -> 782060.8574 | N19: =M19/M$25 -> 0.04670394235
C20: LV Main (OHL) | D20: km | E20: =IF(ISNUMBER('FBPQ C2'!J12),'FBPQ C2'!J12,IF(ISNUMBER('FBPQ C2'!I12),'FBPQ C2'!I12,"")) -> 41.70024658 | F20: DATA | G20: =IF(ISNUMBER(E20),E20,IF(H20>0,F20," ")) -> 41.70024658 | H20: =IF(ISBLANK('FBPQ T4'!E12)," ",'FBPQ T4'!AE12) -> 5998 | I20: =IF(ISERROR(G20*H20)," ",G20*H20) -> 250118.079 | J20: LV | L20: HV | M20: 1681558.985 | N20: 0.1004211286
C21: LV Service (OHL) | D21: Each | E21: =IF(ISNUMBER('FBPQ C2'!J13),'FBPQ C2'!J13,IF(ISNUMBER('FBPQ C2'!I13),'FBPQ C2'!I13,"")) -> 0.5085395924 | F21: DATA | G21: 0.5085395924 | H21: =IF(ISBLANK('FBPQ T4'!E13)," ",'FBPQ T4'!AE13) -> 236300 | I21: =IF(ISERROR(G21*H21)," ",G21*H21) -> 120167.9057 | J21: LV | L21: EHV/HV | M21: 1318694.335 | N21: 0.07875119132
E22: =IF(ISNUMBER('FBPQ C2'!J14),'FBPQ C2'!J14,IF(ISNUMBER('FBPQ C2'!I14),'FBPQ C2'!I14,"")) ->  | G22: 0 | H22: =IF(ISBLANK('FBPQ T4'!E14)," ",'FBPQ T4'!AE14) ->  | J22: LV | L22: EHV | M22: 358370.5206 | N22: 0.02140155203
B23: Overhead lines - Support | E23: =IF(ISNUMBER('FBPQ C2'!J15),'FBPQ C2'!J15,IF(ISNUMBER('FBPQ C2'!I15),'FBPQ C2'!I15,"")) ->  | G23: 0 | H23: =IF(ISBLANK('FBPQ T4'!E15)," ",'FBPQ T4'!AE15) ->  | J23: LV | L23: 132kV/EHV | M23: 687177.2191 | N23: 0.04103758029
C24: LV Support | D24: Each | E24: =IF(ISNUMBER('FBPQ C2'!J16),'FBPQ C2'!J16,IF(ISNUMBER('FBPQ C2'!I16),'FBPQ C2'!I16,"")) -> 0 | F24: DATA | G24: 0 | H24: =IF(ISBLANK('FBPQ T4'!E16)," ",'FBPQ T4'!AE16) -> 194497 | I24: 0 | J24: LV | L24: 132kV | M24: 4276662.995 | N24: 0.2553983108
E25: =IF(ISNUMBER('FBPQ C2'!J17),'FBPQ C2'!J17,IF(ISNUMBER('FBPQ C2'!I17),'FBPQ C2'!I17,"")) ->  | G25: 0 | H25: =IF(ISBLANK('FBPQ T4'!E17)," ",'FBPQ T4'!AE17) ->  | J25: LV | L25: All | M25: =SUM(M18:M24) -> 16745071.57 | N25: 1
B26: Underground cables | E26: =IF(ISNUMBER('FBPQ C2'!J18),'FBPQ C2'!J18,IF(ISNUMBER('FBPQ C2'!I18),'FBPQ C2'!I18,"")) ->  | G26: 0 | H26: =IF(ISBLANK('FBPQ T4'!E18)," ",'FBPQ T4'!AE18) ->  | J26: LV
C27: LV Main (UG Consac) | D27: km | E27: =IF(ISNUMBER('FBPQ C2'!J19),'FBPQ C2'!J19,IF(ISNUMBER('FBPQ C2'!I19),'FBPQ C2'!I19,"")) -> 127.1348981 | F27: DATA | G27: 127.1348981 | H27: =IF(ISBLANK('FBPQ T4'!E19)," ",'FBPQ T4'!AE19) -> 3903 | I27: 496207.5073 | J27: LV
C28: LV Main (UG Plastic) | D28: km | E28: =IF(ISNUMBER('FBPQ C2'!J20),'FBPQ C2'!J20,IF(ISNUMBER('FBPQ C2'!I20),'FBPQ C2'!I20,"")) -> 127.1348981 | F28: DATA | G28: 127.1348981 | H28: =IF(ISBLANK('FBPQ T4'!E20)," ",'FBPQ T4'!AE20) -> 5782.7 | I28: 735182.9753 | J28: LV | L28: EHV/HV | M28: =M21 -> 1318694.335 | N28: =M28/M$32 -> 0.198571478
C29: LV Main (UG Paper) | D29: km | E29: =IF(ISNUMBER('FBPQ C2'!J21),'FBPQ C2'!J21,IF(ISNUMBER('FBPQ C2'!I21),'FBPQ C2'!I21,"")) -> 127.1348981 | F29: DATA | G29: 127.1348981 | H29: =IF(ISBLANK('FBPQ T4'!E21)," ",'FBPQ T4'!AE21) -> 16215.5 | I29: 2061555.94 | J29: LV | L29: EHV | M29: =M22 -> 358370.5206 | N29: =M29/M$32 -> 0.05396410833
C30: LV Service (UG) | D30: Each | E30: =IF(ISNUMBER('FBPQ C2'!J22),'FBPQ C2'!J22,IF(ISNUMBER('FBPQ C2'!I22),'FBPQ C2'!I22,"")) -> 1.700073284 | F30: DATA | G30: 1.700073284 | H30: =IF(ISBLANK('FBPQ T4'!E22)," ",'FBPQ T4'!AE22) -> 2225996 | I30: 3784356.331 | J30: LV | L30: 132kV/EHV | M30: =M23 -> 687177.2191 | N30: =M30/M$32 -> 0.1034764406
E31: =IF(ISNUMBER('FBPQ C2'!J23),'FBPQ C2'!J23,IF(ISNUMBER('FBPQ C2'!I23),'FBPQ C2'!I23,"")) ->  | G31: 0 | H31: =IF(ISBLANK('FBPQ T4'!E23)," ",'FBPQ T4'!AE23) ->  | J31: LV | L31: 132kV | M31: =M24 -> 4276662.995 | N31: =M31/M$32 -> 0.643987973
B32: Switchgear | E32: =IF(ISNUMBER('FBPQ C2'!J24),'FBPQ C2'!J24,IF(ISNUMBER('FBPQ C2'!I24),'FBPQ C2'!I24,"")) ->  | G32: 0 | H32: =IF(ISBLANK('FBPQ T4'!E24)," ",'FBPQ T4'!AE24) ->  | J32: LV | L32: All EHV | M32: =SUM(M28:M31) -> 6640905.07 | N32: =M32/M$32 -> 1
C33: LV Pillar (ID) | D33: Each | E33: =IF(ISNUMBER('FBPQ C2'!J25),'FBPQ C2'!J25,IF(ISNUMBER('FBPQ C2'!I25),'FBPQ C2'!I25,"")) -> 5.721070415 | F33: DATA | G33: 5.721070415 | H33: =IF(ISBLANK('FBPQ T4'!E25)," ",'FBPQ T4'!AE25) -> 5238 | I33: 29966.96683 | J33: LV
C34: LV Pillar (OD) | D34: Each | E34: =IF(ISNUMBER('FBPQ C2'!J26),'FBPQ C2'!J26,IF(ISNUMBER('FBPQ C2'!I26),'FBPQ C2'!I26,"")) -> 5.721070415 | F34: DATA | G34: 5.721070415 | H34: =IF(ISBLANK('FBPQ T4'!E26)," ",'FBPQ T4'!AE26) -> 10420 | I34: 59613.55372 | J34: LV
C35: LV Board (WM) | D35: Each | E35: =IF(ISNUMBER('FBPQ C2'!J27),'FBPQ C2'!J27,IF(ISNUMBER('FBPQ C2'!I27),'FBPQ C2'!I27,"")) -> 5.721070415 | F35: DATA | G35: 5.721070415 | H35: =IF(ISBLANK('FBPQ T4'!E27)," ",'FBPQ T4'!AE27) -> 0 | I35: 0 | J35: LV
C36: LV UGB | D36: Each | E36: =IF(ISNUMBER('FBPQ C2'!J28),'FBPQ C2'!J28,IF(ISNUMBER('FBPQ C2'!I28),'FBPQ C2'!I28,"")) -> 4.831126128 | F36: DATA | G36: 4.831126128 | H36: =IF(ISBLANK('FBPQ T4'!E28)," ",'FBPQ T4'!AE28) -> 21398.2 | I36: 103377.4031 | J36: LV
C37: LV Fuses (PM) | D37: Each | E37: =IF(ISNUMBER('FBPQ C2'!J29),'FBPQ C2'!J29,IF(ISNUMBER('FBPQ C2'!I29),'FBPQ C2'!I29,"")) ->  | F37: DATA | G37: DATA | H37: =IF(ISBLANK('FBPQ T4'!E29)," ",'FBPQ T4'!AE29) -> 34104 | J37: LV
C38: LV Fuses (TM) | D38: Each | E38: =IF(ISNUMBER('FBPQ C2'!J30),'FBPQ C2'!J30,IF(ISNUMBER('FBPQ C2'!I30),'FBPQ C2'!I30,"")) ->  | F38: DATA | H38: =IF(ISBLANK('FBPQ T4'!E30)," ",'FBPQ T4'!AE30) -> 0 | J38: LV
E39: =IF(ISNUMBER('FBPQ C2'!J31),'FBPQ C2'!J31,IF(ISNUMBER('FBPQ C2'!I31),'FBPQ C2'!I31,"")) ->  | G39: 0 | H39: =IF(ISBLANK('FBPQ T4'!E31)," ",'FBPQ T4'!AE31) ->  | J39: LV
A40: HV network | E40: =IF(ISNUMBER('FBPQ C2'!J32),'FBPQ C2'!J32,IF(ISNUMBER('FBPQ C2'!I32),'FBPQ C2'!I32,"")) ->  | G40: 0 | H40: =IF(ISBLANK('FBPQ T4'!E32)," ",'FBPQ T4'!AE32) -> 
B41: Overhead lines | E41: =IF(ISNUMBER('FBPQ C2'!J33),'FBPQ C2'!J33,IF(ISNUMBER('FBPQ C2'!I33),'FBPQ C2'!I33,"")) ->  | G41: 0 | H41: =IF(ISBLANK('FBPQ T4'!E33)," ",'FBPQ T4'!AE33) ->  | J41: HV
C42: 6.6/11 kV OHL (Open) | D42: km | E42: =IF(ISNUMBER('FBPQ C2'!J34),'FBPQ C2'!J34,IF(ISNUMBER('FBPQ C2'!I34),'FBPQ C2'!I34,"")) -> 43.09873046 | F42: DATA | G42: 43.09873046 | H42: =IF(ISBLANK('FBPQ T4'!E34)," ",'FBPQ T4'!AE34) -> 14429.7 | I42: 621901.7509 | J42: HV
C43: 6.6/11 kV OHL (Covered) | D43: km | E43: =IF(ISNUMBER('FBPQ C2'!J35),'FBPQ C2'!J35,IF(ISNUMBER('FBPQ C2'!I35),'FBPQ C2'!I35,"")) -> 43.09873046 | F43: DATA | G43: 43.09873046 | H43: =IF(ISBLANK('FBPQ T4'!E35)," ",'FBPQ T4'!AE35) -> 0 | I43: 0 | J43: HV
C44: 20 kV OHL (Open) | D44: km | E44: =IF(ISNUMBER('FBPQ C2'!J36),'FBPQ C2'!J36,IF(ISNUMBER('FBPQ C2'!I36),'FBPQ C2'!I36,"")) -> 0 | F44: DATA | G44: 0 | H44: =IF(ISBLANK('FBPQ T4'!E36)," ",'FBPQ T4'!AE36) -> 0 | I44: 0 | J44: HV
C45: 20 kV OHL (Covered) | D45: km | E45: =IF(ISNUMBER('FBPQ C2'!J37),'FBPQ C2'!J37,IF(ISNUMBER('FBPQ C2'!I37),'FBPQ C2'!I37,"")) -> 0 | F45: DATA | G45: 0 | H45: =IF(ISBLANK('FBPQ T4'!E37)," ",'FBPQ T4'!AE37) -> 0 | I45: 0 | J45: HV
E46: =IF(ISNUMBER('FBPQ C2'!J38),'FBPQ C2'!J38,IF(ISNUMBER('FBPQ C2'!I38),'FBPQ C2'!I38,"")) ->  | G46: 0 | H46: =IF(ISBLANK('FBPQ T4'!E38)," ",'FBPQ T4'!AE38) ->  | J46: HV
B47: Overhead lines - Support | E47: =IF(ISNUMBER('FBPQ C2'!J39),'FBPQ C2'!J39,IF(ISNUMBER('FBPQ C2'!I39),'FBPQ C2'!I39,"")) ->  | G47: 0 | H47: =IF(ISBLANK('FBPQ T4'!E39)," ",'FBPQ T4'!AE39) ->  | J47: HV
C48: 6.6/11 kV Support | D48: Each | E48: =IF(ISNUMBER('FBPQ C2'!J40),'FBPQ C2'!J40,IF(ISNUMBER('FBPQ C2'!I40),'FBPQ C2'!I40,"")) -> 0 | F48: DATA | G48: 0 | H48: =IF(ISBLANK('FBPQ T4'!E40)," ",'FBPQ T4'!AE40) -> 207731 | I48: 0 | J48: HV
C49: 20 kV Support | D49: Each | E49: =IF(ISNUMBER('FBPQ C2'!J41),'FBPQ C2'!J41,IF(ISNUMBER('FBPQ C2'!I41),'FBPQ C2'!I41,"")) -> 0 | F49: DATA | G49: 0 | H49: =IF(ISBLANK('FBPQ T4'!E41)," ",'FBPQ T4'!AE41) -> 0 | I49: 0 | J49: HV
E50: =IF(ISNUMBER('FBPQ C2'!J42),'FBPQ C2'!J42,IF(ISNUMBER('FBPQ C2'!I42),'FBPQ C2'!I42,"")) ->  | F50: DATA | G50: DATA | H50: =IF(ISBLANK('FBPQ T4'!E42)," ",'FBPQ T4'!AE42) ->  | J50: HV
B51: Underground cables (kms) | E51: =IF(ISNUMBER('FBPQ C2'!J43),'FBPQ C2'!J43,IF(ISNUMBER('FBPQ C2'!I43),'FBPQ C2'!I43,"")) ->  | G51: 0 | H51: =IF(ISBLANK('FBPQ T4'!E43)," ",'FBPQ T4'!AE43) ->  | J51: HV
C52: 6.6/11kV UG Cable | D52: km | E52: =IF(ISNUMBER('FBPQ C2'!J44),'FBPQ C2'!J44,IF(ISNUMBER('FBPQ C2'!I44),'FBPQ C2'!I44,"")) -> 84.54470724 | F52: DATA | G52: =IF(ISNUMBER(E52),E52,IF(H52>0,F52," ")) -> 84.54470724 | H52: =IF(ISBLANK('FBPQ T4'!E44)," ",'FBPQ T4'!AE44) -> 12294.1 | I52: 1039401.085 | J52: HV
C53: 20kV UG Cable | D53: km | E53: =IF(ISNUMBER('FBPQ C2'!J45),'FBPQ C2'!J45,IF(ISNUMBER('FBPQ C2'!I45),'FBPQ C2'!I45,"")) -> 0 | F53: DATA | G53: 0 | H53: =IF(ISBLANK('FBPQ T4'!E45)," ",'FBPQ T4'!AE45) -> 0 | I53: 0 | J53: HV
E54: =IF(ISNUMBER('FBPQ C2'!J46),'FBPQ C2'!J46,IF(ISNUMBER('FBPQ C2'!I46),'FBPQ C2'!I46,"")) ->  | G54: 0 | H54: =IF(ISBLANK('FBPQ T4'!E46)," ",'FBPQ T4'!AE46) ->  | J54: HV
B55: Submarine cables (kms) | E55: =IF(ISNUMBER('FBPQ C2'!J47),'FBPQ C2'!J47,IF(ISNUMBER('FBPQ C2'!I47),'FBPQ C2'!I47,"")) ->  | G55: 0 | H55: =IF(ISBLANK('FBPQ T4'!E47)," ",'FBPQ T4'!AE47) ->  | J55: HV
C56: HV Sub Cable | D56: km | E56: =IF(ISNUMBER('FBPQ C2'!J48),'FBPQ C2'!J48,IF(ISNUMBER('FBPQ C2'!I48),'FBPQ C2'!I48,"")) -> 0 | F56: DATA | G56: 0 | H56: =IF(ISBLANK('FBPQ T4'!E48)," ",'FBPQ T4'!AE48) -> 0 | I56: 0 | J56: HV
E57: =IF(ISNUMBER('FBPQ C2'!J49),'FBPQ C2'!J49,IF(ISNUMBER('FBPQ C2'!I49),'FBPQ C2'!I49,"")) ->  | F57: DATA | G57: DATA | H57: =IF(ISBLANK('FBPQ T4'!E49)," ",'FBPQ T4'!AE49) ->  | J57: HV
B58: Switchgear | E58: =IF(ISNUMBER('FBPQ C2'!J50),'FBPQ C2'!J50,IF(ISNUMBER('FBPQ C2'!I50),'FBPQ C2'!I50,"")) ->  | G58: 0 | H58: =IF(ISBLANK('FBPQ T4'!E50)," ",'FBPQ T4'!AE50) ->  | J58: HV
C59: 6.6/11 kV CB (PM) | D59: Each | E59: =IF(ISNUMBER('FBPQ C2'!J51),'FBPQ C2'!J51,IF(ISNUMBER('FBPQ C2'!I51),'FBPQ C2'!I51,"")) -> 13.98483879 | F59: DATA | G59: 13.98483879 | H59: =IF(ISBLANK('FBPQ T4'!E51)," ",'FBPQ T4'!AE51) -> 1779 | I59: 24879.02821 | J59: EHV/HV
C60: 6.6/11 kV CB (GM) | D60: Each | E60: =IF(ISNUMBER('FBPQ C2'!J52),'FBPQ C2'!J52,IF(ISNUMBER('FBPQ C2'!I52),'FBPQ C2'!I52,"")) -> 30.89378024 | F60: DATA | G60: 30.89378024 | H60: =IF(ISBLANK('FBPQ T4'!E52)," ",'FBPQ T4'!AE52) -> 9875 | I60: 305076.0799 | J60: EHV/HV
C61: 6.6/11 kV Switch (PM) | D61: Each | E61: =IF(ISNUMBER('FBPQ C2'!J53),'FBPQ C2'!J53,IF(ISNUMBER('FBPQ C2'!I53),'FBPQ C2'!I53,"")) -> 1.652753675 | F61: DATA | G61: 1.652753675 | H61: =IF(ISBLANK('FBPQ T4'!E53)," ",'FBPQ T4'!AE53) -> 935 | I61: 1545.324686 | J61: HV
C62: 6.6/11 kV Switch (GM) | D62: Each | E62: =IF(ISNUMBER('FBPQ C2'!J54),'FBPQ C2'!J54,IF(ISNUMBER('FBPQ C2'!I54),'FBPQ C2'!I54,"")) -> 5.212530822 | F62: DATA | G62: 5.212530822 | H62: =IF(ISBLANK('FBPQ T4'!E54)," ",'FBPQ T4'!AE54) -> 8754 | I62: 45630.49482 | J62: HV/LV
C63: 6.6/11 kV RMU | D63: Each | E63: =IF(ISNUMBER('FBPQ C2'!J55),'FBPQ C2'!J55,IF(ISNUMBER('FBPQ C2'!I55),'FBPQ C2'!I55,"")) -> 16.40040186 | F63: DATA | G63: 16.40040186 | H63: =IF(ISBLANK('FBPQ T4'!E55)," ",'FBPQ T4'!AE55) -> 13991 | I63: 229458.0224 | J63: HV/LV
C64: 6.6/11 kV Switchgear - Other (PM) | D64: Each | E64: =E61 -> 1.652753675 | F64: DATA | G64: 1.652753675 | H64: =IF(ISBLANK('FBPQ T4'!E56)," ",'FBPQ T4'!AE56) -> 11321 | I64: 18710.82436 | J64: HV
C65: 6.6/11 kV Switchgear - Other (GM) | D65: Each | E65: =IF(ISNUMBER('FBPQ C2'!J57),'FBPQ C2'!J57,IF(ISNUMBER('FBPQ C2'!I57),'FBPQ C2'!I57,"")) ->  | F65: DATA | H65: =IF(ISBLANK('FBPQ T4'!E57)," ",'FBPQ T4'!AE57) -> 0 | J65: HV
C66: 20 kV CB (PM) | D66: Each | E66: =IF(ISNUMBER('FBPQ C2'!J58),'FBPQ C2'!J58,IF(ISNUMBER('FBPQ C2'!I58),'FBPQ C2'!I58,"")) -> 0 | F66: DATA | G66: 0 | H66: =IF(ISBLANK('FBPQ T4'!E58)," ",'FBPQ T4'!AE58) -> 0 | I66: 0 | J66: EHV/HV
C67: 20 kV CB (GM) | D67: Each | E67: =IF(ISNUMBER('FBPQ C2'!J59),'FBPQ C2'!J59,IF(ISNUMBER('FBPQ C2'!I59),'FBPQ C2'!I59,"")) -> 0 | F67: DATA | G67: 0 | H67: =IF(ISBLANK('FBPQ T4'!E59)," ",'FBPQ T4'!AE59) -> 0 | I67: 0 | J67: EHV/HV
C68: 20 kV Switch (PM) | D68: Each | E68: =IF(ISNUMBER('FBPQ C2'!J60),'FBPQ C2'!J60,IF(ISNUMBER('FBPQ C2'!I60),'FBPQ C2'!I60,"")) -> 0 | F68: DATA | G68: 0 | H68: =IF(ISBLANK('FBPQ T4'!E60)," ",'FBPQ T4'!AE60) -> 0 | I68: 0 | J68: HV
C69: 20 kV Switch (GM) | D69: Each | E69: =IF(ISNUMBER('FBPQ C2'!J61),'FBPQ C2'!J61,IF(ISNUMBER('FBPQ C2'!I61),'FBPQ C2'!I61,"")) -> 0 | F69: DATA | G69: 0 | H69: =IF(ISBLANK('FBPQ T4'!E61)," ",'FBPQ T4'!AE61) -> 0 | I69: 0 | J69: HV/LV
C70: 20 kV RMU | D70: Each | E70: =IF(ISNUMBER('FBPQ C2'!J62),'FBPQ C2'!J62,IF(ISNUMBER('FBPQ C2'!I62),'FBPQ C2'!I62,"")) -> 0 | F70: DATA | G70: 0 | H70: =IF(ISBLANK('FBPQ T4'!E62)," ",'FBPQ T4'!AE62) -> 0 | I70: 0 | J70: HV/LV
C71: 20 kV Switchgear - Other (PM) | D71: Each | E71: =IF(ISNUMBER('FBPQ C2'!J63),'FBPQ C2'!J63,IF(ISNUMBER('FBPQ C2'!I63),'FBPQ C2'!I63,"")) ->  | F71: DATA | H71: =IF(ISBLANK('FBPQ T4'!E63)," ",'FBPQ T4'!AE63) -> 0 | J71: HV
C72: 20 kV Switchgear - Other (GM) | D72: Each | E72: =IF(ISNUMBER('FBPQ C2'!J64),'FBPQ C2'!J64,IF(ISNUMBER('FBPQ C2'!I64),'FBPQ C2'!I64,"")) ->  | F72: DATA | H72: =IF(ISBLANK('FBPQ T4'!E64)," ",'FBPQ T4'!AE64) -> 0 | J72: HV
E73: =IF(ISNUMBER('FBPQ C2'!J65),'FBPQ C2'!J65,IF(ISNUMBER('FBPQ C2'!I65),'FBPQ C2'!I65,"")) ->  | G73: 0 | H73: =IF(ISBLANK('FBPQ T4'!E65)," ",'FBPQ T4'!AE65) -> 
B74: Transformers | E74: =IF(ISNUMBER('FBPQ C2'!J66),'FBPQ C2'!J66,IF(ISNUMBER('FBPQ C2'!I66),'FBPQ C2'!I66,"")) ->  | G74: 0 | H74: =IF(ISBLANK('FBPQ T4'!E66)," ",'FBPQ T4'!AE66) -> 
C75: 6.6/11 kV Transformer (PM) | D75: Each | E75: =IF(ISNUMBER('FBPQ C2'!J67),'FBPQ C2'!J67,IF(ISNUMBER('FBPQ C2'!I67),'FBPQ C2'!I67,"")) -> 3.686912045 | F75: DATA | G75: 3.686912045 | H75: =IF(ISBLANK('FBPQ T4'!E67)," ",'FBPQ T4'!AE67) -> 34852 | I75: 128496.2586 | J75: HV/LV
C76: 6.6/11 kV Transformer (GM) | D76: Each | E76: =IF(ISNUMBER('FBPQ C2'!J68),'FBPQ C2'!J68,IF(ISNUMBER('FBPQ C2'!I68),'FBPQ C2'!I68,"")) -> 11.95068042 | F76: DATA | G76: 11.95068042 | H76: =IF(ISBLANK('FBPQ T4'!E68)," ",'FBPQ T4'!AE68) -> 15750 | I76: 188223.2166 | J76: HV/LV
C77: 20 kV Transformer (PM) | D77: Each | E77: =IF(ISNUMBER('FBPQ C2'!J69),'FBPQ C2'!J69,IF(ISNUMBER('FBPQ C2'!I69),'FBPQ C2'!I69,"")) -> 0 | F77: DATA | G77: 0 | H77: =IF(ISBLANK('FBPQ T4'!E69)," ",'FBPQ T4'!AE69) -> 0 | I77: 0 | J77: HV/LV
C78: 20 kV Transformer (GM) | D78: Each | E78: =IF(ISNUMBER('FBPQ C2'!J70),'FBPQ C2'!J70,IF(ISNUMBER('FBPQ C2'!I70),'FBPQ C2'!I70,"")) -> 0 | F78: DATA | G78: 0 | H78: =IF(ISBLANK('FBPQ T4'!E70)," ",'FBPQ T4'!AE70) -> 0 | I78: 0 | J78: HV/LV
E79: =IF(ISNUMBER('FBPQ C2'!J71),'FBPQ C2'!J71,IF(ISNUMBER('FBPQ C2'!I71),'FBPQ C2'!I71,"")) ->  | G79: 0 | H79: =IF(ISBLANK('FBPQ T4'!E71)," ",'FBPQ T4'!AE71) -> 
A80: EHV Network | E80: =IF(ISNUMBER('FBPQ C2'!J72),'FBPQ C2'!J72,IF(ISNUMBER('FBPQ C2'!I72),'FBPQ C2'!I72,"")) ->  | G80: 0 | H80: =IF(ISBLANK('FBPQ T4'!E72)," ",'FBPQ T4'!AE72) -> 
B81: Overhead lines | E81: =IF(ISNUMBER('FBPQ C2'!J73),'FBPQ C2'!J73,IF(ISNUMBER('FBPQ C2'!I73),'FBPQ C2'!I73,"")) ->  | G81: 0 | H81: =IF(ISBLANK('FBPQ T4'!E73)," ",'FBPQ T4'!AE73) -> 
C82: 33kV OHL (Pole Line) | D82: km | E82: =IF(ISNUMBER('FBPQ C2'!J74),'FBPQ C2'!J74,IF(ISNUMBER('FBPQ C2'!I74),'FBPQ C2'!I74,"")) -> 98.40241113 | F82: DATA | G82: 98.40241113 | H82: =IF(ISBLANK('FBPQ T4'!E74)," ",'FBPQ T4'!AE74) -> 1029 | I82: 101256.0811 | J82: EHV
C83: 33kV OHL (Tower Line) | D83: km | E83: =IF(ISNUMBER('FBPQ C2'!J75),'FBPQ C2'!J75,IF(ISNUMBER('FBPQ C2'!I75),'FBPQ C2'!I75,"")) -> 156.7573294 | F83: DATA | G83: 156.7573294 | H83: =IF(ISBLANK('FBPQ T4'!E75)," ",'FBPQ T4'!AE75) -> 0 | I83: 0 | J83: EHV
C84: 66kV OHL (Pole Line) | D84: km | E84: =IF(ISNUMBER('FBPQ C2'!J76),'FBPQ C2'!J76,IF(ISNUMBER('FBPQ C2'!I76),'FBPQ C2'!I76,"")) -> 185.6169512 | F84: DATA | G84: =IF(ISNUMBER(E84),E84,IF(H84>0,F84," ")) -> 185.6169512 | H84: =IF(ISBLANK('FBPQ T4'!E76)," ",'FBPQ T4'!AE76) -> 793 | I84: 147194.2423 | J84: EHV
C85: 66kV OHL (Tower Line) | D85: km | E85: =IF(ISNUMBER('FBPQ C2'!J77),'FBPQ C2'!J77,IF(ISNUMBER('FBPQ C2'!I77),'FBPQ C2'!I77,"")) -> 185.6169512 | F85: DATA | G85: 185.6169512 | H85: =IF(ISBLANK('FBPQ T4'!E77)," ",'FBPQ T4'!AE77) -> 0 | I85: =IF(ISERROR(G85*H85)," ",G85*H85) -> 0 | J85: EHV
E86: =IF(ISNUMBER('FBPQ C2'!J78),'FBPQ C2'!J78,IF(ISNUMBER('FBPQ C2'!I78),'FBPQ C2'!I78,"")) ->  | G86: 0 | H86: =IF(ISBLANK('FBPQ T4'!E78)," ",'FBPQ T4'!AE78) -> 
B87: Overhead lines - Support | E87: =IF(ISNUMBER('FBPQ C2'!J79),'FBPQ C2'!J79,IF(ISNUMBER('FBPQ C2'!I79),'FBPQ C2'!I79,"")) ->  | G87: 0 | H87: =IF(ISBLANK('FBPQ T4'!E79)," ",'FBPQ T4'!AE79) -> 
C88: 33kV Pole | D88: Each | E88: =IF(ISNUMBER('FBPQ C2'!J80),'FBPQ C2'!J80,IF(ISNUMBER('FBPQ C2'!I80),'FBPQ C2'!I80,"")) -> 0 | F88: DATA | G88: 0 | H88: =IF(ISBLANK('FBPQ T4'!E80)," ",'FBPQ T4'!AE80) -> 7311.4 | I88: 0 | J88: EHV
C89: 33kV Tower | D89: Each | E89: =IF(ISNUMBER('FBPQ C2'!J81),'FBPQ C2'!J81,IF(ISNUMBER('FBPQ C2'!I81),'FBPQ C2'!I81,"")) -> 0 | F89: DATA | G89: 0 | H89: =IF(ISBLANK('FBPQ T4'!E81)," ",'FBPQ T4'!AE81) -> 725 | I89: 0 | J89: EHV
C90: 66kV Pole | D90: Each | E90: =IF(ISNUMBER('FBPQ C2'!J82),'FBPQ C2'!J82,IF(ISNUMBER('FBPQ C2'!I82),'FBPQ C2'!I82,"")) -> 0 | F90: DATA | G90: 0 | H90: =IF(ISBLANK('FBPQ T4'!E82)," ",'FBPQ T4'!AE82) -> 8891 | I90: 0 | J90: EHV
C91: 66kV Tower | D91: Each | E91: =IF(ISNUMBER('FBPQ C2'!J83),'FBPQ C2'!J83,IF(ISNUMBER('FBPQ C2'!I83),'FBPQ C2'!I83,"")) -> 0 | F91: DATA | G91: 0 | H91: =IF(ISBLANK('FBPQ T4'!E83)," ",'FBPQ T4'!AE83) -> 669 | I91: 0 | J91: EHV
E92: =IF(ISNUMBER('FBPQ C2'!J84),'FBPQ C2'!J84,IF(ISNUMBER('FBPQ C2'!I84),'FBPQ C2'!I84,"")) ->  | G92: 0 | H92: =IF(ISBLANK('FBPQ T4'!E84)," ",'FBPQ T4'!AE84) -> 
B93: Underground cables (kms) | E93: =IF(ISNUMBER('FBPQ C2'!J85),'FBPQ C2'!J85,IF(ISNUMBER('FBPQ C2'!I85),'FBPQ C2'!I85,"")) ->  | G93: 0 | H93: =IF(ISBLANK('FBPQ T4'!E85)," ",'FBPQ T4'!AE85) -> 
C94: 33kV UG Cable (Non Pressurised) | D94: km | E94: =IF(ISNUMBER('FBPQ C2'!J86),'FBPQ C2'!J86,IF(ISNUMBER('FBPQ C2'!I86),'FBPQ C2'!I86,"")) -> 257.066764 | F94: DATA | G94: 257.066764 | H94: =IF(ISBLANK('FBPQ T4'!E86)," ",'FBPQ T4'!AE86) -> 221.5 | I94: 56940.28822 | J94: EHV
C95: 33kV UG Cable (Oil) | D95: km | E95: =IF(ISNUMBER('FBPQ C2'!J87),'FBPQ C2'!J87,IF(ISNUMBER('FBPQ C2'!I87),'FBPQ C2'!I87,"")) -> 257.066764 | F95: DATA | G95: 257.066764 | H95: =IF(ISBLANK('FBPQ T4'!E87)," ",'FBPQ T4'!AE87) -> 122 | I95: 31362.1452 | J95: EHV
C96: 33kV UG Cable (Gas) | D96: km | E96: =E95 -> 257.066764 | F96: DATA | G96: 257.066764 | H96: =IF(ISBLANK('FBPQ T4'!E88)," ",'FBPQ T4'!AE88) -> 9 | I96: 2313.600876 | J96: EHV
C97: 66kV UG Cable (Non Pressurised) | D97: km | E97: =IF(ISNUMBER('FBPQ C2'!J89),'FBPQ C2'!J89,IF(ISNUMBER('FBPQ C2'!I89),'FBPQ C2'!I89,"")) -> 1206.510183 | F97: DATA | G97: 1206.510183 | H97: =IF(ISBLANK('FBPQ T4'!E89)," ",'FBPQ T4'!AE89) -> 8 | I97: 9652.081464 | J97: EHV
C98: 66kV UG Cable (Oil) | D98: km | E98: =IF(ISNUMBER('FBPQ C2'!J90),'FBPQ C2'!J90,IF(ISNUMBER('FBPQ C2'!I90),'FBPQ C2'!I90,"")) -> 1206.510183 | F98: DATA | G98: 1206.510183 | H98: =IF(ISBLANK('FBPQ T4'!E90)," ",'FBPQ T4'!AE90) -> 8 | I98: 9652.081464 | J98: EHV
C99: 66kV UG Cable (Gas) | D99: km | E99: =IF(ISNUMBER('FBPQ C2'!J91),'FBPQ C2'!J91,IF(ISNUMBER('FBPQ C2'!I91),'FBPQ C2'!I91,"")) -> 0 | F99: DATA | G99: 0 | H99: =IF(ISBLANK('FBPQ T4'!E91)," ",'FBPQ T4'!AE91) -> 0 | I99: 0 | J99: EHV
E100: =IF(ISNUMBER('FBPQ C2'!J92),'FBPQ C2'!J92,IF(ISNUMBER('FBPQ C2'!I92),'FBPQ C2'!I92,"")) ->  | G100: 0 | H100: =IF(ISBLANK('FBPQ T4'!E92)," ",'FBPQ T4'!AE92) -> 
B101: Submarine cables (kms) | E101: =IF(ISNUMBER('FBPQ C2'!J93),'FBPQ C2'!J93,IF(ISNUMBER('FBPQ C2'!I93),'FBPQ C2'!I93,"")) ->  | G101: 0 | H101: =IF(ISBLANK('FBPQ T4'!E93)," ",'FBPQ T4'!AE93) -> 
C102: EHV Sub Cable | D102: km | E102: =IF(ISNUMBER('FBPQ C2'!J94),'FBPQ C2'!J94,IF(ISNUMBER('FBPQ C2'!I94),'FBPQ C2'!I94,"")) -> 0 | F102: DATA | G102: 0 | H102: =IF(ISBLANK('FBPQ T4'!E94)," ",'FBPQ T4'!AE94) -> 0 | I102: 0 | J102: EHV
E103: =IF(ISNUMBER('FBPQ C2'!J95),'FBPQ C2'!J95,IF(ISNUMBER('FBPQ C2'!I95),'FBPQ C2'!I95,"")) ->  | G103: 0 | H103: =IF(ISBLANK('FBPQ T4'!E95)," ",'FBPQ T4'!AE95) -> 
B104: Switchgear | E104: =IF(ISNUMBER('FBPQ C2'!J96),'FBPQ C2'!J96,IF(ISNUMBER('FBPQ C2'!I96),'FBPQ C2'!I96,"")) ->  | G104: 0 | H104: =IF(ISBLANK('FBPQ T4'!E96)," ",'FBPQ T4'!AE96) -> 
C105: 33 KV CB (ID) | D105: Each | E105: =IF(ISNUMBER('FBPQ C2'!J97),'FBPQ C2'!J97,IF(ISNUMBER('FBPQ C2'!I97),'FBPQ C2'!I97,"")) -> 184.9812767 | F105: DATA | G105: 184.9812767 | H105: =IF(ISBLANK('FBPQ T4'!E97)," ",'FBPQ T4'!AE97) -> 88 | I105: 16278.35235 | J105: 132kV/EHV
C106: 33 kV CB (OD) | D106: Each | E106: =IF(ISNUMBER('FBPQ C2'!J98),'FBPQ C2'!J98,IF(ISNUMBER('FBPQ C2'!I98),'FBPQ C2'!I98,"")) -> 184.9812767 | F106: DATA | G106: 184.9812767 | H106: =IF(ISBLANK('FBPQ T4'!E98)," ",'FBPQ T4'!AE98) -> 305 | I106: 56419.28941 | J106: 132kV/EHV
C107: 33 kV Switch (GM) | D107: Each | E107: =IF(ISNUMBER('FBPQ C2'!J99),'FBPQ C2'!J99,IF(ISNUMBER('FBPQ C2'!I99),'FBPQ C2'!I99,"")) -> 0 | F107: DATA | G107: 0 | H107: =IF(ISBLANK('FBPQ T4'!E99)," ",'FBPQ T4'!AE99) -> 0 | I107: 0 | J107: 132kV/EHV
C108: 33 kV Switch (PM) | D108: Each | E108: =IF(ISNUMBER('FBPQ C2'!J100),'FBPQ C2'!J100,IF(ISNUMBER('FBPQ C2'!I100),'FBPQ C2'!I100,"")) -> 0 | F108: DATA | G108: 0 | H108: =IF(ISBLANK('FBPQ T4'!E100)," ",'FBPQ T4'!AE100) -> 0 | I108: 0 | J108: 132kV/EHV
C109: 33 kV RMU | D109: Each | E109: =IF(ISNUMBER('FBPQ C2'!J101),'FBPQ C2'!J101,IF(ISNUMBER('FBPQ C2'!I101),'FBPQ C2'!I101,"")) -> 588.5074433 | F109: DATA | G109: 588.5074433 | H109: =IF(ISBLANK('FBPQ T4'!E101)," ",'FBPQ T4'!AE101) -> 0 | I109: 0 | J109: 132kV/EHV
C110: 33 kV Switchgear - Other | D110: Each | E110: =E106 -> 184.9812767 | F110: DATA | G110: 184.9812767 | H110: =IF(ISBLANK('FBPQ T4'!E102)," ",'FBPQ T4'!AE102) -> 1444 | I110: 267112.9636 | J110: EHV/HV
C111: 66 KV CB (ID & OD) | D111: Each | E111: =IF(ISNUMBER('FBPQ C2'!J103),'FBPQ C2'!J103,IF(ISNUMBER('FBPQ C2'!I103),'FBPQ C2'!I103,"")) -> 697.8434557 | F111: DATA | G111: 697.8434557 | H111: =IF(ISBLANK('FBPQ T4'!E103)," ",'FBPQ T4'!AE103) -> 77 | I111: 53733.94609 | J111: 132kV/EHV
C112: 66 KV Switchgear - Other | D112: Each | E112: =E111 -> 697.8434557 | F112: DATA | G112: 697.8434557 | H112: =IF(ISBLANK('FBPQ T4'!E104)," ",'FBPQ T4'!AE104) -> 575 | I112: 401259.987 | J112: EHV/HV
E113: =IF(ISNUMBER('FBPQ C2'!J105),'FBPQ C2'!J105,IF(ISNUMBER('FBPQ C2'!I105),'FBPQ C2'!I105,"")) ->  | G113: 0 | H113: =IF(ISBLANK('FBPQ T4'!E105)," ",'FBPQ T4'!AE105) -> 
B114: Transformers | E114: =IF(ISNUMBER('FBPQ C2'!J106),'FBPQ C2'!J106,IF(ISNUMBER('FBPQ C2'!I106),'FBPQ C2'!I106,"")) ->  | G114: 0 | H114: =IF(ISBLANK('FBPQ T4'!E106)," ",'FBPQ T4'!AE106) -> 
C115: 33 kV Transformer (PM) | D115: Each | E115: =IF(ISNUMBER('FBPQ C2'!J107),'FBPQ C2'!J107,IF(ISNUMBER('FBPQ C2'!I107),'FBPQ C2'!I107,"")) -> 532.5680881 | F115: DATA | G115: 532.5680881 | H115: =IF(ISBLANK('FBPQ T4'!E107)," ",'FBPQ T4'!AE107) -> 3 | I115: 1597.704264 | J115: EHV/HV
C116: 33 kV Transformer (GM) | D116: Each | E116: =IF(ISNUMBER('FBPQ C2'!J108),'FBPQ C2'!J108,IF(ISNUMBER('FBPQ C2'!I108),'FBPQ C2'!I108,"")) -> 571.9799066 | F116: DATA | G116: =IF(ISNUMBER(E116),E116,IF(H116>0,F116," ")) -> 571.9799066 | H116: =IF(ISBLANK('FBPQ T4'!E108)," ",'FBPQ T4'!AE108) -> 203 | I116: 116111.921 | J116: EHV/HV
C117: 33 kV AuxiliaryTransfomer | D117: Each | E117: =E76 -> 11.95068042 | F117: DATA | G117: 11.95068042 | H117: =IF(ISBLANK('FBPQ T4'!E109)," ",'FBPQ T4'!AE109) -> 193 | I117: 2306.481321 | J117: EHV/HV
C118: 66 kV Transformer | D118: Each | E118: =IF(ISNUMBER('FBPQ C2'!J110),'FBPQ C2'!J110,IF(ISNUMBER('FBPQ C2'!I110),'FBPQ C2'!I110,"")) -> 2234.904374 | F118: DATA | G118: 2234.904374 | H118: =IF(ISBLANK('FBPQ T4'!E110)," ",'FBPQ T4'!AE110) -> 82 | I118: 183262.1586 | J118: EHV/HV
C119: 66 kV AuxiliaryTransfomer | D119: Each | E119: =E76 -> 11.95068042 | F119: DATA | G119: 11.95068042 | H119: =IF(ISBLANK('FBPQ T4'!E111)," ",'FBPQ T4'!AE111) -> 46 | I119: 549.7312994 | J119: EHV/HV
E120: =IF(ISNUMBER('FBPQ C2'!J112),'FBPQ C2'!J112,IF(ISNUMBER('FBPQ C2'!I112),'FBPQ C2'!I112,"")) ->  | G120: 0 | H120: =IF(ISBLANK('FBPQ T4'!E112)," ",'FBPQ T4'!AE112) -> 
A121: 132kV Network | E121: =IF(ISNUMBER('FBPQ C2'!J113),'FBPQ C2'!J113,IF(ISNUMBER('FBPQ C2'!I113),'FBPQ C2'!I113,"")) ->  | G121: 0 | H121: =IF(ISBLANK('FBPQ T4'!E113)," ",'FBPQ T4'!AE113) -> 
B122: Overhead lines | E122: =IF(ISNUMBER('FBPQ C2'!J114),'FBPQ C2'!J114,IF(ISNUMBER('FBPQ C2'!I114),'FBPQ C2'!I114,"")) ->  | G122: 0 | H122: =IF(ISBLANK('FBPQ T4'!E114)," ",'FBPQ T4'!AE114) -> 
C123: 132kV OHL Conductor (Pole Line) | D123: km | E123: =IF(ISNUMBER('FBPQ C2'!J115),'FBPQ C2'!J115,IF(ISNUMBER('FBPQ C2'!I115),'FBPQ C2'!I115,"")) -> 714.879532 | F123: DATA | G123: 714.879532 | H123: =IF(ISBLANK('FBPQ T4'!E115)," ",'FBPQ T4'!AE115) -> 0 | I123: 0 | J123: 132kV
C124: 132kV OHL Conductor (Tower Line) | D124: km | E124: =IF(ISNUMBER('FBPQ C2'!J116),'FBPQ C2'!J116,IF(ISNUMBER('FBPQ C2'!I116),'FBPQ C2'!I116,"")) -> 1228.50452 | F124: DATA | G124: 1228.50452 | H124: =IF(ISBLANK('FBPQ T4'!E116)," ",'FBPQ T4'!AE116) -> 1368 | I124: 1680594.184 | J124: 132kV
E125: =IF(ISNUMBER('FBPQ C2'!J117),'FBPQ C2'!J117,IF(ISNUMBER('FBPQ C2'!I117),'FBPQ C2'!I117,"")) ->  | G125: 0 | H125: =IF(ISBLANK('FBPQ T4'!E117)," ",'FBPQ T4'!AE117) -> 
B126: Overhead lines - Support | E126: =IF(ISNUMBER('FBPQ C2'!J118),'FBPQ C2'!J118,IF(ISNUMBER('FBPQ C2'!I118),'FBPQ C2'!I118,"")) ->  | G126: 0 | H126: =IF(ISBLANK('FBPQ T4'!E118)," ",'FBPQ T4'!AE118) -> 
C127: 132kV Pole | D127: Each | E127: =IF(ISNUMBER('FBPQ C2'!J119),'FBPQ C2'!J119,IF(ISNUMBER('FBPQ C2'!I119),'FBPQ C2'!I119,"")) -> 0 | F127: DATA | G127: 0 | H127: =IF(ISBLANK('FBPQ T4'!E119)," ",'FBPQ T4'!AE119) -> 843 | I127: 0 | J127: 132kV
C128: 132kV Tower | D128: Each | E128: =IF(ISNUMBER('FBPQ C2'!J120),'FBPQ C2'!J120,IF(ISNUMBER('FBPQ C2'!I120),'FBPQ C2'!I120,"")) -> 0 | F128: DATA | G128: 0 | H128: =IF(ISBLANK('FBPQ T4'!E120)," ",'FBPQ T4'!AE120) -> 2776 | I128: 0 | J128: 132kV
C129: 132kV Fittings (Tower Line) | D129: Each | E129: =IF(ISNUMBER('FBPQ C2'!J121),'FBPQ C2'!J121,IF(ISNUMBER('FBPQ C2'!I121),'FBPQ C2'!I121,"")) -> 0 | F129: DATA | G129: 0 | H129: =IF(ISBLANK('FBPQ T4'!E121)," ",'FBPQ T4'!AE121) -> 4787 | I129: 0 | J129: 132kV
E130: =IF(ISNUMBER('FBPQ C2'!J122),'FBPQ C2'!J122,IF(ISNUMBER('FBPQ C2'!I122),'FBPQ C2'!I122,"")) ->  | G130: 0 | H130: =IF(ISBLANK('FBPQ T4'!E122)," ",'FBPQ T4'!AE122) -> 
B131: Underground cables (kms) | E131: =IF(ISNUMBER('FBPQ C2'!J123),'FBPQ C2'!J123,IF(ISNUMBER('FBPQ C2'!I123),'FBPQ C2'!I123,"")) ->  | G131: 0 | H131: =IF(ISBLANK('FBPQ T4'!E123)," ",'FBPQ T4'!AE123) -> 
C132: 132kV UG Cable (Non Pressurised) | D132: km | E132: =IF(ISNUMBER('FBPQ C2'!J124),'FBPQ C2'!J124,IF(ISNUMBER('FBPQ C2'!I124),'FBPQ C2'!I124,"")) -> 1239.565256 | F132: DATA | G132: 1239.565256 | H132: =IF(ISBLANK('FBPQ T4'!E124)," ",'FBPQ T4'!AE124) -> 43 | I132: 53301.30603 | J132: 132kV
C133: 132kV UG Cable (Oil) | D133: km | E133: =IF(ISNUMBER('FBPQ C2'!J125),'FBPQ C2'!J125,IF(ISNUMBER('FBPQ C2'!I125),'FBPQ C2'!I125,"")) -> 1239.565256 | F133: DATA | G133: 1239.565256 | H133: =IF(ISBLANK('FBPQ T4'!E125)," ",'FBPQ T4'!AE125) -> 251 | I133: 311130.8794 | J133: 132kV
C134: 132kV UG Cable (Gas) | D134: km | E134: =E133 -> 1239.565256 | F134: DATA | G134: 1239.565256 | H134: =IF(ISBLANK('FBPQ T4'!E126)," ",'FBPQ T4'!AE126) -> 16 | I134: 19833.0441 | J134: 132kV
E135: =IF(ISNUMBER('FBPQ C2'!J127),'FBPQ C2'!J127,IF(ISNUMBER('FBPQ C2'!I127),'FBPQ C2'!I127,"")) ->  | G135: 0 | H135: =IF(ISBLANK('FBPQ T4'!E127)," ",'FBPQ T4'!AE127) -> 
B136: Submarine cables (kms) | E136: =IF(ISNUMBER('FBPQ C2'!J128),'FBPQ C2'!J128,IF(ISNUMBER('FBPQ C2'!I128),'FBPQ C2'!I128,"")) ->  | G136: 0 | H136: =IF(ISBLANK('FBPQ T4'!E128)," ",'FBPQ T4'!AE128) -> 
C137: 132 kV Sub Cable | D137: km | E137: =IF(ISNUMBER('FBPQ C2'!J129),'FBPQ C2'!J129,IF(ISNUMBER('FBPQ C2'!I129),'FBPQ C2'!I129,"")) -> 0 | F137: DATA | G137: 0 | H137: =IF(ISBLANK('FBPQ T4'!E129)," ",'FBPQ T4'!AE129) -> 0 | I137: 0 | J137: 132kV
E138: =IF(ISNUMBER('FBPQ C2'!J130),'FBPQ C2'!J130,IF(ISNUMBER('FBPQ C2'!I130),'FBPQ C2'!I130,"")) ->  | G138: 0 | H138: =IF(ISBLANK('FBPQ T4'!E130)," ",'FBPQ T4'!AE130) -> 
B139: Switchgear | E139: =IF(ISNUMBER('FBPQ C2'!J131),'FBPQ C2'!J131,IF(ISNUMBER('FBPQ C2'!I131),'FBPQ C2'!I131,"")) ->  | G139: 0 | H139: =IF(ISBLANK('FBPQ T4'!E131)," ",'FBPQ T4'!AE131) -> 
C140: 132 kV CB (ID & OD) | D140: Each | E140: =IF(ISNUMBER('FBPQ C2'!J132),'FBPQ C2'!J132,IF(ISNUMBER('FBPQ C2'!I132),'FBPQ C2'!I132,"")) -> 1106.455018 | F140: DATA | G140: 1106.455018 | H140: =IF(ISBLANK('FBPQ T4'!E132)," ",'FBPQ T4'!AE132) -> 295 | I140: 326404.2304 | J140: 132kV
C141: 132 kV Switchgear (other) | D141: Each | E141: =E140 -> 1106.455018 | F141: DATA | G141: 1106.455018 | H141: =IF(ISBLANK('FBPQ T4'!E133)," ",'FBPQ T4'!AE133) -> 1704 | I141: 1885399.351 | J141: 132kV
E142: =IF(ISNUMBER('FBPQ C2'!J134),'FBPQ C2'!J134,IF(ISNUMBER('FBPQ C2'!I134),'FBPQ C2'!I134,"")) ->  | G142: 0 | H142: =IF(ISBLANK('FBPQ T4'!E134)," ",'FBPQ T4'!AE134) -> 
B143: Transformers | E143: =IF(ISNUMBER('FBPQ C2'!J135),'FBPQ C2'!J135,IF(ISNUMBER('FBPQ C2'!I135),'FBPQ C2'!I135,"")) ->  | G143: 0 | H143: =IF(ISBLANK('FBPQ T4'!E135)," ",'FBPQ T4'!AE135) -> 
C144: 132 kV Transformer | D144: Each | E144: =IF(ISNUMBER('FBPQ C2'!J136),'FBPQ C2'!J136,IF(ISNUMBER('FBPQ C2'!I136),'FBPQ C2'!I136,"")) -> 2234.904374 | F144: DATA | G144: 2234.904374 | H144: =IF(ISBLANK('FBPQ T4'!E136)," ",'FBPQ T4'!AE136) -> 249 | I144: 556491.1891 | J144: 132kV/EHV
C145: 132 kV AuxiliaryTransfomer | D145: Each | E145: =E76 -> 11.95068042 | F145: DATA | G145: 11.95068042 | H145: =IF(ISBLANK('FBPQ T4'!E137)," ",'FBPQ T4'!AE137) -> 356 | I145: 4254.44223 | J145: 132kV/EHV
E146: =IF(ISNUMBER('FBPQ C2'!J138),'FBPQ C2'!J138,IF(ISNUMBER('FBPQ C2'!I138),'FBPQ C2'!I138,"")) ->  | G146: 0 | H146: =IF(ISBLANK('FBPQ T4'!E138)," ",'FBPQ T4'!AE138) -> 
A147: Tele-control / SCADA | E147: =IF(ISNUMBER('FBPQ C2'!J139),'FBPQ C2'!J139,IF(ISNUMBER('FBPQ C2'!I139),'FBPQ C2'!I139,"")) ->  | G147: 0 | H147: =IF(ISBLANK('FBPQ T4'!E139)," ",'FBPQ T4'!AE139) -> 
B148: Primary substation | E148: =IF(ISNUMBER('FBPQ C2'!J140),'FBPQ C2'!J140,IF(ISNUMBER('FBPQ C2'!I140),'FBPQ C2'!I140,"")) ->  | G148: =IF(ISNUMBER(E148),E148,IF(H148>0,F148," ")) -> 0 | H148: =IF(ISBLANK('FBPQ T4'!E140)," ",'FBPQ T4'!AE140) -> 
C149: 132 kV/EHV RTU (PM) | D149: Each | E149: 62.645 | F149: DATA | G149: 62.645 | H149: =IF(ISBLANK('FBPQ T4'!E141)," ",'FBPQ T4'!AE141) -> 2 | I149: =IF(ISERROR(G149*H149)," ",G149*H149) -> 125.29 | J149: EHV/HV
C150: 132 kV/EHV RTU (GM) | D150: Each | E150: 62.645 | F150: DATA | G150: 62.645 | H150: =IF(ISBLANK('FBPQ T4'!E142)," ",'FBPQ T4'!AE142) -> 262 | I150: 16412.99 | J150: EHV/HV
E151: =IF(ISNUMBER('[10]FBPQ C2'!K143),'[10]FBPQ C2'!K143,IF(ISNUMBER('[10]FBPQ C2'!I143),'[10]FBPQ C2'!I143,"")) -> 0 | G151: 0 | H151: =IF(ISBLANK('FBPQ T4'!E143)," ",'FBPQ T4'!AE143) -> 
B152: Secondary substation | E152: =IF(ISNUMBER('[10]FBPQ C2'!K144),'[10]FBPQ C2'!K144,IF(ISNUMBER('[10]FBPQ C2'!I144),'[10]FBPQ C2'!I144,"")) -> 0 | G152: 0 | H152: =IF(ISBLANK('FBPQ T4'!E144)," ",'FBPQ T4'!AE144) -> 
C153: HV RTU (PM) | D153: Each | E153: 62.645 | F153: DATA | G153: 62.645 | H153: =IF(ISBLANK('FBPQ T4'!E145)," ",'FBPQ T4'!AE145) -> 1773 | I153: =IF(ISERROR(G153*H153)," ",G153*H153) -> 111069.585 | J153: HV/LV
C154: HV RTU (GM) | D154: Each | E154: 62.645 | F154: DATA | G154: 62.645 | H154: =IF(ISBLANK('FBPQ T4'!E146)," ",'FBPQ T4'!AE146) -> 1264 | I154: 79183.28 | J154: HV/LV
E155: =IF(ISNUMBER('FBPQ C2'!J147),'FBPQ C2'!J147,IF(ISNUMBER('FBPQ C2'!I147),'FBPQ C2'!I147,"")) ->  | G155: 0 | H155: =IF(ISBLANK('FBPQ T4'!E147)," ",'FBPQ T4'!AE147) -> 
E156: =IF(ISNUMBER('FBPQ C2'!J148),'FBPQ C2'!J148,IF(ISNUMBER('FBPQ C2'!I148),'FBPQ C2'!I148,"")) ->  | G156: 0 | H156: =IF(ISBLANK('FBPQ T4'!E148)," ",'FBPQ T4'!AE148) -> 
A157: HV network switchgear | E157: =IF(ISNUMBER('FBPQ C2'!J149),'FBPQ C2'!J149,IF(ISNUMBER('FBPQ C2'!I149),'FBPQ C2'!I149,"")) ->  | G157: 0 | H157: =IF(ISBLANK('FBPQ T4'!E149)," ",'FBPQ T4'!AE149) -> 
C158: 6.6/11 kV CB (GM) | E158: =IF(ISNUMBER('FBPQ C2'!J150),'FBPQ C2'!J150,IF(ISNUMBER('FBPQ C2'!I150),'FBPQ C2'!I150,"")) ->  | G158: 0 | H158: =IF(ISBLANK('FBPQ T4'!E150)," ",'FBPQ T4'!AE150) -> 
C159: Primary | D159: Each | E159: =IF(ISNUMBER('FBPQ C2'!J151),'FBPQ C2'!J151,IF(ISNUMBER('FBPQ C2'!I151),'FBPQ C2'!I151,"")) -> 30.89378024 | F159: DATA | G159: 30.89378024 | H159: =IF(ISBLANK('FBPQ T4'!E151)," ",'FBPQ T4'!AE151) -> 
C160: Distribution | D160: Each | E160: =IF(ISNUMBER('FBPQ C2'!J152),'FBPQ C2'!J152,IF(ISNUMBER('FBPQ C2'!I152),'FBPQ C2'!I152,"")) -> 7.882363682 | F160: DATA | G160: 7.882363682 | H160: =IF(ISBLANK('FBPQ T4'!E152)," ",'FBPQ T4'!AE152) -> 
C161: 20 kV Switch (GM) | E161: =IF(ISNUMBER('FBPQ C2'!J153),'FBPQ C2'!J153,IF(ISNUMBER('FBPQ C2'!I153),'FBPQ C2'!I153,"")) ->  | F161: DATA | G161: DATA | H161: =IF(ISBLANK('FBPQ T4'!E153)," ",'FBPQ T4'!AE153) -> 
C162: Primary | D162: Each | E162: =IF(ISNUMBER('FBPQ C2'!J154),'FBPQ C2'!J154,IF(ISNUMBER('FBPQ C2'!I154),'FBPQ C2'!I154,"")) -> 0 | F162: DATA | G162: 0 | H162: =IF(ISBLANK('FBPQ T4'!E154)," ",'FBPQ T4'!AE154) -> 
C163: Distribution | D163: Each | E163: =IF(ISNUMBER('FBPQ C2'!J155),'FBPQ C2'!J155,IF(ISNUMBER('FBPQ C2'!I155),'FBPQ C2'!I155,"")) -> 0 | F163: DATA | G163: 0 | H163: =IF(ISBLANK('FBPQ T4'!E155)," ",'FBPQ T4'!AE155) -> 
H164: Total MEAV | I164: =SUM(I18:I163) -> 16745071.57

Sheet Calc-Net capex
A1: Total Net Capex | F1: Index
B3: Total Net Capex 2005/06 -2014/15 LV, HV, EHV, 132kV split | F3: Total Net Capex 2005/06 -2014/15 LV, LV/HV, HV, EHV, 132kV split | J3: IP Appendix 6 Table 5 Reductions to EHV | N3: IP Appendix 7 Reductions to EHV
B4: Sum connecions/reinforcement/replacement capex -see below | F4: Sum connecions/reinforcement/replacement capex -see below | J4: Appendix 6 Table 5 EHV & 132 | N4: Appendix 7 Table 18
C5: £m | D5: % of Total | G5: £m | H5: % of Total | J5: EHV | L5: =K5*(F21/(F21+F22)) -> 0 | O5: £m
B6: LV | C6: =C19+F19+I19+C28+F28-O6 -> 166.8798953 | D6: =C6/SUM($C$6:$C$9) -> 0.1758419357 | F6: LV | G6: =+C39+F39+I39+C49+F49-O6 -> 166.8798953 | H6: =G6/SUM($G$6:$G$10) -> 0.1758419357 | J6: 132kV | L6: =K5*(F22/(F21+F22)) -> 0 | N6: LV
B7: HV | C7: =C20+F20+I20+C29+F29-O7-O8 -> 246.0452202 | D7: =C7/SUM($C$6:$C$9) -> 0.2592587185 | F7: LV/HV | G7: =+C40+F40+I40+C50+F50-O7 -> 50.46792445 | H7: =G7/SUM($G$6:$G$10) -> 0.05317823045 | N7: LV/HV
B8: EHV | C8: =C21+F21+I21+C30+F30-L5-O9 -> 187.0244825 | D8: =C8/SUM($C$6:$C$9) -> 0.1970683585 | F8: HV | G8: =+C41+F41+I41+C51+F51-O8 -> 195.5772957 | H8: =G8/SUM($G$6:$G$10) -> 0.2060804881 | N8: HV
B9: 132 kV | C9: =C22+F22+I22+C31+F31-L6-O10 -> 349.083945 | D9: =C9/SUM($C$6:$C$9) -> 0.3678309872 | F9: EHV | G9: =+C42+F42+I42+C52+F52-L5-O9 -> 187.0244825 | H9: =G9/SUM($G$6:$G$10) -> 0.1970683585 | N9: EHV
F10: 132 kV | G10: =+C43+F43+I43+C53+F53-L6-O10 -> 349.083945 | H10: =G10/SUM($G$6:$G$10) -> 0.3678309872 | N10: 132 kV
A13: Connection/Reinforcement/Replacement Capex LV, HV, EHV, 132kV split
B16: Connections Capex 2005/06 -2014/15 (£m) | E16: General reinforcement Capex 2005/06 -2014/15 (£m) | H16: Fault reinforcement Capex 2005/06 -2014/15 (£m)
B17: Connections spend minus customer contributions (from FBPQ LR1) | E17: (from FBPQ LR4) | H17: (from FBPQ LR6)
A19: c32 | B19: LV | C19: 29.93598929 | E19: LV | F19: =SUM('FBPQ LR4'!D11:M11) -> 10.75677246 | H19: LV | I19: =SUM('FBPQ LR6'!C28:L28) -> 0
A20: c33 | B20: HV | C20: 9.694377182 | E20: HV | F20: =SUM('FBPQ LR4'!D12:M12) -> 30.5753249 | H20: HV | I20: =SUM('FBPQ LR6'!C29:L29) -> 0
A21: c34 | B21: EHV | C21: 0 | E21: EHV | F21: =SUM('FBPQ LR4'!D13:M13) -> 108.7599623 | H21: EHV | I21: =SUM('FBPQ LR6'!C30:L30) -> 4.218651016
A22: c35 | B22: 132 kV | C22: 0 | E22: 132 kV | F22: =SUM('FBPQ LR4'!D14:M14) -> 99.47402652 | H22: 132 kV | I22: =SUM('FBPQ LR6'!C31:L31) -> 15.055225
B25: Replacement Capex 2005/06 -2014/15 (£m) | E25: ESQCR 2005/06 -2014/15 (£m)
B26: (from FBPQ NL1) | E26: (from FBPQ NL9)
B28: LV | C28: =SUM('FBPQ NL1 0309'!D10:M16) -> 126.1871335 | E28: LV | F28: =SUM('NL9 - Legal & Safety'!D33:M33,'NL9 - Legal & Safety'!D42:M42) -> 0
B29: HV | C29: =SUM('FBPQ NL1 0309'!D17:M22) -> 205.7755181 | E29: HV | F29: =SUM('NL9 - Legal & Safety'!D34:M34,'NL9 - Legal & Safety'!D43:M43) -> 0
B30: EHV | C30: =SUM('FBPQ NL1 0309'!D23:M28) -> 74.0458692 | E30: EHV | F30: =SUM('NL9 - Legal & Safety'!D35:M35,'NL9 - Legal & Safety'!D44:M44) -> 0
B31: 132 kV | C31: =SUM('FBPQ NL1 0309'!D29:M34) -> 234.5546935 | E31: 132 kV | F31: =SUM('NL9 - Legal & Safety'!D36:M36,'NL9 - Legal & Safety'!D45:M45) -> 0
A33: Connection/Reinforcement/Replacement Capex LV, LV/HV, HV, EHV, 132kV split
B36: Connections Capex 2005/06 -2014/15 (£m) | E36: General reinforcement Capex 2005/06 -2014/15 (£m) | H36: Fault reinforcement Capex 2005/06 -2014/15 (£m)
B37: Connections spend minus customer contributions (from FBPQ LR1) | E37: (from FBPQ LR4) | H37: (from FBPQ LR6)
A39: c20 | B39: LV | C39: 29.93598929 | E39: LV | F39: =SUM('FBPQ LR4'!D11:M11) -> 10.75677246 | H39: LV | I39: =SUM('FBPQ LR6'!C28:L28) -> 0
A40: c21 | B40: LV/HV | C40: 2.381168521 | D40: allocated in proportion to repex | E40: LV/HV | F40: =SUM('FBPQ LR4'!D12:M12)*(C55) -> 7.510023571 | G40: allocated in proportion to repex | H40: LV/HV | I40: =SUM('FBPQ LR6'!C29:L29)*(C55) -> 0 | J40: allocated in proportion to repex
A41: c22 | B41: HV | C41: 7.313208662 | E41: HV | F41: =SUM('FBPQ LR4'!D12:M12)*(1-C55) -> 23.06530132 | H41: HV | I41: =SUM('FBPQ LR6'!C29:L29)*(1-C55) -> 0
A42: c23 | B42: EHV | C42: 0 | E42: EHV | F42: =SUM('FBPQ LR4'!D13:M13) -> 108.7599623 | H42: EHV | I42: =SUM('FBPQ LR6'!C30:L30) -> 4.218651016
A43: c24 | B43: 132 kV | C43: 0 | E43: 132 kV | F43: =SUM('FBPQ LR4'!D14:M14) -> 99.47402652 | H43: 132 kV | I43: =SUM('FBPQ LR6'!C31:L31) -> 15.055225
B46: Replacement Capex 2005/06 -2014/15 (£m) | E46: ESQCR 2005/06 -2014/15 (£m) | H46: ESQCR 2005/06 -2014/15 (£m)
B47: (from FBPQ NL1) | E47: (from FBPQ NL9) | H47: NL1 + NL9
B49: LV | C49: =SUM('FBPQ NL1 0309'!D10:M16) -> 126.1871335 | E49: LV | F49: =SUM('NL9 - Legal & Safety'!D33:M33,'NL9 - Legal & Safety'!D42:M42) -> 0 | H49: LV | I49: =F49+C49 -> 126.1871335
B50: LV/HV | C50: =SUM('FBPQ NL1 0309'!D21:M22) -> 40.57673236 | D50: HV/LV sub/trans costs | E50: LV/HV | F50: =SUM('NL9 - Legal & Safety'!D34:M34,'NL9 - Legal & Safety'!D43:M43)*C55 -> 0 | H50: LV/HV | I50: =F50+C50 -> 40.57673236
B51: HV | C51: =SUM('FBPQ NL1 0309'!D17:M20) -> 165.1987858 | E51: HV | F51: =SUM('NL9 - Legal & Safety'!D34:M34,'NL9 - Legal & Safety'!D43:M43)*(1-C55) -> 0 | H51: HV | I51: =F51+C51 -> 165.1987858
B52: EHV | C52: =SUM('FBPQ NL1 0309'!D23:M28) -> 74.0458692 | E52: EHV | F52: =SUM('NL9 - Legal & Safety'!D35:M35,'NL9 - Legal & Safety'!D44:M44) -> 0 | H52: EHV | I52: =F52+C52 -> 74.0458692
B53: 132 kV | C53: =SUM('FBPQ NL1 0309'!D29:M34) -> 234.5546935 | E53: 132 kV | F53: =SUM('NL9 - Legal & Safety'!D36:M36,'NL9 - Legal & Safety'!D45:M45) -> 0 | H53: 132 kV | I53: =F53+C53 -> 234.5546935
B55: LV/HV/(LV/HV+HV) % | C55: =C50/C51 -> 0.2456236719

Sheet Summary of revenue
C1: Summary of Revenue | J1: Index
A8: Allowed Demand Revenue (ADt) | H8: 2005/06 | I8: 2006/07 | J8: 2007/08 | K8: 2008/09 | L8: 2009/10
H9: 16 | I9: 17 | J9: 18 | K9: 19 | L9: 20
B11: Base Demand Revenue (BRt) | F11: £m | H11: 255.06868 | I11: 262.016405 | J11: 274.191564
B12: Pass through Items (PTt) | F12: £m | H12: -1.912898 | I12: -3.591914 | J12: -3.637995
B13: Incentive Revenue (Ipt) | F13: £m | H13: 4.56762 | I13: 8.852308 | J13: 7.172595
B14: Correction Factor (KDt) | F14: £m | H14: -0.082133 | I14: -11.672268 | J14: -1.294306
B16: Allowed Demand Revenue (Adt) | F16: £m | H16: 257.805535 | I16: 278.949067 | J16: 279.02047
B18: Regulated Demand Revenue (RDt) | F18: £m | H18: 246.67 | I18: 277.74 | J18: 278.05
B19: Net Movement on Revenue Provisions | F19: £m | H19: 2.53 | I19: -2.64 | J19: -4.83
B21: Over/Under Recovery | F21: £m | H21: -11.135535 | I21: -1.209067 | J21: -0.97047
A24: Allowed Network Generation Revenue (AGt)
B26: Incentivised Generation (IGt) | F26: £m | H26: 0 | I26: 0.025645 | J26: 0.061178
B27: Registered Power Zones (RPZt) | F27: £m | H27: 0 | I27: 0 | J27: 0
B28: Correction Factor (KGt) | F28: £m | H28: 0 | I28: 0 | J28: 0.004662
B30: Allowed Network Generation Revenue (AGt) | F30: £m | H30: 0 | I30: 0.025645 | J30: 0.056516
B32: Network Generation Revenue (RGt) | F32: £m | H32: 0 | I32: 0.03 | J32: 0.07
B34: Over/Under Recovery | F34: £m | H34: 0 | I34: 0.004355 | J34: 0.013484
A37: Metering Revenue
B38: Legacy Basic Meter Asset Provision Revenue | F38: £m | H38: 6.5 | I38: 8.22 | J38: 7.78
B39: Basic Meter Operation Revenue | F39: £m | H39: 4.735894 | I39: 3.994996 | J39: 0
H41: 11.235894 | I41: 12.214996 | J41: 7.78
A44: Excluded Services and Revenue Outside of Price Control
B45: Excluded Services | F45: £m | H45: 20.66 | I45: 51.69 | J45: 74.23
B46: Revenue Outside of Price Control | F46: £m | H46: 6.63 | I46: 7.24 | J46: 7.96
B47: De-Minimis Revenue | F47: £m | H47: 0 | I47: 0.4 | J47: 0.65
H49: 27.29 | I49: 59.33 | J49: 82.84

Sheet Allowed revenue -DPCR4
C1: 2004/05 | D1: 2005/6 | E1: 2006/7 | F1: 2007/8 | G1: 2008/9 | H1: 2009/10 | J1: Index
C2: (£M) | D2: (£M) | E2: (£M) | F2: (£M) | G2: (£M) | H2: (£M)
A3: 1 | B3: Opening asset value | D3: 964.7 | E3: 1013.2 | F3: 1057.4 | G3: 1095.1 | H3: 1126.5
A4: 2 | B4: Total capex | D4: 120.8 | E4: 120.4 | F4: 120 | G4: 119.5 | H4: 119.3
A5: 3 | B5: Depreciation | D5: -72.3 | E5: -76.2 | F5: -82.2 | G5: -88.2 | H5: -94.2
A6: 4 | B6: Closing asset value | D6: 1013.2 | E6: 1057.4 | F6: 1095.1 | G6: 1126.5 | H6: 1151.6
A7: 5 | B7: Present value of opening / closing RAV | D7: 964.7 | H7: 879.3
A8: 6 | B8: 5 Year movement in closing RAV | H8: 85.4
A9: ALLOWED ITEMS
A10: 7 | B10: Operating costs (excluding pensions) | D10: 72.5 | E10: 70 | F10: 68 | G10: 66.6 | H10: 66
A11: 8 | B11: Capital expenditure (excluding pensions) | D11: 111.5 | E11: 111.1 | F11: 110.7 | G11: 110.2 | H11: 110
A12: 9 | B12: Pensions allowance | D12: 16.2 | E12: 16.2 | F12: 16.2 | G12: 16.2 | H12: 16.2
A13: 10 | B13: Tax allowance | D13: 25.9 | E13: 26.7 | F13: 26.9 | G13: 27 | H13: 26.7
A14: 11 | B14: Capex incentive scheme | D14: 1.2 | E14: 0.9 | F14: 1 | G14: 0.5 | H14: 0.6
A15: 12 | B15: Sliding scale additional income | D15: 1.4 | E15: 1.5 | F15: 1.5 | G15: 1.6 | H15: 1.6
A16: 13 | B16: Opex incentive / Other adjustments | D16: - | E16: - | F16: - | G16: - | H16: -
A17: 14 | B17: Quality award | D17: - | E17: - | F17: - | G17: - | H17: -
A18: 15 | B18: DPCR3 costs | D18: 0.9 | E18: - | F18: - | G18: - | H18: -
A19: 16 | B19: Total allowed items | D19: 229.6 | E19: 226.4 | F19: 224.3 | G19: 222.1 | H19: 221.1
A20: 17 | B20: Present value of allowed items | D20: 223.5 | E20: 208.8 | F20: 196 | G20: 183.9 | H20: 173.5
A21: 18 | B21: 5 year movement in closing RAV | H21: 85.4
A22: 19 | B22: TOTAL PRESENT VALUE OVER 5 YEARS | H22: 1071.1
A23: REVENUE
A24: 20 | B24: Revenue index | D24: 1 | E24: 1.007 | F24: 1.015 | G24: 1.022 | H24: 1.029
A25: 21 | B25: Discounted revenue index | D25: 0.973 | E25: 0.929 | F25: 0.887 | G25: 0.846 | H25: 0.807
A26: 22 | B26: Price control revenue | C26: 246.1 | D26: 238.7 | E26: 240.5 | F26: 242.3 | G26: 244 | H26: 245.7
A27: 23 | B27: Excluded service revenue | D27: 2.4 | E27: 2.4 | F27: 2.4 | G27: 2.4 | H27: 2.4
A28: 24 | B28: Total revenue | D28: 241.1 | E28: 242.9 | F28: 244.7 | G28: 246.4 | H28: 248.1
A29: 25 | B29: Present value of total revenue | D29: 234.7 | E29: 224 | F29: 213.8 | G29: 204 | H29: 194.6
A30: 26 | B30: TOTAL PRESENT VALUE OVER 5 YEARS | H30: 1071.1
A32: Take these data from the February 2005 Ofgem document (link below), not the November 2004 final proposals.
A33: http://www.ofgem.gov.uk/Markets/RetMkts/Metrng/Metering/Documents1/9745-5405.pdf

Sheet FBPQ T4
A1: Main Forecast Business Plan DPCR5 | G1: Index
A3: T4 - Volume Summary
B5: Total Asset Register Movement
B7: Asset categories | F7: Opening Balance DCPR4 | G7: 2005/06 | L7: 2006/07 | Q7: 2007/08 | V7: 2008/09 | AA7: 2009/10
G8: Assets removed | I8: Assets Installed | K8: Closing Balance | L8: Assets removed | N8: Assets Installed | P8: Closing Balance | Q8: Assets removed | S8: Assets Installed | U8: Closing Balance | V8: Assets removed | X8: Assets Installed | Z8: Closing Balance | AA8: Assets removed | AC8: Assets Installed | AE8: Closing Balance DPCR4
G9: LRE | H9: NLRE | I9: LRE | J9: NLRE | K9: 2005/06 | L9: LRE | M9: NLRE | N9: LRE | O9: NLRE | P9: 2006/07 | Q9: LRE | R9: NLRE | S9: LRE | T9: NLRE | U9: 2007/08 | V9: LRE | W9: NLRE | X9: LRE | Y9: NLRE | Z9: 2008/09 | AA9: LRE | AB9: NLRE | AC9: LRE | AD9: NLRE | AE9: 2009/10
C10: LV Network
D11: Overhead lines - Conductor
E12: LV Main (OHL) | F12: 5988 | G12: 14 | H12: 4 | I12: 215 | J12: 2 | K12: 6187 | L12: 30 | M12: 6 | N12: 10 | O12: 3 | P12: 6164 | Q12: 51 | R12: 4 | S12: 9 | T12: 2 | U12: 6120 | V12: 47.7 | W12: 36.3 | X12: 8.4 | Y12: 14.4 | Z12: 6058.8 | AA12: 39.6 | AB12: 72.1 | AC12: 7.2 | AD12: 43.7 | AE12: 5998
E13: LV Service (OHL) | F13: 236522 | G13: 0 | H13: 677 | I13: 56 | J13: 95 | K13: 235996 | L13: 0 | M13: 704 | N13: 23 | O13: 460 | P13: 235775 | Q13: 0 | R13: 827 | S13: 1017 | T13: 1434 | U13: 237399 | V13: 0 | W13: 2681 | X13: 945 | Y13: 820 | Z13: 236483 | AA13: 0 | AB13: 2454 | AC13: 814 | AD13: 1457 | AE13: 236300
D15: Overhead lines - Support
E16: LV Support | F16: 199126 | G16: 134 | H16: 0 | I16: 61 | J16: 0 | K16: 199053 | L16: 781 | M16: 0 | N16: 54 | O16: 0 | P16: 198326 | Q16: 1955 | R16: 1092 | S16: 914 | T16: 1092 | U16: 197285 | V16: 1828 | W16: 616 | X16: 852 | Y16: 176 | Z16: 195869 | AA16: 1517 | AB16: 1167 | AC16: 719 | AD16: 593 | AE16: 194497
D18: Underground cables
E19: LV Main (UG Consac) | F19: 4061 | G19: 0 | H19: 6 | I19: 0 | J19: 0 | K19: 4055 | L19: 0 | M19: 24 | N19: 0 | O19: 0 | P19: 4031 | Q19: 0 | R19: 37 | S19: 0 | T19: 0 | U19: 3994 | V19: 0 | W19: 43 | X19: 0 | Y19: 0 | Z19: 3951 | AA19: 0 | AB19: 48 | AC19: 0 | AD19: 0 | AE19: 3903
E20: LV Main (UG Plastic) | F20: 3759.5 | G20: 0 | H20: 0 | I20: 648 | J20: 24 | K20: 4431.5 | L20: 0 | M20: 0 | N20: 50 | O20: 286 | P20: 4767.5 | Q20: 0 | R20: 0 | S20: 301.4 | T20: 56 | U20: 5124.9 | V20: 0 | W20: 1.3 | X20: 281.9 | Y20: 73 | Z20: 5478.5 | AA20: 0 | AB20: 0.6 | AC20: 233.7 | AD20: 71.1 | AE20: 5782.7
E21: LV Main (UG Paper) | F21: 16295 | G21: 0 | H21: 0 | I21: 0 | J21: 0 | K21: 16295 | L21: 0 | M21: 30 | N21: 0 | O21: 0 | P21: 16265 | Q21: 0 | R21: 44 | S21: 0 | T21: 0 | U21: 16221 | V21: 0 | W21: 3.9 | X21: 0 | Y21: 0 | Z21: 16217.1 | AA21: 0 | AB21: 1.6 | AC21: 0 | AD21: 0 | AE21: 16215.5
E22: LV Service (UG) | F22: 2131108 | G22: 55 | H22: 680 | I22: 27797 | J22: 680 | K22: 2158850 | L22: 0 | M22: 1068 | N22: 23048 | O22: 1486 | P22: 2182316 | Q22: 0 | R22: 10699 | S22: 18463 | T22: 1653 | U22: 2191733 | V22: 0 | W22: 107 | X22: 17278 | Y22: 1811 | Z22: 2210715 | AA22: 0 | AB22: 40 | AC22: 14289 | AD22: 1032 | AE22: 2225996
D24: Switchgear
E25: LV Pillar (ID) | F25: 4508 | G25: 43 | H25: 13 | I25: 230 | J25: 13 | K25: 4695 | L25: 0 | M25: 73 | N25: 417 | O25: 81 | P25: 5120 | Q25: 0 | R25: 65 | S25: 134 | T25: 87 | U25: 5276 | V25: 0 | W25: 253 | X25: 125 | Y25: 138 | Z25: 5286 | AA25: 0 | AB25: 278 | AC25: 105 | AD25: 125 | AE25: 5238
E26: LV Pillar (OD) | F26: 10805 | G26: 0 | H26: 0 | I26: 0 | J26: 0 | K26: 10805 | L26: 111 | M26: 0 | N26: 0 | O26: 0 | P26: 10694 | Q26: 201 | R26: 54 | S26: 100 | T26: 54 | U26: 10593 | V26: 188 | W26: 0 | X26: 94 | Y26: 0 | Z26: 10499 | AA26: 156 | AB26: 0 | AC26: 77 | AD26: 0 | AE26: 10420
E27: LV Board (WM) | F27: 0 | G27: 0 | H27: 0 | I27: 0 | J27: 0 | K27: 0 | L27: 0 | M27: 0 | N27: 0 | O27: 0 | P27: 0 | Q27: 0 | R27: 0 | S27: 0 | T27: 0 | U27: 0 | V27: 0 | W27: 0 | X27: 0 | Y27: 0 | Z27: 0 | AA27: 0 | AB27: 0 | AC27: 0 | AD27: 0 | AE27: 0
E28: LV UGB | F28: 20522 | G28: 0 | H28: 275 | I28: 341 | J28: 281 | K28: 20869 | L28: 0 | M28: 576 | N28: 124 | O28: 465 | P28: 20882 | Q28: 0 | R28: 713 | S28: 155 | T28: 582 | U28: 20906 | V28: 0 | W28: 295 | X28: 145 | Y28: 398.7 | Z28: 21154.7 | AA28: 0 | AB28: 296 | AC28: 121 | AD28: 418.5 | AE28: 21398.2
E29: LV Fuses (PM) | F29: 34104 | G29: 0 | H29: 0 | I29: 31 | J29: 0 | K29: 34135 | L29: 0 | M29: 63 | N29: 429 | O29: 0 | P29: 34501 | Q29: 590 | R29: 117 | S29: 444 | T29: 117 | U29: 34355 | V29: 552 | W29: 0 | X29: 415 | Y29: 0 | Z29: 34218 | AA29: 458 | AB29: 0 | AC29: 344 | AD29: 0 | AE29: 34104
E30: LV Fuses (TM) | F30: 0 | G30: 0 | H30: 0 | I30: 0 | J30: 0 | K30: 0 | L30: 0 | M30: 0 | N30: 0 | O30: 0 | P30: 0 | Q30: 0 | R30: 0 | S30: 0 | T30: 0 | U30: 0 | V30: 0 | W30: 0 | X30: 0 | Y30: 0 | Z30: 0 | AA30: 0 | AB30: 0 | AC30: 0 | AD30: 0 | AE30: 0
C32: HV network
D33: Overhead lines - Conductor
E34: 6.6/11 kV OHL (Open) | F34: 14594 | G34: 2 | H34: 14 | I34: 13 | J34: 14 | K34: 14605 | L34: 68 | M34: 7 | N34: 43 | O34: 7 | P34: 14580 | Q34: 46 | R34: 252 | S34: 4 | T34: 252 | U34: 14538 | V34: 17.3 | W34: 250.6 | X34: 1.2 | Y34: 220.1 | Z34: 14491.4 | AA34: 30.9 | AB34: 270 | AC34: 1.2 | AD34: 238 | AE34: 14429.7
E35: 6.6/11 kV OHL (Covered) | F35: 0 | G35: 0 | H35: 0 | I35: 0 | J35: 0 | K35: 0 | L35: 0 | M35: 0 | N35: 0 | O35: 0 | P35: 0 | Q35: 0 | R35: 0 | S35: 0 | T35: 0 | U35: 0 | V35: 0 | W35: 0 | X35: 0 | Y35: 0 | Z35: 0 | AA35: 0 | AB35: 0 | AC35: 0 | AD35: 0 | AE35: 0
E36: 20 kV OHL (Open) | F36: 0 | G36: 0 | H36: 0 | I36: 0 | J36: 0 | K36: 0 | L36: 0 | M36: 0 | N36: 0 | O36: 0 | P36: 0 | Q36: 0 | R36: 0 | S36: 0 | T36: 0 | U36: 0 | V36: 0 | W36: 0 | X36: 0 | Y36: 0 | Z36: 0 | AA36: 0 | AB36: 0 | AC36: 0 | AD36: 0 | AE36: 0
E37: 20 kV OHL (Covered) | F37: 0 | G37: 0 | H37: 0 | I37: 0 | J37: 0 | K37: 0 | L37: 0 | M37: 0 | N37: 0 | O37: 0 | P37: 0 | Q37: 0 | R37: 0 | S37: 0 | T37: 0 | U37: 0 | V37: 0 | W37: 0 | X37: 0 | Y37: 0 | Z37: 0 | AA37: 0 | AB37: 0 | AC37: 0 | AD37: 0 | AE37: 0
D39: Overhead lines - Support
E40: 6.6/11 kV Support | F40: 209466 | G40: 23 | H40: 137 | I40: 148 | J40: 137 | K40: 209591 | L40: 808 | M40: 94 | N40: 573 | O40: 94 | P40: 209356 | Q40: 1577 | R40: 660 | S40: 991 | T40: 660 | U40: 208770 | V40: 592 | W40: 1779.2 | X40: 402 | Y40: 1474.8 | Z40: 208275.6 | AA40: 1060 | AB40: 2050.3 | AC40: 835 | AD40: 1730.7 | AE40: 207731
E41: 20 kV Support | F41: 0 | G41: 0 | H41: 0 | I41: 0 | J41: 0 | K41: 0 | L41: 0 | M41: 0 | N41: 0 | O41: 0 | P41: 0 | Q41: 0 | R41: 0 | S41: 0 | T41: 0 | U41: 0 | V41: 0 | W41: 0 | X41: 0 | Y41: 0 | Z41: 0 | AA41: 0 | AB41: 0 | AC41: 0 | AD41: 0 | AE41: 0
D43: Underground cables (kms)
E44: 6.6/11kV UG Cable | F44: 11712 | G44: 0 | H44: 1 | I44: 91 | J44: 19 | K44: 11821 | L44: 0 | M44: 73 | N44: 134 | O44: 76 | P44: 11958 | Q44: 0 | R44: 5 | S44: 89 | T44: 43 | U44: 12085 | V44: 0 | W44: 10.7 | X44: 32.8 | Y44: 77.1 | Z44: 12184.2 | AA44: 0 | AB44: 6.1 | AC44: 64.8 | AD44: 51.2 | AE44: 12294.1
E45: 20kV UG Cable | F45: 0 | G45: 0 | H45: 0 | I45: 0 | J45: 0 | K45: 0 | L45: 0 | M45: 0 | N45: 0 | O45: 0 | P45: 0 | Q45: 0 | R45: 0 | S45: 0 | T45: 0 | U45: 0 | V45: 0 | W45: 0 | X45: 0 | Y45: 0 | Z45: 0 | AA45: 0 | AB45: 0 | AC45: 0 | AD45: 0 | AE45: 0
D47: Submarine cables (kms)
E48: HV Sub Cable | F48: 0 | G48: 0 | H48: 0 | I48: 0 | J48: 0 | K48: 0 | L48: 0 | M48: 0 | N48: 0 | O48: 0 | P48: 0 | Q48: 0 | R48: 0 | S48: 0 | T48: 0 | U48: 0 | V48: 0 | W48: 0 | X48: 0 | Y48: 0 | Z48: 0 | AA48: 0 | AB48: 0 | AC48: 0 | AD48: 0 | AE48: 0
D50: Switchgear
E51: 6.6/11 kV CB (PM) | F51: 1660 | G51: 0 | H51: 28 | I51: 0 | J51: 34 | K51: 1666 | L51: 0 | M51: 4 | N51: 1 | O51: 44 | P51: 1707 | Q51: 0 | R51: 39 | S51: 0 | T51: 60 | U51: 1728 | V51: 0 | W51: 0 | X51: 0 | Y51: 26 | Z51: 1754 | AA51: 0 | AB51: 0 | AC51: 0 | AD51: 25 | AE51: 1779
E52: 6.6/11 kV CB (GM) | F52: 10293 | G52: 0 | H52: 1 | I52: 37 | J52: 0 | K52: 10329 | L52: 0 | M52: 228 | N52: 3 | O52: 11 | P52: 10115 | Q52: 0 | R52: 463 | S52: 0 | T52: 177 | U52: 9829 | V52: 0 | W52: 8 | X52: 0 | Y52: 36 | Z52: 9857 | AA52: 0 | AB52: 12 | AC52: 0 | AD52: 30 | AE52: 9875
E53: 6.6/11 kV Switch (PM) | F53: 773 | G53: 0 | H53: 0 | I53: 0 | J53: 2 | K53: 775 | L53: 0 | M53: 13 | N53: 0 | O53: 21 | P53: 783 | Q53: 0 | R53: 0 | S53: 0 | T53: 103 | U53: 886 | V53: 0 | W53: 382 | X53: 0 | Y53: 412 | Z53: 916 | AA53: 0 | AB53: 235 | AC53: 0 | AD53: 254 | AE53: 935
E54: 6.6/11 kV Switch (GM) | F54: 10115 | G54: 0 | H54: 137 | I54: 1 | J54: 169 | K54: 10148 | L54: 0 | M54: 353 | N54: 1 | O54: 0 | P54: 9796 | Q54: 0 | R54: 629 | S54: 0 | T54: 1 | U54: 9168 | V54: 0 | W54: 232 | X54: 0 | Y54: 1 | Z54: 8937 | AA54: 0 | AB54: 184 | AC54: 0 | AD54: 1 | AE54: 8754
E55: 6.6/11 kV RMU | F55: 11364 | G55: 16 | H55: 6 | I55: 355 | J55: 6 | K55: 11703 | L55: 0 | M55: 113 | N55: 357 | O55: 343 | P55: 12290 | Q55: 0 | R55: 236 | S55: 590 | T55: 140 | U55: 12784 | V55: 0 | W55: 63 | X55: 254 | Y55: 268 | Z55: 13243 | AA55: 0 | AB55: 60 | AC55: 576 | AD55: 232 | AE55: 13991
E56: 6.6/11 kV Switchgear - Other (PM) | F56: 11757 | G56: 0 | H56: 209 | I56: 0 | J56: 249 | K56: 11797 | L56: 58 | M56: 264 | N56: 0 | O56: 264 | P56: 11739 | Q56: 230 | R56: 360 | S56: 33 | T56: 360 | U56: 11542 | V56: 86 | W56: 0 | X56: 10 | Y56: 0 | Z56: 11466 | AA56: 155 | AB56: 0 | AC56: 10 | AD56: 0 | AE56: 11321
E57: 6.6/11 kV Switchgear - Other (GM) | F57: 0 | G57: 0 | H57: 0 | I57: 0 | J57: 0 | K57: 0 | L57: 0 | M57: 0 | N57: 0 | O57: 0 | P57: 0 | Q57: 0 | R57: 0 | S57: 0 | T57: 0 | U57: 0 | V57: 0 | W57: 0 | X57: 0 | Y57: 0 | Z57: 0 | AA57: 0 | AB57: 0 | AC57: 0 | AD57: 0 | AE57: 0
E58: 20 kV CB (PM) | F58: 0 | G58: 0 | H58: 0 | I58: 0 | J58: 0 | K58: 0 | L58: 0 | M58: 0 | N58: 0 | O58: 0 | P58: 0 | Q58: 0 | R58: 0 | S58: 0 | T58: 0 | U58: 0 | V58: 0 | W58: 0 | X58: 0 | Y58: 0 | Z58: 0 | AA58: 0 | AB58: 0 | AC58: 0 | AD58: 0 | AE58: 0
E59: 20 kV CB (GM) | F59: 0 | G59: 0 | H59: 0 | I59: 0 | J59: 0 | K59: 0 | L59: 0 | M59: 0 | N59: 0 | O59: 0 | P59: 0 | Q59: 0 | R59: 0 | S59: 0 | T59: 0 | U59: 0 | V59: 0 | W59: 0 | X59: 0 | Y59: 0 | Z59: 0 | AA59: 0 | AB59: 0 | AC59: 0 | AD59: 0 | AE59: 0
E60: 20 kV Switch (PM) | F60: 0 | G60: 0 | H60: 0 | I60: 0 | J60: 0 | K60: 0 | L60: 0 | M60: 0 | N60: 0 | O60: 0 | P60: 0 | Q60: 0 | R60: 0 | S60: 0 | T60: 0 | U60: 0 | V60: 0 | W60: 0 | X60: 0 | Y60: 0 | Z60: 0 | AA60: 0 | AB60: 0 | AC60: 0 | AD60: 0 | AE60: 0
E61: 20 kV Switch (GM) | F61: 0 | G61: 0 | H61: 0 | I61: 0 | J61: 0 | K61: 0 | L61: 0 | M61: 0 | N61: 0 | O61: 0 | P61: 0 | Q61: 0 | R61: 0 | S61: 0 | T61: 0 | U61: 0 | V61: 0 | W61: 0 | X61: 0 | Y61: 0 | Z61: 0 | AA61: 0 | AB61: 0 | AC61: 0 | AD61: 0 | AE61: 0
E62: 20 kV RMU | F62: 0 | G62: 0 | H62: 0 | I62: 0 | J62: 0 | K62: 0 | L62: 0 | M62: 0 | N62: 0 | O62: 0 | P62: 0 | Q62: 0 | R62: 0 | S62: 0 | T62: 0 | U62: 0 | V62: 0 | W62: 0 | X62: 0 | Y62: 0 | Z62: 0 | AA62: 0 | AB62: 0 | AC62: 0 | AD62: 0 | AE62: 0
E63: 20 kV Switchgear - Other (PM) | F63: 0 | G63: 0 | H63: 0 | I63: 0 | J63: 0 | K63: 0 | L63: 0 | M63: 0 | N63: 0 | O63: 0 | P63: 0 | Q63: 0 | R63: 0 | S63: 0 | T63: 0 | U63: 0 | V63: 0 | W63: 0 | X63: 0 | Y63: 0 | Z63: 0 | AA63: 0 | AB63: 0 | AC63: 0 | AD63: 0 | AE63: 0
E64: 20 kV Switchgear - Other (GM) | F64: 0 | G64: 0 | H64: 0 | I64: 0 | J64: 0 | K64: 0 | L64: 0 | M64: 0 | N64: 0 | O64: 0 | P64: 0 | Q64: 0 | R64: 0 | S64: 0 | T64: 0 | U64: 0 | V64: 0 | W64: 0 | X64: 0 | Y64: 0 | Z64: 0 | AA64: 0 | AB64: 0 | AC64: 0 | AD64: 0 | AE64: 0
D66: Transformers
E67: 6.6/11 kV Transformer (PM) | F67: 33900 | G67: 254 | H67: 38 | I67: 411 | J67: 58 | K67: 34077 | L67: 0 | M67: 109 | N67: 404 | O67: 129 | P67: 34501 | Q67: 519 | R67: 188 | S67: 592 | T67: 188 | U67: 34574 | V67: 195 | W67: 133 | X67: 253 | Y67: 136 | Z67: 34635 | AA67: 349 | AB67: 133 | AC67: 572 | AD67: 127 | AE67: 34852
E68: 6.6/11 kV Transformer (GM) | F68: 15050 | G68: 34 | H68: 20 | I68: 325 | J68: 10 | K68: 15331 | L68: 63 | M68: 47 | N68: 290 | O68: 47 | P68: 15558 | Q68: 280 | R68: 140 | S68: 305 | T68: 140 | U68: 15583 | V68: 105 | W68: 73 | X68: 130 | Y68: 89 | Z68: 15624 | AA68: 188 | AB68: 59 | AC68: 294 | AD68: 79 | AE68: 15750
E69: 20 kV Transformer (PM) | F69: 0 | G69: 0 | H69: 0 | I69: 0 | J69: 0 | K69: 0 | L69: 0 | M69: 0 | N69: 0 | O69: 0 | P69: 0 | Q69: 0 | R69: 0 | S69: 0 | T69: 0 | U69: 0 | V69: 0 | W69: 0 | X69: 0 | Y69: 0 | Z69: 0 | AA69: 0 | AB69: 0 | AC69: 0 | AD69: 0 | AE69: 0
E70: 20 kV Transformer (GM) | F70: 0 | G70: 0 | H70: 0 | I70: 0 | J70: 0 | K70: 0 | L70: 0 | M70: 0 | N70: 0 | O70: 0 | P70: 0 | Q70: 0 | R70: 0 | S70: 0 | T70: 0 | U70: 0 | V70: 0 | W70: 0 | X70: 0 | Y70: 0 | Z70: 0 | AA70: 0 | AB70: 0 | AC70: 0 | AD70: 0 | AE70: 0
C72: EHV Network
D73: Overhead lines - Conductor
E74: 33kV OHL (Pole Line) | F74: 1032 | G74: 0 | H74: 6 | I74: 5 | J74: 6 | K74: 1037 | L74: 8 | M74: 8 | N74: 6 | O74: 8 | P74: 1035 | Q74: 3 | R74: 8 | S74: 5 | T74: 8 | U74: 1037 | V74: 5 | W74: 3.1 | X74: 4.3 | Y74: 1.9 | Z74: 1035.1 | AA74: 0.6 | AB74: 9.7 | AC74: 0.7 | AD74: 3.5 | AE74: 1029
E75: 33kV OHL (Tower Line) | F75: 0 | G75: 0 | H75: 0 | I75: 0 | J75: 0 | K75: 0 | L75: 0 | M75: 0 | N75: 0 | O75: 0 | P75: 0 | Q75: 0 | R75: 0 | S75: 0 | T75: 0 | U75: 0 | V75: 0 | W75: 0 | X75: 0 | Y75: 0 | Z75: 0 | AA75: 0 | AB75: 0 | AC75: 0 | AD75: 0 | AE75: 0
E76: 66kV OHL (Pole Line) | F76: 801 | G76: 0 | H76: 0 | I76: 0 | J76: 0 | K76: 801 | L76: 8 | M76: 0 | N76: 0 | O76: 0 | P76: 793 | Q76: 0 | R76: 0 | S76: 0 | T76: 0 | U76: 793 | V76: 0 | W76: 0 | X76: 0 | Y76: 0 | Z76: 793 | AA76: 0 | AB76: 0 | AC76: 0 | AD76: 0 | AE76: 793
E77: 66kV OHL (Tower Line) | F77: 0 | G77: 0 | H77: 0 | I77: 0 | J77: 0 | K77: 0 | L77: 0 | M77: 0 | N77: 0 | O77: 0 | P77: 0 | Q77: 0 | R77: 0 | S77: 0 | T77: 0 | U77: 0 | V77: 0 | W77: 0 | X77: 0 | Y77: 0 | Z77: 0 | AA77: 0 | AB77: 0 | AC77: 0 | AD77: 0 | AE77: 0
D79: Overhead lines - Support
E80: 33kV Pole | F80: 7723 | G80: 0 | H80: 58 | I80: 45 | J80: 43 | K80: 7753 | L80: 0 | M80: 0 | N80: 0 | O80: 0 | P80: 7753 | Q80: 168 | R80: 448 | S80: 97 | T80: 158 | U80: 7392 | V80: 50 | W80: 35 | X80: 43 | Y80: 22.7 | Z80: 7372.7 | AA80: 6 | AB80: 98.8 | AC80: 7 | AD80: 36.5 | AE80: 7311.4
E81: 33kV Tower | F81: 730 | G81: 5 | H81: 0 | I81: 0 | J81: 0 | K81: 725 | L81: 0 | M81: 0 | N81: 0 | O81: 0 | P81: 725 | Q81: 0 | R81: 0 | S81: 0 | T81: 0 | U81: 725 | V81: 0 | W81: 0 | X81: 0 | Y81: 0 | Z81: 725 | AA81: 0 | AB81: 0 | AC81: 0 | AD81: 0 | AE81: 725
E82: 66kV Pole | F82: 8891 | G82: 0 | H82: 0 | I82: 0 | J82: 0 | K82: 8891 | L82: 0 | M82: 0 | N82: 0 | O82: 0 | P82: 8891 | Q82: 0 | R82: 0 | S82: 0 | T82: 0 | U82: 8891 | V82: 0 | W82: 0 | X82: 0 | Y82: 0 | Z82: 8891 | AA82: 0 | AB82: 0 | AC82: 0 | AD82: 0 | AE82: 8891
E83: 66kV Tower | F83: 672 | G83: 0 | H83: 0 | I83: 0 | J83: 0 | K83: 672 | L83: 3 | M83: 0 | N83: 0 | O83: 0 | P83: 669 | Q83: 0 | R83: 0 | S83: 0 | T83: 0 | U83: 669 | V83: 0 | W83: 0 | X83: 0 | Y83: 0 | Z83: 669 | AA83: 0 | AB83: 0 | AC83: 0 | AD83: 0 | AE83: 669
D85: Underground cables (kms)
E86: 33kV UG Cable (Non Pressurised) | F86: 219 | G86: 0 | H86: 0 | I86: 1 | J86: 2 | K86: 222 | L86: 1 | M86: 3 | N86: 3 | O86: 3 | P86: 224 | Q86: 0 | R86: 7 | S86: 6 | T86: 10 | U86: 233 | V86: 1.9 | W86: 19.2 | X86: 11.9 | Y86: 4.5 | Z86: 228.3 | AA86: 1.1 | AB86: 12.3 | AC86: 4.4 | AD86: 2.2 | AE86: 221.5
E87: 33kV UG Cable (Oil) | F87: 130 | G87: 0 | H87: 0 | I87: 0 | J87: 0 | K87: 130 | L87: 2 | M87: 0 | N87: 0 | O87: 0 | P87: 128 | Q87: 6 | R87: 0 | S87: 0 | T87: 0 | U87: 122 | V87: 0 | W87: 0 | X87: 0 | Y87: 0 | Z87: 122 | AA87: 0 | AB87: 0 | AC87: 0 | AD87: 0 | AE87: 122
E88: 33kV UG Cable (Gas) | F88: 9 | G88: 0 | H88: 0 | I88: 0 | J88: 0 | K88: 9 | L88: 0 | M88: 0 | N88: 0 | O88: 0 | P88: 9 | Q88: 0 | R88: 0 | S88: 0 | T88: 0 | U88: 9 | V88: 0 | W88: 0 | X88: 0 | Y88: 0 | Z88: 9 | AA88: 0 | AB88: 0 | AC88: 0 | AD88: 0 | AE88: 9
E89: 66kV UG Cable (Non Pressurised) | F89: 8 | G89: 0 | H89: 0 | I89: 0 | J89: 0 | K89: 8 | L89: 0 | M89: 0 | N89: 0 | O89: 0 | P89: 8 | Q89: 0 | R89: 0 | S89: 0 | T89: 0 | U89: 8 | V89: 0 | W89: 0 | X89: 0 | Y89: 0 | Z89: 8 | AA89: 0 | AB89: 0 | AC89: 0 | AD89: 0 | AE89: 8
E90: 66kV UG Cable (Oil) | F90: 8 | G90: 0 | H90: 0 | I90: 0 | J90: 0 | K90: 8 | L90: 0 | M90: 0 | N90: 0 | O90: 0 | P90: 8 | Q90: 0 | R90: 0 | S90: 0 | T90: 0 | U90: 8 | V90: 0 | W90: 0 | X90: 0 | Y90: 0 | Z90: 8 | AA90: 0 | AB90: 0 | AC90: 0 | AD90: 0 | AE90: 8
E91: 66kV UG Cable (Gas) | F91: 0 | G91: 0 | H91: 0 | I91: 0 | J91: 0 | K91: 0 | L91: 0 | M91: 0 | N91: 0 | O91: 0 | P91: 0 | Q91: 0 | R91: 0 | S91: 0 | T91: 0 | U91: 0 | V91: 0 | W91: 0 | X91: 0 | Y91: 0 | Z91: 0 | AA91: 0 | AB91: 0 | AC91: 0 | AD91: 0 | AE91: 0
D93: Submarine cables (kms)
E94: EHV Sub Cable | F94: 0 | G94: 0 | H94: 0 | I94: 0 | J94: 0 | K94: 0 | L94: 0 | M94: 0 | N94: 0 | O94: 0 | P94: 0 | Q94: 0 | R94: 0 | S94: 0 | T94: 0 | U94: 0 | W94: 0 | Y94: 0 | Z94: 0 | AB94: 0 | AD94: 0 | AE94: 0
D96: Switchgear
E97: 33 KV CB (ID) | F97: 85 | G97: 0 | H97: 0 | I97: 0 | J97: 0 | K97: 85 | L97: 0 | M97: 0 | N97: 0 | O97: 0 | P97: 85 | Q97: 0 | R97: 0 | S97: 0 | T97: 0 | U97: 85 | V97: 0 | W97: 10 | X97: 0 | Y97: 10 | Z97: 85 | AA97: 0 | AB97: 4 | AC97: 3 | AD97: 4 | AE97: 88
E98: 33 kV CB (OD) | F98: 307 | G98: 0 | H98: 0 | I98: 1 | J98: 0 | K98: 308 | L98: 4 | M98: 3 | N98: 1 | O98: 3 | P98: 305 | Q98: 0 | R98: 0 | S98: 0 | T98: 0 | U98: 305 | V98: 0 | W98: 18 | X98: 0 | Y98: 18 | Z98: 305 | AA98: 0 | AB98: 9 | AC98: 0 | AD98: 9 | AE98: 305
E99: 33 kV Switch (GM) | F99: 0 | G99: 0 | H99: 0 | I99: 0 | J99: 0 | K99: 0 | L99: 0 | M99: 0 | N99: 0 | O99: 0 | P99: 0 | Q99: 0 | R99: 0 | S99: 0 | T99: 0 | U99: 0 | V99: 0 | W99: 0 | X99: 0 | Y99: 0 | Z99: 0 | AA99: 0 | AB99: 0 | AC99: 0 | AD99: 0 | AE99: 0
E100: 33 kV Switch (PM) | F100: 0 | G100: 0 | H100: 0 | I100: 0 | J100: 0 | K100: 0 | L100: 0 | M100: 0 | N100: 0 | O100: 0 | P100: 0 | Q100: 0 | R100: 0 | S100: 0 | T100: 0 | U100: 0 | V100: 0 | W100: 0 | X100: 0 | Y100: 0 | Z100: 0 | AA100: 0 | AB100: 0 | AC100: 0 | AD100: 0 | AE100: 0
E101: 33 kV RMU | F101: 0 | G101: 0 | H101: 0 | I101: 0 | J101: 0 | K101: 0 | L101: 0 | M101: 0 | N101: 0 | O101: 0 | P101: 0 | Q101: 0 | R101: 0 | S101: 0 | T101: 0 | U101: 0 | V101: 0 | W101: 0 | X101: 0 | Y101: 0 | Z101: 0 | AA101: 0 | AB101: 0 | AC101: 0 | AD101: 0 | AE101: 0
E102: 33 kV Switchgear - Other | F102: 1438 | G102: 0 | H102: 0 | I102: 0 | J102: 0 | K102: 1438 | L102: 0 | M102: 0 | N102: 0 | O102: 0 | P102: 1438 | Q102: 0 | R102: 0 | S102: 0 | T102: 6 | U102: 1444 | V102: 0 | W102: 0 | X102: 0 | Y102: 0 | Z102: 1444 | AA102: 0 | AB102: 0 | AC102: 0 | AD102: 0 | AE102: 1444
E103: 66 KV CB (ID & OD) | F103: 71 | G103: 0 | H103: 0 | I103: 0 | J103: 0 | K103: 71 | L103: 0 | M103: 0 | N103: 0 | O103: 1 | P103: 72 | Q103: 0 | R103: 0 | S103: 0 | T103: 5 | U103: 77 | V103: 0 | W103: 0 | X103: 0 | Y103: 0 | Z103: 77 | AA103: 0 | AB103: 0 | AC103: 0 | AD103: 0 | AE103: 77
E104: 66 KV Switchgear - Other | F104: 561 | G104: 0 | H104: 0 | I104: 0 | J104: 0 | K104: 561 | L104: 0 | M104: 0 | N104: 0 | O104: 0 | P104: 561 | Q104: 0 | R104: 0 | S104: 0 | T104: 14 | U104: 575 | V104: 0 | W104: 0 | X104: 0 | Y104: 0 | Z104: 575 | AA104: 0 | AB104: 0 | AC104: 0 | AD104: 0 | AE104: 575
D106: Transformers
E107: 33 kV Transformer (PM) | F107: 3 | G107: 0 | H107: 0 | I107: 0 | J107: 0 | K107: 3 | L107: 0 | M107: 0 | N107: 0 | O107: 0 | P107: 3 | Q107: 0 | R107: 0 | S107: 0 | T107: 0 | U107: 3 | V107: 0 | W107: 0 | X107: 0 | Y107: 0 | Z107: 3 | AA107: 0 | AB107: 0 | AC107: 0 | AD107: 0 | AE107: 3
E108: 33 kV Transformer (GM) | F108: 208 | G108: 4 | H108: 0 | I108: 0 | J108: 0 | K108: 204 | L108: 0 | M108: 0 | N108: 0 | O108: 0 | P108: 204 | Q108: 2 | R108: 1 | S108: 1 | T108: 1 | U108: 203 | V108: 0 | W108: 16 | X108: 0 | Y108: 16 | Z108: 203 | AA108: 2 | AB108: 0 | AC108: 2 | AD108: 0 | AE108: 203
E109: 33 kV AuxiliaryTransfomer | F109: 190 | G109: 0 | H109: 0 | I109: 0 | J109: 0 | K109: 190 | L109: 0 | M109: 0 | N109: 0 | O109: 0 | P109: 190 | Q109: 0 | R109: 0 | S109: 0 | T109: 3 | U109: 193 | V109: 0 | W109: 0 | X109: 0 | Y109: 0 | Z109: 193 | AA109: 0 | AB109: 0 | AC109: 0 | AD109: 0 | AE109: 193
E110: 66 kV Transformer | F110: 78 | G110: 0 | H110: 0 | I110: 0 | J110: 1 | K110: 79 | L110: 0 | M110: 0 | N110: 0 | O110: 1 | P110: 80 | Q110: 0 | R110: 4 | S110: 1 | T110: 5 | U110: 82 | V110: 0 | W110: 3 | X110: 0 | Y110: 3 | Z110: 82 | AA110: 0 | AB110: 0 | AC110: 0 | AD110: 0 | AE110: 82
E111: 66 kV AuxiliaryTransfomer | F111: 42 | G111: 0 | H111: 0 | I111: 0 | J111: 0 | K111: 42 | L111: 0 | M111: 0 | N111: 0 | O111: 0 | P111: 42 | Q111: 0 | R111: 0 | S111: 0 | T111: 4 | U111: 46 | V111: 0 | W111: 0 | X111: 0 | Y111: 0 | Z111: 46 | AA111: 0 | AB111: 0 | AC111: 0 | AD111: 0 | AE111: 46
C113: 132kV Network
D114: Overhead lines - Conductor
E115: 132kV OHL Conductor (Pole Line) | F115: 0 | G115: 0 | H115: 0 | I115: 0 | J115: 0 | K115: 0 | L115: 0 | M115: 0 | N115: 0 | O115: 0 | P115: 0 | Q115: 0 | R115: 0 | S115: 0 | T115: 0 | U115: 0 | V115: 0 | W115: 0 | X115: 0 | Y115: 0 | Z115: 0 | AA115: 0 | AB115: 0 | AC115: 0 | AD115: 0 | AE115: 0
E116: 132kV OHL Conductor (Tower Line) | F116: 1403 | G116: 11 | H116: 0 | I116: 0 | J116: 0 | K116: 1392 | L116: 0 | M116: 2 | N116: 0 | O116: 2 | P116: 1392 | Q116: 24 | R116: 0 | S116: 0 | T116: 0 | U116: 1368 | V116: 0 | W116: 200 | X116: 0 | Y116: 200 | Z116: 1368 | AA116: 0 | AB116: 46 | AC116: 0 | AD116: 46 | AE116: 1368
D118: Overhead lines - Support
E119: 132kV Pole | F119: 843 | G119: 0 | H119: 0 | I119: 0 | J119: 0 | K119: 843 | L119: 0 | M119: 0 | N119: 0 | O119: 0 | P119: 843 | Q119: 0 | R119: 0 | S119: 0 | T119: 0 | U119: 843 | V119: 0 | W119: 0 | X119: 0 | Y119: 0 | Z119: 843 | AA119: 0 | AB119: 0 | AC119: 0 | AD119: 0 | AE119: 843
E120: 132kV Tower | F120: 2799 | G120: 23 | H120: 0 | I120: 0 | J120: 0 | K120: 2776 | L120: 0 | M120: 0 | N120: 0 | O120: 0 | P120: 2776 | Q120: 0 | R120: 0 | S120: 0 | T120: 0 | U120: 2776 | V120: 0 | W120: 50 | X120: 0 | Y120: 50 | Z120: 2776 | AA120: 0 | AB120: 9 | AC120: 0 | AD120: 9 | AE120: 2776
E121: 132kV Fittings (Tower Line) | F121: 4787 | G121: 0 | H121: 0 | I121: 0 | J121: 0 | K121: 4787 | L121: 0 | M121: 0 | N121: 0 | O121: 0 | P121: 4787 | Q121: 0 | R121: 0 | S121: 0 | T121: 0 | U121: 4787 | V121: 0 | W121: 70 | X121: 0 | Y121: 70 | Z121: 4787 | AA121: 0 | AB121: 19 | AC121: 0 | AD121: 19 | AE121: 4787
D123: Underground cables (kms)
E124: 132kV UG Cable (Non Pressurised) | F124: 35 | G124: 0 | H124: 0 | I124: 0 | J124: 0 | K124: 35 | L124: 0 | M124: 0 | N124: 1 | O124: 0 | P124: 36 | Q124: 0 | R124: 0 | S124: 0 | T124: 0 | U124: 36 | V124: 0 | W124: 0 | X124: 7 | Y124: 0 | Z124: 43 | AA124: 0 | AB124: 0 | AC124: 0 | AD124: 0 | AE124: 43
E125: 132kV UG Cable (Oil) | F125: 256 | G125: 0 | H125: 0 | I125: 0 | J125: 0 | K125: 256 | L125: 0 | M125: 0 | N125: 0 | O125: 0 | P125: 256 | Q125: 5 | R125: 0 | S125: 0 | T125: 0 | U125: 251 | V125: 0 | W125: 0 | X125: 0 | Y125: 0 | Z125: 251 | AA125: 0 | AB125: 0 | AC125: 0 | AD125: 0 | AE125: 251
E126: 132kV UG Cable (Gas) | F126: 16 | G126: 0 | H126: 0 | I126: 0 | J126: 0 | K126: 16 | L126: 0 | M126: 0 | N126: 0 | O126: 0 | P126: 16 | Q126: 0 | R126: 0 | S126: 0 | T126: 0 | U126: 16 | V126: 0 | W126: 0 | X126: 0 | Y126: 0 | Z126: 16 | AA126: 0 | AB126: 0 | AC126: 0 | AD126: 0 | AE126: 16
D128: Submarine cables (kms)
E129: 132 kV Sub Cable | F129: 0 | G129: 0 | H129: 0 | I129: 0 | J129: 0 | K129: 0 | L129: 0 | M129: 0 | N129: 0 | O129: 0 | P129: 0 | Q129: 0 | R129: 0 | S129: 0 | T129: 0 | U129: 0 | W129: 0 | Y129: 0 | Z129: 0 | AB129: 0 | AD129: 0 | AE129: 0
D131: Switchgear
E132: 132 kV CB (ID & OD) | F132: 319 | G132: 10 | H132: 0 | I132: 3 | J132: 0 | K132: 312 | L132: 19 | M132: 0 | N132: 2 | O132: 0 | P132: 295 | Q132: 0 | R132: 0 | S132: 0 | T132: 0 | U132: 295 | V132: 0 | W132: 0 | X132: 0 | Y132: 0 | Z132: 295 | AA132: 0 | AB132: 0 | AC132: 0 | AD132: 0 | AE132: 295
E133: 132 kV Switchgear (other) | F133: 1690 | G133: 0 | H133: 0 | I133: 0 | J133: 0 | K133: 1690 | L133: 0 | M133: 0 | N133: 0 | O133: 0 | P133: 1690 | Q133: 0 | R133: 0 | S133: 0 | T133: 14 | U133: 1704 | V133: 0 | W133: 25 | X133: 0 | Y133: 25 | Z133: 1704 | AA133: 0 | AB133: 2 | AC133: 0 | AD133: 2 | AE133: 1704
D135: Transformers
E136: 132 kV Transformer | F136: 230 | G136: 0 | H136: 0 | I136: 4 | J136: 0 | K136: 234 | L136: 0 | M136: 2 | N136: 3 | O136: 3 | P136: 238 | Q136: 0 | R136: 2 | S136: 1 | T136: 3 | U136: 240 | V136: 4 | W136: 6 | X136: 7 | Y136: 6 | Z136: 243 | AA136: 0 | AB136: 0 | AC136: 0 | AD136: 6 | AE136: 249
E137: 132 kV AuxiliaryTransfomer | F137: 354 | G137: 0 | H137: 0 | I137: 0 | J137: 0 | K137: 354 | L137: 0 | M137: 0 | N137: 0 | O137: 0 | P137: 354 | Q137: 0 | R137: 0 | S137: 0 | T137: 2 | U137: 356 | V137: 2 | W137: 0 | X137: 2 | Y137: 0 | Z137: 356 | AA137: 0 | AB137: 0 | AC137: 0 | AD137: 0 | AE137: 356
C139: Tele-control / SCADA
D140: Primary substation
E141: 132 kV/EHV RTU (PM) | F141: 2 | G141: 0 | H141: 0 | I141: 0 | J141: 0 | K141: 2 | L141: 0 | M141: 0 | N141: 0 | O141: 0 | P141: 2 | Q141: 0 | R141: 0 | S141: 0 | T141: 0 | U141: 2 | W141: 0 | Y141: 0 | Z141: 2 | AB141: 0 | AD141: 0 | AE141: 2
E142: 132 kV/EHV RTU (GM) | F142: 262 | G142: 0 | H142: 0 | I142: 0 | J142: 0 | K142: 262 | L142: 0 | M142: 0 | N142: 0 | O142: 0 | P142: 262 | Q142: 0 | R142: 0 | S142: 0 | T142: 0 | U142: 262 | W142: 0 | Y142: 0 | Z142: 262 | AB142: 0 | AD142: 0 | AE142: 262
D144: Secondary substation
E145: HV RTU (PM) | F145: 1773 | G145: 0 | H145: 0 | I145: 0 | J145: 0 | K145: 1773 | L145: 0 | M145: 0 | N145: 0 | O145: 0 | P145: 1773 | Q145: 0 | R145: 0 | S145: 0 | T145: 0 | U145: 1773 | W145: 0 | Y145: 0 | Z145: 1773 | AB145: 0 | AD145: 0 | AE145: 1773
E146: HV RTU (GM) | F146: 1264 | G146: 0 | H146: 0 | I146: 0 | J146: 0 | K146: 1264 | L146: 0 | M146: 0 | N146: 0 | O146: 0 | P146: 1264 | Q146: 0 | R146: 0 | S146: 0 | T146: 0 | U146: 1264 | W146: 0 | Y146: 0 | Z146: 1264 | AB146: 0 | AD146: 0 | AE146: 1264

Sheet FBPQ LR1
A1: Main Forecast Business Plan DPCR5 | F1: Index
A3: LR1 - Demand
B6: Demand Totals
C8: Units | D8: DPCR4 | I8: DPCR5 | O8: DPCR4 | S8: DPCR5
D9: 2005/06 | E9: 2006/07 | F9: 2007/08 | G9: 2008/09 | H9: 2009/10 | I9: 2010/11 | J9: 2011/12 | K9: 2012/13 | L9: 2013/14 | M9: 2014/15 | O9: Actuals | P9: Forecast | Q9: Total | S9: Forecast | T9: % change
B10: Gross direct costs | C10: £m | D10: 13.24500922 | E10: 30.46738809 | F10: 43.70619704 | G10: 35.33726892 | H10: 31.51255342 | I10: 30.60763079 | J10: 32.3715748 | K10: 35.07391067 | L10: 37.40445611 | M10: 39.50437741 | O10: 87.41859436 | P10: 66.84982234 | Q10: 154.2684167 | S10: 174.9619498 | T10: 0.1341397904
B11: Customer contributions directs | C11: £m | D11: 11.2 | E11: 25.7 | F11: 36.1 | G11: 31 | H11: 29.1 | I11: 27.2 | J11: 28.9 | K11: 31.4 | L11: 33.5 | M11: 35.5 | O11: 73 | P11: 60.1 | Q11: 133.1 | S11: 156.5 | T11: 0.1758076634
B12: Net (gross directs - customer contributions directs) | C12: £m | D12: 2.045009223 | E12: 4.767388091 | F12: 7.606197044 | G12: 4.33726892 | H12: 2.412553422 | I12: 3.407630795 | J12: 3.471574795 | K12: 3.67391067 | L12: 3.904456109 | M12: 4.004377406 | O12: 14.41859436 | P12: 6.749822342 | Q12: 21.1684167 | S12: 18.46194978 | T12: -0.1278540083
B13: Customer contributions indirects | C13: £m | D13: -5.6 | E13: 16.4 | F13: 18.1 | G13: 7.3 | H13: 10.2 | I13: 9.8 | J13: 10.5 | K13: 11.4 | L13: 12.1 | M13: 12.9 | O13: 28.9 | P13: 17.5 | Q13: 46.4 | S13: 56.7 | T13: 0.2219827586
B14: Net (gross directs - customer contributions directs and indirects) | C14: £m | D14: 7.645009223 | E14: -11.63261191 | F14: -10.49380296 | G14: -2.96273108 | H14: -7.787446578 | I14: -6.392369205 | J14: -7.028425205 | K14: -7.72608933 | L14: -8.195543891 | M14: -8.895622594 | O14: -14.48140564 | P14: -10.75017766 | Q14: -25.2315833 | S14: -38.23805022 | T14: 0.5154835814
B16: Demand trends
C18: Units | D18: DPCR4 | I18: DPCR5
D19: 2005/06 | E19: 2006/07 | F19: 2007/08 | G19: 2008/09 | H19: 2009/10 | I19: 2010/11 | J19: 2011/12 | K19: 2012/13 | L19: 2013/14 | M19: 2014/15
B21: Estimated system maximum demand | C21: MW | D21: 4796 | E21: 4658.951307 | F21: 4826.010629 | G21: 4881.00878 | H21: 4891.015035 | I21: 4901.015139 | J21: 4911.020083 | K21: 4921.963672 | L21: 4931.959864 | M21: 4941.996358
B22: Increase/Reduction in max demand | C22: MW | D22: 18.41104362 | E22: -137.0486929 | F22: 167.0593217 | G22: 54.99815107 | H22: 10.00625521 | I22: 10.00010379 | J22: 10.00494395 | K22: 10.94358958 | L22: 9.996191688 | M22: 10.03649386
B23: Incremental increase in max demand due to new connections | C23: MW | D23: 29.78840824 | E23: 55.9432135 | F23: 45.74140339 | G23: 34.56884455 | H23: 31.48048336 | I23: 32.59562053 | J23: 35.60090902 | K23: 39.33955465 | L23: 43.69215676 | M23: 48.73245893
B24: Incremental reduction in max demand due to disconnections | C24: MW | D24: -11.37736462 | E24: -23.89190644 | F24: -30.7820817 | G24: -30.07069348 | H24: -31.57422815 | I24: -29.99551674 | J24: -26.99596507 | K24: -26.99596507 | L24: -26.99596507 | M24: -26.99596507
B25: Net change in max demand (not due to connections/disconnections) | C25: MW | D25: 0 | E25: -169.1 | F25: 152.1 | G25: 50.5 | H25: 10.1 | I25: 7.4 | J25: 1.4 | K25: -1.4 | L25: -6.7 | M25: -11.7
B27: Estimated units distributed | C27: GWh | D27: 27442.5 | E27: 26786.4452 | F27: 26750.63509 | G27: 25371.57915 | H27: 24285.92766 | I27: 24194.59267 | J27: 24710.96917 | K27: 24690.03287 | L27: 24748.53208 | M27: 24685.94163
B28: Increase/Reduction in units distributed | C28: GWh | D28: 0 | E28: -656.0548026 | F28: -35.81010655 | G28: -1379.055937 | H28: -1085.651495 | I28: -91.33498775 | J28: 516.3765008 | K28: -20.9363009 | L28: 58.49920642 | M28: -62.59045095
B29: Increase in units distributed due to generic background demand growth | C29: GWh | D29: 0 | E29: -457.1 | F29: 7.3 | G29: -130 | H29: 21.79099285 | I29: -26.76305848 | J29: 599.7657601 | K29: 89.4857114 | L29: 205.8793461 | M29: 122.9066872
B30: Reduction in units distributed due to energy efficiency | C30: GWh | D30: 0 | E30: -54.88501729 | F30: -53.57278619 | G30: -53.50122436 | H30: -50.74323226 | I30: -48.57192927 | J30: -48.3892593 | K30: -49.4220123 | L30: -49.3801397 | M30: -49.49713811
B31: Units distributed offset by DG | C31: GWh | D31: 0 | E31: 0 | F31: 0 | G31: 0 | H31: -1 | I31: -16 | J31: -35 | K31: -61 | L31: -98 | M31: -136
B32: Units distributed offset by DSM | C32: GWh | D32: 0 | E32: 0 | F32: 0 | G32: 0 | H32: 0 | I32: 0 | J32: 0 | K32: 0 | L32: 0 | M32: 0
B33: Price impact on units distributed | C33: GWh | D33: 0 | E33: -144.0697853 | F33: 10.46267964 | G33: -165.0902564 | H33: 0 | I33: 0 | J33: 0 | K33: 0 | L33: 0 | M33: 0
B34: Economic downturn effect on units distributed | C34: GWh | D34: 0 | E34: 0 | F34: 0 | G34: -1030.464456 | H34: -1055.699255 | I34: 0 | J34: 0 | K34: 0 | L34: 0 | M34: 0
B36: Estimated units distributed
B37: LV | C37: GWh | D37: 17231.53429 | E37: 16986.07186 | F37: 17083.98009 | G37: 16260.70717 | H37: 15739.43599 | I37: 15703.63889 | J37: 16138.15649 | K37: 16185.00947 | L37: 16226.01819 | M37: 16227.4158
B38: HV | C38: GWh | D38: 9571.715183 | E38: 9219.560492 | F38: 9050.83227 | G38: 8539.283034 | H38: 8008.037178 | I38: 7953.862352 | J38: 8023.778735 | K38: 7954.862348 | L38: 7972.352832 | M38: 7909.140416
B39: EHV (inc. 132kV) | C39: GWh | D39: 639.2591756 | E39: 580.7607456 | F39: 615.7998188 | G39: 571.6259314 | H39: 538.491467 | I39: 537.1284088 | J39: 549.0709235 | K39: 550.1980312 | L39: 550.1980312 | M39: 549.4223929
B40: Total units distributed | C40: GWh | D40: 27442.50865 | E40: 26786.39309 | F40: 26750.61218 | G40: 25371.61613 | H40: 24285.96464 | I40: 24194.62965 | J40: 24711.00615 | K40: 24690.06985 | L40: 24748.56906 | M40: 24685.9786
B42: Incremental increase in units distributed attributable to new connections
B43: LV | C43: MWh | D43: 150986.2642 | E43: 203584.554 | F43: 192253.5893 | G43: 132484.4109 | H43: 122176.0219 | I43: 125837.5671 | J43: 137088.3975 | K43: 151224.3507 | L43: 167392.0321 | M43: 185894.6917
B44: HV | C44: MWh | D44: 83864.24907 | E44: 323226.7933 | F44: 212281.3805 | G44: 186685.3128 | H44: 166269.6096 | I44: 173692.0325 | J44: 190606.7963 | K44: 211244.8328 | L44: 235871.0481 | M44: 264843.8872
B45: EHV (inc. 132kV) | C45: MWh | D45: 0 | E45: 0 | F45: 0 | G45: 0 | H45: 0 | I45: 0 | J45: 0 | K45: 0 | L45: 0 | M45: 0
B46: Total increase in units distributed due to new connections | C46: MWh | D46: 234850.5132 | E46: 526811.3473 | F46: 404534.9698 | G46: 319169.7237 | H46: 288445.6315 | I46: 299529.5996 | J46: 327695.1939 | K46: 362469.1835 | L46: 403263.0802 | M46: 450738.5789
B49: Connections/disconnections volume
C51: Units | D51: DPCR4 | I51: DPCR5
D52: 2005/06 | E52: 2006/07 | F52: 2007/08 | G52: 2008/09 | H52: 2009/10 | I52: 2010/11 | J52: 2011/12 | K52: 2012/13 | L52: 2013/14 | M52: 2014/15
B53: Connections/Disconnections
B54: Estimated number demand connections/disconnections at LV
B55: IDNO connections | C55: # | D55: 1 | E55: 0 | F55: 4 | G55: 4 | H55: 3 | I55: 3 | J55: 4 | K55: 4 | L55: 5 | M55: 5
B56: Connections (excluding IDNOs) | C56: # | D56: 34709 | E56: 32183 | F56: 29520 | G56: 20064 | H56: 21471 | I56: 21340 | J56: 22365 | K56: 24164 | L56: 26142 | M56: 28314
B57: Disconnections | C57: # | D57: 6042 | E57: 12688 | F57: 16347 | G57: 15969 | H57: 16768 | I57: 15929 | J57: 14336 | K57: 14336 | L57: 14336 | M57: 14336
B58: Estimated number demand connections/disconnections at HV
B59: IDNO connections | C59: # | D59: 2 | E59: 5 | F59: 6 | G59: 5 | H59: 5 | I59: 5 | J59: 6 | K59: 6 | L59: 7 | M59: 8
B60: Connections (excluding IDNOs) | C60: # | D60: 54 | E60: 615 | F60: 376 | G60: 336 | H60: 302 | I60: 317 | J60: 348 | K60: 386 | L60: 432 | M60: 488
B61: Disconnections | C61: # | D61: 61 | E61: 128 | F61: 165 | G61: 161 | H61: 169 | I61: 161 | J61: 145 | K61: 145 | L61: 145 | M61: 145
B62: Estimated number demand connections/disconnections at EHV
B63: IDNO connections | C63: # | D63: 0 | E63: 0 | F63: 0 | G63: 0 | H63: 0 | I63: 0 | J63: 0 | K63: 0 | L63: 0 | M63: 0
B64: Connections (excluding IDNOs) | C64: # | D64: 0 | E64: 0 | F64: 0 | G64: 0 | H64: 0 | I64: 0 | J64: 0 | K64: 0 | L64: 0 | M64: 0
B65: Disconnections | C65: # | D65: 0 | E65: 0 | F65: 0 | G65: 0 | H65: 0 | I65: 0 | J65: 0 | K65: 0 | L65: 0 | M65: 0
B66: Estimated number demand connections/disconnections at 132kV
B67: IDNO connections | C67: # | D67: 0 | E67: 0 | F67: 0 | G67: 0 | H67: 0 | I67: 0 | J67: 0 | K67: 0 | L67: 0 | M67: 0
B68: Connections (excluding IDNOs) | C68: # | D68: 0 | E68: 0 | F68: 0 | G68: 0 | H68: 0 | I68: 0 | J68: 0 | K68: 0 | L68: 0 | M68: 0
B69: Disconnections | C69: # | D69: 0 | E69: 0 | F69: 0 | G69: 0 | H69: 0 | I69: 0 | J69: 0 | K69: 0 | L69: 0 | M69: 0
B70: Total number of demand connections | C70: # | D70: 34766 | E70: 32803 | F70: 29906 | G70: 20409 | H70: 21781 | I70: 21665 | J70: 22723 | K70: 24560 | L70: 26586 | M70: 28815
B71: Total number of demand disconnections | C71: # | D71: 6103 | E71: 12816 | F71: 16512 | G71: 16130 | H71: 16937 | I71: 16090 | J71: 14481 | K71: 14481 | L71: 14481 | M71: 14481
B74: Customer specific demand investment
C76: Units | D76: DPCR4 | I76: DPCR5 | O76: DPCR4 | S76: DPCR5
D77: 2005/06 | E77: 2006/07 | F77: 2007/08 | G77: 2008/09 | H77: 2009/10 | I77: 2010/11 | J77: 2011/12 | K77: 2012/13 | L77: 2013/14 | M77: 2014/15 | O77: Actuals | P77: Forecast | Q77: Total | S77: Forecast | T77: % change
B78: New connections & customer specific reinforcement:
B79: Connections provided at LV
B80: Sole use | C80: £m | D80: 0 | E80: 0 | F80: 0 | G80: 20.74575619 | H80: 17.04452575 | I80: 16.48862691 | J80: 17.56750096 | K80: 19.31035531 | L80: 20.67088364 | M80: 22.0123894 | O80: 0 | P80: 37.79028194 | Q80: 37.79028194 | S80: 96.04975622 | T80: 1.541652279
B81: Shared | C81: £m | D81: 11.86120229 | E81: 27.29163428 | F81: 36.55427389 | G81: 12.10996294 | H81: 8.621358955 | I81: 8.392414895 | J81: 8.981138129 | K81: 9.852222098 | L81: 10.63074016 | M81: 11.30100349 | O81: 75.70711046 | P81: 20.7313219 | Q81: 96.43843236 | S81: 49.15751877 | T81: -0.4902704496
B82: LV total | C82: £m | D82: 11.86120229 | E82: 27.29163428 | F82: 36.55427389 | G82: 32.85571914 | H82: 25.6658847 | I82: 24.88104181 | J82: 26.54863909 | K82: 29.16257741 | L82: 31.3016238 | M82: 33.31339289 | O82: 75.70711046 | P82: 58.52160384 | Q82: 134.2287143 | S82: 145.207275 | T82: 0.08178995634
B83: Connections provided at HV
B84: Sole use | C84: £m | D84: 0 | E84: 0 | F84: 0 | G84: 1.48892987 | H84: 3.369266718 | I84: 2.665825908 | J84: 2.763427117 | K84: 2.758622187 | L84: 2.854550598 | M84: 2.948087866 | O84: 0 | P84: 4.858196588 | Q84: 4.858196588 | S84: 13.99051368 | T84: 1.879775123
B85: Shared | C85: £m | D85: 1.383806934 | E85: 3.175753807 | F85: 7.151923153 | G85: 0.9926199135 | H85: 2.477401999 | I85: 3.060763079 | J85: 3.059508593 | K85: 3.152711071 | L85: 3.248281715 | M85: 3.242896653 | O85: 11.71148389 | P85: 3.470021912 | Q85: 15.18150581 | S85: 15.76416111 | T85: 0.03837928289
B86: HV total | C86: £m | D86: 1.383806934 | E86: 3.175753807 | F86: 7.151923153 | G86: 2.481549784 | H86: 5.846668717 | I86: 5.726588987 | J86: 5.82293571 | K86: 5.911333259 | L86: 6.102832313 | M86: 6.190984519 | O86: 11.71148389 | P86: 8.3282185 | Q86: 20.03970239 | S86: 29.75467479 | T86: 0.4847862609
B87: Connections provided at EHV
B88: Sole use | C88: £m | D88: 0 | E88: 0 | F88: 0 | G88: 0 | H88: 0 | I88: 0 | J88: 0 | K88: 0 | L88: 0 | M88: 0 | O88: 0 | P88: 0 | Q88: 0 | S88: 0 | T88: 0
B89: Shared | C89: £m | D89: 0 | E89: 0 | F89: 0 | G89: 0 | H89: 0 | I89: 0 | J89: 0 | K89: 0 | L89: 0 | M89: 0 | O89: 0 | P89: 0 | Q89: 0 | S89: 0 | T89: 0
B90: EHV total | C90: £m | D90: 0 | E90: 0 | F90: 0 | G90: 0 | H90: 0 | I90: 0 | J90: 0 | K90: 0 | L90: 0 | M90: 0 | O90: 0 | P90: 0 | Q90: 0 | S90: 0 | T90: 0
B91: Connections provided at 132kV
B92: Sole use | C92: £m | D92: 0 | E92: 0 | F92: 0 | G92: 0 | H92: 0 | I92: 0 | J92: 0 | K92: 0 | L92: 0 | M92: 0 | O92: 0 | P92: 0 | Q92: 0 | S92: 0 | T92: 0
B93: Shared | C93: £m | D93: 0 | E93: 0 | F93: 0 | G93: 0 | H93: 0 | I93: 0 | J93: 0 | K93: 0 | L93: 0 | M93: 0 | O93: 0 | P93: 0 | Q93: 0 | S93: 0 | T93: 0
B94: 132kV total | C94: £m | D94: 0 | E94: 0 | F94: 0 | G94: 0 | H94: 0 | I94: 0 | J94: 0 | K94: 0 | L94: 0 | M94: 0 | O94: 0 | P94: 0 | Q94: 0 | S94: 0 | T94: 0
B96: Expenditure on DSM to avoid customer spec investment | C96: £m | G96: 0 | H96: 0 | I96: 0 | J96: 0 | K96: 0 | L96: 0 | M96: 0 | O96: 0 | P96: 0 | Q96: 0 | S96: 0 | T96: 0
B97: Total inc. expenditure on DSM to avoid customer spec investment | C97: £m | D97: 13.24500922 | E97: 30.46738809 | F97: 43.70619704 | G97: 35.33726892 | H97: 31.51255342 | I97: 30.60763079 | J97: 32.3715748 | K97: 35.07391067 | L97: 37.40445611 | M97: 39.50437741 | O97: 87.41859436 | P97: 66.84982234 | Q97: 154.2684167 | S97: 174.9619498 | T97: 0.1341397904
B99: Expenditure avoided due to DG | C99: £m | G99: 0 | H99: 0 | I99: 0 | J99: 0 | K99: 0 | L99: 0 | M99: 0 | O99: 0 | P99: 0 | Q99: 0 | S99: 0 | T99: 0
B100: Expenditure avoided due to DSM | C100: £m | G100: 0 | H100: 0 | I100: 0 | J100: 0 | K100: 0 | L100: 0 | M100: 0 | O100: 0 | P100: 0 | Q100: 0 | S100: 0 | T100: 0
B103: Customer contributions - customer specific demand investment
C105: Units | D105: DPCR4 | I105: DPCR5 | O105: DPCR4 | S105: DPCR5
D106: 2005/06 | E106: 2006/07 | F106: 2007/08 | G106: 2008/09 | H106: 2009/10 | I106: 2010/11 | J106: 2011/12 | K106: 2012/13 | L106: 2013/14 | M106: 2014/15 | O106: Actuals | P106: Forecast | Q106: Total | S106: Forecast | T106: % change
B107: Customer contributions (directs) for connections at LV
B108: Sole use | C108: £m | D108: 0 | E108: 0 | F108: 0 | G108: 20.9 | H108: 17.2 | I108: 16.7 | J108: 17.8 | K108: 19.6 | L108: 21 | M108: 22.4 | O108: 0 | P108: 38.1 | Q108: 38.1 | S108: 97.5 | T108: 1.559055118
B109: Shared | C109: £m | D109: 10 | E109: 23 | F109: 30.6 | G109: 7.7 | H109: 6.4 | I109: 6.2 | J109: 6.6 | K109: 7.3 | L109: 7.8 | M109: 8.3 | O109: 63.6 | P109: 14.1 | Q109: 77.7 | S109: 36.2 | T109: -0.5341055341
B110: LV total | C110: £m | D110: 10 | E110: 23 | F110: 30.6 | G110: 28.6 | H110: 23.6 | I110: 22.9 | J110: 24.4 | K110: 26.9 | L110: 28.8 | M110: 30.7 | O110: 63.6 | P110: 52.2 | Q110: 115.8 | S110: 133.7 | T110: 0.1545768566
B111: Customer contributions (directs) for connections at HV
B112: Sole use | C112: £m | D112: 0 | E112: 0 | F112: 0 | G112: 1.5 | H112: 3.4 | I112: 2.7 | J112: 2.8 | K112: 2.8 | L112: 2.9 | M112: 3 | O112: 0 | P112: 4.9 | Q112: 4.9 | S112: 14.2 | T112: 1.897959184
B113: Shared | C113: £m | D113: 1.2 | E113: 2.7 | F113: 5.5 | G113: 0.9 | H113: 2.1 | I113: 1.6 | J113: 1.7 | K113: 1.7 | L113: 1.8 | M113: 1.8 | O113: 9.4 | P113: 3 | Q113: 12.4 | S113: 8.6 | T113: -0.3064516129
B114: HV total | C114: £m | D114: 1.2 | E114: 2.7 | F114: 5.5 | G114: 2.4 | H114: 5.5 | I114: 4.3 | J114: 4.5 | K114: 4.5 | L114: 4.7 | M114: 4.8 | O114: 9.4 | P114: 7.9 | Q114: 17.3 | S114: 22.8 | T114: 0.3179190751
B115: Customer contributions (directs) for connections at EHV
B116: Sole use | C116: £m | D116: 0 | E116: 0 | F116: 0 | G116: 0 | H116: 0 | I116: 0 | J116: 0 | K116: 0 | L116: 0 | M116: 0 | O116: 0 | P116: 0 | Q116: 0 | S116: 0 | T116: 0
B117: Shared | C117: £m | D117: 0 | E117: 0 | F117: 0 | G117: 0 | H117: 0 | I117: 0 | J117: 0 | K117: 0 | L117: 0 | M117: 0 | O117: 0 | P117: 0 | Q117: 0 | S117: 0 | T117: 0
B118: EHV total | C118: £m | D118: 0 | E118: 0 | F118: 0 | G118: 0 | H118: 0 | I118: 0 | J118: 0 | K118: 0 | L118: 0 | M118: 0 | O118: 0 | P118: 0 | Q118: 0 | S118: 0 | T118: 0
B119: Customer contributions (directs) for connections at 132kV
B120: Sole use | C120: £m | D120: 0 | E120: 0 | F120: 0 | G120: 0 | H120: 0 | I120: 0 | J120: 0 | K120: 0 | L120: 0 | M120: 0 | O120: 0 | P120: 0 | Q120: 0 | S120: 0 | T120: 0
B121: Shared | C121: £m | D121: 0 | E121: 0 | F121: 0 | G121: 0 | H121: 0 | I121: 0 | J121: 0 | K121: 0 | L121: 0 | M121: 0 | O121: 0 | P121: 0 | Q121: 0 | S121: 0 | T121: 0
B122: 132kV total | C122: £m | D122: 0 | E122: 0 | F122: 0 | G122: 0 | H122: 0 | I122: 0 | J122: 0 | K122: 0 | L122: 0 | M122: 0 | O122: 0 | P122: 0 | Q122: 0 | S122: 0 | T122: 0
B124: Customer contributions (directs) total | C124: £m | D124: 11.2 | E124: 25.7 | F124: 36.1 | G124: 31 | H124: 29.1 | I124: 27.2 | J124: 28.9 | K124: 31.4 | L124: 33.5 | M124: 35.5 | O124: 73 | P124: 60.1 | Q124: 133.1 | S124: 156.5 | T124: 0.1758076634
B125: Customer contributions (indirects) | C125: £m | D125: -5.6 | E125: 16.4 | F125: 18.1 | G125: 7.3 | H125: 10.2 | I125: 9.8 | J125: 10.5 | K125: 11.4 | L125: 12.1 | M125: 12.9 | O125: 28.9 | P125: 17.5 | Q125: 46.4 | S125: 56.7 | T125: 0.2219827586
B126: Customer contributions total | C126: £m | D126: 5.6 | E126: 42.1 | F126: 54.2 | G126: 38.3 | H126: 39.3 | I126: 37 | J126: 39.4 | K126: 42.8 | L126: 45.6 | M126: 48.4 | O126: 101.9 | P126: 77.6 | Q126: 179.5 | S126: 213.2 | T126: 0.1877437326
B128: Total inc. exp on DSM to avoid customer spec investment (net of cust cont) | C128: £m | D128: 7.645009223 | E128: -11.63261191 | F128: -10.49380296 | G128: -2.96273108 | H128: -7.787446578 | I128: -6.392369205 | J128: -7.028425205 | K128: -7.72608933 | L128: -8.195543891 | M128: -8.895622594 | O128: -14.48140564 | P128: -10.75017766 | Q128: -25.2315833 | S128: -38.23805022 | T128: 0.5154835814
C131: Units | D131: DPCR4 | I131: DPCR5 | O131: DPCR4 | S131: DPCR5
D132: 2005/06 | E132: 2006/07 | F132: 2007/08 | G132: 2008/09 | H132: 2009/10 | I132: 2010/11 | J132: 2011/12 | K132: 2012/13 | L132: 2013/14 | M132: 2014/15 | O132: Actuals | P132: Forecast | Q132: Total | S132: Forecast | T132: % change
B133: Unapportioned part of shared LV | C133: £m | D133: 1.861202289 | E133: 4.291634283 | F133: 5.954273892 | G133: 4.409962945 | H133: 2.221358955 | I133: 2.192414895 | J133: 2.381138129 | K133: 2.552222098 | L133: 2.830740157 | M133: 3.001003487 | O133: 12.10711046 | P133: 6.6313219 | Q133: 18.73843236 | S133: 12.95751877 | T133: -0.3085057215
B134: Unapportioned part of shared HV | C134: £m | D134: 0.1838069337 | E134: 0.4757538075 | F134: 1.651923153 | G134: 0.09261991349 | H134: 0.3774019985 | I134: 1.460763079 | J134: 1.359508593 | K134: 1.452711071 | L134: 1.448281715 | M134: 1.442896653 | O134: 2.311483894 | P134: 0.470021912 | Q134: 2.781505806 | S134: 7.164161112 | T134: 1.575641258
B135: Unapportioned part of shared EHV | C135: £m | D135: 0 | E135: 0 | F135: 0 | G135: 0 | H135: 0 | I135: 0 | J135: 0 | K135: 0 | L135: 0 | M135: 0 | O135: 0 | P135: 0 | Q135: 0 | S135: 0 | T135: 0
B136: Unapportioned part of shared 132kV | C136: £m | D136: 0 | E136: 0 | F136: 0 | G136: 0 | H136: 0 | I136: 0 | J136: 0 | K136: 0 | L136: 0 | M136: 0 | O136: 0 | P136: 0 | Q136: 0 | S136: 0 | T136: 0

Sheet FBPQ LR1 - V5 opt3
A1: Main Forecast Business Plan DPCR5
A3: LR1a - Demand - metered connections
B6: Demand Totals - Table 1
C8: Units | D8: DPCR4 | I8: DPCR5 | O8: DPCR4 | S8: DPCR5
D9: 2005/06 | E9: 2006/07 | F9: 2007/08 | G9: 2008/09 | H9: 2009/10 | I9: 2010/11 | J9: 2011/12 | K9: 2012/13 | L9: 2013/14 | M9: 2014/15 | O9: Actuals | P9: Forecast | Q9: Total | S9: Forecast | T9: % change
B10: Gross all connections costs | C10: £m | D10: =SUM(D178,D217,D240) -> 0 | E10: 0 | F10: 0 | G10: 0 | H10: 0 | I10: 0 | J10: 0 | K10: 0 | L10: 0 | M10: 0 | O10: =SUM(D10:G10) -> 0 | P10: =SUM(H10) -> 0 | Q10: =SUM(D10:H10) -> 0 | S10: =SUM(I10:M10) -> 0 | T10: =IF(Q10<>0,(S10-Q10)/Q10,"0") -> 0
B11: Gross direct connections costs subject to apportionment rule | C11: £m | D11: =D240 -> 0 | E11: 0 | F11: 0 | G11: 0 | H11: 0 | I11: 0 | J11: 0 | K11: 0 | L11: 0 | M11: 0 | O11: 0 | P11: 0 | Q11: 0 | S11: 0 | T11: 0
B12: Customer contributions excluding margins | C12: £m | D12: =D263 -> 0 | E12: 0 | F12: 0 | G12: 0 | H12: 0 | I12: 0 | J12: 0 | K12: 0 | L12: 0 | M12: 0 | O12: 0 | P12: 0 | Q12: 0 | S12: 0 | T12: 0
B13: Net (gross directs subject to apportionment rule - customer contributions directs) | C13: £m | D13: =D11-D12 -> 0 | E13: 0 | F13: 0 | G13: 0 | H13: 0 | I13: 0 | J13: 0 | K13: 0 | L13: 0 | M13: 0 | O13: 0 | P13: 0 | Q13: 0 | S13: 0 | T13: 0
B14: DUOS funded related party margin | C14: £m | M14: 0.3 | O14: 0 | P14: 0 | Q14: 0 | S14: 0.3 | T14: 0
B15: Net (gross directs subject to apportionment rule - customer contributions directs + DUOS funded related party margin) | C15: £m | D15: =D13+D14 -> 0 | E15: 0 | F15: 0 | G15: 0 | H15: 0 | I15: 0 | J15: 0 | K15: 0 | L15: 0 | M15: 0.3 | O15: 0 | P15: 0 | Q15: 0 | S15: 0.3 | T15: 0
B16: Check | D16: =IF(D13-SUM(D31,D35,D39,D43)=0,"OK","ERROR") -> OK | E16: OK | F16: OK | G16: OK | H16: OK | I16: OK | J16: OK | K16: OK | L16: OK | M16: OK
D18: DPCR4 | I18: DPCR5 | O18: DPCR4 | S18: DPCR5
C19: Units | D19: 2005/06 | E19: 2006/07 | F19: 2007/08 | G19: 2008/09 | H19: 2009/10 | I19: 2010/11 | J19: 2011/12 | K19: 2012/13 | L19: 2013/14 | M19: 2014/15 | O19: Actuals | P19: Forecast | Q19: Total | S19: Forecast | T19: % change
B20: Pensions with total gross direct connections costs | C20: £m | O20: =SUM(D20:G20) -> 0 | P20: =SUM(H20) -> 0 | Q20: =SUM(D20:H20) -> 0 | S20: =SUM(I20:M20) -> 0 | T20: =IF(Q20<>0,(S20-Q20)/Q20,"0") -> 0
B21: Pensions with direct connections costs subject to apportionment rule | C21: £m | O21: =SUM(D21:G21) -> 0 | P21: =SUM(H21) -> 0 | Q21: =SUM(D21:H21) -> 0 | S21: =SUM(I21:M21) -> 0 | T21: =IF(Q21<>0,(S21-Q21)/Q21,"0") -> 0
B22: Total | C22: £m | D22: =D20+D21 -> 0 | E22: 0 | F22: 0 | G22: 0 | H22: 0 | I22: 0 | J22: 0 | K22: 0 | L22: 0 | M22: 0 | O22: =SUM(D22:G22) -> 0 | P22: =SUM(H22) -> 0 | Q22: =SUM(D22:H22) -> 0 | S22: =SUM(I22:M22) -> 0 | T22: =IF(Q22<>0,(S22-Q22)/Q22,"0") -> 0
B24: Connections expenditure recovered via DUoS - Table 2
C26: Units | D26: DPCR4 | I26: DPCR5 | O26: DPCR4 | S26: DPCR5
D27: 2005/06 | E27: 2006/07 | F27: 2007/08 | G27: 2008/09 | H27: 2009/10 | I27: 2010/11 | J27: 2011/12 | K27: 2012/13 | L27: 2013/14 | M27: 2014/15 | O27: Actuals | P27: Forecast | Q27: Total | S27: Forecast | T27: % change
B28: Customer contributions (directs) for connections at LV
B29: Small scale LV domestic and one-off commercial | C29: £m | I29: =I225-I248 -> 0 | J29: 0 | K29: 0 | L29: 0 | M29: 0
B30: All other LV (with only LV work) | C30: £m | I30: 0 | J30: 0 | K30: 0 | L30: 0 | M30: 0
B31: LV total | C31: £m | D31: =D227-D250 -> 0 | E31: =E227-E250 -> 0 | F31: =F227-F250 -> 0 | G31: =G227-G250 -> 0 | H31: =H227-H250 -> 0 | I31: =SUM(I29:I30) -> 0 | J31: =SUM(J29:J30) -> 0 | K31: =SUM(K29:K30) -> 0 | L31: =SUM(L29:L30) -> 0 | M31: =SUM(M29:M30) -> 0 | O31: =SUM(D31:G31) -> 0 | P31: =SUM(H31) -> 0 | Q31: =SUM(D31:H31) -> 0 | S31: =SUM(I31:M31) -> 0 | T31: =IF(Q31<>0,(S31-Q31)/Q31,"0") -> 0
B32: Customer contributions (directs) for connections at HV
B33: LV end connections involving HV work | C33: £m | I33: =I229-I252 -> 0 | J33: 0 | K33: 0 | L33: 0 | M33: 0
B34: HV end connections involving only HV work | C34: £m | I34: 0 | J34: 0 | K34: 0 | L34: 0 | M34: 0
B35: HV total | C35: £m | D35: =D231-D254 -> 0 | E35: =E231-E254 -> 0 | F35: =F231-F254 -> 0 | G35: =G231-G254 -> 0 | H35: =H231-H254 -> 0 | I35: =SUM(I33:I34) -> 0 | J35: =SUM(J33:J34) -> 0 | K35: =SUM(K33:K34) -> 0 | L35: =SUM(L33:L34) -> 0 | M35: =SUM(M33:M34) -> 0 | O35: =SUM(D35:G35) -> 0 | P35: =SUM(H35) -> 0 | Q35: =SUM(D35:H35) -> 0 | S35: =SUM(I35:M35) -> 0 | T35: =IF(Q35<>0,(S35-Q35)/Q35,"0") -> 0
B36: Customer contributions (directs) for connections at EHV
B37: HV end connections involving EHV work | C37: £m | I37: =I233-I256 -> 0 | J37: 0 | K37: 0 | L37: 0 | M37: 0
B38: EHV end connections involving only EHV work | C38: £m | I38: 0 | J38: 0 | K38: 0 | L38: 0 | M38: 0
B39: EHV total | C39: £m | D39: =D235-D258 -> 0 | E39: =E235-E258 -> 0 | F39: =F235-F258 -> 0 | G39: =G235-G258 -> 0 | H39: =H235-H258 -> 0 | I39: =SUM(I37:I38) -> 0 | J39: =SUM(J37:J38) -> 0 | K39: =SUM(K37:K38) -> 0 | L39: =SUM(L37:L38) -> 0 | M39: =SUM(M37:M38) -> 0 | O39: =SUM(D39:G39) -> 0 | P39: =SUM(H39) -> 0 | Q39: =SUM(D39:H39) -> 0 | S39: =SUM(I39:M39) -> 0 | T39: =IF(Q39<>0,(S39-Q39)/Q39,"0") -> 0
B40: Customer contributions (directs) for connections at 132kV
B41: HV or EHV connections involving 132kV work | C41: £m | I41: =I237-I260 -> 0 | J41: 0 | K41: 0 | L41: 0 | M41: 0
B42: 132kV end connections involving only 132kV work | C42: £m | I42: 0 | J42: 0 | K42: 0 | L42: 0 | M42: 0
B43: 132kV total | C43: £m | D43: =D239-D262 -> 0 | E43: =E239-E262 -> 0 | F43: =F239-F262 -> 0 | G43: =G239-G262 -> 0 | H43: =H239-H262 -> 0 | I43: =SUM(I41:I42) -> 0 | J43: =SUM(J41:J42) -> 0 | K43: =SUM(K41:K42) -> 0 | L43: =SUM(L41:L42) -> 0 | M43: =SUM(M41:M42) -> 0 | O43: =SUM(D43:G43) -> 0 | P43: =SUM(H43) -> 0 | Q43: =SUM(D43:H43) -> 0 | S43: =SUM(I43:M43) -> 0 | T43: =IF(Q43<>0,(S43-Q43)/Q43,"0") -> 0
B46: Metered connections volume - Table 3
C48: Units | D48: DPCR4 | I48: DPCR5
D49: 2005/06 | E49: 2006/07 | F49: 2007/08 | G49: 2008/09 | H49: 2009/10 | I49: 2010/11 | J49: 2011/12 | K49: 2012/13 | L49: 2013/14 | M49: 2014/15
B50: Metered connections
B51: Estimated number demand connections at LV
B52: IDNO connections | C52: # | D52: =D83+D114 -> 0 | E52: 0 | F52: 0 | G52: 0 | H52: 0 | I52: 0 | J52: 0 | K52: 0 | L52: 0 | M52: 0
B53: Adopted connections | D53: =D84+D115 -> 0 | E53: 0 | F53: 0 | G53: 0 | H53: 0 | I53: 0 | J53: 0 | K53: 0 | L53: 0 | M53: 0
B54: Small scale LV domestic and one-off commercial connections | I54: =I85+I116 -> 0 | J54: 0 | K54: 0 | L54: 0 | M54: 0
B55: All other LV connections (with only LV work) | C55: # | I55: 0 | J55: 0 | K55: 0 | L55: 0 | M55: 0
B56: DNO total LV | D56: =D87+D118 -> 0 | E56: =E87+E118 -> 0 | F56: =F87+F118 -> 0 | G56: =G87+G118 -> 0 | H56: =H87+H118 -> 0 | I56: 0 | J56: 0 | K56: 0 | L56: 0 | M56: 0
B57: Estimated number demand connections at HV
B58: IDNO connections | C58: # | D58: =D89+D120 -> 0 | E58: 0 | F58: 0 | G58: 0 | H58: 0 | I58: 0 | J58: 0 | K58: 0 | L58: 0 | M58: 0
B59: Adopted connections | D59: =D90+D121 -> 0 | E59: 0 | F59: 0 | G59: 0 | H59: 0 | I59: 0 | J59: 0 | K59: 0 | L59: 0 | M59: 0
B60: LV end connections involving HV work | I60: =I91+I122 -> 0 | J60: 0 | K60: 0 | L60: 0 | M60: 0
B61: HV end connections involving only HV work | C61: # | I61: 0 | J61: 0 | K61: 0 | L61: 0 | M61: 0
B62: DNO total HV | D62: =D93+D124 -> 0 | E62: =E93+E124 -> 0 | F62: =F93+F124 -> 0 | G62: =G93+G124 -> 0 | H62: =H93+H124 -> 0 | I62: 0 | J62: 0 | K62: 0 | L62: 0 | M62: 0
B63: Estimated number demand connections at EHV
B64: IDNO connections | C64: # | D64: =D95+D126 -> 0 | E64: 0 | F64: 0 | G64: 0 | H64: 0 | I64: 0 | J64: 0 | K64: 0 | L64: 0 | M64: 0
B65: Adopted connections | D65: =D96+D127 -> 0 | E65: 0 | F65: 0 | G65: 0 | H65: 0 | I65: 0 | J65: 0 | K65: 0 | L65: 0 | M65: 0
B66: HV end connections involving EHV work | I66: =I97+I128 -> 0 | J66: 0 | K66: 0 | L66: 0 | M66: 0
B67: EHV end connections involving only EHV work | C67: # | I67: 0 | J67: 0 | K67: 0 | L67: 0 | M67: 0
B68: DNO total EHV | D68: =D99+D130 -> 0 | E68: =E99+E130 -> 0 | F68: =F99+F130 -> 0 | G68: =G99+G130 -> 0 | H68: =H99+H130 -> 0 | I68: 0 | J68: 0 | K68: 0 | L68: 0 | M68: 0
B69: Estimated number demand connections at 132kV
B70: IDNO connections | C70: # | D70: =D101+D132 -> 0 | E70: 0 | F70: 0 | G70: 0 | H70: 0 | I70: 0 | J70: 0 | K70: 0 | L70: 0 | M70: 0
B71: Adopted connections | D71: =D102+D133 -> 0 | E71: 0 | F71: 0 | G71: 0 | H71: 0 | I71: 0 | J71: 0 | K71: 0 | L71: 0 | M71: 0
B72: HV or EHV connections involving 132kV work | I72: =I103+I134 -> 0 | J72: 0 | K72: 0 | L72: 0 | M72: 0
B73: 132kV end connections involving only 132kV work | C73: # | I73: 0 | J73: 0 | K73: 0 | L73: 0 | M73: 0
B74: DNO total 132kV | D74: =D105+D136 -> 0 | E74: =E105+E136 -> 0 | F74: =F105+F136 -> 0 | G74: =G105+G136 -> 0 | H74: =H105+H136 -> 0 | I74: 0 | J74: 0 | K74: 0 | L74: 0 | M74: 0
B75: Total number of demand connections | C75: # | D75: =SUM(D52:D55,D58:D61,D64:D67,D70:D73) -> 0 | E75: 0 | F75: 0 | G75: 0 | H75: 0 | I75: 0 | J75: 0 | K75: 0 | L75: 0 | M75: 0
B77: Metered connections volume - Sole use connections where there is no associated expenditure subject to the apportionment rule - Table 4
C79: Units | D79: DPCR4 | I79: DPCR5
D80: 2005/06 | E80: 2006/07 | F80: 2007/08 | G80: 2008/09 | H80: 2009/10 | I80: 2010/11 | J80: 2011/12 | K80: 2012/13 | L80: 2013/14 | M80: 2014/15
B81: Metered connections
B82: Estimated number demand connections at LV
B83: IDNO connections | C83: #
B84: Adopted connections
B85: Small scale LV domestic and one-off commercial connections
B86: All other LV connections (with only LV work) | C86: #
B87: DNO total LV | I87: =SUM(I85:I86) -> 0 | J87: =SUM(J85:J86) -> 0 | K87: =SUM(K85:K86) -> 0 | L87: =SUM(L85:L86) -> 0 | M87: =SUM(M85:M86) -> 0
B88: Estimated number demand connections with HV work
B89: IDNO connections | C89: #
B90: Adopted connections
B91: LV end connections involving HV work
B92: HV end connections involving only HV work | C92: #
B93: DNO total HV | I93: =SUM(I91:I92) -> 0 | J93: =SUM(J91:J92) -> 0 | K93: =SUM(K91:K92) -> 0 | L93: =SUM(L91:L92) -> 0 | M93: =SUM(M91:M92) -> 0
B94: Estimated number demand connections with EHV work
B95: IDNO connections | C95: #
B96: Adopted connections
B97: HV end connections involving EHV work
B98: EHV end connections involving only EHV work | C98: #
B99: DNO total EHV | I99: =SUM(I97:I98) -> 0 | J99: =SUM(J97:J98) -> 0 | K99: =SUM(K97:K98) -> 0 | L99: =SUM(L97:L98) -> 0 | M99: =SUM(M97:M98) -> 0
B100: Estimated number demand connections with 132kV work
B101: IDNO connections | C101: #
B102: Adopted connections
B103: HV or EHV connections involving 132kV work
B104: 132kV end connections involving only 132kV work | C104: #
B105: DNO total 132kV | I105: =SUM(I103:I104) -> 0 | J105: =SUM(J103:J104) -> 0 | K105: =SUM(K103:K104) -> 0 | L105: =SUM(L103:L104) -> 0 | M105: =SUM(M103:M104) -> 0
B106: Total number of demand connections | C106: # | D106: =SUM(D83:D84,D87,D89:D90,D93,D95:D96,D99,D101:D102,D105) -> 0 | E106: 0 | F106: 0 | G106: 0 | H106: 0 | I106: 0 | J106: 0 | K106: 0 | L106: 0 | M106: 0
B108: Metered connections volume - Connections where there is associated expenditure subject to the apportionment rule - Table 5
C110: Units | D110: DPCR4 | I110: DPCR5
D111: 2005/06 | E111: 2006/07 | F111: 2007/08 | G111: 2008/09 | H111: 2009/10 | I111: 2010/11 | J111: 2011/12 | K111: 2012/13 | L111: 2013/14 | M111: 2014/15
B112: Metered connections
B113: Estimated number demand connections at LV
B114: IDNO connections | C114: #
B115: Adopted connections
B116: Small scale LV domestic and one-off commercial connections
B117: All other LV connections (with only LV work) | C117: #
B118: DNO total LV | I118: =SUM(I116:I117) -> 0 | J118: =SUM(J116:J117) -> 0 | K118: =SUM(K116:K117) -> 0 | L118: =SUM(L116:L117) -> 0 | M118: =SUM(M116:M117) -> 0
B119: Estimated number demand connections with HV work
B120: IDNO connections | C120: #
B121: Adopted connections
B122: LV end connections involving HV work
B123: HV end connections involving only HV work | C123: #
B124: DNO total HV | I124: =SUM(I122:I123) -> 0 | J124: =SUM(J122:J123) -> 0 | K124: =SUM(K122:K123) -> 0 | L124: =SUM(L122:L123) -> 0 | M124: =SUM(M122:M123) -> 0
B125: Estimated number demand connections with EHV work
B126: IDNO connections | C126: #
B127: Adopted connections
B128: HV end connections involving EHV work
B129: EHV end connections involving only EHV work | C129: #
B130: DNO total EHV | I130: =SUM(I128:I129) -> 0 | J130: =SUM(J128:J129) -> 0 | K130: =SUM(K128:K129) -> 0 | L130: =SUM(L128:L129) -> 0 | M130: =SUM(M128:M129) -> 0
B131: Estimated number demand connections with 132kV work
B132: IDNO connections | C132: #
B133: Adopted connections
B134: HV or EHV connections involving 132kV work
B135: 132kV end connections involving only 132kV work | C135: #
B136: DNO total 132kV | I136: =SUM(I134:I135) -> 0 | J136: =SUM(J134:J135) -> 0 | K136: =SUM(K134:K135) -> 0 | L136: =SUM(L134:L135) -> 0 | M136: =SUM(M134:M135) -> 0
B137: Total number of demand connections | C137: # | D137: =SUM(D114:D115,D118,D120:D121,D124,D126:D127,D130,D132:D133,D136) -> 0 | E137: 0 | F137: 0 | G137: 0 | H137: 0 | I137: 0 | J137: 0 | K137: 0 | L137: 0 | M137: 0
B141: Customer specific demand investment - Sole use expenditure where there is no associated expenditure subject to the apportionment rule - Table 6
C143: Units | D143: DPCR4 | I143: DPCR5 | O143: DPCR4 | S143: DPCR5
D144: 2005/06 | E144: 2006/07 | F144: 2007/08 | G144: 2008/09 | H144: 2009/10 | I144: 2010/11 | J144: 2011/12 | K144: 2012/13 | L144: 2013/14 | M144: 2014/15 | O144: Actuals | P144: Forecast | Q144: Total | S144: Forecast | T144: % change
B145: New connections & customer specific reinforcement:
B146: Connections provided at LV
B147: Small scale LV domestic and one-off commercial | C147: £m
B148: Ratio - small scale LV domestic and one-off commercial - non-contestable | C148: %
B149: Ratio - small scale LV domestic and one-off commercial - contestable | C149: % | I149: =1-I148 -> 1 | J149: =1-J148 -> 1 | K149: =1-K148 -> 1 | L149: =1-L148 -> 1 | M149: =1-M148 -> 1
B150: All other LV (with only LV work) | C150: £m
B151: Ratio - all other LV (with only LV work) - non-contestable | C151: %
B152: Ratio - all other LV (with only LV work) - contestable | C152: % | I152: =1-I151 -> 1 | J152: =1-J151 -> 1 | K152: =1-K151 -> 1 | L152: =1-L151 -> 1 | M152: =1-M151 -> 1
B153: LV total | C153: £m | I153: =SUM(I147,I150) -> 0 | J153: =SUM(J147,J150) -> 0 | K153: =SUM(K147,K150) -> 0 | L153: =SUM(L147,L150) -> 0 | M153: =SUM(M147,M150) -> 0 | O153: =SUM(D153:G153) -> 0 | P153: =SUM(H153) -> 0 | Q153: =SUM(D153:H153) -> 0 | S153: =SUM(I153:M153) -> 0 | T153: =IF(Q153<>0,(S153-Q153)/Q153,"0") -> 0
B154: Connections with HV work
B155: LV end connections involving HV work | C155: £m
B156: Ratio - LV end connections involving HV work - non-contestable | C156: %
B157: Ratio - LV end connections involving HV work - contestable | C157: % | I157: =1-I156 -> 1 | J157: =1-J156 -> 1 | K157: =1-K156 -> 1 | L157: =1-L156 -> 1 | M157: =1-M156 -> 1
B158: HV end connections involving only HV work | C158: £m
B159: Ratio - HV end connections involving only HV work - non-contestable | C159: %
B160: Ratio - HV end connections involving only HV work - contestable | C160: % | I160: =1-I159 -> 1 | J160: =1-J159 -> 1 | K160: =1-K159 -> 1 | L160: =1-L159 -> 1 | M160: =1-M159 -> 1
B161: HV total | C161: £m | I161: =SUM(I155,I158) -> 0 | J161: =SUM(J155,J158) -> 0 | K161: =SUM(K155,K158) -> 0 | L161: =SUM(L155,L158) -> 0 | M161: =SUM(M155,M158) -> 0 | O161: =SUM(D161:G161) -> 0 | P161: =SUM(H161) -> 0 | Q161: =SUM(D161:H161) -> 0 | S161: =SUM(I161:M161) -> 0 | T161: =IF(Q161<>0,(S161-Q161)/Q161,"0") -> 0
B162: Connections with EHV work
B163: HV end connections involving EHV work | C163: £m
B164: Ratio - HV end connections involving EHV work - non-contestable | C164: %
B165: Ratio - HV end connections involving EHV work - contestable | C165: % | I165: =1-I164 -> 1 | J165: =1-J164 -> 1 | K165: =1-K164 -> 1 | L165: =1-L164 -> 1 | M165: =1-M164 -> 1
B166: EHV end connections involving only EHV work | C166: £m
B167: Ratio - EHV end connections involving only EHV work - non-contestable | C167: %
B168: Ratio - EHV end connections involving only EHV work - contestable | C168: % | I168: =1-I167 -> 1 | J168: =1-J167 -> 1 | K168: =1-K167 -> 1 | L168: =1-L167 -> 1 | M168: =1-M167 -> 1
B169: EHV total | C169: £m | I169: =SUM(I163,I166) -> 0 | J169: =SUM(J163,J166) -> 0 | K169: =SUM(K163,K166) -> 0 | L169: =SUM(L163,L166) -> 0 | M169: =SUM(M163,M166) -> 0 | O169: =SUM(D169:G169) -> 0 | P169: =SUM(H169) -> 0 | Q169: =SUM(D169:H169) -> 0 | S169: =SUM(I169:M169) -> 0 | T169: =IF(Q169<>0,(S169-Q169)/Q169,"0") -> 0
B170: Connections with 132kV work
B171: HV or EHV connections involving 132kV work | C171: £m
B172: Ratio - HV or EHV connections involving 132kV work - non-contestable | C172: %
B173: Ratio - HV or EHV connections involving 132kV work - contestable | C173: % | I173: =1-I172 -> 1 | J173: =1-J172 -> 1 | K173: =1-K172 -> 1 | L173: =1-L172 -> 1 | M173: =1-M172 -> 1
B174: 132kV end connections involving only 132kV work | C174: £m
B175: Ratio - 132kV end connections involving only 132kV work - non-contestable | C175: %
B176: Ratio - 132kV end connections involving only 132kV work - contestable | C176: % | I176: =1-I175 -> 1 | J176: =1-J175 -> 1 | K176: =1-K175 -> 1 | L176: =1-L175 -> 1 | M176: =1-M175 -> 1
B177: 132kV total | C177: £m | I177: =SUM(I171,I174) -> 0 | J177: =SUM(J171,J174) -> 0 | K177: =SUM(K171,K174) -> 0 | L177: =SUM(L171,L174) -> 0 | M177: =SUM(M171,M174) -> 0 | O177: =SUM(D177:G177) -> 0 | P177: =SUM(H177) -> 0 | Q177: =SUM(D177:H177) -> 0 | S177: =SUM(I177:M177) -> 0 | T177: =IF(Q177<>0,(S177-Q177)/Q177,"0") -> 0
B178: Total sole use expenditure where there is no expenditure subject to the apportionment rule | D178: =SUM(D153,D161,D169,D177) -> 0 | E178: 0 | F178: 0 | G178: 0 | H178: 0 | I178: 0 | J178: 0 | K178: 0 | L178: 0 | M178: 0 | O178: =SUM(O153,O161,O169,O177) -> 0 | P178: =SUM(P153,P161,P169,P177) -> 0 | Q178: =SUM(Q153,Q161,Q169,Q177) -> 0 | S178: =SUM(S153,S161,S169,S177) -> 0 | T178: =IF(Q178<>0,(S178-Q178)/Q178,"0") -> 0
B180: Customer specific demand investment - sole use expenditure where there is also associated expenditure subject to the apportionment rule - Table 7
D182: DPCR4 | I182: DPCR5 | O182: DPCR4 | S182: DPCR5
B183: Customer specific demand investment | C183: Units | D183: 2005/06 | E183: 2006/07 | F183: 2007/08 | G183: 2008/09 | H183: 2009/10 | I183: 2010/11 | J183: 2011/12 | K183: 2012/13 | L183: 2013/14 | M183: 2014/15 | O183: Actuals | P183: Forecast | Q183: Total | S183: Forecast | T183: % change
B184: New connections & customer specific reinforcement:
B185: Connections provided at LV
B186: Small scale LV domestic and one-off commercial | C186: £m
B187: Ratio - small scale LV domestic and one-off commercial - non-contestable | C187: %
B188: Ratio - small scale LV domestic and one-off commercial - contestable | C188: % | I188: =1-I187 -> 1 | J188: =1-J187 -> 1 | K188: =1-K187 -> 1 | L188: =1-L187 -> 1 | M188: =1-M187 -> 1
B189: All other LV (with only LV work) | C189: £m
B190: Ratio - all other LV (with only LV work) - non-contestable | C190: %
B191: Ratio - all other LV (with only LV work) - contestable | C191: % | I191: =1-I190 -> 1 | J191: =1-J190 -> 1 | K191: =1-K190 -> 1 | L191: =1-L190 -> 1 | M191: =1-M190 -> 1
B192: LV total | C192: £m | I192: =SUM(I186,I189) -> 0 | J192: =SUM(J186,J189) -> 0 | K192: =SUM(K186,K189) -> 0 | L192: =SUM(L186,L189) -> 0 | M192: =SUM(M186,M189) -> 0 | O192: =SUM(D192:G192) -> 0 | P192: =SUM(H192) -> 0 | Q192: =SUM(D192:H192) -> 0 | S192: =SUM(I192:M192) -> 0 | T192: =IF(Q192<>0,(S192-Q192)/Q192,"0") -> 0
B193: Connections with HV work
B194: LV end connections involving HV work | C194: £m
B195: Ratio - LV end connections involving HV work - non-contestable | C195: %
B196: Ratio - LV end connections involving HV work - contestable | C196: % | I196: =1-I195 -> 1 | J196: =1-J195 -> 1 | K196: =1-K195 -> 1 | L196: =1-L195 -> 1 | M196: =1-M195 -> 1
B197: HV end connections involving only HV work | C197: £m
B198: Ratio - HV end connections involving only HV work - non-contestable | C198: %
B199: Ratio - HV end connections involving only HV work - contestable | C199: % | I199: =1-I198 -> 1 | J199: =1-J198 -> 1 | K199: =1-K198 -> 1 | L199: =1-L198 -> 1 | M199: =1-M198 -> 1
B200: HV total | C200: £m | I200: =SUM(I194,I197) -> 0 | J200: =SUM(J194,J197) -> 0 | K200: =SUM(K194,K197) -> 0 | L200: =SUM(L194,L197) -> 0 | M200: =SUM(M194,M197) -> 0 | O200: =SUM(D200:G200) -> 0 | P200: =SUM(H200) -> 0 | Q200: =SUM(D200:H200) -> 0 | S200: =SUM(I200:M200) -> 0 | T200: =IF(Q200<>0,(S200-Q200)/Q200,"0") -> 0
B201: Connections with EHV work
B202: HV end connections involving EHV work | C202: £m
B203: Ratio - HV end connections involving EHV work - non-contestable | C203: %
B204: Ratio - HV end connections involving EHV work - contestable | C204: % | I204: =1-I203 -> 1 | J204: =1-J203 -> 1 | K204: =1-K203 -> 1 | L204: =1-L203 -> 1 | M204: =1-M203 -> 1
B205: EHV end connections involving only EHV work | C205: £m
B206: Ratio - EHV end connections involving only EHV work - non-contestable | C206: %
B207: Ratio - EHV end connections involving only EHV work - contestable | C207: % | I207: =1-I206 -> 1 | J207: =1-J206 -> 1 | K207: =1-K206 -> 1 | L207: =1-L206 -> 1 | M207: =1-M206 -> 1
B208: EHV total | C208: £m | I208: =SUM(I202,I205) -> 0 | J208: =SUM(J202,J205) -> 0 | K208: =SUM(K202,K205) -> 0 | L208: =SUM(L202,L205) -> 0 | M208: =SUM(M202,M205) -> 0 | O208: =SUM(D208:G208) -> 0 | P208: =SUM(H208) -> 0 | Q208: =SUM(D208:H208) -> 0 | S208: =SUM(I208:M208) -> 0 | T208: =IF(Q208<>0,(S208-Q208)/Q208,"0") -> 0
B209: Connections with 132kV work
B210: HV or EHV connections involving 132kV work | C210: £m
B211: Ratio - HV or EHV connections involving 132kV work - non-contestable | C211: %
B212: Ratio - HV or EHV connections involving 132kV work - contestable | C212: % | I212: =1-I211 -> 1 | J212: =1-J211 -> 1 | K212: =1-K211 -> 1 | L212: =1-L211 -> 1 | M212: =1-M211 -> 1
B213: 132kV end connections involving only 132kV work | C213: £m
B214: Ratio - 132kV end connections involving only 132kV work - non-contestable | C214: %
B215: Ratio - 132kV end connections involving only 132kV work - contestable | C215: % | I215: =1-I214 -> 1 | J215: =1-J214 -> 1 | K215: =1-K214 -> 1 | L215: =1-L214 -> 1 | M215: =1-M214 -> 1
B216: 132kV total | C216: £m | I216: =SUM(I210,I213) -> 0 | J216: =SUM(J210,J213) -> 0 | K216: =SUM(K210,K213) -> 0 | L216: =SUM(L210,L213) -> 0 | M216: =SUM(M210,M213) -> 0 | O216: =SUM(D216:G216) -> 0 | P216: =SUM(H216) -> 0 | Q216: =SUM(D216:H216) -> 0 | S216: =SUM(I216:M216) -> 0 | T216: =IF(Q216<>0,(S216-Q216)/Q216,"0") -> 0
B217: Total sole use expenditure where there is also expenditure subject to the apportionment rule | D217: =SUM(D192,D200,D208,D216) -> 0 | E217: 0 | F217: 0 | G217: 0 | H217: 0 | I217: 0 | J217: 0 | K217: 0 | L217: 0 | M217: 0 | O217: =SUM(O192,O200,O208,O216) -> 0 | P217: =SUM(P192,P200,P208,P216) -> 0 | Q217: =SUM(Q192,Q200,Q208,Q216) -> 0 | S217: =SUM(S192,S200,S208,S216) -> 0 | T217: =IF(Q217<>0,(S217-Q217)/Q217,"0") -> 0
B219: Customer specific demand investment - all expenditure subject to the apportionment rule - Table 8
D221: DPCR4 | I221: DPCR5 | O221: DPCR4 | S221: DPCR5
B222: Customer specific demand investment | C222: Units | D222: 2005/06 | E222: 2006/07 | F222: 2007/08 | G222: 2008/09 | H222: 2009/10 | I222: 2010/11 | J222: 2011/12 | K222: 2012/13 | L222: 2013/14 | M222: 2014/15 | O222: Actuals | P222: Forecast | Q222: Total | S222: Forecast | T222: % change
... 39 more rows

Sheet FBPQ LR4
A1: June Forecast Business Plan DPCR5
A2: EDFE SPN
A3: LR4 - General reinforcement
B5: General reinforcement expenditure
D7: DPCR4 | I7: DPCR5 | O7: DPCR4 | S7: DPCR5
D8: 2005/06 | E8: 2006/07 | F8: 2007/08 | G8: 2008/09 | H8: 2009/10 | I8: 2010/11 | J8: 2011/12 | K8: 2012/13 | L8: 2013/14 | M8: 2014/15 | O8: Actuals | P8: Forecast | Q8: Total | S8: Forecast | T8: % change
D9: (£m) | E9: (£m) | F9: (£m) | G9: (£m) | H9: (£m) | I9: (£m) | J9: (£m) | K9: (£m) | L9: (£m) | M9: (£m) | O9: (£m) | P9: (£m) | Q9: (£m) | S9: (£m) | T9: (£m)
C10: General reinforcement:
C11: LV System | D11: 1.128449491 | E11: 1.341450046 | F11: 0.7934891312 | G11: 1.001357922 | H11: 1.108592699 | I11: 1.053783392 | J11: 1.031230659 | K11: 1.028973635 | L11: 1.129259125 | M11: 1.140186361 | O11: =SUM(D11:G11) -> 4.264746591 | P11: =H11 -> 1.108592699 | Q11: =SUM(D11:H11) -> 5.37333929 | S11: =SUM(I11:M11) -> 5.383433172 | T11: =IF(Q11<>0,(S11-Q11)/Q11,"0") -> 0.001878511938
C12: HV System | D12: 2.57322527 | E12: 4.230727069 | F12: 4.562562504 | G12: 1.891453853 | H12: 1.995466858 | I12: 2.950593498 | J12: 2.99056891 | K12: 2.984023542 | L12: 3.079797614 | M12: 3.316905778 | O12: 13.2579687 | P12: 1.995466858 | Q12: 15.25343555 | S12: 15.32188934 | T12: 0.004487761906
C13: EHV System | D13: 2.772887048 | E13: 8.771019534 | F13: 8.232449736 | G13: 12.57260502 | H13: 11.75108261 | I13: 16.64977759 | J13: 20.8308593 | K13: 11.0100179 | L13: 10.77929165 | M13: 5.389971889 | O13: 32.34896134 | P13: 11.75108261 | Q13: 44.10004395 | S13: 64.65991833 | T13: 0.4662098388
C14: 132kV System | D14: 9.357862583 | E14: 5.881742511 | F14: 1.785350545 | G14: 3.226597749 | H14: 17.51576464 | I14: 6.217322013 | J14: 5.053030227 | K14: 14.30273353 | L14: 14.98834839 | M14: 21.14527433 | O14: 20.25155339 | P14: 17.51576464 | Q14: 37.76731803 | S14: 61.70670849 | T14: 0.6338652493
C15: Expenditure on DSM to avoid general reinforcement | G15: 0 | H15: 0 | I15: 0 | J15: 0 | K15: 0 | L15: 0 | M15: 0 | O15: 0 | P15: 0 | Q15: =SUM(D15:H15) -> 0 | S15: 0 | T15: 0
C16: Total | D16: 15.83242439 | E16: 20.22493916 | F16: 15.37385192 | G16: 18.69201455 | H16: 32.37090681 | I16: 26.8714765 | J16: 29.9056891 | K16: 29.3257486 | L16: 29.97669677 | M16: 30.99233836 | O16: 70.12323002 | P16: 32.37090681 | Q16: 102.4941368 | S16: 147.0719493 | T16: 0.4349303667
C18: Expenditure avoided due to DG | G18: 0 | H18: 0 | I18: 0 | J18: 0 | K18: 0 | L18: 0 | M18: 0 | O18: =SUM(D18:G18) -> 0 | P18: =H18 -> 0 | Q18: 0 | S18: =SUM(I18:M18) -> 0 | T18: =IF(Q18<>0,(S18-Q18)/Q18,"0") -> 0
C19: Expenditure avoided due to DSM | G19: 0 | H19: 0 | I19: 0 | J19: 0 | K19: 0 | L19: 0 | M19: 0 | O19: =SUM(D19:G19) -> 0 | P19: =H19 -> 0 | Q19: 0 | S19: =SUM(I19:M19) -> 0 | T19: =IF(Q19<>0,(S19-Q19)/Q19,"0") -> 0
B22: General reinforcement outputs
C24: Changes in general utilisation due to projected expenditure levels | D24: At 31st March 2010 | H24: At 31st March 2015 | L24: At 31st March 2010 | M24: At 31st March 2015
D25: 132kV-EHV | E25: 132kV - HV | F25: EHV - EHV | G25: EHV - HV | H25: 132kV-EHV | I25: 132kV - HV | J25: EHV - EHV | K25: EHV - HV | L25: Total | M25: Total
C26: Total number substations (operated by DNO) | L26: =SUM(D26:G26) -> 0 | M26: =SUM(H26:K26) -> 0
C27: Σ substation maximum demands | L27: =SUM(D27:G27) -> 0 | M27: =SUM(H27:K27) -> 0
C28: Σ substation firm capacities | L28: =SUM(D28:G28) -> 0 | M28: =SUM(H28:K28) -> 0
C29: Σ substation maximum demands / Σ substation firm capacities | D29: =IF(D27,D27/D28,"-") -> - | E29: =IF(E27,E27/E28,"-") -> - | F29: - | G29: - | H29: - | I29: - | J29: - | K29: - | L29: - | M29: -
C32: Changes in utilisation of highly loaded substations due to projected expenditure levels | D32: At 31st March 2010 | H32: At 31st March 2015 | L32: At 31st March 2010 | M32: At 31st March 2015
D33: 132kV-EHV | E33: 132kV - HV | F33: EHV - EHV | G33: EHV - HV | H33: 132kV-EHV | I33: 132kV - HV | J33: EHV - EHV | K33: EHV - HV | L33: Total | M33: Total
C34: Number of substations loaded >=80% of firm capacity | L34: =SUM(D34:G34) -> 0 | M34: =SUM(H34:K34) -> 0
C35: Σ substation maximum demands for substations loaded >=80% of firm capacity | L35: 0 | M35: 0
C36: Σ substation firm capacities for substations loaded >=80% of firm capacity | L36: 0 | M36: 0
C37: % Loading of substations which are operating at >=80% of firm capacity = Σ demand /Σ firm capacity | D37: =IF(D35,D35/D36,"-") -> - | E37: =IF(E35,E35/E36,"-") -> - | F37: - | G37: - | H37: - | I37: - | J37: - | K37: - | L37: - | M37: -
C38: Number of substations loaded above 100% of firm capacity | L38: 0 | M38: 0
C39: Number of DNO substations requiring reinforcement within 5 yrs | L39: 0 | M39: 0
B41: General reinforcement projects
C43: Scheme details | L43: DPCR4 Expenditure | Q43: DPCR5 Expenditure | V43: Utilisation | AJ43: (N-2) scheme? | AK43: Scheme description
C44: Named scheme | D44: Primary Voltage | E44: Secondary Voltage | F44: Limiting Factor | G44: Forecast year in which substation demand will reach substation/group firm capacity | H44: Planned reinforce-ment Year | I44: MVA of additional firm capacity to be installed | J44: Total cost of project | K44: Total cost of project in DPCR5 period | L44: 2005/06 | M44: 2006/07 | N44: 2007/08 | O44: 2008/09 | P44: 2009/10 | Q44: 2010/11 | R44: 2011/12 | S44: 2012/13 | T44: 2013/14 | U44: 2014/15 | V44: Historic and forecast max demand (MVA) | AF44: Substation/Group Total Capability | AG44: Substation/group firm capacity under single circuit outage conditions | AH44: Substation/Group Maximum Demand | AI44: Season of critical loading condition | AK44: Brief description of work involved, substations affected, assets installed/replaced etc.
C45: (Unique name) | D45: (kV) | E45: (kV) | F45: (a-j) | G45: (Year) | H45: (Year) | I45: (MVA) | J45: (£m) | K45: (£m) | L45: (£m) | M45: (£m) | N45: (£m) | O45: (£m) | P45: (£m) | Q45: (£m) | R45: (£m) | S45: (£m) | T45: (£m) | U45: (£m) | V45: 2005/06 | W45: 2006/07 | X45: 2007/08 | Y45: 2008/09 | Z45: 2009/10 | AA45: 2010/11 | AB45: 2011/12 | AC45: 2012/13 | AD45: 2013/14 | AE45: 2014/15 | AF45: (MVA) | AG45: (MVA) | AH45: (MVA) | AI45: Season | AJ45: (Y/N) | AK45: (Description)
B46: 1 | C46: Banbury group, Brackley SCO | D46: 132kV | E46: 132kV | F46: c | G46: 2013 | I46: 189 | J46: 0.411114568 | K46: 0.411114568 | L46: 0 | M46: 0 | N46: 0 | O46: 0 | P46: 0 | Q46: 0 | R46: 0 | S46: 0.205794727 | T46: 0.2053198409 | U46: 0 | AK46: Installation of a third 132kV circuit. Costs split across East and West. Wayleaves only in DPCR5, construction in DPCR6.
B47: 2 | C47: Bishops Castle 33/11kV Transformer reinforcement, switchgear automation | D47: 33kV | E47: 33kV | F47: a | G47: 2007 | I47: 6.5 | J47: 0.7331378277 | K47: 0.7331378277 | L47: 0 | M47: 0 | N47: 0 | O47: 0 | P47: 0 | Q47: 0.526891696 | R47: 0.2062461317 | S47: 0 | T47: 0 | U47: 0 | AK47: Installation of an additional 6/12MVA transformer at Bishops Castle. Replacement of 11kV switchgear
B48: 3 | C48: Bishops Castle-Priestweston Interconnection | D48: 33kV | E48: 33kV | F48: c | G48: 2012 | I48: 15 | J48: 0.6159595227 | K48: 0.6159595227 | L48: 0 | M48: 0 | N48: 0 | O48: 0 | P48: 0 | Q48: 0 | R48: 0 | S48: 0 | T48: 0.6159595227 | U48: 0 | AK48: Construction of 33kV interconnector between Bishops Castle and Priestweston (10km)
B49: 4 | C49: Bishops Cleeve 66/11kV reinforcement | D49: 11kV | E49: 11kV | F49: c | G49: 2009 | I49: 19.75 | J49: 1.085 | K49: 1.085 | L49: 0 | M49: 0 | N49: 0 | O49: 0 | P49: 0 | Q49: 1.085 | R49: 0 | S49: 0 | T49: 0 | U49: 0 | AK49: Installation of second 66/11kV transformer and 66kV section switch
B50: 5 | C50: Bixhead 33/11kV reinforcement | D50: 33kV | E50: 33kV | F50: a | G50: 2008 | I50: 24 | J50: 0.721861461 | K50: 0.721861461 | L50: 0 | M50: 0 | N50: 0 | O50: 0 | P50: 0 | Q50: 0 | R50: 0.721861461 | S50: 0 | T50: 0 | U50: 0 | AK50: Upgrading two transformers and installation of a crossbay CB between T1 & T2.
B51: 6 | C51: Bloxham 66/11kV reinforcement | D51: 66kV | E51: 66kV | F51: a & c | G51: 2013 | I51: 24 | J51: 0.5182665278 | K51: 0.5182665278 | L51: 0 | M51: 0 | N51: 0 | O51: 0 | P51: 0 | Q51: 0 | R51: 0 | S51: 0 | T51: 0 | U51: 0.5182665278 | AK51: Installation of a second 12/24MVA transformer
B52: 7 | C52: Bodenham Second 66/11kV Transformer & install 66kV bus section | D52: 66kV | E52: 66kV | F52: c | G52: 2014 | I52: 13 | J52: 0.5182665278 | K52: 0.5182665278 | L52: 0 | M52: 0 | N52: 0 | O52: 0 | P52: 0 | Q52: 0 | R52: 0 | S52: 0 | T52: 0 | U52: 0.5182665278 | AK52: Commissioning of the transformer currently in position at Bodenham and installation of a 66kV bus-section circuit breaker.
B53: 8 | C53: Bromyard 66kV Breaker | D53: 66kV | E53: 66kV | F53: g | G53: 2008 | I53: 13 | J53: 0.2107566784 | K53: 0.2107566784 | L53: 0 | M53: 0 | N53: 0 | O53: 0 | P53: 0 | Q53: 0.2107566784 | R53: 0 | S53: 0 | T53: 0 | U53: 0 | AK53: Installation of a 66kV mesh circuit breaker
B54: 9 | C54: Cheadle 33/11kV reinforcement | D54: 33kV | E54: 33kV | F54: a | G54: 2011 | I54: 14 | J54: 1.335291295 | K54: 1.335291295 | L54: 0 | M54: 0 | N54: 0 | O54: 0 | P54: 0 | Q54: 0 | R54: 0 | S54: 0.3086920906 | T54: 1.026599205 | U54: 0 | AK54: Replacement of transformers with 12/24MVA units.
B55: 10 | C55: Chipping Sod - P2/5, Hammerley Down circuit | D55: 33kV | E55: 33kV | F55: j | G55: 2007 | I55: 20 | J55: 0.3161350176 | K55: 0.3161350176 | L55: 0 | M55: 0 | N55: 0 | O55: 0 | P55: 0 | Q55: 0.3161350176 | R55: 0 | S55: 0 | T55: 0 | U55: 0 | AK55: Rebuilding overhead line - 7km
B56: 11 | C56: Chipping Sodbury 33kV Reinforcement | D56: 33kV | E56: 33kV | F56: j | G56: 2010 | I56: 56 | J56: 2.293515456 | K56: 2.293515456 | L56: 0 | M56: 0 | N56: 0 | O56: 0 | P56: 0 | Q56: 1.159161731 | R56: 1.134353724 | S56: 0 | T56: 0 | U56: 0 | AK56: Installation of 1 transformer BSP at Iron Acton. Includes 33kV connection and rebuild of Iron Acton - Alveston circuit
B57: 12 | C57: Comet Bridge 33/11kV Reinforcement (aka Monkmoor or Spring Gardens) | D57: 33kV | E57: 33kV | F57: a | G57: 2006 | I57: 14 | J57: 6.312783392 | K57: 1.053783392 | L57: 0 | M57: 0 | N57: 0 | O57: 1.4 | P57: 3.859 | Q57: 1.053783392 | R57: 0 | S57: 0 | T57: 0 | U57: 0 | AK57: Installation of a new 33/11kV substation at Spring Gardens near existing primary site and dismantlement of Comet Bridge.
B58: 13 | C58: Cotes Heath 33/11kV S/S reinforcement | D58: 33kV | E58: 33kV | F58: a | G58: 2010 | I58: 7.5 | J58: 0.4147475368 | K58: 0.4147475368 | L58: 0 | M58: 0 | N58: 0 | O58: 0 | P58: 0 | Q58: 0.1053783392 | R58: 0.3093691976 | S58: 0 | T58: 0 | U58: 0 | AK58: Installation of an additional transformer, 33kV crossbay and extension of 11kV board
B59: 14 | C59: Cowhorn 33/11kV reinforcement | D59: 33kV | E59: 33kV | F59: a | G59: 2007 | I59: 24 | J59: 2.060204294 | K59: 2.060204294 | L59: 0 | M59: 0 | N59: 0 | O59: 0 | P59: 0 | Q59: 0 | R59: 1.031230659 | S59: 1.028973635 | T59: 0 | U59: 0 | AK59: Installation of third 12/24MVA transformer, 33kV crossbay and additional 11kV switchboard.
B60: 15 | C60: Craven Arms reinforcement | D60: 33kV | E60: 33kV | F60: a | G60: 2008 | I60: 3.25 | J60: 1.764368486 | K60: 1.764368486 | L60: 0 | M60: 0 | N60: 0 | O60: 0 | P60: 0 | Q60: 0.526891696 | R60: 1.23747679 | S60: 0 | T60: 0 | U60: 0 | AK60: Upgrading T2 from 5MVA to 15MVA. Establishing a new 33kV bay at Ludlow and a new 33kV circuit (15km) to Craven Arms.
B61: 16 | C61: Dudbridge 33/11kV reinforcement | D61: 33kV | E61: 33kV | F61: a | G61: 2008 | I61: 5.25 | J61: 1.235421988 | K61: 1.235421988 | L61: 0 | M61: 0 | N61: 0 | O61: 0 | P61: 0 | Q61: 0 | R61: 0.5156153293 | S61: 0.5144868176 | T61: 0.2053198409 | U61: 0 | AK61: Upgrading at least 2 transformers to 12/24MVA and installation of a 33kV cross-bay.
B62: 17 | C62: Dymock 66/11 | D62: 66kV | E62: 66kV | F62: c | G62: 2008 | I62: 4.75 | J62: 0.5156153293 | K62: 0.5156153293 | L62: 0 | M62: 0 | N62: 0 | O62: 0 | P62: 0 | Q62: 0 | R62: 0.5156153293 | S62: 0 | T62: 0 | U62: 0 | AK62: Option of installation of second transformer or strengthening 11kV interconnection
B63: 18 | C63: Elmdon 132kV crossbay re-configuration | D63: 132kV | E63: 132kV | F63: g | G63: 2013 | I63: 39 | J63: 0.2053198409 | K63: 0.2053198409 | L63: 0 | M63: 0 | N63: 0 | O63: 0 | P63: 0 | Q63: 0 | R63: 0 | S63: 0 | T63: 0.2053198409 | U63: 0 | AK63: Reinstallation of CB120 on cross-bay and associated protection modifications
B64: 19 | C64: Endon reinforcement | D64: 33kV | E64: 33kV | F64: a | G64: 2007 | I64: 14.25 | J64: 0.9438945061 | K64: 0.9438945061 | L64: 0 | M64: 0 | N64: 0 | O64: 0 | P64: 0 | Q64: 0.7376483744 | R64: 0.2062461317 | S64: 0 | T64: 0 | U64: 0 | AK64: Upgrading transformers with 12/24 MVA units & rationalisation of substation layout
B65: 20 | C65: Evesham 66/11kV reinforcement | D65: 66kV | E65: 66kV | F65: a | G65: 2009 | I65: 39 | J65: 1.686053427 | K65: 1.686053427 | L65: 0 | M65: 0 | N65: 0 | O65: 0 | P65: 0 | Q65: 1.686053427 | R65: 0 | S65: 0 | T65: 0 | U65: 0 | AK65: Installation of an additional 66/11kV transformer and 11kV switch board
B66: 21 | C66: Feckenham - Bevington dual circuit steel tower line uprating | D66: 66kV | E66: 66kV | F66: j | G66: 2008 | I66: 28 | J66: 1.442143006 | K66: 1.442143006 | L66: 0 | M66: 0 | N66: 0 | O66: 0 | P66: 0 | Q66: 0 | R66: 0.721861461 | S66: 0.7202815446 | T66: 0 | U66: 0 | AK66: Uprating the Feckenham – Bevington - Evesham circuits using 200AAAC POPLAR conductor
B67: 22 | C67: Forest Ring-Bixhead to Stowfield tee | D67: 33kV | E67: 33kV | F67: j | G67: 2007 | I67: 22 | J67: 0.526891696 | K67: 0.526891696 | L67: 0 | M67: 0 | N67: 0 | O67: 0 | P67: 0 | Q67: 0.526891696 | R67: 0 | S67: 0 | T67: 0 | U67: 0 | AK67: Rebuilding the Bixhead-Stowfield tee 33kV OHL
B68: 23 | C68: Forsbrook/Meaford 33kV interconnection | D68: 132kV | E68: 132kV | F68: c | G68: 2011 | I68: 58 | J68: 2.05557284 | K68: 2.05557284 | L68: 0 | M68: 0 | N68: 0 | O68: 0 | P68: 0 | Q68: 0 | R68: 0 | S68: 1.028973635 | T68: 1.026599205 | U68: 0 | AK68: Reinforcement of 33kV interconnection between Meaford and Forsbrook BSP. Allows indefinite deferral of Meaford reinforcement.
B69: 24 | C69: Gloucester / Iron Acton Z Route | D69: 132kV | E69: 132kV | F69: a | G69: 2013 | I69: 170 | J69: 12.90195359 | K69: 12.90195359 | L69: 0 | M69: 0 | N69: 0 | O69: 0 | P69: 0 | Q69: 0 | R69: 2.474953581 | S69: 2.469536724 | T69: 2.463838091 | U69: 5.493625195 | AK69: Rebuilding Z route and interconnection from Iron Acton to Cambridge Arms switching site
B70: 25 | C70: Gnosall 11kV reinforcement | D70: 33kV | E70: 33kV | F70: c | G70: 2011 | I70: 5 | J70: 0.205794727 | K70: 0.205794727 | L70: 0 | M70: 0 | N70: 0 | O70: 0 | P70: 0 | Q70: 0 | R70: 0 | S70: 0.205794727 | T70: 0 | U70: 0 | AK70: Reinforcement of 11kV circuits to enable at least 5MVA transfers from High Offley
B71: 26 | C71: Hereford - Ledbury 66kV OHL reinforcement | D71: 66kV | E71: 66kV | F71: j | G71: 2009 | I71: 43 | J71: 0.9281075928 | K71: 0.9281075928 | L71: 0 | M71: 0 | N71: 0 | O71: 0 | P71: 0 | Q71: 0 | R71: 0.9281075928 | S71: 0 | T71: 0 | U71: 0 | AK71: Uprating line by rebuilding / refurbishment (19km)
B72: 27 | C72: Hereford BSP GT3 replacement | D72: 132kV | E72: 132kV | F72: a | G72: 2009 | I72: 56.75 | J72: 0.8430267136 | K72: 0.8430267136 | L72: 0 | M72: 0 | N72: 0 | O72: 0 | P72: 0 | Q72: 0.8430267136 | R72: 0 | S72: 0 | T72: 0 | U72: 0 | AK72: Complete reinstallation of GT3 (new transformer delivered to Upton Warren in 2008)
B73: 28 | C73: Hereford South Additional Capacity | D73: 66kV | E73: 66kV | F73: a | G73: 2010 | I73: 39 | J73: 5.963418259 | K73: 5.963418259 | L73: 0 | M73: 0 | N73: 0 | O73: 0 | P73: 0 | Q73: 0 | R73: 1.031230659 | S73: 1.955049907 | T73: 2.977137693 | U73: 0 | AK73: Establishing new substation on reserved site (Wide Marsh Street)
B74: 29 | C74: High Offley reinforcement | D74: 33kV | E74: 33kV | F74: g | G74: 2008 | I74: 10 | J74: 0.2062461317 | K74: 0.2062461317 | L74: 0 | M74: 0 | N74: 0 | O74: 0 | P74: 0 | Q74: 0 | R74: 0.2062461317 | S74: 0 | T74: 0 | U74: 0 | AK74: Installation of additional transformer (10/15MVA)
B75: 30 | C75: Hill Chorlton 33/11kV S/S reinforcement | D75: 33kV | E75: 33kV | F75: a | G75: 2007 | I75: 12 | J75: 0.3161350176 | K75: 0.3161350176 | L75: 0 | M75: 0 | N75: 0 | O75: 0 | P75: 0 | Q75: 0.3161350176 | R75: 0 | S75: 0 | T75: 0 | U75: 0 | AK75: Uprating transformer to 7.5/15MVA and possible 11kV reinforcement / interconnection to Coates Heath.
B76: 31 | C76: Hinksford 132kV reinforcement and 132kV siwtchgear replacement (new 2 switch crossbay) | D76: 132kV | E76: 132kV | F76: g | G76: 2010 | I76: 13 | J76: 2.060204294 | K76: 2.060204294 | L76: 0 | M76: 0 | N76: 0 | O76: 0 | P76: 0 | Q76: 0 | R76: 1.031230659 | S76: 1.028973635 | T76: 0 | U76: 0 | AK76: Replacement of 132kV switchgear, upgrading single switch crossbay to 2 switches. Removal of redundant plant. Re routing cables
B77: 32 | C77: Hinstock 33/11kV S/S reinforcement | D77: 33kV | E77: 33kV | F77: a | G77: 2010 | I77: 6.5 | J77: 0.520125876 | K77: 0.520125876 | L77: 0 | M77: 0 | N77: 0 | O77: 0 | P77: 0 | Q77: 0.2107566784 | R77: 0.3093691976 | S77: 0 | T77: 0 | U77: 0 | AK77: Installation of additional 7.5/15MVA transformer or uprating existing units
B78: 33 | C78: Hookgate 33/11kV S/S reinforcement | D78: 33kV | E78: 33kV | F78: a | G78: 2008 | I78: 5 | J78: 0.3079797614 | K78: 0.3079797614 | L78: 0 | M78: 0 | N78: 0 | O78: 0 | P78: 0 | Q78: 0 | R78: 0 | S78: 0 | T78: 0.3079797614 | U78: 0 | AK78: Installation of an additional transformer or 11kV reinforcement
B79: 34 | C79: Ironbridge - Halesfield & Madeley 33kV Reinforcement | D79: 33kV | E79: 33kV | F79: c | G79: 2009 | I79: 28 | J79: 2.988311887 | K79: 2.988311887 | L79: 0 | M79: 0 | N79: 0 | O79: 0 | P79: 0 | Q79: 0 | R79: 1.959338251 | S79: 1.028973635 | T79: 0 | U79: 0 | AK79: Installation of new 33kV circuits from Ironbridge to Madeley and from Madeley to Halesfield. Installation of a 33kV crossbay at Madeley.
B80: 35 | C80: Ketley BSP reinforcement | D80: 132kV | E80: 132kV | F80: c | G80: 2010 | I80: 51 | J80: 1.955049907 | K80: 1.955049907 | L80: 0 | M80: 0 | N80: 0 | O80: 0 | P80: 0 | Q80: 0 | R80: 0 | S80: 1.955049907 | T80: 0 | U80: 0 | AK80: Reinforcement of 33kV interconnection or 132/33kV reinforcement
B81: 36 | C81: Knypersley-Goldenhill-Talke Cct reinforcement | D81: 33kV | E81: 33kV | F81: j | G81: 2008 | I81: 20 | J81: 0.3093691976 | K81: 0.3093691976 | L81: 0 | M81: 0 | N81: 0 | O81: 0 | P81: 0 | Q81: 0 | R81: 0.3093691976 | S81: 0 | T81: 0 | U81: 0 | AK81: Uprating Knypersley-Goldenhill-Talke 33kV circuit (10km). Rebuilding 1.3km of OH and overlay 1.4km of UG cable.
B82: 37 | C82: Ladywood / Winson Green SCO security | D82: 132kV | E82: 132kV | F82: c | G82: 2012 | I82: 100 | J82: 6.105611177 | K82: 6.105611177 | L82: 0 | M82: 0 | N82: 0 | O82: 0 | P82: 0 | Q82: 0 | R82: 0 | S82: 0 | T82: 1.026599205 | U82: 5.079011973 | AK82: Installation of third 132kV circuit from Bustleholm to Winson Green or Ladywood or 132kV interconnector from Ladywood to Summer Lane.
B83: 38 | C83: Lichfield/Rugeley T group reinforcement (Lichfield - Burntwoodinterconnector) | D83: 132kV | E83: 132kV | F83: c | G83: 2011 | I83: 100 | J83: 2.99601201 | K83: 2.99601201 | L83: 0 | M83: 0 | N83: 0 | O83: 0 | P83: 0 | Q83: 0 | R83: 0 | S83: 0 | T83: 1.026599205 | U83: 1.969412806 | AK83: Unpicking Rugeley T circuit. 132kV Burntwood -Lichfield interconnection following route of redundant 33kV OHLs.
B84: 39 | C84: Lower Chadnor | D84: 33kV | E84: 33kV | F84: c | G84: 2008 | I84: 5 | J84: 0.205794727 | K84: 0.205794727 | L84: 0 | M84: 0 | N84: 0 | O84: 0 | P84: 0 | Q84: 0 | R84: 0 | S84: 0.205794727 | T84: 0 | U84: 0 | AK84: 11kV reinforcement
B85: 40 | C85: Malehurst 33/11kV reinforcement | D85: 33kV | E85: 33kV | F85: a | G85: 2007 | I85: 14.25 | J85: 0.9314896277 | K85: 0.9314896277 | L85: 0 | M85: 0 | N85: 0 | O85: 0 | P85: 0 | Q85: 0.2107566784 | R85: 0.2062461317 | S85: 0.5144868176 | T85: 0 | U85: 0 | AK85: Uprating two 7.5MVA transformers with two 12/24MVA units and replacement of 11kV switchboard
B86: 41 | C86: Market Drayton 33/11kV reinforcement | D86: 33kV | E86: 33kV | F86: a | G86: 2007 | I86: 24 | J86: 0.7376483744 | K86: 0.7376483744 | L86: 0 | M86: 0 | N86: 0 | O86: 0 | P86: 0 | Q86: 0.7376483744 | R86: 0 | S86: 0 | T86: 0 | U86: 0 | AK86: Installation of additional third transformer (12/24 MVA)
B87: 42 | C87: Meaford West 33kV network Reinforcement (PHASE 2:Meaford - Hookgate (tee Market Drayton) 4th 33kV circuit) | D87: 33kV | E87: 33kV | F87: j | G87: 2007 | I87: 21 | J87: 2.085014051 | K87: 2.085014051 | L87: 0 | M87: 0 | N87: 0 | O87: 0 | P87: 0 | Q87: 1.053783392 | R87: 1.031230659 | S87: 0 | T87: 0 | U87: 0 | AK87: Establishment of 4th Meaford - Hookgate (tee Market Drayton) 33kV circuit
B88: 43 | C88: Moreton 66/11kV reinforcement | D88: 66kV | E88: 66kV | F88: a | G88: 2008 | I88: 14.25 | J88: 3.033419103 | K88: 3.033419103 | L88: 0 | M88: 0 | N88: 0 | O88: 0 | P88: 0 | Q88: 2.002188445 | R88: 1.031230659 | S88: 0 | T88: 0 | U88: 0 | AK88: Uprating transformers at Moreton to 12/24MVA units and improving 11kV alternative supplies to Stow.
B89: 44 | C89: New Birmingham City Centre primary Substation (site acquisition + preps only) | D89: 132kV | E89: 132kV | F89: a | G89: 2013 | I89: 78 | J89: 1.036533056 | K89: 1.036533056 | L89: 0 | M89: 0 | N89: 0 | O89: 0 | P89: 0 | Q89: 0 | R89: 0 | S89: 0 | T89: 0 | U89: 1.036533056 | AK89: New 132/11kV s/s in the eastside of the city centre to support new load and heavily loaded primaries. Acquire site in DPCR5
B90: 45 | C90: New Whitfield-Knypersley 33kV cct | D90: 33kV | E90: 33kV | F90: j | G90: 2010 | I90: 41 | J90: 0.412626452 | K90: 0.412626452 | L90: 0 | M90: 0 | N90: 0 | O90: 0 | P90: 0 | Q90: 0 | R90: 0 | S90: 0 | T90: 0.2053198409 | U90: 0.2073066111 | AK90: Installation of additional (3rd) Whitfield-Knypersley 33kV circuit (at least 41MVA)
B91: 46 | C91: Newcastle - Scot Hay 33kC cct reinforcement | D91: 33kV | E91: 33kV | F91: j | G91: 2010 | I91: 11 | J91: 0.3093691976 | K91: 0.3093691976 | L91: 0 | M91: 0 | N91: 0 | O91: 0 | P91: 0 | Q91: 0 | R91: 0.3093691976 | S91: 0 | T91: 0 | U91: 0 | AK91: Uprating Newcastle - Scot Hay 33kV circuit. Approx 4km 200mm2 AAAC gives 41MVA capacity
B92: 47 | C92: Newcastle 132/11kV Reinforcement | D92: 132kV | E92: 132kV | F92: a | G92: 2007 | I92: 39 | J92: 2.529080141 | K92: 2.529080141 | L92: 0 | M92: 0 | N92: 0 | O92: 0 | P92: 0 | Q92: 2.529080141 | R92: 0 | S92: 0 | T92: 0 | U92: 0 | AK92: Installation of 3rd 132/11kV transformer and 11kV s/board. Replacement of 132/33kV transformer and decommissioning redundant 33kV s/gear
B93: 48 | C93: Newent reinforcement | D93: 66kV | E93: 66kV | F93: c | G93: 2008 | I93: 12 | J93: 0.9281075928 | K93: 0.9281075928 | L93: 0 | M93: 0 | N93: 0 | O93: 0 | P93: 0 | Q93: 0 | R93: 0.9281075928 | S93: 0 | T93: 0 | U93: 0 | AK93: Upgrading double circuit 11kV line from Newent to Dymock to 66kV. Installation of second 6/12MVA transformer at Newent and new 11kV switchboard
B94: 49 | C94: Oldbury 132/11kV reinforcement | D94: 132kV | E94: 132kV | F94: c | G94: 2010 | I94: 19 | J94: 0.5156153293 | K94: 0.5156153293 | L94: 0 | M94: 0 | N94: 0 | O94: 0 | P94: 0 | Q94: 0 | R94: 0.5156153293 | S94: 0 | T94: 0 | U94: 0 | AK94: Installation of additional transformer and possible upgrade of 11Kv interconnections
B95: 50 | C95: Oldbury Group reinforcement | D95: 132kV | E95: 132kV | F95: c | G95: 2010 | I95: 100 | J95: 5.961161235 | K95: 5.961161235 | L95: 0 | M95: 0 | N95: 0 | O95: 0 | P95: 0 | Q95: 0 | R95: 0 | S95: 2.984023542 | T95: 2.977137693 | U95: 0 | AK95: Installation of a 132kV interconnection from Ocker Hill to Tividale. Installation of additional 132kV GIS switchgear required at Tividale.
B96: 51 | C96: Pattingham 33kV crossbay re-configuration | D96: 33kV | E96: 33kV | F96: g | G96: 2012 | I96: 6 | J96: 0.1028973635 | K96: 0.1028973635 | L96: 0 | M96: 0 | N96: 0 | O96: 0 | P96: 0 | Q96: 0 | R96: 0 | S96: 0.1028973635 | T96: 0 | U96: 0 | AK96: Installation of 33kV CB on crossbay and associated protection modifications
B97: 52 | C97: Pontrilas voltage regulator | D97: 66kV | E97: 66kV | F97: c | G97: 2007 | I97: 3 | J97: 0.3161350176 | K97: 0.3161350176 | L97: 0 | M97: 0 | N97: 0 | O97: 0 | P97: 0 | Q97: 0.3161350176 | R97: 0 | S97: 0 | T97: 0 | U97: 0 | AK97: Installation of pole mounted voltage regulators to support the 11kV network.
B98: 53 | C98: Presteigne - Knighton 66kV new line | D98: 66kV | E98: 66kV | F98: c | G98: 2008 | I98: 10 | J98: 1.26454007 | K98: 1.26454007 | L98: 0 | M98: 0 | N98: 0 | O98: 0 | P98: 0 | Q98: 1.26454007 | R98: 0 | S98: 0 | T98: 0 | U98: 0 | AK98: Installation of second 66kV line between Presteigne and Kington
B99: 54 | C99: Priestweston 33/11kV S/S reinforcement | D99: 33kV | E99: 33kV | F99: c | G99: 2013 | I99: 6.5 | J99: 0.5132996023 | K99: 0.5132996023 | L99: 0 | M99: 0 | N99: 0 | O99: 0 | P99: 0 | Q99: 0 | R99: 0 | S99: 0 | T99: 0.5132996023 | U99: 0 | AK99: Installation of second 33/11kV transformer or 11kV interconnection.
B100: 55 | C100: Quatt-Wribbenhall-Kinver 33kV ccts reinforcement | D100: 33kV | E100: 33kV | F100: j | G100: 2012 | I100: 10 | J100: 1.554799583 | K100: 1.554799583 | L100: 0 | M100: 0 | N100: 0 | O100: 0 | P100: 0 | Q100: 0 | R100: 0 | S100: 0 | T100: 0 | U100: 1.554799583 | AK100: Rebuilding Quatt-Wribbenhall - Kinver 33kV circuits
B101: 56 | C101: Quedgeley Primary | D101: 33kV | E101: 33kV | F101: a | G101: 2008 | I101: 39 | J101: 7.921627998 | K101: 7.921627998 | L101: 0 | M101: 0 | N101: 0 | O101: 0 | P101: 0 | Q101: 0 | R101: 2.474953581 | S101: 2.469536724 | T101: 2.977137693 | U101: 0 | AK101: Installation of new Quedgeley 132/11kV substation
B102: 57 | C102: Rugeley GSP reinforcement | D102: 132kV | E102: 132kV | F102: c | G102: 2012 | I102: 240 | J102: 3.005945861 | K102: 3.005945861 | L102: 0 | M102: 0 | N102: 0 | O102: 0 | P102: 0 | Q102: 0 | R102: 0 | S102: 0 | T102: 0 | U102: 3.005945861 | AK102: Installation of new GSP near Burntwood. Discussions with NG still ongoing on options (3rd SGT and circuit or new GSP)
B103: 58 | C103: Selly Oak reinforcement | D103: 132kV | E103: 132kV | F103: a | G103: 2011 | I103: 39 | J103: 2.05557284 | K103: 2.05557284 | L103: 0 | M103: 0 | N103: 0 | O103: 0 | P103: 0 | Q103: 0 | R103: 0 | S103: 1.028973635 | T103: 1.026599205 | U103: 0 | AK103: Installation of additional transformer and 11kV switchgear section
B104: 59 | C104: Shifnal primary reinforcement | D104: 33kV | E104: 33kV | F104: a | G104: 2014 | I104: 8.5 | J104: 1.036533056 | K104: 1.036533056 | L104: 0 | M104: 0 | N104: 0 | O104: 0 | P104: 0 | Q104: 0 | R104: 0 | S104: 0 | T104: 0 | U104: 1.036533056 | AK104: Uprating 2 x 5MVA transformers with 7.5/15MVA units
B105: 60 | C105: Shrewsbury - Harlescott 33kV reinforcement | D105: 33kV | E105: 33kV | F105: f | G105: 2008 | I105: 31 | J105: 0.8430267136 | K105: 0.8430267136 | L105: 0 | M105: 0 | N105: 0 | O105: 0 | P105: 0 | Q105: 0.8430267136 | R105: 0 | S105: 0 | T105: 0 | U105: 0 | AK105: Construction of new 33kV OHL between Shrewsbury and Harlescott.
B106: 61 | C106: Shrewsbury 132/33kV Grid Transformer Reinforcement | D106: 132kV | E106: 132kV | F106: a | G106: 2013 | I106: 117 | J106: 3.135474671 | K106: 3.135474671 | L106: 0 | M106: 0 | N106: 0 | O106: 0 | P106: 0 | Q106: 1.580675088 | R106: 0 | S106: 0 | T106: 0 | U106: 1.554799583 | AK106: Installation of a third 132/33kV transformer (90MVA). Transfer of assets from NG in 2010
B107: 62 | C107: Snedshill 33/11kV reinforcement | D107: 33kV | E107: 33kV | F107: a | G107: 2007 | I107: 18 | J107: 1.580675088 | K107: 1.580675088 | L107: 0 | M107: 0 | N107: 0 | O107: 0 | P107: 0 | Q107: 1.580675088 | R107: 0 | S107: 0 | T107: 0 | U107: 0 | AK107: Uprating 20MVA TX at Snedshill to 20/40MVA unit. Installation of 33kV s/gear at Ketley BSP. Rectify Snedshill 11kV s/gear restrictions.
B108: 63 | C108: St. Weonards reinforcement | D108: 11kV | E108: 11kV | F108: c | G108: 2008 | I108: 4 | J108: 0.8605 | K108: 0.8605 | L108: 0 | M108: 0 | N108: 0 | O108: 0 | P108: 0 | Q108: 0.3255 | R108: 0.535 | S108: 0 | T108: 0 | U108: 0 | AK108: 11kV reinforcement
B109: 64 | C109: Stafford Grid | D109: 132kV | E109: 132kV | F109: a | G109: 2008 | I109: 54 | J109: 1.569398721 | K109: 1.569398721 | L109: 0 | M109: 0 | N109: 0 | O109: 0 | P109: 0 | Q109: 1.053783392 | R109: 0.5156153293 | S109: 0 | T109: 0 | U109: 0 | AK109: Uprating 30MVA transformer for 60MVA, commission second winding of 60MVA Transformer and extend switchboard
B110: 65 | C110: Stagefields 132/11kV reinforcement (switchboard extension) + reinforcement | D110: 132kV | E110: 132kV | F110: a | G110: 2011 | I110: 78 | J110: 2.059075782 | K110: 2.059075782 | L110: 0 | M110: 0 | N110: 0 | O110: 0 | P110: 0 | Q110: 0 | R110: 0.5156153293 | S110: 1.543460453 | T110: 0 | U110: 0 | AK110: Installation of third 132/11kV transformer and additional 11kV switchgear
B111: 66 | C111: Stockton and Cleobury Mortimer Reinforcement | D111: 33kV | E111: 33kV | F111: a | G111: 2006 | I111: 10.5 | J111: 1.347365676 | K111: 1.347365676 | L111: 0 | M111: 0 | N111: 0 | O111: 0 | P111: 0 | Q111: 0.3161350176 | R111: 1.031230659 | S111: 0 | T111: 0 | U111: 0 | AK111: Installation of a crossbay at Cleobury Mortimer, a 33kV circuit from the Ludlow – Stockton 33kV circuit to Cleobury Mortimer tee, and 2 x 7.5/15MVA transformers at Cleobury Mortimer.
B112: 67 | C112: Stowfield reinforcement | D112: 33kV | E112: 33kV | F112: c | G112: 2007 | I112: 2 | J112: 0.3093691976 | K112: 0.3093691976 | L112: 0 | M112: 0 | N112: 0 | O112: 0 | P112: 0 | Q112: 0 | R112: 0.3093691976 | S112: 0 | T112: 0 | U112: 0 | AK112: Installation of interposing transformer to address phasing conflict. 11kV interconnection capacity to be reinforced.
B113: 68 | C113: Summer Lane 132/11kV Reinforcement | D113: 132kV | E113: 132kV | F113: g | G113: 2010 | I113: 39 | J113: 1.028973635 | K113: 1.028973635 | L113: 0 | M113: 0 | N113: 0 | O113: 0 | P113: 0 | Q113: 0 | R113: 0 | S113: 1.028973635 | T113: 0 | U113: 0 | AK113: 132kV mesh re-configuration.
B114: 69 | C114: Tean 33/11kV reinforcement | D114: 33kV | E114: 33kV | F114: a | G114: 2008 | I114: 17.5 | J114: 1.656734874 | K114: 1.656734874 | L114: 0 | M114: 0 | N114: 0 | O114: 0 | P114: 0 | Q114: 0.3161350176 | R114: 1.340599856 | S114: 0 | T114: 0 | U114: 0 | AK114: Installation of 11kV interconnector from Cheadle and uprating transformers from 2 x 5MVA to 2 x 12/24MVA units
B115: 70 | C115: Walsall 132kV reconfiguration (to unpick temporary Bentley GT2 feeder tee to Walsall GT4) | D115: 132kV | E115: 132kV | F115: g | G115: 2009 | I115: 0 | J115: 0.2107566784 | K115: 0.2107566784 | L115: 0 | M115: 0 | N115: 0 | O115: 0 | P115: 0 | Q115: 0.2107566784 | R115: 0 | S115: 0 | T115: 0 | U115: 0 | AK115: Unpick tee and prepare for link into 132kV feeder bay (403)
B116: 71 | C116: Weir Hill Roushill group reinforcement Roushill 33/11kV Substation & Rowton, harlescott, Malehurst, etc 33kV Ring | D116: 33kV | E116: 33kV | F116: b | G116: 2010 | I116: 31 | J116: 5.460387979 | K116: 5.460387979 | L116: 0 | M116: 0 | N116: 0 | O116: 0 | P116: 0 | Q116: 0 | R116: 0 | S116: 1.955049907 | T116: 1.950538489 | U116: 1.554799583 | AK116: Transfer Roushill demand to Spring Gardens. Extension of the 33kV circuits from Roushill to the Rowton - Harlescott 33kV circuit.
B117: 72 | C117: Whitfield - Endon 33kV Works (Whit End) | D117: 33kV | E117: 33kV | F117: f,j | G117: 2007 | I117: 14 | J117: 0.4147475368 | K117: 0.4147475368 | L117: 0 | M117: 0 | N117: 0 | O117: 0 | P117: 0 | Q117: 0.1053783392 | R117: 0.3093691976 | S117: 0 | T117: 0 | U117: 0 | AK117: Reinforcement of circuit to 41MVA. Reconfiguration of circuits to teed transformer feeders.
B118: 73 | C118: Whitfield 132kV group network reinforcement | D118: 132kV | E118: 132kV | F118: b | G118: 2012 | I118: 150 | J118: 9.065255599 | K118: 9.065255599 | L118: 0 | M118: 0 | N118: 0 | O118: 0 | P118: 0 | Q118: 0 | R118: 0 | S118: 1.028973635 | T118: 5.030336102 | U118: 3.005945861 | AK118: Installation of third 132kV circuit from Cellarhead to Whitfield or additional circuit from Cellarhead to supply SP Manweb directly, offloading the Cellarhead to Whitfield circuits.
B119: 74 | C119: Whitfield 33/11kV reinforcement | D119: 33kV | E119: 33kV | F119: a | G119: 2008 | I119: 14.25 | J119: 1.042507025 | K119: 1.042507025 | L119: 0 | M119: 0 | N119: 0 | O119: 0 | P119: 0 | Q119: 0.526891696 | R119: 0.5156153293 | S119: 0 | T119: 0 | U119: 0 | AK119: Uprating transformers to 2 x 12/24 units
B120: 75
C121: Total | I121: =SUM(I46:I120) -> 2633.25 | J121: 133.5711268 | K121: 128.3121268 | L121: 0 | M121: 0 | N121: 0 | O121: 1.4 | P121: 3.859 | Q121: 24.27759961 | R121: 26.41888953 | S121: 25.31275143 | T121: 25.76764003 | U121: 26.53524622 | V121: =SUM(V46:V120) -> 0 | W121: =SUM(W46:W120) -> 0 | X121: 0 | Y121: 0 | Z121: 0 | AA121: 0 | AB121: 0 | AC121: 0 | AD121: 0 | AE121: 0 | AF121: 0 | AG121: 0 | AH121: 0

Sheet FBPQ LR6
A1: Main Forecast Business Plan DPCR5 | F1: Index
A3: LR6 - Fault levels
B6: Fault level system measures
D8: As at 31st March 2010 | G8: As at 31st March 2015
D9: 132kV | E9: EHV | F9: HV | G9: 132kV | H9: EHV | I9: HV
B10: No. of switchboards | D10: 50 | E10: 175 | F10: 411 | G10: 51 | H10: 177 | I10: 420
B11: No. of switchboards @ >95% of F.L. | D11: 5 | E11: 12 | F11: 32 | G11: 5 | H11: 10 | I11: 30
B12: No. of switchboards having fault level 'operational restrictions' | D12: 5 | E12: 12 | F12: 32 | G12: 5 | H12: 10 | I12: 30
B14: Number of fault level schemes
B16: No. of schemes | D16: DPCR4 | G16: DPCR5
D17: 132kV | E17: EHV | F17: HV | G17: 132kV | H17: EHV | I17: HV
B18: Switchboards | D18: 0 | E18: 0 | F18: 0 | G18: 4 | H18: 3 | I18: 0
B19: Transformers | D19: 0 | E19: 0 | F19: 0 | G19: 0 | H19: 0 | I19: 0
B20: Other | D20: 0 | E20: 0 | F20: 0 | G20: 0 | H20: 0 | I20: 0
B22: Fault level reinforcement
C24: DPCR4 | H24: DPCR5 | N24: DPCR4 | R24: DPCR5
C25: 2005/06 | D25: 2006/07 | E25: 2007/08 | F25: 2008/09 | G25: 2009/10 | H25: 2010/11 | I25: 2011/12 | J25: 2012/13 | K25: 2013/14 | L25: 2014/15 | N25: Actuals | O25: Forecast | P25: Total | R25: Forecast | S25: % change
C26: (£m) | D26: (£m) | E26: (£m) | F26: (£m) | G26: (£m) | H26: (£m) | I26: (£m) | J26: (£m) | K26: (£m) | L26: (£m) | N26: (£m) | O26: (£m) | P26: (£m) | R26: (£m) | S26: (£m)
B27: Fault level reinforcement:
B28: LV | C28: 0 | D28: 0 | E28: 0 | F28: 0 | G28: 0 | H28: 0 | I28: 0 | J28: 0 | K28: 0 | L28: 0 | N28: 0 | O28: 0 | P28: 0 | R28: 0 | S28: 0
B29: HV | C29: 0 | D29: 0 | E29: 0 | F29: 0 | G29: 0 | H29: 0 | I29: 0 | J29: 0 | K29: 0 | L29: 0 | N29: 0 | O29: 0 | P29: 0 | R29: 0 | S29: 0
B30: EHV | C30: 0 | D30: 0 | E30: 0 | F30: 0 | G30: 0 | H30: 0 | I30: 1.23747679 | J30: 1.74925518 | K30: 1.231919045 | L30: 0 | N30: 0 | O30: 0 | P30: 0 | R30: 4.218651016 | S30: 0
B31: 132kV | C31: 0 | D31: 0 | E31: 0 | F31: 0 | G31: 0 | H31: 0 | I31: 0 | J31: 4.012997177 | K31: 5.030336102 | L31: 6.011891723 | N31: 0 | O31: 0 | P31: 0 | R31: 15.055225 | S31: 0
B32: Total expenditure | C32: 0 | D32: 0 | E32: 0 | F32: 0 | G32: 0 | H32: 0 | I32: 1.23747679 | J32: 5.762252357 | K32: 6.262255148 | L32: 6.011891723 | N32: 0 | O32: 0 | P32: 0 | R32: 19.27387602 | S32: 0

Sheet FBPQ NL1 0309
A1: June Forecast Business Plan DPCR5
A2: EDFE SPN
A3: NL1 - Condition based expenditure
B5: Total condition based replacement
B7: Asset Categories | D7: DPCR 4 | I7: DPCR 5 | O7: DPCR4 | S7: DPCR5
D8: 2005/06 | E8: 2006/07 | F8: 2007/08 | G8: 2008/09 | H8: 2009/10 | I8: 2010/11 | J8: 2011/12 | K8: 2012/13 | L8: 2013/14 | M8: 2014/15 | O8: Actuals | P8: Forecast | Q8: Total | S8: Forecast | T8: % change
D9: £m | E9: £m | F9: £m | G9: £m | H9: £m | I9: £m | J9: £m | K9: £m | L9: £m | M9: £m
B10: Metered LV Services | C10: Overhead | D10: 0.2982975413 | E10: 0 | F10: 0.1993075713 | G10: 0.8930759287 | H10: 1.11175324 | I10: 2.331595702 | J10: 2.385870369 | K10: 2.589861983 | L10: 2.687081415 | M10: 2.923402164 | O10: =SUM(D10:G10) -> 1.390681041 | P10: =H10 -> 1.11175324 | Q10: =SUM(D10:H10) -> 2.502434282 | S10: =SUM(I10:M10) -> 12.91781163 | T10: =IF(Q10<>0,(S10-Q10)/Q10,"0") -> 4.162098253
C11: Underground | D11: 1.193190165 | E11: 1.892168978 | F11: 3.786843855 | G11: 0.3349034733 | H11: 0.8894025924 | I11: 0.4239264913 | J11: 0.5186674715 | K11: 0.5179723965 | L11: 0.6200957113 | M11: 0.7308505411 | O11: =SUM(D11:G11) -> 7.207106471 | P11: =H11 -> 0.8894025924 | Q11: =SUM(D11:H11) -> 8.096509063 | S11: =SUM(I11:M11) -> 2.811512612 | T11: =IF(Q11<>0,(S11-Q11)/Q11,"0") -> -0.6527500198
B12: Un-metered LV Services | C12: Overhead | D12: 0 | E12: 0 | F12: 0 | G12: 0 | H12: 0 | I12: 0 | J12: 0 | K12: 0 | L12: 0 | M12: 0 | O12: 0 | P12: 0 | Q12: =SUM(D12:H12) -> 0 | S12: =SUM(I12:M12) -> 0 | T12: =IF(Q12<>0,(S12-Q12)/Q12,"0") -> 0
C13: Underground | D13: 0 | E13: 0 | F13: 0 | G13: 0 | H13: 0 | I13: 0 | J13: 0 | K13: 0 | L13: 0 | M13: 0 | O13: 0 | P13: 0 | Q13: 0 | S13: 0 | T13: 0
B14: LV System | C14: Overhead mains | D14: 0 | E14: 0.5975270456 | F14: 0.5979227139 | G14: 1.562882875 | H14: 1.778805185 | I14: 2.861503816 | J14: 3.008271335 | K14: 3.315023338 | L14: 3.513875697 | M14: 3.758659925 | O14: 2.758332635 | P14: 1.778805185 | Q14: 4.53713782 | S14: 16.45733411 | T14: 2.627250211
C15: Underground mains | D15: 1.59092022 | E15: 1.991756819 | F15: 5.480958211 | G15: 4.688648626 | H15: 5.781116851 | I15: 4.981136273 | J15: 6.120276164 | K15: 7.45880251 | L15: 8.681339958 | M15: 10.23190757 | O15: 13.75228388 | P15: 5.781116851 | Q15: 19.53340073 | S15: 37.47346248 | T15: 0.9184300268
C16: Switchgear (incl other plant & equipment) | D16: 2.187515303 | E16: 2.688871705 | F16: 2.491344641 | G16: 1.451248384 | H16: 1.889980509 | I16: 2.119632457 | J16: 2.17840338 | K16: 2.175484065 | L16: 2.273684275 | M16: 2.401366063 | O16: 8.818980034 | P16: 1.889980509 | Q16: 10.70896054 | S16: 11.14857024 | T16: 0.04105064129
B17: HV | C17: Overhead lines | D17: 5.866518312 | E17: 9.162081366 | F17: 10.36399371 | G17: 12.503063 | H17: 10.11695449 | I17: 9.962272546 | J17: 9.024814004 | K17: 8.391152823 | L17: 7.854545676 | M17: 7.412912631 | O17: 37.89565639 | P17: 10.11695449 | Q17: 48.01261088 | S17: 42.64569768 | T17: -0.1117813237
C18: Underground cables | D18: 1.193190165 | E18: 1.493817614 | F18: 4.683727926 | G18: 1.116344911 | H18: 1.445279213 | I18: 0.8478529826 | J18: 1.037334943 | K18: 1.45032271 | L18: 1.550239278 | M18: 1.670515522 | O18: 8.487080616 | P18: 1.445279213 | Q18: 9.932359828 | S18: 6.556265436 | T18: -0.3399085867
C19: Submarine | D19: 0 | E19: 0 | F19: 0 | G19: 0 | H19: 0 | I19: 0 | J19: 0 | K19: 0 | L19: 0 | M19: 0 | O19: 0 | P19: 0 | Q19: 0 | S19: 0 | T19: 0
C20: Switchgear (incl other plant & equipment) | D20: 3.579570496 | E20: 4.879804206 | F20: 4.185458997 | G20: 4.800283117 | H20: 4.780538934 | I20: 5.723007633 | J20: 7.157611107 | K20: 7.873180427 | L20: 6.511004968 | M20: 8.561392052 | O20: 17.44511682 | P20: 4.780538934 | Q20: 22.22565575 | S20: 35.82619619 | T20: 0.6119297712
C21: Transformers | D21: 0.1988650275 | E21: 0.8962905684 | F21: 0.6975764996 | G21: 0.8930759287 | H21: 1.222928565 | I21: 1.907669211 | J21: 1.970936392 | K21: 2.279078545 | L21: 2.480382845 | M21: 2.818994944 | O21: 2.685808024 | P21: 1.222928565 | Q21: 3.908736589 | S21: 11.45706194 | T21: 1.931141988
C22: Substation | D22: 2.187515303 | E22: 0.8962905684 | F22: 1.893421927 | G22: 2.121055331 | H22: 3.001733749 | I22: 3.073467062 | J22: 3.008271335 | K22: 3.0042399 | L22: 2.997129271 | M22: 3.027809384 | O22: 7.098283129 | P22: 3.001733749 | Q22: 10.10001688 | S22: 15.11091695 | T22: 0.496127891
B23: EHV | C23: Overhead lines | D23: 0.3977300551 | E23: 0.09958784093 | F23: 0 | G23: 2.455958804 | H23: 0.4447012962 | I23: 0.4239264913 | J23: 4.045606278 | K23: 3.832995734 | L23: 6.511004968 | M23: 2.505773284 | O23: 2.9532767 | P23: 0.4447012962 | Q23: 3.397977996 | S23: 17.31930675 | T23: 4.09694494
C24: Underground cables | D24: 0.7954601101 | E24: 1.09546625 | F24: 1.195845428 | G24: 0.1116344911 | H24: 0.111175324 | I24: 3.073467062 | J24: 1.556002414 | K24: 0 | L24: 1.343540708 | M24: 0.4176288806 | O24: 3.198406279 | P24: 0.111175324 | Q24: 3.309581603 | S24: 6.390639065 | T24: 0.9309507457
C25: Submarine | D25: 0 | E25: 0 | F25: 0 | G25: 0 | H25: 0 | I25: 0 | J25: 0 | K25: 0 | L25: 0 | M25: 0 | O25: 0 | P25: 0 | Q25: 0 | S25: 0 | T25: 0
C26: Switchgear (incl other plant & equipment) | D26: 0 | E26: 0.2987635228 | F26: 0 | G26: 2.679227786 | H26: 0.8894025924 | I26: 1.48374272 | J26: 4.253073266 | K26: 0.6215668758 | L26: 2.170334989 | M26: 5.115953787 | O26: 2.977991309 | P26: 0.8894025924 | Q26: 3.867393901 | S26: 13.64467164 | T26: 2.528130826
C27: Transformers | D27: 0.7954601101 | E27: 2.888047387 | F27: 2.192383284 | G27: 1.562882875 | H27: 0.5558766202 | I27: 0.2119632457 | J27: 1.763469403 | K27: 1.035944793 | L27: 0.4133971408 | M27: 0.6264433209 | O27: 7.438773657 | P27: 0.5558766202 | Q27: 7.994650277 | S27: 4.051217903 | T27: -0.4932588965
C28: Substation | D28: 1.889217762 | E28: 0.7967027275 | F28: 1.295499213 | G28: 2.344324313 | H28: 2.001155833 | I28: 1.165797851 | J28: 0.7261344601 | K28: 0.5179723965 | L28: 0.7234449965 | M28: 2.610180504 | O28: 6.325744015 | P28: 2.001155833 | Q28: 8.326899848 | S28: 5.743530208 | T28: -0.3102438708
B29: 132kV | C29: Overhead lines | D29: 0.09943251377 | E29: 4.581040683 | F29: 6.975764996 | G29: 12.503063 | H29: 6.225818147 | I29: 4.451228159 | J29: 3.838139289 | K29: 4.868940527 | L29: 4.237320694 | M29: 2.088144403 | O29: 24.15930119 | P29: 6.225818147 | Q29: 30.38511934 | S29: 19.48377307 | T29: -0.3587725342
C30: Underground cables | D30: 6.363680881 | E30: 9.859196253 | F30: 3.986151426 | G30: 0.1116344911 | H30: 1.445279213 | I30: 6.676842238 | J30: 0 | K30: 4.143779172 | L30: 8.888038528 | M30: 13.78175306 | O30: 20.32066305 | P30: 1.445279213 | Q30: 21.76594226 | S30: 33.490413 | T30: 0.5386612991
C31: Submarine cables | D31: 0 | E31: 0 | F31: 0 | G31: 0 | H31: 0 | I31: 0 | J31: 0 | K31: 0 | L31: 0 | M31: 0 | O31: 0 | P31: 0 | Q31: 0 | S31: 0 | T31: 0
C32: Switchgear (incl other plant & equipment) | D32: 9.744386349 | E32: 3.087223069 | F32: 11.85880049 | G32: 8.372586832 | H32: 0.3335259721 | I32: 8.160584958 | J32: 7.157611107 | K32: 12.94930991 | L32: 10.64497638 | M32: 8.248170392 | O32: 33.06299674 | P32: 0.3335259721 | Q32: 33.39652271 | S32: 47.16065275 | T32: 0.4121426098
C33: Transformers | D33: 1.59092022 | E33: 8.664142161 | F33: 2.889959784 | G33: 1.339613893 | H33: 0.5558766202 | I33: 2.649540571 | J33: 8.091212555 | K33: 10.35944793 | L33: 4.547368549 | M33: 2.610180504 | O33: 14.48463606 | P33: 0.5558766202 | Q33: 15.04051268 | S33: 28.25775011 | T33: 0.8787757248
C34: Substation | D34: 0.2982975413 | E34: 1.692993296 | F34: 0 | G34: 0 | H34: 0 | I34: 1.169779474 | J34: 0.6771344601 | K34: 0.4829723965 | L34: 0.7707942817 | M34: 0.4820361008 | O34: 1.991290837 | P34: 0 | Q34: 1.991290837 | S34: 3.582716713 | T34: 0.7991930893
B35: Total non-load replacement (£m) | D35: 40.27016808 | E35: 57.56177206 | F35: 64.77496067 | G35: 61.84550806 | H35: 44.58130494 | I35: 63.69893694 | J35: 68.51883973 | K35: 77.86804843 | L35: 79.41960033 | M35: 82.02407504 | O35: 224.4524089 | P35: 44.58130494 | Q35: 269.0337138 | S35: 371.5295005 | T35: 0.3809774812
B38: Proactive condition based replacement (non fault)
B40: Asset Categories | D40: DPCR 4 | I40: DPCR 5 | O40: DPCR4 | S40: DPCR5
D41: 2005/06 | E41: 2006/07 | F41: 2007/08 | G41: 2008/09 | H41: 2009/10 | I41: 2010/11 | J41: 2011/12 | K41: 2012/13 | L41: 2013/14 | M41: 2014/15 | O41: Actuals | P41: Forecast | Q41: Total | S41: Forecast | T41: % change
D42: £m | E42: £m | F42: £m | G42: £m | H42: £m | I42: £m | J42: £m | K42: £m | L42: £m | M42: £m
B43: Metered LV Services | C43: Overhead | D43: 0.2982975413 | E43: 0 | F43: 0.1993075713 | G43: 0.8930759287 | H43: 1.11175324 | I43: 2.331595702 | J43: 2.385870369 | K43: 2.589861983 | L43: 2.687081415 | M43: 2.923402164 | O43: =SUM(D43:G43) -> 1.390681041 | P43: =H43 -> 1.11175324 | Q43: =SUM(D43:H43) -> 2.502434282 | S43: =SUM(I43:M43) -> 12.91781163 | T43: =IF(Q43<>0,(S43-Q43)/Q43,"0") -> 4.162098253
C44: Underground | D44: 1.093757651 | E44: 1.792581137 | F44: 3.587536283 | G44: 0.2232689822 | H44: 0.7782272683 | I44: 0.3179448685 | J44: 0.4149339772 | K44: 0.4143779172 | L44: 0.516746426 | M44: 0.6264433209 | O44: 6.697144054 | P44: 0.7782272683 | Q44: 7.475371322 | S44: 2.29044651 | T44: -0.6936009716
B45: Un-metered LV Services | C45: Overhead | D45: 0 | E45: 0 | F45: 0 | G45: 0 | H45: 0 | I45: 0 | J45: 0 | K45: 0 | L45: 0 | M45: 0 | O45: 0 | P45: 0 | Q45: 0 | S45: 0 | T45: 0
C46: Underground | D46: 0 | E46: 0 | F46: 0 | G46: 0 | H46: 0 | I46: 0 | J46: 0 | K46: 0 | L46: 0 | M46: 0 | O46: 0 | P46: 0 | Q46: 0 | S46: 0 | T46: 0
B47: LV System | C47: Overhead mains | D47: 0 | E47: 0.5975270456 | F47: 0.5979227139 | G47: 1.562882875 | H47: 1.778805185 | I47: 2.861503816 | J47: 3.008271335 | K47: 3.315023338 | L47: 3.513875697 | M47: 3.758659925 | O47: 2.758332635 | P47: 1.778805185 | Q47: 4.53713782 | S47: 16.45733411 | T47: 2.627250211
C48: Underground mains | D48: 1.59092022 | E48: 1.991756819 | F48: 5.381304425 | G48: 4.577014135 | H48: 5.669941527 | I48: 4.87515465 | J48: 6.016542669 | K48: 7.35520803 | L48: 8.577990672 | M48: 10.12750035 | O48: 13.5409956 | P48: 5.669941527 | Q48: 19.21093713 | S48: 36.95239638 | T48: 0.923508267
C49: Switchgear (incl other plant & equipment) | D49: 1.988650275 | E49: 2.489696023 | F49: 2.29203707 | G49: 1.227979402 | H49: 1.667629861 | I49: 1.907669211 | J49: 1.970936392 | K49: 1.968295107 | L49: 2.066985704 | M49: 2.192551623 | O49: 7.998362771 | P49: 1.667629861 | Q49: 9.665992631 | S49: 10.10643804 | T49: 0.04556649504
B50: HV | C50: Overhead lines | D50: 5.767085798 | E50: 9.062493525 | F50: 10.26433992 | G50: 12.39142851 | H50: 10.00577916 | I50: 9.856290923 | J50: 8.92108051 | K50: 8.287558344 | L50: 7.751196391 | M50: 7.308505411 | O50: 37.48534776 | P50: 10.00577916 | Q50: 47.49112692 | S50: 42.12463158 | T50: -0.1129999579
C51: Underground cables | D51: 0.8948926239 | E51: 1.09546625 | F51: 3.487882498 | G51: 0.5581724554 | H51: 0.8894025924 | I51: 0.3179448685 | J51: 0.5186674715 | K51: 0.9323503137 | L51: 1.033492852 | M51: 1.148479422 | O51: 6.036413827 | P51: 0.8894025924 | Q51: 6.92581642 | S51: 3.950934927 | T51: -0.4295351352
C52: Submarine | D52: 0 | E52: 0 | F52: 0 | G52: 0 | H52: 0 | I52: 0 | J52: 0 | K52: 0 | L52: 0 | M52: 0 | O52: 0 | P52: 0 | Q52: 0 | S52: 0 | T52: 0
C53: Switchgear (incl other plant & equipment) | D53: 3.181840441 | E53: 4.28227716 | F53: 3.687190069 | G53: 4.353745152 | H53: 4.335837638 | I53: 5.299081141 | J53: 6.742677129 | K53: 7.45880251 | L53: 6.097607827 | M53: 8.143763172 | O53: 15.50505282 | P53: 4.335837638 | Q53: 19.84089046 | S53: 33.74193178 | T53: 0.700625879
C54: Transformers | D54: 0.09943251377 | E54: 0.4979392047 | F54: 0.3986151426 | G54: 0.6698069465 | H54: 1.000577916 | I54: 1.377761097 | J54: 1.45226892 | K54: 1.657511669 | L54: 1.860287134 | M54: 2.088144403 | O54: 1.665793808 | P54: 1.000577916 | Q54: 2.666371724 | S54: 8.435973223 | T54: 2.16383989
C55: Substation | D55: 1.392055193 | E55: 0.5975270456 | F55: 1.195845428 | G55: 1.562882875 | H55: 2.445857129 | I55: 2.543558948 | J55: 2.489603863 | K55: 2.486267503 | L55: 2.480382845 | M55: 2.505773284 | O55: 4.748310541 | P55: 2.445857129 | Q55: 7.19416767 | S55: 12.50558644 | T55: 0.7382951046
B56: EHV | C56: Overhead lines | D56: 0.3977300551 | E56: 0.09958784093 | F56: 0 | G56: 2.455958804 | H56: 0.4447012962 | I56: 0.4239264913 | J56: 4.045606278 | K56: 3.832995734 | L56: 6.511004968 | M56: 2.505773284 | O56: 2.9532767 | P56: 0.4447012962 | Q56: 3.397977996 | S56: 17.31930675 | T56: 4.09694494
C57: Underground cables | D57: 0.6960275964 | E57: 0.8962905684 | F57: 0.9965378565 | G57: 0 | H57: 0 | I57: 2.861503816 | J57: 1.348535426 | K57: -0.2071889586 | L57: 1.136842137 | M57: 0.2088144403 | O57: 2.588856021 | P57: 0 | Q57: 2.588856021 | S57: 5.348506861 | T57: 1.065973085
C58: Submarine | D58: 0 | E58: 0 | F58: 0 | G58: 0 | H58: 0 | I58: 0 | J58: 0 | K58: 0 | L58: 0 | M58: 0 | O58: 0 | P58: 0 | Q58: 0 | S58: 0 | T58: 0
C59: Switchgear (incl other plant & equipment) | D59: 0 | E59: 0.2987635228 | F59: 0 | G59: 2.679227786 | H59: 0.8894025924 | I59: 1.48374272 | J59: 4.253073266 | K59: 0.6215668758 | L59: 2.170334989 | M59: 5.115953787 | O59: 2.977991309 | P59: 0.8894025924 | Q59: 3.867393901 | S59: 13.64467164 | T59: 2.528130826
C60: Transformers | D60: 0 | E60: 0 | F60: 0 | G60: 0.5581724554 | H60: 0 | I60: 0.2119632457 | J60: 1.763469403 | K60: 1.035944793 | L60: 0.4133971408 | M60: 0.6264433209 | O60: 0.5581724554 | P60: 0 | Q60: 0.5581724554 | S60: 4.051217903 | T60: 6.258003981
C61: Substation | D61: 1.889217762 | E61: 0.7967027275 | F61: 1.295499213 | G61: 2.344324313 | H61: 2.001155833 | I61: 1.165797851 | J61: 0.7261344601 | K61: 0.5179723965 | L61: 0.7234449965 | M61: 2.610180504 | O61: 6.325744015 | P61: 2.001155833 | Q61: 8.326899848 | S61: 5.743530208 | T61: -0.3102438708
B62: 132kV | C62: Overhead lines | D62: 0.09943251377 | E62: 4.581040683 | F62: 6.975764996 | G62: 12.503063 | H62: 6.225818147 | I62: 4.451228159 | J62: 3.838139289 | K62: 4.868940527 | L62: 4.237320694 | M62: 2.088144403 | O62: 24.15930119 | P62: 6.225818147 | Q62: 30.38511934 | S62: 19.48377307 | T62: -0.3587725342
C63: Underground cables | D63: 6.363680881 | E63: 9.859196253 | F63: 3.986151426 | G63: 0.1116344911 | H63: 1.445279213 | I63: 6.676842238 | J63: 0 | K63: 4.143779172 | L63: 8.888038528 | M63: 13.78175306 | O63: 20.32066305 | P63: 1.445279213 | Q63: 21.76594226 | S63: 33.490413 | T63: 0.5386612991
C64: Submarine cables | D64: 0 | E64: 0 | F64: 0 | G64: 0 | H64: 0 | I64: 0 | J64: 0 | K64: 0 | L64: 0 | M64: 0 | O64: 0 | P64: 0 | Q64: 0 | S64: 0 | T64: 0
C65: Switchgear (incl other plant & equipment) | D65: 9.744386349 | E65: 3.087223069 | F65: 11.85880049 | G65: 8.372586832 | H65: 0.3335259721 | I65: 8.160584958 | J65: 7.157611107 | K65: 12.94930991 | L65: 10.64497638 | M65: 8.248170392 | O65: 33.06299674 | P65: 0.3335259721 | Q65: 33.39652271 | S65: 47.16065275 | T65: 0.4121426098
C66: Transformers | D66: 1.392055193 | E66: 7.46908807 | F66: 2.491344641 | G66: 0.7814414376 | H66: 0 | I66: 2.013650834 | J66: 7.468811589 | K66: 9.737881054 | L66: 3.927272838 | M66: 1.983737183 | O66: 12.13392934 | P66: 0 | Q66: 12.13392934 | S66: 25.1313535 | T66: 1.071163659
C67: Substation | D67: 0.2982975413 | E67: 1.692993296 | F67: 0 | G67: 0 | H67: 0 | I67: 1.169779474 | J67: 0.6771344601 | K67: 0.4829723965 | L67: 0.7707942817 | M67: 0.4820361008 | O67: 1.991290837 | P67: 0 | Q67: 1.991290837 | S67: 3.582716713 | T67: 0.7991930893
B68: Total proactive condition based replacement (£m) | D68: 37.18776015 | E68: 51.18815024 | F68: 58.69607975 | G68: 57.82666638 | H68: 41.02369457 | I68: 60.30752501 | J68: 65.19936791 | K68: 74.44943062 | L68: 76.00907391 | M68: 78.47422955 | O68: 204.8986565 | P68: 41.02369457 | Q68: 245.9223511 | S68: 354.439627 | T68: 0.4412664218
B71: Reactive condition-based replacement (fault)
B73: Asset Categories | D73: DPCR 4 | I73: DPCR 5 | O73: DPCR4 | S73: DPCR5
D74: 2005/06 | E74: 2006/07 | F74: 2007/08 | G74: 2008/09 | H74: 2009/10 | I74: 2010/11 | J74: 2011/12 | K74: 2012/13 | L74: 2013/14 | M74: 2014/15 | O74: Actuals | P74: Forecast | Q74: Total | S74: Forecast | T74: % change
D75: £m | E75: £m | F75: £m | G75: £m | H75: £m | I75: £m | J75: £m | K75: £m | L75: £m | M75: £m
B76: Metered LV Services | C76: Overhead | D76: 0 | E76: 0 | F76: 0 | G76: 0 | H76: 0 | I76: 0 | J76: 0 | K76: 0 | L76: 0 | M76: 0 | O76: =SUM(D76:G76) -> 0 | P76: =H76 -> 0 | Q76: =SUM(D76:H76) -> 0 | S76: =SUM(I76:M76) -> 0 | T76: =IF(Q76<>0,(S76-Q76)/Q76,"0") -> 0
C77: Underground | D77: 0.09943251377 | E77: 0.09958784093 | F77: 0.1993075713 | G77: 0.1116344911 | H77: 0.111175324 | I77: 0.1059816228 | J77: 0.1037334943 | K77: 0.1035944793 | L77: 0.1033492852 | M77: 0.1044072202 | O77: 0.5099624171 | P77: 0.111175324 | Q77: 0.6211377411 | S77: 0.5210661018 | T77: =IF(Q77<>0,(S77-Q77)/Q77,"0") -> -0.161110222
B78: Un-metered LV Services | C78: Overhead | D78: 0 | E78: 0 | F78: 0 | G78: 0 | H78: 0 | I78: 0 | J78: 0 | K78: 0 | L78: 0 | M78: 0 | O78: 0 | P78: 0 | Q78: 0 | S78: 0 | T78: 0
C79: Underground | D79: 0 | E79: 0 | F79: 0 | G79: 0 | H79: 0 | I79: 0 | J79: 0 | K79: 0 | L79: 0 | M79: 0 | O79: 0 | P79: 0 | Q79: 0 | S79: 0 | T79: 0
B80: LV System | C80: Overhead mains | D80: 0 | E80: 0 | F80: 0 | G80: 0 | H80: 0 | I80: 0 | J80: 0 | K80: 0 | L80: 0 | M80: 0 | O80: 0 | P80: 0 | Q80: 0 | S80: 0 | T80: 0
C81: Underground mains | D81: 0 | E81: 0 | F81: 0.09965378565 | G81: 0.1116344911 | H81: 0.111175324 | I81: 0.1059816228 | J81: 0.1037334943 | K81: 0.1035944793 | L81: 0.1033492852 | M81: 0.1044072202 | O81: 0.2112882767 | P81: 0.111175324 | Q81: 0.3224636008 | S81: 0.5210661018 | T81: 0.6158912216
C82: Switchgear (incl other plant & equipment) | D82: 0.1988650275 | E82: 0.1991756819 | F82: 0.1993075713 | G82: 0.2232689822 | H82: 0.2223506481 | I82: 0.2119632457 | J82: 0.2074669886 | K82: 0.2071889586 | L82: 0.2066985704 | M82: 0.2088144403 | O82: 0.8206172629 | P82: 0.2223506481 | Q82: 1.042967911 | S82: 1.042132204 | T82: -0.000801278155
B83: HV | C83: Overhead lines | D83: 0.09943251377 | E83: 0.09958784093 | F83: 0.09965378565 | G83: 0.1116344911 | H83: 0.111175324 | I83: 0.1059816228 | J83: 0.1037334943 | K83: 0.1035944793 | L83: 0.1033492852 | M83: 0.1044072202 | O83: 0.4103086314 | P83: 0.111175324 | Q83: 0.5214839555 | S83: 0.5210661018 | T83: -0.000801278155
C84: Underground cables | D84: 0.2982975413 | E84: 0.3983513637 | F84: 1.195845428 | G84: 0.5581724554 | H84: 0.5558766202 | I84: 0.5299081141 | J84: 0.5186674715 | K84: 0.5179723965 | L84: 0.516746426 | M84: 0.5220361008 | O84: 2.450666788 | P84: 0.5558766202 | Q84: 3.006543409 | S84: 2.605330509 | T84: -0.1334465681
C85: Submarine | D85: 0 | E85: 0 | F85: 0 | G85: 0 | H85: 0 | I85: 0 | J85: 0 | K85: 0 | L85: 0 | M85: 0 | O85: 0 | P85: 0 | Q85: 0 | S85: 0 | T85: 0
C86: Switchgear (incl other plant & equipment) | D86: 0.3977300551 | E86: 0.5975270456 | F86: 0.4982689283 | G86: 0.4465379643 | H86: 0.4447012962 | I86: 0.4239264913 | J86: 0.4149339772 | K86: 0.4143779172 | L86: 0.4133971408 | M86: 0.4176288806 | O86: 1.940063993 | P86: 0.4447012962 | Q86: 2.384765289 | S86: 2.084264407 | T86: -0.1260085777
C87: Transformers | D87: 0.09943251377 | E87: 0.3983513637 | F87: 0.298961357 | G87: 0.2232689822 | H87: 0.2223506481 | I87: 0.5299081141 | J87: 0.5186674715 | K87: 0.6215668758 | L87: 0.6200957113 | M87: 0.7308505411 | O87: 1.020014217 | P87: 0.2223506481 | Q87: 1.242364865 | S87: 3.021088714 | T87: 1.431724206
C88: Substation | D88: 0.7954601101 | E88: 0.2987635228 | F88: 0.6975764996 | G88: 0.5581724554 | H88: 0.5558766202 | I88: 0.5299081141 | J88: 0.5186674715 | K88: 0.5179723965 | L88: 0.516746426 | M88: 0.5220361008 | O88: 2.349972588 | P88: 0.5558766202 | Q88: 2.905849208 | S88: 2.605330509 | T88: -0.1034185457
B89: EHV | C89: Overhead lines | D89: 0 | E89: 0 | F89: 0 | G89: 0 | H89: 0 | I89: 0 | J89: 0 | K89: 0 | L89: 0 | M89: 0 | O89: 0 | P89: 0 | Q89: 0 | S89: 0 | T89: 0
C90: Underground cables | D90: 0.09943251377 | E90: 0.1991756819 | F90: 0.1993075713 | G90: 0.1116344911 | H90: 0.111175324 | I90: 0.2119632457 | J90: 0.2074669886 | K90: 0.2071889586 | L90: 0.2066985704 | M90: 0.2088144403 | O90: 0.609550258 | P90: 0.111175324 | Q90: 0.7207255821 | S90: 1.042132204 | T90: 0.4459486793
C91: Submarine | D91: 0 | E91: 0 | F91: 0 | G91: 0 | H91: 0 | I91: 0 | J91: 0 | K91: 0 | L91: 0 | M91: 0 | O91: 0 | P91: 0 | Q91: 0 | S91: 0 | T91: 0
C92: Switchgear (incl other plant & equipment) | D92: 0 | E92: 0 | F92: 0 | G92: 0 | H92: 0 | I92: 0 | J92: 0 | K92: 0 | L92: 0 | M92: 0 | O92: 0 | P92: 0 | Q92: 0 | S92: 0 | T92: 0
C93: Transformers | D93: 0.7954601101 | E93: 2.888047387 | F93: 2.192383284 | G93: 1.00471042 | H93: 0.5558766202 | I93: 0 | J93: 0 | K93: 0 | L93: 0 | M93: 0 | O93: 6.880601201 | P93: 0.5558766202 | Q93: 7.436477822 | S93: 0 | T93: -1
C94: Substation | D94: 0 | E94: 0 | F94: 0 | G94: 0 | H94: 0 | I94: 0 | J94: 0 | K94: 0 | L94: 0 | M94: 0 | O94: 0 | P94: 0 | Q94: 0 | S94: 0 | T94: 0
B95: 132kV | C95: Overhead lines | D95: 0 | E95: 0 | F95: 0 | G95: 0 | H95: 0 | I95: 0 | J95: 0 | K95: 0 | L95: 0 | M95: 0 | O95: 0 | P95: 0 | Q95: 0 | S95: 0 | T95: 0
C96: Underground cables | D96: 0 | E96: 0 | F96: 0 | G96: 0 | H96: 0 | I96: 0 | J96: 0 | K96: 0 | L96: 0 | M96: 0 | O96: 0 | P96: 0 | Q96: 0 | S96: 0 | T96: 0
C97: Submarine cables | D97: 0 | E97: 0 | F97: 0 | G97: 0 | H97: 0 | I97: 0 | J97: 0 | K97: 0 | L97: 0 | M97: 0 | O97: 0 | P97: 0 | Q97: 0 | S97: 0 | T97: 0
C98: Switchgear (incl other plant & equipment) | D98: 0 | E98: 0 | F98: 0 | G98: 0 | H98: 0 | I98: 0 | J98: 0 | K98: 0 | L98: 0 | M98: 0 | O98: 0 | P98: 0 | Q98: 0 | S98: 0 | T98: 0
C99: Transformers | D99: 0.1988650275 | E99: 1.195054091 | F99: 0.3986151426 | G99: 0.5581724554 | H99: 0.5558766202 | I99: 0.635889737 | J99: 0.6224009658 | K99: 0.6215668758 | L99: 0.6200957113 | M99: 0.6264433209 | O99: 2.350706717 | P99: 0.5558766202 | Q99: 2.906583337 | S99: 3.126396611 | T99: 0.07562600077
C100: Substation | D100: 0 | E100: 0 | F100: 0 | G100: 0 | H100: 0 | I100: 0 | J100: 0 | K100: 0 | L100: 0 | M100: 0 | O100: 0 | P100: 0 | Q100: 0 | S100: 0 | T100: 0
B101: Total reactive condition based replacement (£m) | D101: 3.082407927 | E101: 6.37362182 | F101: 6.078880925 | G101: 4.018841679 | H101: 3.55761037 | I101: 3.391411931 | J101: 3.319471818 | K101: 3.418617817 | L101: 3.410526412 | M101: 3.549845485 | O101: 19.55375235 | P101: 3.55761037 | Q101: 23.11136272 | S101: 17.08987346 | T101: -0.2605423718
B104: Overhead line refurbishment / replacement
B106: Asset Categories | D106: DPCR 4 | I106: DPCR 5 | O106: DPCR4 | S106: DPCR5
D107: 2005/06 | E107: 2006/07 | F107: 2007/08 | G107: 2008/09 | H107: 2009/10 | I107: 2010/11 | J107: 2011/12 | K107: 2012/13 | L107: 2013/14 | M107: 2014/015 | O107: Actuals | P107: Forecast | Q107: Total | S107: Forecast | T107: % change
D108: £m | E108: £m | F108: £m | G108: £m | H108: £m | I108: £m | J108: £m | K108: £m | L108: £m | M108: £m
B109: LV Mains | C109: Refurbishment | D109: 0 | E109: 0 | F109: 0 | G109: 0 | H109: 0.7782272683 | I109: 0 | J109: 0 | K109: 0 | L109: 0 | M109: 0 | O109: =SUM(D109:G109) -> 0 | P109: =H109 -> 0.7782272683 | Q109: =SUM(D109:H109) -> 0.7782272683 | S109: =SUM(I109:M109) -> 0 | T109: =IF(Q109<>0,(S109-Q109)/Q109,"0") -> -1
C110: Full rebuild | D110: 0 | E110: 0.3983513637 | F110: 0.3986151426 | G110: 1.00471042 | H110: 0.6670519443 | I110: 1.059816228 | J110: 1.141068437 | K110: 1.243133752 | L110: 1.343540708 | M110: 1.461701082 | O110: 1.801676926 | P110: 0.6670519443 | Q110: 2.46872887 | S110: 6.249260207 | T110: =IF(Q110<>0,(S110-Q110)/Q110,"0") -> 1.531367572
C111: Undergrounding | D111: 0 | E111: 0.1991756819 | F111: 0.1993075713 | G111: 0.5581724554 | H111: 0.3335259721 | I111: 1.801687588 | J111: 1.867202897 | K111: 2.071889586 | L111: 2.170334989 | M111: 2.296958843 | O111: 0.9566557086 | P111: 0.3335259721 | Q111: 1.290181681 | S111: 10.2080739 | T111: 6.912121259
C112: Covered Conductor | D112: 0 | E112: 0 | F112: 0 | G112: 0 | H112: 0 | I112: 0 | J112: 0 | K112: 0 | L112: 0 | M112: 0 | O112: 0 | P112: 0 | Q112: 0 | S112: 0 | T112: 0
C113: Pole replacement only (i.e. D poles) | D113: 0 | E113: 0 | F113: 0 | G113: 0 | H113: 0 | I113: 0 | J113: 0 | K113: 0 | L113: 0 | M113: 0 | O113: 0 | P113: 0 | Q113: 0 | S113: 0 | T113: 0
C114: Total OHL expenditure (£m) | D114: 0 | E114: 0.5975270456 | F114: 0.5979227139 | G114: 1.562882875 | H114: 1.778805185 | I114: 2.861503816 | J114: 3.008271335 | K114: 3.315023338 | L114: 3.513875697 | M114: 3.758659925 | O114: 2.758332635 | P114: 1.778805185 | Q114: 4.53713782 | S114: 16.45733411 | T114: 2.627250211
B115: HV | C115: Refurbishment | D115: 5.468788257 | E115: 8.664142161 | F115: 9.766070994 | G115: 11.83325606 | H115: 9.449902544 | I115: 9.856290923 | J115: 8.92108051 | K115: 8.287558344 | L115: 7.751196391 | M115: 7.308505411 | O115: 35.73225747 | P115: 9.449902544 | Q115: 45.18216001 | S115: 42.12463158 | T115: -0.0676711435
C116: Full rebuild | D116: 0 | E116: 0 | F116: 0 | G116: 0 | H116: 0 | I116: 0 | J116: 0 | K116: 0 | L116: 0 | M116: 0 | O116: 0 | P116: 0 | Q116: 0 | S116: 0 | T116: 0
C117: Undergrounding | D117: 0.2982975413 | E117: 0.3983513637 | F117: 0.4982689283 | G117: 0.5581724554 | H117: 0.5558766202 | I117: 0 | J117: 0 | K117: 0 | L117: 0 | M117: 0 | O117: 1.753090289 | P117: 0.5558766202 | Q117: 2.308966909 | S117: 0 | T117: -1
C118: Covered Conductor | D118: 0 | E118: 0 | F118: 0 | G118: 0 | H118: 0 | I118: 0 | J118: 0 | K118: 0 | L118: 0 | M118: 0 | O118: 0 | P118: 0 | Q118: 0 | S118: 0 | T118: 0
C119: Pole replacement only (i.e. D poles) | D119: 0 | E119: 0 | F119: 0 | G119: 0 | H119: 0 | I119: 0 | J119: 0 | K119: 0 | L119: 0 | M119: 0 | O119: 0 | P119: 0 | Q119: 0 | S119: 0 | T119: 0
C120: Total OHL expenditure (£m) | D120: 5.767085798 | E120: 9.062493525 | F120: 10.26433992 | G120: 12.39142851 | H120: 10.00577916 | I120: 9.856290923 | J120: 8.92108051 | K120: 8.287558344 | L120: 7.751196391 | M120: 7.308505411 | O120: 37.48534776 | P120: 10.00577916 | Q120: 47.49112692 | S120: 42.12463158 | T120: -0.1129999579
B121: EHV - Pole line | C121: Refurbishment | D121: 0.3977300551 | E121: 0.09958784093 | F121: 0 | G121: 2.455958804 | H121: 0.4447012962 | I121: 0.2119632457 | J121: 0 | K121: 0.8287558344 | L121: 0.4133971408 | M121: 0 | O121: 2.9532767 | P121: 0.4447012962 | Q121: 3.397977996 | S121: 1.454116221 | T121: -0.5720642622
C122: Full rebuild | D122: 0 | E122: 0 | F122: 0 | G122: 0 | H122: 0 | I122: 0.2119632457 | J122: 3.838139289 | K122: 1.864700627 | L122: 5.477512116 | M122: 2.505773284 | O122: 0 | P122: 0 | Q122: 0 | S122: 13.89808856 | T122: 0
C123: Undergrounding | D123: 0 | E123: 0 | F123: 0 | G123: 0 | H123: 0 | I123: 0 | J123: 0 | K123: 0 | L123: 0 | M123: 0 | O123: 0 | P123: 0 | Q123: 0 | S123: 0 | T123: 0
C124: Pole replacement only (i.e. D poles) | D124: 0 | E124: 0 | F124: 0 | G124: 0 | H124: 0 | I124: 0 | J124: 0 | K124: 0 | L124: 0 | M124: 0 | O124: 0 | P124: 0 | Q124: 0 | S124: 0 | T124: 0
B125: EHV - Tower line | C125: Fittings only | D125: 0 | E125: 0 | F125: 0 | G125: 0 | H125: 0 | I125: 0 | J125: 0 | K125: 0 | L125: 0 | M125: 0 | O125: 0 | P125: 0 | Q125: 0 | S125: 0 | T125: 0
C126: Reconductoring | D126: 0 | E126: 0 | F126: 0 | G126: 0 | H126: 0 | I126: 0 | J126: 0 | K126: 0 | L126: 0 | M126: 0 | O126: 0 | P126: 0 | Q126: 0 | S126: 0 | T126: 0
C127: Undergrounding | D127: 0 | E127: 0 | F127: 0 | G127: 0 | H127: 0 | I127: 0 | J127: 0.2074669886 | K127: 0 | L127: 0 | M127: 0 | O127: 0 | P127: 0 | Q127: 0 | S127: 0.2074669886 | T127: 0
C128: Tower Refurbishment | D128: 0 | E128: 0 | F128: 0 | G128: 0 | H128: 0 | I128: 0 | J128: 0 | K128: 1.139539272 | L128: 0.6200957113 | M128: 0 | O128: 0 | P128: 0 | Q128: 0 | S128: 1.759634984 | T128: 0
B129: EHV Total | C129: Total OHL expenditure (£m) | D129: 0.3977300551 | E129: 0.09958784093 | F129: 0 | G129: 2.455958804 | H129: 0.4447012962 | I129: 0.4239264913 | J129: 4.045606278 | K129: 3.832995734 | L129: 6.511004968 | M129: 2.505773284 | O129: 2.9532767 | P129: 0.4447012962 | Q129: 3.397977996 | S129: 17.31930675 | T129: 4.09694494
B130: 132kV - Pole Line | C130: Refurbishment | D130: 0 | E130: 0 | F130: 0 | G130: 0 | H130: 0 | I130: 0 | J130: 0 | K130: 0 | L130: 0 | M130: 0 | O130: 0 | P130: 0 | Q130: 0 | S130: 0 | T130: 0
C131: Full rebuild | D131: 0 | E131: 0 | F131: 0 | G131: 0 | H131: 0 | I131: 0 | J131: 0 | K131: 0 | L131: 0 | M131: 0 | O131: 0 | P131: 0 | Q131: 0 | S131: 0 | T131: 0
C132: Undergrounding | D132: 0 | E132: 0 | F132: 0 | G132: 0 | H132: 0 | I132: 0 | J132: 0 | K132: 0 | L132: 0 | M132: 0 | O132: 0 | P132: 0 | Q132: 0 | S132: 0 | T132: 0
C133: Pole replacement only (i.e. D poles) | D133: 0 | E133: 0 | F133: 0 | G133: 0 | H133: 0 | I133: 0 | J133: 0 | K133: 0 | L133: 0 | M133: 0 | O133: 0 | P133: 0 | Q133: 0 | S133: 0 | T133: 0
B134: 132kV - Tower line | C134: Fittings only | D134: 0 | E134: 0 | F134: 0 | G134: 0 | H134: 0 | I134: 0 | J134: 0 | K134: 0 | L134: 0 | M134: 0 | O134: 0 | P134: 0 | Q134: 0 | S134: 0 | T134: 0
C135: Reconductoring | D135: 0.09943251377 | E135: 4.581040683 | F135: 6.975764996 | G135: 4.688648626 | H135: 2.334681805 | I135: 4.451228159 | J135: 3.838139289 | K135: 4.868940527 | L135: 4.237320694 | M135: 2.088144403 | O135: 16.34488682 | P135: 2.334681805 | Q135: 18.67956862 | S135: 19.48377307 | T135: 0.04305262422
C136: Undergrounding | D136: 0 | E136: 0 | F136: 0 | G136: 7.814414376 | H136: 3.891136342 | I136: 0 | J136: 0 | K136: 0 | L136: 0 | M136: 0 | O136: 7.814414376 | P136: 3.891136342 | Q136: 11.70555072 | S136: 0 | T136: -1
C137: Tower Refurbishment | D137: 0 | E137: 0 | F137: 0 | G137: 0 | H137: 0 | I137: 0 | J137: 0 | K137: 0 | L137: 0 | M137: 0 | O137: 0 | P137: 0 | Q137: 0 | S137: 0 | T137: 0
B138: 132 kV Total | C138: Total OHL expenditure (£m) | D138: 0.09943251377 | E138: 4.581040683 | F138: 6.975764996 | G138: 12.503063 | H138: 6.225818147 | I138: 4.451228159 | J138: 3.838139289 | K138: 4.868940527 | L138: 4.237320694 | M138: 2.088144403 | O138: 24.15930119 | P138: 6.225818147 | Q138: 30.38511934 | S138: 19.48377307 | T138: -0.3587725342
B140: LV Services - Split of activities
B142: Asset Categories | D142: DPCR 4 | I142: DPCR 5 | O142: DPCR4 | S142: DPCR5
D143: 2005/06 | E143: 2006/07 | F143: 2007/08 | G143: 2008/09 | H143: 2009/10 | I143: 2010/11 | J143: 2011/12 | K143: 2012/13 | L143: 2013/14 | M143: 2014/015 | O143: Actuals | P143: Forecast | Q143: Total | S143: Forecast | T143: % change
D144: £m | E144: £m | F144: £m | G144: £m | H144: £m | I144: £m | J144: £m | K144: £m | L144: £m | M144: £m
B145: LV Services - metered only | C145: OHL
C146: Service Replacement | O146: =SUM(D146:G146) -> 0 | P146: =H146 -> 0 | Q146: =SUM(D146:H146) -> 0 | S146: =SUM(I146:M146) -> 0 | T146: =IF(Q146<>0,(S146-Q146)/Q146,"0") -> 0
C147: Cut out Replacement | O147: 0 | P147: 0 | Q147: 0 | S147: 0 | T147: 0
O148: 0 | P148: 0 | Q148: 0 | S148: 0 | T148: 0
C150: UG
C151: Service Replacement | O151: 0 | P151: 0 | Q151: 0 | S151: 0 | T151: 0
C152: Cut out Replacement | O152: 0 | P152: 0 | Q152: 0 | S152: 0 | T152: 0
O153: 0 | P153: 0 | Q153: 0 | S153: 0 | T153: 0

Sheet NL9 - Legal & Safety
A1: June Forecast Business Plan DPCR5
A2: EDFE SPN
A3: NL9 - Legal and safety
B5: Legal and Safety
D7: DPCR4 | I7: DPCR5
D8: 2005/06 | E8: 2006/07 | F8: 2007/08 | G8: 2008/09 | H8: 2009/10 | I8: 2010/11 | J8: 2011/12 | K8: 2012/13 | L8: 2013/14 | M8: 2014/15
B9: ESQCR
B10: ESQCR 43-8 Clearance | C10: £m
B11: ESQCR tree continuity | C11: £m
B12: ESQCR Other | C12: £m
B13: CNI
B14: Black Start | C14: £m
B15: Emergency Batteries | C15: £m
B16: Critical National Infrastructure | C16: £m
B17: Other
B18: Site Security | C18: £m
B19: Asbestos clearance | C19: £m
B20: Safety climbing devices | C20: £m
B21: Rising mains and laterals | C21: £m
C22: £m
B23: Retrofit ABSD & Earthing theft & Replace 0.025 OH conductor | C23: £m
B24: Fire Prevention | C24: £m
B25: Total | C25: £m | D25: =SUM(D10:D24) -> 0 | E25: 0 | F25: 0 | G25: 0 | H25: 0 | I25: 0 | J25: 0 | K25: 0 | L25: 0 | M25: 0
B28: ESQCR 43-8 Safety Clearance Expenditure
B30: Horizontal
D31: DPCR4 | I31: DPCR5
D32: 2005/06 | E32: 2006/07 | F32: 2007/08 | G32: 2008/09 | H32: 2009/10 | I32: 2010/11 | J32: 2011/12 | K32: 2012/13 | L32: 2013/14 | M32: 2014/15
B33: LV | C33: £m
B34: HV | C34: £m
B35: EHV | C35: £m
B36: 132 kV | C36: £m
B37: Total | C37: £m | D37: =SUM(D33:D36) -> 0 | E37: 0 | F37: 0 | G37: 0 | H37: 0 | I37: 0 | J37: 0 | K37: 0 | L37: 0 | M37: 0
B39: Vertical
D40: DPCR4 | I40: DPCR5
D41: 2005/06 | E41: 2006/07 | F41: 2007/08 | G41: 2008/09 | H41: 2009/10 | I41: 2010/11 | J41: 2011/12 | K41: 2012/13 | L41: 2013/14 | M41: 2014/15
B42: LV | C42: £m
B43: HV | C43: £m
B44: EHV | C44: £m
B45: 132 kV | C45: £m
B46: Total | C46: £m | D46: =SUM(D42:D45) -> 0 | E46: 0 | F46: 0 | G46: 0 | H46: 0 | I46: 0 | J46: 0 | K46: 0 | L46: 0 | M46: 0
B48: Horizontal - Detailed Information
C50: Sites affected as at April 2005 | D50: No of sites resolved 05/06 - 07/08 | E50: Sites affected as at April 2008 | F50: No of sites to be resolved 08/09 - 09/10 | G50: No of sites to be resolved in DPCR5 | H50: Sites affected as at April 2015
B51: LV | C51: =D51+E51 -> 0 | D51: =C61 -> 0 | F51: =K61 -> 0 | G51: =S61 -> 0 | H51: =E51-SUM(F51:G51) -> 0
B52: HV | C52: =D52+E52 -> 0 | D52: =C62 -> 0 | F52: =K62 -> 0 | G52: =S62 -> 0 | H52: =E52-SUM(F52:G52) -> 0
B53: EHV | C53: =D53+E53 -> 0 | D53: =C63 -> 0 | F53: =K63 -> 0 | G53: =S63 -> 0 | H53: =E53-SUM(F53:G53) -> 0
B54: 132 kV | C54: =D54+E54 -> 0 | D54: =C64 -> 0 | F54: =K64 -> 0 | G54: =S64 -> 0 | H54: =E54-SUM(F54:G54) -> 0
B55: Total | C55: =SUM(C51:C54) -> 0 | D55: 0 | E55: 0 | F55: 0 | G55: 0 | H55: 0
B58: 05/06 - 07/08 | J58: 08/09-09/10 | R58: DPCR5
C59: No of sites resolved | D59: Actual Solutions (#) | K59: No of sites resolved | L59: Forecast Solutions (#) | S59: No of sites resolved | T59: Forecast Solutions (#)
D60: Shrouding | E60: Diversions | F60: Under-grounding | G60: Covered conductors | H60: As part of other planned work | L60: Shrouding | M60: Diversions | N60: Under-grounding | O60: Covered conductors | P60: As part of other planned work | T60: Shrouding | U60: Diversions | V60: Under-grounding | W60: Covered conductors | X60: As part of other planned work
B61: LV | C61: =SUM(D61:H61) -> 0 | J61: LV | K61: =SUM(L61:P61) -> 0 | R61: LV | S61: =SUM(T61:X61) -> 0
B62: HV | C62: =SUM(D62:H62) -> 0 | J62: HV | K62: =SUM(L62:P62) -> 0 | R62: HV | S62: =SUM(T62:X62) -> 0
B63: EHV | C63: =SUM(D63:H63) -> 0 | J63: EHV | K63: =SUM(L63:P63) -> 0 | R63: EHV | S63: =SUM(T63:X63) -> 0
B64: 132 kV | C64: =SUM(D64:H64) -> 0 | J64: 132 kV | K64: =SUM(L64:P64) -> 0 | R64: 132 kV | S64: =SUM(T64:X64) -> 0
B65: Total | C65: =SUM(C61:C64) -> 0 | D65: 0 | E65: 0 | F65: 0 | G65: 0 | H65: 0 | J65: Total | K65: =SUM(K61:K64) -> 0 | L65: 0 | M65: 0 | N65: 0 | O65: 0 | P65: 0 | R65: Total | S65: =SUM(S61:S64) -> 0 | T65: 0 | U65: 0 | V65: 0 | W65: 0 | X65: 0
B67: 05/06 - 07/08 | J67: 08/09-09/10 | R67: DPCR5
C68: No of spans changed | D68: Actual Solutions (#) | K68: No of spans changed | L68: Forecast Solutions (#) | S68: No of spans changed | T68: Forecast Solutions (#)
D69: Shrouding | E69: Diversions | F69: Under-grounding | G69: Covered conductors | H69: As part of other planned work | L69: Shrouding | M69: Diversions | N69: Under-grounding | O69: Covered conductors | P69: As part of other planned work | T69: Shrouding | U69: Diversions | V69: Under-grounding | W69: Covered conductors | X69: As part of other planned work
B70: LV | J70: LV | R70: LV
B71: HV | J71: HV | R71: HV
B72: EHV | J72: EHV | R72: EHV
B73: 132 kV | J73: 132 kV | R73: 132 kV
B74: Total | C74: =SUM(C70:C73) -> 0 | D74: 0 | E74: 0 | F74: 0 | G74: 0 | H74: 0 | J74: Total | K74: =SUM(K70:K73) -> 0 | L74: 0 | M74: 0 | N74: 0 | O74: 0 | P74: 0 | R74: Total | S74: =SUM(S70:S73) -> 0 | T74: 0 | U74: 0 | V74: 0 | W74: 0 | X74: 0
B76: 05/06 - 07/08 | J76: 08/09-09/10 | R76: DPCR5
C77: Total Cost £m | D77: Expenditure £m | K77: Total Cost £m | L77: Forecast Solutions (£m) | S77: Total Cost £m | T77: Forecast Solutions (£m)
D78: Shrouding | E78: Diversions | F78: Under-grounding | G78: Covered conductors | H78: As part of other planned work | L78: Shrouding | M78: Diversions | N78: Under-grounding | O78: Covered conductors | P78: As part of other planned work | T78: Shrouding | U78: Diversions | V78: Under-grounding | W78: Covered conductors | X78: As part of other planned work
B79: LV | J79: LV | K79: =SUM(G33:H33) -> 0 | R79: LV | S79: =SUM(I33:M33) -> 0
B80: HV | J80: HV | K80: =SUM(G34:H34) -> 0 | R80: HV | S80: =SUM(I34:M34) -> 0
B81: EHV | J81: EHV | K81: =SUM(G35:H35) -> 0 | R81: EHV | S81: =SUM(I35:M35) -> 0
B82: 132 kV | J82: 132 kV | K82: =SUM(G36:H36) -> 0 | R82: 132 kV | S82: =SUM(I36:M36) -> 0
B83: Total | C83: =SUM(C79:C82) -> 0 | D83: 0 | E83: 0 | F83: 0 | G83: 0 | H83: 0 | J83: Total | K83: =SUM(K79:K82) -> 0 | L83: 0 | M83: 0 | N83: 0 | O83: 0 | P83: 0 | R83: Total | S83: =SUM(S79:S82) -> 0 | T83: 0 | U83: 0 | V83: 0 | W83: 0 | X83: 0
B85: 05/06 - 07/08 | J85: 08/09-09/10 | R85: DPCR5
C86: Total unit Cost £k/per span | D86: Unit cost £k/span | K86: Total unit Cost £k/per span | L86: Forecast Unit cost £k/span | S86: Total unit Cost £k/per span | T86: Forecast Unit cost £k/span
D87: Shrouding | E87: Diversions | F87: Under-grounding | G87: Covered conductors | H87: As part of other planned work | L87: Shrouding | M87: Diversions | N87: Under-grounding | O87: Covered conductors | T87: Shrouding | U87: Diversions | V87: Under-grounding | W87: Covered conductors
B88: LV | C88: =IF(C70>0,C79*1000/C70,0) -> 0 | D88: 0 | E88: 0 | F88: 0 | G88: 0 | J88: LV | K88: =IF(K70>0,K79*1000/K70,0) -> 0 | L88: 0 | M88: 0 | N88: 0 | O88: 0 | R88: LV | S88: =IF(S70>0,S79*1000/S70,0) -> 0 | T88: 0 | U88: 0 | V88: 0 | W88: 0
B89: HV | C89: 0 | D89: 0 | E89: 0 | F89: 0 | G89: 0 | J89: HV | K89: 0 | L89: 0 | M89: 0 | N89: 0 | O89: 0 | R89: HV | S89: 0 | T89: 0 | U89: 0 | V89: 0 | W89: 0
B90: EHV | C90: 0 | D90: 0 | E90: 0 | F90: 0 | G90: 0 | J90: EHV | K90: 0 | L90: 0 | M90: 0 | N90: 0 | O90: 0 | R90: EHV | S90: 0 | T90: 0 | U90: 0 | V90: 0 | W90: 0
B91: 132 kV | C91: 0 | D91: 0 | E91: 0 | F91: 0 | G91: 0 | J91: 132 kV | K91: 0 | L91: 0 | M91: 0 | N91: 0 | O91: 0 | R91: 132 kV | S91: 0 | T91: 0 | U91: 0 | V91: 0 | W91: 0
B94: Vertical - Detailed Information
C96: Sites affected as at April 2005 | D96: No of sites resolved 05/06 - 07/08 | E96: Sites affected as at April 2008 | F96: No of sites to be resolved 08/09 - 09/10 | G96: No of sites to be resolved in DPCR5 | H96: Sites affected as at April 2015
B97: LV | C97: =D97+E97 -> 0 | D97: =C107 -> 0 | F97: =K107 -> 0 | G97: =S107 -> 0 | H97: =E97-SUM(F97:G97) -> 0
B98: HV | C98: =D98+E98 -> 0 | D98: =C108 -> 0 | F98: =K108 -> 0 | G98: =S108 -> 0 | H98: =E98-SUM(F98:G98) -> 0
B99: EHV | C99: =D99+E99 -> 0 | D99: =C109 -> 0 | F99: =K109 -> 0 | G99: =S109 -> 0 | H99: =E99-SUM(F99:G99) -> 0
B100: 132 kV | C100: =D100+E100 -> 0 | D100: =C110 -> 0 | F100: =K110 -> 0 | G100: =S110 -> 0 | H100: =E100-SUM(F100:G100) -> 0
B101: Total | C101: =SUM(C97:C100) -> 0 | D101: 0 | E101: 0 | F101: 0 | G101: 0 | H101: 0
B104: 05/06 - 07/08 | J104: 08/09-09/10 | R104: DPCR5
C105: No of sites resolved | D105: Actual Solutions (#) | K105: No of sites resolved | L105: Forecast Solutions (#) | S105: No of sites resolved | T105: Forecast Solutions (#)
D106: Rebuild | E106: Under-grounding | F106: Other | G106: Derogation | H106: As part of other planned work | L106: Rebuild | M106: Under-grounding | N106: Other | O106: Derogation | P106: As part of other planned work | T106: Rebuild | U106: Under-grounding | V106: Other | W106: Derogation | X106: As part of other planned work
B107: LV | C107: =SUM(D107:H107) -> 0 | J107: LV | K107: =SUM(L107:P107) -> 0 | R107: LV | S107: =SUM(T107:X107) -> 0
B108: HV | C108: =SUM(D108:H108) -> 0 | J108: HV | K108: =SUM(L108:P108) -> 0 | R108: HV | S108: =SUM(T108:X108) -> 0
B109: EHV | C109: =SUM(D109:H109) -> 0 | J109: EHV | K109: =SUM(L109:P109) -> 0 | R109: EHV | S109: =SUM(T109:X109) -> 0
B110: 132 kV | C110: =SUM(D110:H110) -> 0 | J110: 132 kV | K110: =SUM(L110:P110) -> 0 | R110: 132 kV | S110: =SUM(T110:X110) -> 0
B111: Total | C111: =SUM(C107:C110) -> 0 | D111: 0 | E111: 0 | F111: 0 | G111: 0 | H111: 0 | J111: Total | K111: =SUM(K107:K110) -> 0 | L111: 0 | M111: 0 | N111: 0 | O111: 0 | P111: 0 | R111: Total | S111: =SUM(S107:S110) -> 0 | T111: 0 | U111: 0 | V111: 0 | W111: 0 | X111: 0
B113: 05/06 - 07/08 | J113: 08/09-09/10 | R113: DPCR5
C114: No of spans changed | D114: Actual Solutions (#) | K114: No of spans changed | L114: Forecast Solutions (#) | S114: No of spans changed | T114: Forecast Solutions (#)
D115: Rebuild | E115: Under-grounding | F115: Other | G115: Derogation | H115: As part of other planned work | L115: Rebuild | M115: Under-grounding | N115: Other | O115: Derogation | P115: As part of other planned work | T115: Rebuild | U115: Under-grounding | V115: Other | W115: Derogation | X115: As part of other planned work
B116: LV | J116: LV | R116: LV
B117: HV | J117: HV | R117: HV
B118: EHV | J118: EHV | R118: EHV
B119: 132 kV | J119: 132 kV | R119: 132 kV
B120: Total | C120: =SUM(C116:C119) -> 0 | D120: =SUM(D116:D119) -> 0 | E120: =SUM(E116:E119) -> 0 | F120: =SUM(F116:F119) -> 0 | H120: =SUM(H116:H119) -> 0 | J120: Total | K120: =SUM(K116:K119) -> 0 | L120: 0 | M120: 0 | N120: 0 | O120: 0 | P120: 0 | R120: Total | S120: =SUM(S116:S119) -> 0 | T120: 0 | U120: 0 | V120: 0 | W120: 0 | X120: 0
B122: 05/06 - 07/08 | J122: 08/09-09/10 | R122: DPCR5
C123: Total Cost £m | D123: Expenditure £m | K123: Total Cost £m | L123: Forecast Solutions (£m) | S123: Total Cost £m | T123: Forecast Solutions (£m)
D124: Rebuild | E124: Under-grounding | F124: Other | G124: Derogation | H124: As part of other planned work | L124: Rebuild | M124: Under-grounding | N124: Other | O124: Derogation | P124: As part of other planned work | T124: Rebuild | U124: Under-grounding | V124: Other | W124: Derogation | X124: As part of other planned work
B125: LV | C125: =SUM(D42:F42) -> 0 | J125: LV | K125: =SUM(G42:H42) -> 0 | R125: LV | S125: =SUM(I42:M42) -> 0
B126: HV | C126: =SUM(D43:F43) -> 0 | J126: HV | K126: =SUM(G43:H43) -> 0 | R126: HV | S126: =SUM(I43:M43) -> 0
B127: EHV | C127: =SUM(D44:F44) -> 0 | J127: EHV | K127: =SUM(G44:H44) -> 0 | R127: EHV | S127: =SUM(I44:M44) -> 0
B128: 132 kV | C128: =SUM(D45:F45) -> 0 | J128: 132 kV | K128: =SUM(G45:H45) -> 0 | R128: 132 kV | S128: =SUM(I45:M45) -> 0
B129: Total | C129: =SUM(C125:C128) -> 0 | D129: =SUM(D125:D128) -> 0 | E129: =SUM(E125:E128) -> 0 | F129: =SUM(F125:F128) -> 0 | H129: =SUM(H125:H128) -> 0 | J129: Total | K129: =SUM(K125:K128) -> 0 | L129: =SUM(L125:L128) -> 0 | M129: =SUM(M125:M128) -> 0 | N129: =SUM(N125:N128) -> 0 | P129: =SUM(P125:P128) -> 0 | R129: Total | S129: =SUM(S125:S128) -> 0 | T129: =SUM(T125:T128) -> 0 | U129: =SUM(U125:U128) -> 0 | V129: =SUM(V125:V128) -> 0 | X129: =SUM(X125:X128) -> 0
B131: 05/06 - 07/08 | J131: 08/09-09/10 | R131: DPCR5
C132: Total unit Cost £k/per span | D132: Unit cost £k/span | K132: Total unit Cost £k/per span | L132: Forecast Unit cost £k/span | S132: Total unit Cost £k/per span | T132: Forecast Unit cost £k/span
D133: Rebuild | E133: Under-grounding | F133: Other | G133: Derogation | H133: As part of other planned work | L133: Rebuild | M133: Under-grounding | N133: Other | O133: Derogation | P133: As part of other planned work | T133: Rebuild | U133: Under-grounding | V133: Other | W133: Derogation | X133: As part of other planned work
B134: LV | C134: =IF(C116>0,C125*1000/C116,0) -> 0 | D134: 0 | E134: 0 | F134: 0 | J134: LV | K134: =IF(K116>0,K125*1000/K116,0) -> 0 | L134: 0 | M134: 0 | N134: 0 | R134: LV | S134: =IF(S116>0,S125*1000/S116,0) -> 0 | T134: 0 | U134: 0 | V134: 0
B135: HV | C135: 0 | D135: 0 | E135: 0 | F135: 0 | J135: HV | K135: 0 | L135: 0 | M135: 0 | N135: 0 | R135: HV | S135: 0 | T135: 0 | U135: 0 | V135: 0
B136: EHV | C136: 0 | D136: 0 | E136: 0 | F136: 0 | J136: EHV | K136: 0 | L136: 0 | M136: 0 | N136: 0 | R136: EHV | S136: 0 | T136: 0 | U136: 0 | V136: 0
B137: 132 kV | C137: 0 | D137: 0 | E137: 0 | F137: 0 | J137: 132 kV | K137: 0 | L137: 0 | M137: 0 | N137: 0 | R137: 132 kV | S137: 0 | T137: 0 | U137: 0 | V137: 0

Sheet FBPQ C2
A1: Main Forecast Business Plan DPCR5 | F1: Index
A3: C2 - Unit costs
B7: Asset categories | F7: Units | G7: New build | I7: Replacement
G8: Direct costs | H8: Cost including indirects (absorbed costs in T2A) | I8: Direct costs | J8: Cost including indirects (absorbed costs in T2A)
G9: (£k) | H9: (£k) | I9: (£k) | J9: (£k)
C10: LV Network
D11: Overhead lines
E12: LV Main (OHL) | F12: km | J12: 41.70024658
E13: LV Service (OHL) | F13: Each | J13: 0.5085395924
D15: Overhead lines - Support
E16: LV Support | F16: Each | J16: 0
D18: Underground cables
E19: LV Main (UG Consac) | F19: km | J19: 127.1348981
E20: LV Main (UG Plastic) | F20: km | J20: 127.1348981
E21: LV Main (UG Paper) | F21: km | J21: 127.1348981
E22: LV Service (UG) | F22: Each | J22: 1.700073284
D24: Switchgear
E25: LV Pillar (ID) | F25: Each | J25: 5.721070415
E26: LV Pillar (OD) | F26: Each | J26: 5.721070415
E27: LV Board (WM) | F27: Each | J27: 5.721070415
E28: LV UGB | F28: Each | J28: 4.831126128
E29: LV Fuses (PM) | F29: Each
E30: LV Fuses (TM) | F30: Each
C32: HV network
D33: Overhead lines
E34: 6.6/11 kV OHL (Open) | F34: km | J34: 43.09873046
E35: 6.6/11 kV OHL (Covered) | F35: km | J35: 43.09873046
E36: 20 kV OHL (Open) | F36: km | J36: 0
E37: 20 kV OHL (Covered) | F37: km | J37: 0
D39: Overhead lines - Support
E40: 6.6/11 kV Support | F40: Each | J40: 0
E41: 20 kV Support | F41: Each | J41: 0
D43: Underground cables (kms)
E44: 6.6/11kV UG Cable | F44: km | J44: 84.54470724
E45: 20kV UG Cable | F45: km | J45: 0
D47: Submarine cables (kms)
E48: HV Sub Cable | F48: km | J48: 0
D50: Switchgear
E51: 6.6/11 kV CB (PM) | F51: Each | J51: 13.98483879
E52: 6.6/11 kV CB (GM) | F52: Each | J52: 30.89378024
E53: 6.6/11 kV Switch (PM) | F53: Each | J53: 1.652753675
E54: 6.6/11 kV Switch (GM) | F54: Each | J54: 5.212530822
E55: 6.6/11 kV RMU | F55: Each | J55: 16.40040186
E56: 6.6/11 kV Switchgear - Other (PM) | F56: Each
E57: 6.6/11 kV Switchgear - Other (GM) | F57: Each
E58: 20 kV CB (PM) | F58: Each | J58: 0
E59: 20 kV CB (GM) | F59: Each | J59: 0
E60: 20 kV Switch (PM) | F60: Each | J60: 0
E61: 20 kV Switch (GM) | F61: Each | J61: 0
E62: 20 kV RMU | F62: Each | J62: 0
E63: 20 kV Switchgear - Other (PM) | F63: Each
E64: 20 kV Switchgear - Other (GM) | F64: Each
D66: Transformers
E67: 6.6/11 kV Transformer (PM) | F67: Each | J67: 3.686912045
E68: 6.6/11 kV Transformer (GM) | F68: Each | J68: 11.95068042
E69: 20 kV Transformer (PM) | F69: Each | J69: 0
E70: 20 kV Transformer (GM) | F70: Each | J70: 0
C72: EHV Network
D73: Overhead lines
E74: 33kV OHL (Pole Line) | F74: km | J74: 98.40241113
E75: 33kV OHL (Tower Line) | F75: km | J75: 156.7573294
E76: 66kV OHL (Pole Line) | F76: km | J76: 185.6169512
E77: 66kV OHL (Tower Line) | F77: km | J77: 185.6169512
D79: Overhead lines - Support
E80: 33kV Pole | F80: Each | J80: 0
E81: 33kV Tower | F81: Each | J81: 0
E82: 66kV Pole | F82: Each | J82: 0
E83: 66kV Tower | F83: Each | J83: 0
D85: Underground cables (kms)
E86: 33kV UG Cable (Non Pressurised) | F86: km | J86: 257.066764
E87: 33kV UG Cable (Oil) | F87: km | J87: 257.066764
E88: 33kV UG Cable (Gas) | F88: km | J88: 0
E89: 66kV UG Cable (Non Pressurised) | F89: km | J89: 1206.510183
E90: 66kV UG Cable (Oil) | F90: km | J90: 1206.510183
E91: 66kV UG Cable (Gas) | F91: km | J91: 0
D93: Submarine cables (kms)
E94: EHV Sub Cable | F94: km | J94: 0
D96: Switchgear
E97: 33 KV CB (ID) | F97: Each | J97: 184.9812767
E98: 33 kV CB (OD) | F98: Each | J98: 184.9812767
E99: 33 kV Switch (GM) | F99: Each | J99: 0
E100: 33 kV Switch (PM) | F100: Each | J100: 0
E101: 33 kV RMU | F101: Each | J101: 588.5074433
E102: 33 kV Switchgear - Other | F102: Each
E103: 66 KV CB (ID & OD) | F103: Each | J103: 697.8434557
E104: 66 KV Switchgear - Other | F104: Each
D106: Transformers
E107: 33 kV Transformer (PM) | F107: Each | J107: 532.5680881
E108: 33 kV Transformer (GM) | F108: Each | J108: 571.9799066
E109: 33 kV AuxiliaryTransfomer | F109: Each
E110: 66 kV Transformer | F110: Each | J110: 2234.904374
E111: 66 kV AuxiliaryTransfomer | F111: Each
C113: 132kV Network
D114: Overhead lines
E115: 132kV OHL Conductor (Pole Line) | F115: km | J115: 714.879532
E116: 132kV OHL Conductor (Tower Line) | F116: km | J116: 1228.50452
D118: Overhead lines - Support
E119: 132kV Pole | F119: Each | J119: 0
E120: 132kV Tower | F120: Each | J120: 0
E121: 132kV Fittings (Tower Line) | F121: Each | J121: 0
D123: Underground cables (kms)
E124: 132kV UG Cable (Non Pressurised) | F124: km | J124: 1239.565256
E125: 132kV UG Cable (Oil) | F125: km | J125: 1239.565256
E126: 132kV UG Cable (Gas) | F126: km | J126: 0
D128: Submarine cables (kms)
E129: 132 kV Sub Cable | F129: km | J129: 0
D131: Switchgear
E132: 132 kV CB (ID & OD) | F132: Each | J132: 1106.455018
E133: 132 kV Switchgear (other) | F133: Each
D135: Transformers
E136: 132 kV Transformer | F136: Each | J136: 2234.904374
E137: 132 kV AuxiliaryTransfomer | F137: Each
C139: Tele-control / SCADA
